Workbook

Sheet Front end
A1: Donor aid flow definition "what if" analysis, 2006–12
A2: Flow type | J2: Filter or weight | K2: Include (as is standard)
A9: Discount method | J9: If weighting… | K9: Unit
A12: 35% filtering threshold has been only applied when using DDRs
A14: 35% filtering threshold has been only applied when using DDRs
A16: Filter
A17: Donor group | B17: 1
B19: Year
A20: Donor | B20: 2006 | C20: 2007 | D20: 2008 | E20: 2009 | F20: 2010 | G20: 2011 | H20: 2012
A21: Australia | B21: 0.002949496006 | C21: 0.003221603915 | D21: 0.003162060003 | E21: 0.002942631428 | F21: 0.00323130422 | G21: 0.003436003313 | H21: 0.003609315067
A22: Austria | B22: 0.004688724556 | C22: 0.004980778481 | D22: 0.004282653891 | E22: 0.003020307086 | F22: 0.003224165224 | G22: 0.002671221471 | H22: 0.002802133947
A23: Belgium | B23: 0.004992589498 | C23: 0.004261111665 | D23: 0.004786011687 | E23: 0.00549980411 | F23: 0.006397045357 | G23: 0.005362900251 | H23: 0.004746134379
A24: Canada | B24: 0.002937621781 | C24: 0.002893899008 | D24: 0.003254122599 | E24: 0.003030995998 | F24: 0.003364818416 | G24: 0.003196904597 | H24: 0.003158676773
A25: Czech Republic | B25: 0.001201397085 | C25: 0.001096967681 | D25: 0.001241949019 | E25: 0.001195237455 | F25: 0.00126617996 | G25: 0.001246278022 | H25: 0.00120500069
A26: Denmark | B26: 0.007981930907 | C26: 0.008075836508 | D26: 0.008173678444 | E26: 0.008803928553 | F26: 0.009091398309 | G26: 0.008521094619 | H26: 0.008300001177
A27: Finland | B27: 0.003959138037 | C27: 0.003940822564 | D27: 0.004384900325 | E27: 0.005423035374 | F27: 0.005504355996 | G27: 0.005311242773 | H27: 0.005338988916
A28: France | B28: 0.004676877787 | C28: 0.003795765665 | D28: 0.003852316656 | E28: 0.004706029799 | F28: 0.00495449407 | G28: 0.004595193833 | H28: 0.004526893279
A29: Germany | B29: 0.003560383851 | C29: 0.003668525544 | D29: 0.003828265109 | E29: 0.003549231981 | F29: 0.003866998597 | G29: 0.003867917273 | H29: 0.003717616253
A30: Greece | B30: 0.001730376096 | C30: 0.001623888155 | D30: 0.002107792768 | E30: 0.001888301571 | F30: 0.001712412186 | G30: 0.001467017125 | H30: 0.001308181168
A31: Iceland | B31: 0.002690786528 | C31: 0.002652425039 | D31: 0.004740965633 | E31: 0.003483587039 | F31: 0.002882387494 | G31: 0.002128491559 | H31: 0.002164061292
A32: Ireland | B32: 0.005408869356 | C32: 0.005515378024 | D32: 0.005904671744 | E32: 0.0054472936 | F32: 0.005227035621 | G32: 0.005120798729 | H32: 0.004698082044
A33: Italy | B33: 0.0019715033 | C33: 0.001899040446 | D33: 0.002176741003 | E33: 0.001584357024 | F33: 0.001480496809 | G33: 0.001981996117 | H33: 0.00136986117
A34: Japan | B34: 0.002482316771 | C34: 0.001701445598 | D34: 0.001904101083 | E34: 0.001827357712 | F34: 0.001964325901 | G34: 0.001778948982 | H34: 0.001731475858
A35: Luxembourg | B35: 0.008897039172 | C35: 0.00924117197 | D35: 0.009680452425 | E35: 0.01042861518 | F35: 0.01046576743 | G35: 0.009728588168 | H35: 0.01003898882
A36: Netherlands | B36: 0.008063599586 | C36: 0.008078969264 | D36: 0.008046922541 | E36: 0.008205173609 | F36: 0.008148637103 | G36: 0.007533455281 | H36: 0.007096947622
A37: New Zealand | B37: 0.002679206023 | C37: 0.002663485893 | D37: 0.003039788517 | E37: 0.002776902454 | F37: 0.002553112809 | G37: 0.00276102825 | H37: 0.002765342954
A38: Norway | B38: 0.008852877483 | C38: 0.009519074383 | D38: 0.008890265436 | E38: 0.01058539652 | F38: 0.01050992647 | G38: 0.009638320452 | H38: 0.009294018611
A39: Poland | B39: 0.0008884189711 | C39: 0.00101428496 | D39: 0.0007538907877 | E39: 0.0008945598974 | F39: 0.0008368023276 | G39: 0.0008416972027 | H39: 0.0008991728509
A40: Portugal | B40: 0.002117739886 | C40: 0.002196044331 | D40: 0.00270309337 | E40: 0.002342022722 | F40: 0.002936860633 | G40: 0.003088850645 | H40: 0.002805175497
A41: Slovak Republic | B41: 0.001032326168 | C41: 0.0009304221452 | D41: 0.001000731585 | E41: 0.0008652742922 | F41: 0.000854321441 | G41: 0.0009131070773 | H41: 0.0008860662007
A42: Slovenia | B42: 0.0011941392 | C42: 0.001204323722 | D42: 0.001291139801 | E42: 0.001487961244 | F42: 0.001267937193 | G42: 0.001287997704 | H42: 0.001298217481
A43: South Korea | B43: 0.0005130733589 | C43: 0.0007166814966 | D43: 0.0008583445494 | E43: 0.000974677831 | F43: 0.001156877596 | G43: 0.001185173322 | H43: 0.00140686234
A44: Spain | B44: 0.003151192137 | C44: 0.003670567959 | D44: 0.004466340276 | E44: 0.004592413771 | F44: 0.004284078548 | G44: 0.002863499271 | H44: 0.001558544278
A45: Sweden | B45: 0.01024815057 | C45: 0.009347135186 | D45: 0.00979569666 | E45: 0.01121422393 | F45: 0.009695293908 | G45: 0.01018802778 | H45: 0.009739010403
A46: Switzerland | B46: 0.003754580802 | C46: 0.003707744492 | D46: 0.004217314732 | E46: 0.004417303541 | F46: 0.003930282497 | G46: 0.004584207214 | H46: 0.004680906715
A47: United Kingdom | B47: 0.005140822449 | C47: 0.003553077048 | D47: 0.004303694829 | E47: 0.005075536225 | F47: 0.005726040361 | G47: 0.005624857041 | H47: 0.005619228519
A48: United States | B48: 0.001774684563 | C48: 0.001564536299 | D48: 0.001834587089 | E48: 0.002057765343 | F48: 0.002073893104 | G48: 0.002032684253 | H48: 0.001858182789

Sheet Back end (hidden)
A3: Flows | D3: Discount methods | G3: Filtering or weighting | J3: Unit | M3: Imputed student costs | P3: Refugee costs | S3: Technical assistance | V3: Grant element | Y3: Unit | AB3: Development awareness | AE3: Climate mitigation | AH3: Aid to multilaterals | AK3: Administration
A4: Net ODA (Dis bursements less principal payments; standard) | B4: Net ODA | D4: 10% per year (standard) | E4: =" " ->  | G4: Filter: 25% minimum grant element (standard) | H4: -filtered | J4: Dollars of the day (million) | K4: 1 | V4: Count disbursements only (NPV) | W4: NPV | Y4: $ million | Z4: =" " -> 
A5: Net Aid Transfers (Disbursements less principal & interest and debt cancellation) | B5: NAT | D5: Differentiated Discount Rates (DDRs) | E5: , DDR | G5: Filter: 35% minimum grant element | H5: 35-filtered | J5: Dollars of 2011 (million) | K5: 2 | V5: Count return flows too, as they happen | W5: =" " ->  | Y5: % of GNI | Z5: ="/[@GNI]" -> /[@GNI]
A6: Disbursements of grants & loans | B6: D | D6: DDRs + default risk premium | E6: , DDRR | G6: Weight: count all, multiplying by grant element | H6: -weighted | J6: % of GNI | K6: 3
A7: Principal payments received | B7: P
A8: Principal & interest payments received | B8: P+I
A11: Selection code: | B11: Net ODA | D11: Selection code: | G11: Selection code: | H11: -filtered | J11: Selection code: | K11: 3 | M11: Selection code: | N11: TRUE | P11: Selection code: | Q11: TRUE | S11: Selection code: | T11: TRUE | V11: Selection code: | W11: NPV | Y11: Selection code: | Z11: /[@GNI] | AB11: Selection code: | AC11: TRUE | AE11: Selection code: | AF11: 100 | AH11: Selection code: | AI11: 100 | AK11: Selection code: | AL11: TRUE
A12: Reset value: | B12: =B4 -> Net ODA | D12: Reset value: | E12: =E4 ->  | G12: Reset value: | H12: =H4 -> -filtered | J12: Reset value: | K12: =K6 -> 3 | M12: Reset value: | N12: TRUE | P12: Reset value: | Q12: TRUE | S12: Reset value: | T12: TRUE | V12: Reset value: | W12: =W5 ->  | Y12: Reset value: | Z12: =Z5 -> /[@GNI] | AB12: Reset value: | AC12: TRUE | AE12: Reset value: | AF12: 100 | AH12: Reset value: | AI12: 100 | AK12: Reset value: | AL12: TRUE
E14: =IF(Weighting_choice="-weighted",", DAC",Discount_choice) ->  | J14: defl | K14: =IF(Unit_choice=2,", defl","") -> 
J15: /GNI | K15: =IF(Unit_choice=3,"/[GNI]","") -> /[GNI]
A16: =Flow_choice&IF((Discount_choice=Discount_reset)*(Weighting_choice=Weighting_reset),"",_Discount_choice&IF((Weighting_choice="-weighted")*(Grant_element_choice<>" "),Grant_element_choice,Weighting_choice))&IF((Flow_choice<>B4)*(Flow_choice<>B5)*(Discount_choice<>" "),", prorated","")&defl -> Net ODA | B16: =ISNA(HLOOKUP(A16,Data_by_donor_recipient_year[#Headers],1,FALSE)) -> FALSE
A17: =TRIM("=if([@[Multilateral recipient?]],Mult_choice/100,1)*([@["&A16&"]]"&IF((Flow_choice<>"P")*(Flow_choice<>"P+I"),IF(Students_choice,"","-[@[Imputed student costs"&defl&"]]")&IF(Admin_choice,"","-[@[Administration"&defl&"]]")&IF(DA_choice,"","-[@[Development awareness"&defl&"]]")&IF(TA_choice,"","-[@[Technical assistance"&defl&"]]")&IF(Refugees_choice,"","-[@[In-country refugee costs"&defl&"]]")&"+(CC_choice/100-100%)*[@[Climate mitigation grants"&defl&"]]","")&")"&GNI) -> =if([@[Multilateral recipient?]],Mult_choice/100,1)*([@[Net ODA]]+(CC_choice/100-100%)*[@[Climate mitigation grants]])/[GNI]
A23: Weight on climate change grants | E23: Weight on aid to multilaterals
A24: =CC_choice/100 -> 1 | B24: 98 | E24: =Mult_choice/100 -> 1

Sheet Data
A1: Year | B1: recipient | C1: Recipient name | D1: donor | E1: Donor name | F1: Net ODA | G1: NAT | H1: DAC member | I1: D | J1: P | K1: P+I | L1: D, DDR-filtered, prorated | M1: D, DDR35-filtered, prorated | N1: D, DDRR-filtered, prorated | O1: D, DAC-weighted, prorated | P1: D, DDR-weighted, prorated | Q1: D, DDRR-weighted, prorated | R1: P, DDR-filtered, prorated | S1: P, DDR35-filtered, prorated | T1: P, DDRR-filtered, prorated | U1: P, DAC-weighted, prorated | V1: P, DDR-weighted, prorated | W1: P, DDRR-weighted, prorated | X1: P+I, DDR-filtered, prorated | Y1: P+I, DDR35-filtered, prorated | Z1: P+I, DDRR-filtered, prorated | AA1: P+I, DAC-weighted, prorated | AB1: P+I, DDR-weighted, prorated | AC1: P+I, DDRR-weighted, prorated | AD1: Net ODA, DDR-filtered | AE1: Net ODA, DDR35-filtered | AF1: Net ODA, DDRR-filtered | AG1: Net ODA, DAC-weighted | AH1: Net ODA, DDR-weighted | AI1: Net ODA, DDRR-weighted | AJ1: NAT, DDR-filtered | AK1: NAT, DDR35-filtered | AL1: NAT, DDRR-filtered | AM1: NAT, DAC-weighted | AN1: NAT, DDR-weighted | AO1: NAT, DDRR-weighted | AP1: Net ODA, DAC NPV | AQ1: Net ODA, DDR NPV | AR1: Net ODA, DDRR NPV | AS1: NAT, DAC NPV | AT1: NAT, DDR NPV | AU1: NAT, DDRR NPV | AV1: D, defl | AW1: D, DDR-filtered, prorated, defl | AX1: D, DDR35-filtered, prorated, defl | AY1: D, DDRR-filtered, prorated, defl | AZ1: D, DAC-weighted, prorated, defl | BA1: D, DDR-weighted, prorated, defl | BB1: D, DDRR-weighted, prorated, defl | BC1: P, DDR-filtered, prorated, defl | BD1: P, DDR35-filtered, prorated, defl | BE1: P, DDRR-filtered, prorated, defl | BF1: P, DAC-weighted, prorated, defl | BG1: P, DDR-weighted, prorated, defl | BH1: P, DDRR-weighted, prorated, defl | BI1: P+I, DDR-filtered, prorated, defl | BJ1: P+I, DDR35-filtered, prorated, defl | BK1: P+I, DDRR-filtered, prorated, defl | BL1: P+I, DAC-weighted, prorated, defl | BM1: P+I, DDR-weighted, prorated, defl | BN1: P+I, DDRR-weighted, prorated, defl | BO1: Net ODA, defl | BP1: Net ODA, DDR-filtered, defl | BQ1: Net ODA, DDR35-filtered, defl | BR1: Net ODA, DDRR-filtered, defl | BS1: Net ODA, DAC-weighted, defl | BT1: Net ODA, DDR-weighted, defl | BU1: Net ODA, DDRR-weighted, defl | BV1: NAT, DDR-filtered, defl | BW1: NAT, DDR35-filtered, defl | BX1: NAT, DDRR-filtered, defl | BY1: NAT, DAC-weighted, defl | BZ1: NAT, DDR-weighted, defl | CA1: NAT, DDRR-weighted, defl | CB1: Net ODA, DAC NPV, defl | CC1: Net ODA, DDR NPV, defl | CD1: Net ODA, DDRR NPV, defl | CE1: NAT, DAC NPV, defl | CF1: NAT, DDR NPV, defl | CG1: NAT, DDRR NPV, defl | CH1: Imputed student costs | CI1: In-country refugee costs | CJ1: Development awareness | CK1: Technical assistance | CL1: Imputed student costs, defl | CM1: In-country refugee costs, defl | CN1: Development awareness, defl | CO1: Technical assistance, defl | CP1: Deflator | CQ1: GNI | CR1: Low-income? | CS1: Climate mitigation grants | CT1: Climate mitigation grants, defl | CU1: Multilateral recipient? | CV1: Administration | CW1: Administration, defl | CX1: P, defl | CY1: P+I, defl | CZ1: NAT, defl | DA1: Donor group | DB1: User aid variable
A2: 2006 | B2: 55 | C2: Turkey | D2: 1 | E2: Austria | F2: 21.35000038 | G2: 21.35000038 | H2: 1965 | I2: 0 | J2: 0 | K2: 0 | L2: 0 | M2: 0 | N2: 0 | O2: 0 | P2: 0 | Q2: 0 | R2: 0 | S2: 0 | T2: 0 | U2: 0 | V2: 0 | W2: 0 | X2: 0 | Y2: 0 | Z2: 0 | AA2: 0 | AB2: 0 | AC2: 0 | AD2: 21.35000038 | AE2: 21.35000038 | AF2: 21.35000038 | AG2: 21.35000038 | AH2: 21.35000038 | AI2: 21.35000038 | AJ2: 21.35000038 | AK2: 21.35000038 | AL2: 21.35000038 | AM2: 21.35000038 | AN2: 21.35000038 | AO2: 21.35000038 | AP2: 21.35000038 | AQ2: 21.35000038 | AR2: 21.35000038 | AS2: 21.35000038 | AT2: 21.35000038 | AU2: 21.35000038 | AV2: 0 | AW2: 0 | AX2: 0 | AY2: 0 | AZ2: 0 | BA2: 0 | BB2: 0 | BC2: 0 | BD2: 0 | BE2: 0 | BF2: 0 | BG2: 0 | BH2: 0 | BI2: 0 | BJ2: 0 | BK2: 0 | BL2: 0 | BM2: 0 | BN2: 0 | BO2: 25.89964323 | BP2: 25.89964323 | BQ2: 25.89964323 | BR2: 25.89964323 | BS2: 25.89964323 | BT2: 25.89964323 | BU2: 25.89964323 | BV2: 25.89964323 | BW2: 25.89964323 | BX2: 25.89964323 | BY2: 25.89964323 | BZ2: 25.89964323 | CA2: 25.89964323 | CB2: 25.89964323 | CC2: 25.89964323 | CD2: 25.89964323 | CE2: 25.89964323 | CF2: 25.89964323 | CG2: 25.89964323 | CH2: 14.79384995 | CI2: 0 | CJ2: 0 | CK2: 0 | CL2: 17.9463901 | CM2: 0 | CN2: 0 | CO2: 0 | CP2: 0.8243356943 | CQ2: 319585.8438 | CR2: 0 | CS2: 0 | CT2: 0 | CU2: 0 | CV2: 0 | CW2: 0 | CX2: 0 | CY2: 0 | CZ2: 25.89964323 | DA2: =1-ISBLANK(Data_by_donor_recipient_year[DAC member]) -> 1 | DB2: =IF(Data_by_donor_recipient_year[[#This Row],[Multilateral recipient?]],Mult_choice/100,1)*(Data_by_donor_recipient_year[[#This Row],[Net ODA]]+(CC_choice/100-100%)*Data_by_donor_recipient_year[[#This Row],[Climate mitigation grants]])/Data_by_donor_recipient_year[GNI] -> 6.680521306e-05
A3: 2006 | B3: 62 | C3: Croatia | D3: 1 | E3: Austria | F3: 6.260000229 | G3: 6.260000229 | H3: 1965 | I3: 0 | J3: 0 | K3: 0 | L3: 0 | M3: 0 | N3: 0 | O3: 0 | P3: 0 | Q3: 0 | R3: 0 | S3: 0 | T3: 0 | U3: 0 | V3: 0 | W3: 0 | X3: 0 | Y3: 0 | Z3: 0 | AA3: 0 | AB3: 0 | AC3: 0 | AD3: 6.260000229 | AE3: 6.260000229 | AF3: 6.260000229 | AG3: 6.260000229 | AH3: 6.260000229 | AI3: 6.260000229 | AJ3: 6.260000229 | AK3: 6.260000229 | AL3: 6.260000229 | AM3: 6.260000229 | AN3: 6.260000229 | AO3: 6.260000229 | AP3: 6.260000229 | AQ3: 6.260000229 | AR3: 6.260000229 | AS3: 6.260000229 | AT3: 6.260000229 | AU3: 6.260000229 | AV3: 0 | AW3: 0 | AX3: 0 | AY3: 0 | AZ3: 0 | BA3: 0 | BB3: 0 | BC3: 0 | BD3: 0 | BE3: 0 | BF3: 0 | BG3: 0 | BH3: 0 | BI3: 0 | BJ3: 0 | BK3: 0 | BL3: 0 | BM3: 0 | BN3: 0 | BO3: 7.593993894 | BP3: 7.593993894 | BQ3: 7.593993894 | BR3: 7.593993894 | BS3: 7.593993894 | BT3: 7.593993894 | BU3: 7.593993894 | BV3: 7.593993894 | BW3: 7.593993894 | BX3: 7.593993894 | BY3: 7.593993894 | BZ3: 7.593993894 | CA3: 7.593993894 | CB3: 7.593993894 | CC3: 7.593993894 | CD3: 7.593993894 | CE3: 7.593993894 | CF3: 7.593993894 | CG3: 7.593993894 | CH3: 5.975072384 | CI3: 0 | CJ3: 0 | CK3: 0 | CL3: 7.248348488 | CM3: 0 | CN3: 0 | CO3: 0 | CP3: 0.8243356943 | CQ3: 319585.8438 | CR3: 0 | CS3: 0 | CT3: 0 | CU3: 0 | CV3: 0 | CW3: 0 | CX3: 0 | CY3: 0 | CZ3: 7.593993894 | DA3: =1-ISBLANK(Data_by_donor_recipient_year[DAC member]) -> 1 | DB3: =IF(Data_by_donor_recipient_year[[#This Row],[Multilateral recipient?]],Mult_choice/100,1)*(Data_by_donor_recipient_year[[#This Row],[Net ODA]]+(CC_choice/100-100%)*Data_by_donor_recipient_year[[#This Row],[Climate mitigation grants]])/Data_by_donor_recipient_year[GNI] -> 1.958785206e-05
A4: 2006 | B4: 63 | C4: Serbia | D4: 1 | E4: Austria | F4: 55.25999832 | G4: 28.72999763 | H4: 1965 | I4: 0 | J4: 0 | K4: 0 | L4: 0 | M4: 0 | N4: 0 | O4: 0 | P4: 0 | Q4: 0 | R4: 0 | S4: 0 | T4: 0 | U4: 0 | V4: 0 | W4: 0 | X4: 0 | Y4: 0 | Z4: 0 | AA4: 0 | AB4: 0 | AC4: 0 | AD4: 55.25999832 | AE4: 55.25999832 | AF4: 55.25999832 | AG4: 55.25999832 | AH4: 55.25999832 | AI4: 55.25999832 | AJ4: 28.72999763 | AK4: 28.72999763 | AL4: 28.72999763 | AM4: 28.72999763 | AN4: 28.72999763 | AO4: 28.72999763 | AP4: 55.25999832 | AQ4: 55.25999832 | AR4: 55.25999832 | AS4: 28.72999763 | AT4: 28.72999763 | AU4: 28.72999763 | AV4: 0 | AW4: 0 | AX4: 0 | AY4: 0 | AZ4: 0 | BA4: 0 | BB4: 0 | BC4: 0 | BD4: 0 | BE4: 0 | BF4: 0 | BG4: 0 | BH4: 0 | BI4: 0 | BJ4: 0 | BK4: 0 | BL4: 0 | BM4: 0 | BN4: 0 | BO4: 67.03579464 | BP4: 67.03579464 | BQ4: 67.03579464 | BR4: 67.03579464 | BS4: 67.03579464 | BT4: 67.03579464 | BU4: 67.03579464 | BV4: 34.85230329 | BW4: 34.85230329 | BX4: 34.85230329 | BY4: 34.85230329 | BZ4: 34.85230329 | CA4: 34.85230329 | CB4: 67.03579464 | CC4: 67.03579464 | CD4: 67.03579464 | CE4: 34.85230329 | CF4: 34.85230329 | CG4: 34.85230329 | CH4: 6.484636784 | CI4: 0 | CJ4: 0 | CK4: 0 | CL4: 7.866500054 | CM4: 0 | CN4: 0 | CO4: 0 | CP4: 0.8243356943 | CQ4: 319585.8438 | CR4: 0 | CS4: 0 | CT4: 0 | CU4: 0 | CV4: 0 | CW4: 0 | CX4: 0 | CY4: 0 | CZ4: 34.85230329 | DA4: =1-ISBLANK(Data_by_donor_recipient_year[DAC member]) -> 1 | DB4: =IF(Data_by_donor_recipient_year[[#This Row],[Multilateral recipient?]],Mult_choice/100,1)*(Data_by_donor_recipient_year[[#This Row],[Net ODA]]+(CC_choice/100-100%)*Data_by_donor_recipient_year[[#This Row],[Climate mitigation grants]])/Data_by_donor_recipient_year[GNI] -> 0.0001729112832
A5: 2006 | B5: 64 | C5: Bosnia-Herzegovina | D5: 1 | E5: Austria | F5: 29.06999969 | G5: 24.45999956 | H5: 1965 | I5: 0 | J5: 0 | K5: 0 | L5: 0 | M5: 0 | N5: 0 | O5: 0 | P5: 0 | Q5: 0 | R5: 0 | S5: 0 | T5: 0 | U5: 0 | V5: 0 | W5: 0 | X5: 0 | Y5: 0 | Z5: 0 | AA5: 0 | AB5: 0 | AC5: 0 | AD5: 29.06999969 | AE5: 29.06999969 | AF5: 29.06999969 | AG5: 29.06999969 | AH5: 29.06999969 | AI5: 29.06999969 | AJ5: 24.45999956 | AK5: 24.45999956 | AL5: 24.45999956 | AM5: 24.45999956 | AN5: 24.45999956 | AO5: 24.45999956 | AP5: 29.06999969 | AQ5: 29.06999969 | AR5: 29.06999969 | AS5: 24.45999956 | AT5: 24.45999956 | AU5: 24.45999956 | AV5: 0 | AW5: 0 | AX5: 0 | AY5: 0 | AZ5: 0 | BA5: 0 | BB5: 0 | BC5: 0 | BD5: 0 | BE5: 0 | BF5: 0 | BG5: 0 | BH5: 0 | BI5: 0 | BJ5: 0 | BK5: 0 | BL5: 0 | BM5: 0 | BN5: 0 | BO5: 35.26475912 | BP5: 35.26475912 | BQ5: 35.26475912 | BR5: 35.26475912 | BS5: 35.26475912 | BT5: 35.26475912 | BU5: 35.26475912 | BV5: 29.67237708 | BW5: 29.67237708 | BX5: 29.67237708 | BY5: 29.67237708 | BZ5: 29.67237708 | CA5: 29.67237708 | CB5: 35.26475912 | CC5: 35.26475912 | CD5: 35.26475912 | CE5: 29.67237708 | CF5: 29.67237708 | CG5: 29.67237708 | CH5: 13.86511898 | CI5: 0 | CJ5: 0 | CK5: 0 | CL5: 16.81974841 | CM5: 0 | CN5: 0 | CO5: 0 | CP5: 0.8243356943 | CQ5: 319585.8438 | CR5: 0 | CS5: 0 | CT5: 0 | CU5: 0 | CV5: 0 | CW5: 0 | CX5: 0 | CY5: 0 | CZ5: 29.67237708 | DA5: =1-ISBLANK(Data_by_donor_recipient_year[DAC member]) -> 1 | DB5: =IF(Data_by_donor_recipient_year[[#This Row],[Multilateral recipient?]],Mult_choice/100,1)*(Data_by_donor_recipient_year[[#This Row],[Net ODA]]+(CC_choice/100-100%)*Data_by_donor_recipient_year[[#This Row],[Climate mitigation grants]])/Data_by_donor_recipient_year[GNI] -> 9.096147487e-05
A6: 2006 | B6: 65 | C6: Montenegro | D6: 1 | E6: Austria | F6: 3.339999914 | G6: 3.339999914 | H6: 1965 | I6: 0 | J6: 0 | K6: 0 | L6: 0 | M6: 0 | N6: 0 | O6: 0 | P6: 0 | Q6: 0 | R6: 0 | S6: 0 | T6: 0 | U6: 0 | V6: 0 | W6: 0 | X6: 0 | Y6: 0 | Z6: 0 | AA6: 0 | AB6: 0 | AC6: 0 | AD6: 3.339999914 | AE6: 3.339999914 | AF6: 3.339999914 | AG6: 3.339999914 | AH6: 3.339999914 | AI6: 3.339999914 | AJ6: 3.339999914 | AK6: 3.339999914 | AL6: 3.339999914 | AM6: 3.339999914 | AN6: 3.339999914 | AO6: 3.339999914 | AP6: 3.339999914 | AQ6: 3.339999914 | AR6: 3.339999914 | AS6: 3.339999914 | AT6: 3.339999914 | AU6: 3.339999914 | AV6: 0 | AW6: 0 | AX6: 0 | AY6: 0 | AZ6: 0 | BA6: 0 | BB6: 0 | BC6: 0 | BD6: 0 | BE6: 0 | BF6: 0 | BG6: 0 | BH6: 0 | BI6: 0 | BJ6: 0 | BK6: 0 | BL6: 0 | BM6: 0 | BN6: 0 | BO6: 4.051747288 | BP6: 4.051747288 | BQ6: 4.051747288 | BR6: 4.051747288 | BS6: 4.051747288 | BT6: 4.051747288 | BU6: 4.051747288 | BV6: 4.051747288 | BW6: 4.051747288 | BX6: 4.051747288 | BY6: 4.051747288 | BZ6: 4.051747288 | CA6: 4.051747288 | CB6: 4.051747288 | CC6: 4.051747288 | CD6: 4.051747288 | CE6: 4.051747288 | CF6: 4.051747288 | CG6: 4.051747288 | CH6: 0.07396761328 | CI6: 0 | CJ6: 0 | CK6: 0 | CL6: 0.08972996534 | CM6: 0 | CN6: 0 | CO6: 0 | CP6: 0.8243356943 | CQ6: 319585.8438 | CR6: 0 | CS6: 0.5135935843 | CT6: 0.6230393611 | CU6: 0 | CV6: 0 | CW6: 0 | CX6: 0 | CY6: 0 | CZ6: 4.051747288 | DA6: =1-ISBLANK(Data_by_donor_recipient_year[DAC member]) -> 1 | DB6: =IF(Data_by_donor_recipient_year[[#This Row],[Multilateral recipient?]],Mult_choice/100,1)*(Data_by_donor_recipient_year[[#This Row],[Net ODA]]+(CC_choice/100-100%)*Data_by_donor_recipient_year[[#This Row],[Climate mitigation grants]])/Data_by_donor_recipient_year[GNI] -> 1.045102585e-05
A7: 2006 | B7: 66 | C7: Macedonia, FYROM | D7: 1 | E7: Austria | F7: 4.639999866 | G7: 4.639999866 | H7: 1965 | I7: 0 | J7: 0 | K7: 0 | L7: 0 | M7: 0 | N7: 0 | O7: 0 | P7: 0 | Q7: 0 | R7: 0 | S7: 0 | T7: 0 | U7: 0 | V7: 0 | W7: 0 | X7: 0 | Y7: 0 | Z7: 0 | AA7: 0 | AB7: 0 | AC7: 0 | AD7: 4.639999866 | AE7: 4.639999866 | AF7: 4.639999866 | AG7: 4.639999866 | AH7: 4.639999866 | AI7: 4.639999866 | AJ7: 4.639999866 | AK7: 4.639999866 | AL7: 4.639999866 | AM7: 4.639999866 | AN7: 4.639999866 | AO7: 4.639999866 | AP7: 4.639999866 | AQ7: 4.639999866 | AR7: 4.639999866 | AS7: 4.639999866 | AT7: 4.639999866 | AU7: 4.639999866 | AV7: 0 | AW7: 0 | AX7: 0 | AY7: 0 | AZ7: 0 | BA7: 0 | BB7: 0 | BC7: 0 | BD7: 0 | BE7: 0 | BF7: 0 | BG7: 0 | BH7: 0 | BI7: 0 | BJ7: 0 | BK7: 0 | BL7: 0 | BM7: 0 | BN7: 0 | BO7: 5.628774659 | BP7: 5.628774659 | BQ7: 5.628774659 | BR7: 5.628774659 | BS7: 5.628774659 | BT7: 5.628774659 | BU7: 5.628774659 | BV7: 5.628774659 | BW7: 5.628774659 | BX7: 5.628774659 | BY7: 5.628774659 | BZ7: 5.628774659 | CA7: 5.628774659 | CB7: 5.628774659 | CC7: 5.628774659 | CD7: 5.628774659 | CE7: 5.628774659 | CF7: 5.628774659 | CG7: 5.628774659 | CH7: 1.495820284 | CI7: 0 | CJ7: 0 | CK7: 0 | CL7: 1.814576627 | CM7: 0 | CN7: 0 | CO7: 0 | CP7: 0.8243356943 | CQ7: 319585.8438 | CR7: 0 | CS7: 0.5288314391 | CT7: 0.6415243726 | CU7: 0 | CV7: 0 | CW7: 0 | CX7: 0 | CY7: 0 | CZ7: 5.628774659 | DA7: =1-ISBLANK(Data_by_donor_recipient_year[DAC member]) -> 1 | DB7: =IF(Data_by_donor_recipient_year[[#This Row],[Multilateral recipient?]],Mult_choice/100,1)*(Data_by_donor_recipient_year[[#This Row],[Net ODA]]+(CC_choice/100-100%)*Data_by_donor_recipient_year[[#This Row],[Climate mitigation grants]])/Data_by_donor_recipient_year[GNI] -> 1.451879036e-05
A8: 2006 | B8: 71 | C8: Albania | D8: 1 | E8: Austria | F8: 6.989999771 | G8: 6.989999771 | H8: 1965 | I8: 0 | J8: 0 | K8: 0 | L8: 0 | M8: 0 | N8: 0 | O8: 0 | P8: 0 | Q8: 0 | R8: 0 | S8: 0 | T8: 0 | U8: 0 | V8: 0 | W8: 0 | X8: 0 | Y8: 0 | Z8: 0 | AA8: 0 | AB8: 0 | AC8: 0 | AD8: 6.989999771 | AE8: 6.989999771 | AF8: 6.989999771 | AG8: 6.989999771 | AH8: 6.989999771 | AI8: 6.989999771 | AJ8: 6.989999771 | AK8: 6.989999771 | AL8: 6.989999771 | AM8: 6.989999771 | AN8: 6.989999771 | AO8: 6.989999771 | AP8: 6.989999771 | AQ8: 6.989999771 | AR8: 6.989999771 | AS8: 6.989999771 | AT8: 6.989999771 | AU8: 6.989999771 | AV8: 0 | AW8: 0 | AX8: 0 | AY8: 0 | AZ8: 0 | BA8: 0 | BB8: 0 | BC8: 0 | BD8: 0 | BE8: 0 | BF8: 0 | BG8: 0 | BH8: 0 | BI8: 0 | BJ8: 0 | BK8: 0 | BL8: 0 | BM8: 0 | BN8: 0 | BO8: 8.479554894 | BP8: 8.479554894 | BQ8: 8.479554894 | BR8: 8.479554894 | BS8: 8.479554894 | BT8: 8.479554894 | BU8: 8.479554894 | BV8: 8.479554894 | BW8: 8.479554894 | BX8: 8.479554894 | BY8: 8.479554894 | BZ8: 8.479554894 | CA8: 8.479554894 | CB8: 8.479554894 | CC8: 8.479554894 | CD8: 8.479554894 | CE8: 8.479554894 | CF8: 8.479554894 | CG8: 8.479554894 | CH8: 0.7972260714 | CI8: 0 | CJ8: 0 | CK8: 0 | CL8: 0.96711337 | CM8: 0 | CN8: 0 | CO8: 0 | CP8: 0.8243356943 | CQ8: 319585.8438 | CR8: 0 | CS8: 0.906238243 | CT8: 1.09935582 | CU8: 0 | CV8: 0 | CW8: 0 | CX8: 0 | CY8: 0 | CZ8: 8.479554894 | DA8: =1-ISBLANK(Data_by_donor_recipient_year[DAC member]) -> 1 | DB8: =IF(Data_by_donor_recipient_year[[#This Row],[Multilateral recipient?]],Mult_choice/100,1)*(Data_by_donor_recipient_year[[#This Row],[Net ODA]]+(CC_choice/100-100%)*Data_by_donor_recipient_year[[#This Row],[Climate mitigation grants]])/Data_by_donor_recipient_year[GNI] -> 2.187205694e-05
A9: 2006 | B9: 85 | C9: Ukraine | D9: 1 | E9: Austria | F9: 5.110000134 | G9: 5.110000134 | H9: 1965 | I9: 0 | J9: 0 | K9: 0 | L9: 0 | M9: 0 | N9: 0 | O9: 0 | P9: 0 | Q9: 0 | R9: 0 | S9: 0 | T9: 0 | U9: 0 | V9: 0 | W9: 0 | X9: 0 | Y9: 0 | Z9: 0 | AA9: 0 | AB9: 0 | AC9: 0 | AD9: 5.110000134 | AE9: 5.110000134 | AF9: 5.110000134 | AG9: 5.110000134 | AH9: 5.110000134 | AI9: 5.110000134 | AJ9: 5.110000134 | AK9: 5.110000134 | AL9: 5.110000134 | AM9: 5.110000134 | AN9: 5.110000134 | AO9: 5.110000134 | AP9: 5.110000134 | AQ9: 5.110000134 | AR9: 5.110000134 | AS9: 5.110000134 | AT9: 5.110000134 | AU9: 5.110000134 | AV9: 0 | AW9: 0 | AX9: 0 | AY9: 0 | AZ9: 0 | BA9: 0 | BB9: 0 | BC9: 0 | BD9: 0 | BE9: 0 | BF9: 0 | BG9: 0 | BH9: 0 | BI9: 0 | BJ9: 0 | BK9: 0 | BL9: 0 | BM9: 0 | BN9: 0 | BO9: 6.198931053 | BP9: 6.198931053 | BQ9: 6.198931053 | BR9: 6.198931053 | BS9: 6.198931053 | BT9: 6.198931053 | BU9: 6.198931053 | BV9: 6.198931053 | BW9: 6.198931053 | BX9: 6.198931053 | BY9: 6.198931053 | BZ9: 6.198931053 | CA9: 6.198931053 | CB9: 6.198931053 | CC9: 6.198931053 | CD9: 6.198931053 | CE9: 6.198931053 | CF9: 6.198931053 | CG9: 6.198931053 | CH9: 2.408108473 | CI9: 0 | CJ9: 0 | CK9: 0 | CL9: 2.921271624 | CM9: 0 | CN9: 0 | CO9: 0 | CP9: 0.8243356943 | CQ9: 319585.8438 | CR9: 0 | CS9: 0 | CT9: 0 | CU9: 0 | CV9: 0 | CW9: 0 | CX9: 0 | CY9: 0 | CZ9: 6.198931053 | DA9: =1-ISBLANK(Data_by_donor_recipient_year[DAC member]) -> 1 | DB9: =IF(Data_by_donor_recipient_year[[#This Row],[Multilateral recipient?]],Mult_choice/100,1)*(Data_by_donor_recipient_year[[#This Row],[Net ODA]]+(CC_choice/100-100%)*Data_by_donor_recipient_year[[#This Row],[Climate mitigation grants]])/Data_by_donor_recipient_year[GNI] -> 1.598944457e-05
A10: 2006 | B10: 86 | C10: Belarus | D10: 1 | E10: Austria | F10: 0.5600000024 | G10: 0.5600000024 | H10: 1965 | I10: 0 | J10: 0 | K10: 0 | L10: 0 | M10: 0 | N10: 0 | O10: 0 | P10: 0 | Q10: 0 | R10: 0 | S10: 0 | T10: 0 | U10: 0 | V10: 0 | W10: 0 | X10: 0 | Y10: 0 | Z10: 0 | AA10: 0 | AB10: 0 | AC10: 0 | AD10: 0.5600000024 | AE10: 0.5600000024 | AF10: 0.5600000024 | AG10: 0.5600000024 | AH10: 0.5600000024 | AI10: 0.5600000024 | AJ10: 0.5600000024 | AK10: 0.5600000024 | AL10: 0.5600000024 | AM10: 0.5600000024 | AN10: 0.5600000024 | AO10: 0.5600000024 | AP10: 0.5600000024 | AQ10: 0.5600000024 | AR10: 0.5600000024 | AS10: 0.5600000024 | AT10: 0.5600000024 | AU10: 0.5600000024 | AV10: 0 | AW10: 0 | AX10: 0 | AY10: 0 | AZ10: 0 | BA10: 0 | BB10: 0 | BC10: 0 | BD10: 0 | BE10: 0 | BF10: 0 | BG10: 0 | BH10: 0 | BI10: 0 | BJ10: 0 | BK10: 0 | BL10: 0 | BM10: 0 | BN10: 0 | BO10: 0.6793348951 | BP10: 0.6793348951 | BQ10: 0.6793348951 | BR10: 0.6793348951 | BS10: 0.6793348951 | BT10: 0.6793348951 | BU10: 0.6793348951 | BV10: 0.6793348951 | BW10: 0.6793348951 | BX10: 0.6793348951 | BY10: 0.6793348951 | BZ10: 0.6793348951 | CA10: 0.6793348951 | CB10: 0.6793348951 | CC10: 0.6793348951 | CD10: 0.6793348951 | CE10: 0.6793348951 | CF10: 0.6793348951 | CG10: 0.6793348951 | CH10: 0.4191540182 | CI10: 0 | CJ10: 0 | CK10: 0 | CL10: 0.5084749102 | CM10: 0 | CN10: 0 | CO10: 0 | CP10: 0.8243356943 | CQ10: 319585.8438 | CR10: 0 | CS10: 0 | CT10: 0 | CU10: 0 | CV10: 0 | CW10: 0 | CX10: 0 | CY10: 0 | CZ10: 0.6793348951 | DA10: =1-ISBLANK(Data_by_donor_recipient_year[DAC member]) -> 1 | DB10: =IF(Data_by_donor_recipient_year[[#This Row],[Multilateral recipient?]],Mult_choice/100,1)*(Data_by_donor_recipient_year[[#This Row],[Net ODA]]+(CC_choice/100-100%)*Data_by_donor_recipient_year[[#This Row],[Climate mitigation grants]])/Data_by_donor_recipient_year[GNI] -> 1.75226786e-06
A11: 2006 | B11: 88 | C11: Yugoslavia, Sts Ex-Yugo. Unspec. | D11: 1 | E11: Austria | F11: 0.3199999928 | G11: 0.3199999928 | H11: 1965 | I11: 0 | J11: 0 | K11: 0 | L11: 0 | M11: 0 | N11: 0 | O11: 0 | P11: 0 | Q11: 0 | R11: 0 | S11: 0 | T11: 0 | U11: 0 | V11: 0 | W11: 0 | X11: 0 | Y11: 0 | Z11: 0 | AA11: 0 | AB11: 0 | AC11: 0 | AD11: 0.3199999928 | AE11: 0.3199999928 | AF11: 0.3199999928 | AG11: 0.3199999928 | AH11: 0.3199999928 | AI11: 0.3199999928 | AJ11: 0.3199999928 | AK11: 0.3199999928 | AL11: 0.3199999928 | AM11: 0.3199999928 | AN11: 0.3199999928 | AO11: 0.3199999928 | AP11: 0.3199999928 | AQ11: 0.3199999928 | AR11: 0.3199999928 | AS11: 0.3199999928 | AT11: 0.3199999928 | AU11: 0.3199999928 | AV11: 0 | AW11: 0 | AX11: 0 | AY11: 0 | AZ11: 0 | BA11: 0 | BB11: 0 | BC11: 0 | BD11: 0 | BE11: 0 | BF11: 0 | BG11: 0 | BH11: 0 | BI11: 0 | BJ11: 0 | BK11: 0 | BL11: 0 | BM11: 0 | BN11: 0 | BO11: 0.3881913583 | BP11: 0.3881913583 | BQ11: 0.3881913583 | BR11: 0.3881913583 | BS11: 0.3881913583 | BT11: 0.3881913583 | BU11: 0.3881913583 | BV11: 0.3881913583 | BW11: 0.3881913583 | BX11: 0.3881913583 | BY11: 0.3881913583 | BZ11: 0.3881913583 | CA11: 0.3881913583 | CB11: 0.3881913583 | CC11: 0.3881913583 | CD11: 0.3881913583 | CE11: 0.3881913583 | CF11: 0.3881913583 | CG11: 0.3881913583 | CH11: 0 | CI11: 0 | CJ11: 0 | CK11: 0 | CL11: 0 | CM11: 0 | CN11: 0 | CO11: 0 | CP11: 0.8243356943 | CQ11: 319585.8438 | CR11: 0 | CS11: 0 | CT11: 0 | CU11: 0 | CV11: 0 | CW11: 0 | CX11: 0 | CY11: 0 | CZ11: 0.3881913583 | DA11: =1-ISBLANK(Data_by_donor_recipient_year[DAC member]) -> 1 | DB11: =IF(Data_by_donor_recipient_year[[#This Row],[Multilateral recipient?]],Mult_choice/100,1)*(Data_by_donor_recipient_year[[#This Row],[Net ODA]]+(CC_choice/100-100%)*Data_by_donor_recipient_year[[#This Row],[Climate mitigation grants]])/Data_by_donor_recipient_year[GNI] -> 1.001295893e-06
A12: 2006 | B12: 89 | C12: Europe, regional/multi-country | D12: 1 | E12: Austria | F12: 7.28000021 | G12: 7.28000021 | H12: 1965 | I12: 0 | J12: 0 | K12: 0 | L12: 0 | M12: 0 | N12: 0 | O12: 0 | P12: 0 | Q12: 0 | R12: 0 | S12: 0 | T12: 0 | U12: 0 | V12: 0 | W12: 0 | X12: 0 | Y12: 0 | Z12: 0 | AA12: 0 | AB12: 0 | AC12: 0 | AD12: 7.28000021 | AE12: 7.28000021 | AF12: 7.28000021 | AG12: 7.28000021 | AH12: 7.28000021 | AI12: 7.28000021 | AJ12: 7.28000021 | AK12: 7.28000021 | AL12: 7.28000021 | AM12: 7.28000021 | AN12: 7.28000021 | AO12: 7.28000021 | AP12: 7.28000021 | AQ12: 7.28000021 | AR12: 7.28000021 | AS12: 7.28000021 | AT12: 7.28000021 | AU12: 7.28000021 | AV12: 0 | AW12: 0 | AX12: 0 | AY12: 0 | AZ12: 0 | BA12: 0 | BB12: 0 | BC12: 0 | BD12: 0 | BE12: 0 | BF12: 0 | BG12: 0 | BH12: 0 | BI12: 0 | BJ12: 0 | BK12: 0 | BL12: 0 | BM12: 0 | BN12: 0 | BO12: 8.831353853 | BP12: 8.831353853 | BQ12: 8.831353853 | BR12: 8.831353853 | BS12: 8.831353853 | BT12: 8.831353853 | BU12: 8.831353853 | BV12: 8.831353853 | BW12: 8.831353853 | BX12: 8.831353853 | BY12: 8.831353853 | BZ12: 8.831353853 | CA12: 8.831353853 | CB12: 8.831353853 | CC12: 8.831353853 | CD12: 8.831353853 | CE12: 8.831353853 | CF12: 8.831353853 | CG12: 8.831353853 | CH12: 0 | CI12: 0 | CJ12: 0 | CK12: 0 | CL12: 0 | CM12: 0 | CN12: 0 | CO12: 0 | CP12: 0.8243356943 | CQ12: 319585.8438 | CR12: 0 | CS12: 0.2510355115 | CT12: 0.3045306824 | CU12: 0 | CV12: 0 | CW12: 0 | CX12: 0 | CY12: 0 | CZ12: 8.831353853 | DA12: =1-ISBLANK(Data_by_donor_recipient_year[DAC member]) -> 1 | DB12: =IF(Data_by_donor_recipient_year[[#This Row],[Multilateral recipient?]],Mult_choice/100,1)*(Data_by_donor_recipient_year[[#This Row],[Net ODA]]+(CC_choice/100-100%)*Data_by_donor_recipient_year[[#This Row],[Climate mitigation grants]])/Data_by_donor_recipient_year[GNI] -> 2.277948273e-05
A13: 2006 | B13: 93 | C13: Moldova | D13: 1 | E13: Austria | F13: 1.960000038 | G13: 1.960000038 | H13: 1965 | I13: 0 | J13: 0 | K13: 0 | L13: 0 | M13: 0 | N13: 0 | O13: 0 | P13: 0 | Q13: 0 | R13: 0 | S13: 0 | T13: 0 | U13: 0 | V13: 0 | W13: 0 | X13: 0 | Y13: 0 | Z13: 0 | AA13: 0 | AB13: 0 | AC13: 0 | AD13: 1.960000038 | AE13: 1.960000038 | AF13: 1.960000038 | AG13: 1.960000038 | AH13: 1.960000038 | AI13: 1.960000038 | AJ13: 1.960000038 | AK13: 1.960000038 | AL13: 1.960000038 | AM13: 1.960000038 | AN13: 1.960000038 | AO13: 1.960000038 | AP13: 1.960000038 | AQ13: 1.960000038 | AR13: 1.960000038 | AS13: 1.960000038 | AT13: 1.960000038 | AU13: 1.960000038 | AV13: 0 | AW13: 0 | AX13: 0 | AY13: 0 | AZ13: 0 | BA13: 0 | BB13: 0 | BC13: 0 | BD13: 0 | BE13: 0 | BF13: 0 | BG13: 0 | BH13: 0 | BI13: 0 | BJ13: 0 | BK13: 0 | BL13: 0 | BM13: 0 | BN13: 0 | BO13: 2.377672169 | BP13: 2.377672169 | BQ13: 2.377672169 | BR13: 2.377672169 | BS13: 2.377672169 | BT13: 2.377672169 | BU13: 2.377672169 | BV13: 2.377672169 | BW13: 2.377672169 | BX13: 2.377672169 | BY13: 2.377672169 | BZ13: 2.377672169 | CA13: 2.377672169 | CB13: 2.377672169 | CC13: 2.377672169 | CD13: 2.377672169 | CE13: 2.377672169 | CF13: 2.377672169 | CG13: 2.377672169 | CH13: 0.3534078002 | CI13: 0 | CJ13: 0 | CK13: 0 | CL13: 0.4287183033 | CM13: 0 | CN13: 0 | CO13: 0 | CP13: 0.8243356943 | CQ13: 319585.8438 | CR13: 1 | CS13: 0.02308271639 | CT13: 0.02800159759 | CU13: 0 | CV13: 0 | CW13: 0 | CX13: 0 | CY13: 0 | CZ13: 2.377672169 | DA13: =1-ISBLANK(Data_by_donor_recipient_year[DAC member]) -> 1 | DB13: =IF(Data_by_donor_recipient_year[[#This Row],[Multilateral recipient?]],Mult_choice/100,1)*(Data_by_donor_recipient_year[[#This Row],[Net ODA]]+(CC_choice/100-100%)*Data_by_donor_recipient_year[[#This Row],[Climate mitigation grants]])/Data_by_donor_recipient_year[GNI] -> 6.132937602e-06
A14: 2006 | B14: 130 | C14: Algeria | D14: 1 | E14: Austria | F14: 0.150000006 | G14: 0.150000006 | H14: 1965 | I14: 0 | J14: 0 | K14: 0 | L14: 0 | M14: 0 | N14: 0 | O14: 0 | P14: 0 | Q14: 0 | R14: 0 | S14: 0 | T14: 0 | U14: 0 | V14: 0 | W14: 0 | X14: 0 | Y14: 0 | Z14: 0 | AA14: 0 | AB14: 0 | AC14: 0 | AD14: 0.150000006 | AE14: 0.150000006 | AF14: 0.150000006 | AG14: 0.150000006 | AH14: 0.150000006 | AI14: 0.150000006 | AJ14: 0.150000006 | AK14: 0.150000006 | AL14: 0.150000006 | AM14: 0.150000006 | AN14: 0.150000006 | AO14: 0.150000006 | AP14: 0.150000006 | AQ14: 0.150000006 | AR14: 0.150000006 | AS14: 0.150000006 | AT14: 0.150000006 | AU14: 0.150000006 | AV14: 0 | AW14: 0 | AX14: 0 | AY14: 0 | AZ14: 0 | BA14: 0 | BB14: 0 | BC14: 0 | BD14: 0 | BE14: 0 | BF14: 0 | BG14: 0 | BH14: 0 | BI14: 0 | BJ14: 0 | BK14: 0 | BL14: 0 | BM14: 0 | BN14: 0 | BO14: 0.1819647105 | BP14: 0.1819647105 | BQ14: 0.1819647105 | BR14: 0.1819647105 | BS14: 0.1819647105 | BT14: 0.1819647105 | BU14: 0.1819647105 | BV14: 0.1819647105 | BW14: 0.1819647105 | BX14: 0.1819647105 | BY14: 0.1819647105 | BZ14: 0.1819647105 | CA14: 0.1819647105 | CB14: 0.1819647105 | CC14: 0.1819647105 | CD14: 0.1819647105 | CE14: 0.1819647105 | CF14: 0.1819647105 | CG14: 0.1819647105 | CH14: 0.1232835427 | CI14: 0 | CJ14: 0 | CK14: 0 | CL14: 0.1495550218 | CM14: 0 | CN14: 0 | CO14: 0 | CP14: 0.8243356943 | CQ14: 319585.8438 | CR14: 0 | CS14: 0 | CT14: 0 | CU14: 0 | CV14: 0 | CW14: 0 | CX14: 0 | CY14: 0 | CZ14: 0.1819647105 | DA14: =1-ISBLANK(Data_by_donor_recipient_year[DAC member]) -> 1 | DB14: =IF(Data_by_donor_recipient_year[[#This Row],[Multilateral recipient?]],Mult_choice/100,1)*(Data_by_donor_recipient_year[[#This Row],[Net ODA]]+(CC_choice/100-100%)*Data_by_donor_recipient_year[[#This Row],[Climate mitigation grants]])/Data_by_donor_recipient_year[GNI] -> 4.69357479e-07
A15: 2006 | B15: 133 | C15: Libya | D15: 1 | E15: Austria | F15: 0.1099999994 | G15: 0.1099999994 | H15: 1965 | I15: 0 | J15: 0 | K15: 0 | L15: 0 | M15: 0 | N15: 0 | O15: 0 | P15: 0 | Q15: 0 | R15: 0 | S15: 0 | T15: 0 | U15: 0 | V15: 0 | W15: 0 | X15: 0 | Y15: 0 | Z15: 0 | AA15: 0 | AB15: 0 | AC15: 0 | AD15: 0.1099999994 | AE15: 0.1099999994 | AF15: 0.1099999994 | AG15: 0.1099999994 | AH15: 0.1099999994 | AI15: 0.1099999994 | AJ15: 0.1099999994 | AK15: 0.1099999994 | AL15: 0.1099999994 | AM15: 0.1099999994 | AN15: 0.1099999994 | AO15: 0.1099999994 | AP15: 0.1099999994 | AQ15: 0.1099999994 | AR15: 0.1099999994 | AS15: 0.1099999994 | AT15: 0.1099999994 | AU15: 0.1099999994 | AV15: 0 | AW15: 0 | AX15: 0 | AY15: 0 | AZ15: 0 | BA15: 0 | BB15: 0 | BC15: 0 | BD15: 0 | BE15: 0 | BF15: 0 | BG15: 0 | BH15: 0 | BI15: 0 | BJ15: 0 | BK15: 0 | BL15: 0 | BM15: 0 | BN15: 0 | BO15: 0.1334407817 | BP15: 0.1334407817 | BQ15: 0.1334407817 | BR15: 0.1334407817 | BS15: 0.1334407817 | BT15: 0.1334407817 | BU15: 0.1334407817 | BV15: 0.1334407817 | BW15: 0.1334407817 | BX15: 0.1334407817 | BY15: 0.1334407817 | BZ15: 0.1334407817 | CA15: 0.1334407817 | CB15: 0.1334407817 | CC15: 0.1334407817 | CD15: 0.1334407817 | CE15: 0.1334407817 | CF15: 0.1334407817 | CG15: 0.1334407817 | CH15: 0.1068407148 | CI15: 0 | CJ15: 0 | CK15: 0 | CL15: 0.1296082598 | CM15: 0 | CN15: 0 | CO15: 0 | CP15: 0.8243356943 | CQ15: 319585.8438 | CR15: 0 | CS15: 0 | CT15: 0 | CU15: 0 | CV15: 0 | CW15: 0 | CX15: 0 | CY15: 0 | CZ15: 0.1334407817 | DA15: =1-ISBLANK(Data_by_donor_recipient_year[DAC member]) -> 1 | DB15: =IF(Data_by_donor_recipient_year[[#This Row],[Multilateral recipient?]],Mult_choice/100,1)*(Data_by_donor_recipient_year[[#This Row],[Net ODA]]+(CC_choice/100-100%)*Data_by_donor_recipient_year[[#This Row],[Climate mitigation grants]])/Data_by_donor_recipient_year[GNI] -> 3.441954691e-07
A16: 2006 | B16: 136 | C16: Morocco | D16: 1 | E16: Austria | F16: 0.6200000048 | G16: 0.6200000048 | H16: 1965 | I16: 0 | J16: 0 | K16: 0 | L16: 0 | M16: 0 | N16: 0 | O16: 0 | P16: 0 | Q16: 0 | R16: 0 | S16: 0 | T16: 0 | U16: 0 | V16: 0 | W16: 0 | X16: 0 | Y16: 0 | Z16: 0 | AA16: 0 | AB16: 0 | AC16: 0 | AD16: 0.6200000048 | AE16: 0.6200000048 | AF16: 0.6200000048 | AG16: 0.6200000048 | AH16: 0.6200000048 | AI16: 0.6200000048 | AJ16: 0.6200000048 | AK16: 0.6200000048 | AL16: 0.6200000048 | AM16: 0.6200000048 | AN16: 0.6200000048 | AO16: 0.6200000048 | AP16: 0.6200000048 | AQ16: 0.6200000048 | AR16: 0.6200000048 | AS16: 0.6200000048 | AT16: 0.6200000048 | AU16: 0.6200000048 | AV16: 0 | AW16: 0 | AX16: 0 | AY16: 0 | AZ16: 0 | BA16: 0 | BB16: 0 | BC16: 0 | BD16: 0 | BE16: 0 | BF16: 0 | BG16: 0 | BH16: 0 | BI16: 0 | BJ16: 0 | BK16: 0 | BL16: 0 | BM16: 0 | BN16: 0 | BO16: 0.7521207792 | BP16: 0.7521207792 | BQ16: 0.7521207792 | BR16: 0.7521207792 | BS16: 0.7521207792 | BT16: 0.7521207792 | BU16: 0.7521207792 | BV16: 0.7521207792 | BW16: 0.7521207792 | BX16: 0.7521207792 | BY16: 0.7521207792 | BZ16: 0.7521207792 | CA16: 0.7521207792 | CB16: 0.7521207792 | CC16: 0.7521207792 | CD16: 0.7521207792 | CE16: 0.7521207792 | CF16: 0.7521207792 | CG16: 0.7521207792 | CH16: 0.1479352266 | CI16: 0 | CJ16: 0 | CK16: 0 | CL16: 0.1794599307 | CM16: 0 | CN16: 0 | CO16: 0 | CP16: 0.8243356943 | CQ16: 319585.8438 | CR16: 0 | CS16: 0 | CT16: 0 | CU16: 0 | CV16: 0 | CW16: 0 | CX16: 0 | CY16: 0 | CZ16: 0.7521207792 | DA16: =1-ISBLANK(Data_by_donor_recipient_year[DAC member]) -> 1 | DB16: =IF(Data_by_donor_recipient_year[[#This Row],[Multilateral recipient?]],Mult_choice/100,1)*(Data_by_donor_recipient_year[[#This Row],[Net ODA]]+(CC_choice/100-100%)*Data_by_donor_recipient_year[[#This Row],[Climate mitigation grants]])/Data_by_donor_recipient_year[GNI] -> 1.940010851e-06
A17: 2006 | B17: 139 | C17: Tunisia | D17: 1 | E17: Austria | F17: 0.2599999905 | G17: 0.2599999905 | H17: 1965 | I17: 0 | J17: 0 | K17: 0 | L17: 0 | M17: 0 | N17: 0 | O17: 0 | P17: 0 | Q17: 0 | R17: 0 | S17: 0 | T17: 0 | U17: 0 | V17: 0 | W17: 0 | X17: 0 | Y17: 0 | Z17: 0 | AA17: 0 | AB17: 0 | AC17: 0 | AD17: 0.2599999905 | AE17: 0.2599999905 | AF17: 0.2599999905 | AG17: 0.2599999905 | AH17: 0.2599999905 | AI17: 0.2599999905 | AJ17: 0.2599999905 | AK17: 0.2599999905 | AL17: 0.2599999905 | AM17: 0.2599999905 | AN17: 0.2599999905 | AO17: 0.2599999905 | AP17: 0.2599999905 | AQ17: 0.2599999905 | AR17: 0.2599999905 | AS17: 0.2599999905 | AT17: 0.2599999905 | AU17: 0.2599999905 | AV17: 0 | AW17: 0 | AX17: 0 | AY17: 0 | AZ17: 0 | BA17: 0 | BB17: 0 | BC17: 0 | BD17: 0 | BE17: 0 | BF17: 0 | BG17: 0 | BH17: 0 | BI17: 0 | BJ17: 0 | BK17: 0 | BL17: 0 | BM17: 0 | BN17: 0 | BO17: 0.3154054741 | BP17: 0.3154054741 | BQ17: 0.3154054741 | BR17: 0.3154054741 | BS17: 0.3154054741 | BT17: 0.3154054741 | BU17: 0.3154054741 | BV17: 0.3154054741 | BW17: 0.3154054741 | BX17: 0.3154054741 | BY17: 0.3154054741 | BZ17: 0.3154054741 | CA17: 0.3154054741 | CB17: 0.3154054741 | CC17: 0.3154054741 | CD17: 0.3154054741 | CE17: 0.3154054741 | CF17: 0.3154054741 | CG17: 0.3154054741 | CH17: 0.2383456826 | CI17: 0 | CJ17: 0 | CK17: 0 | CL17: 0.2891366761 | CM17: 0 | CN17: 0 | CO17: 0 | CP17: 0.8243356943 | CQ17: 319585.8438 | CR17: 0 | CS17: 0 | CT17: 0 | CU17: 0 | CV17: 0 | CW17: 0 | CX17: 0 | CY17: 0 | CZ17: 0.3154054741 | DA17: =1-ISBLANK(Data_by_donor_recipient_year[DAC member]) -> 1 | DB17: =IF(Data_by_donor_recipient_year[[#This Row],[Multilateral recipient?]],Mult_choice/100,1)*(Data_by_donor_recipient_year[[#This Row],[Net ODA]]+(CC_choice/100-100%)*Data_by_donor_recipient_year[[#This Row],[Climate mitigation grants]])/Data_by_donor_recipient_year[GNI] -> 8.135529015e-07
A18: 2006 | B18: 142 | C18: Egypt | D18: 1 | E18: Austria | F18: 21.12000084 | G18: 0.9200000763 | H18: 1965 | I18: 0 | J18: 0 | K18: 0 | L18: 0 | M18: 0 | N18: 0 | O18: 0 | P18: 0 | Q18: 0 | R18: 0 | S18: 0 | T18: 0 | U18: 0 | V18: 0 | W18: 0 | X18: 0 | Y18: 0 | Z18: 0 | AA18: 0 | AB18: 0 | AC18: 0 | AD18: 21.12000084 | AE18: 21.12000084 | AF18: 21.12000084 | AG18: 21.12000084 | AH18: 21.12000084 | AI18: 21.12000084 | AJ18: 0.9200000763 | AK18: 0.9200000763 | AL18: 0.9200000763 | AM18: 0.9200000763 | AN18: 0.9200000763 | AO18: 0.9200000763 | AP18: 21.12000084 | AQ18: 21.12000084 | AR18: 21.12000084 | AS18: 0.9200000763 | AT18: 0.9200000763 | AU18: 0.9200000763 | AV18: 0 | AW18: 0 | AX18: 0 | AY18: 0 | AZ18: 0 | BA18: 0 | BB18: 0 | BC18: 0 | BD18: 0 | BE18: 0 | BF18: 0 | BG18: 0 | BH18: 0 | BI18: 0 | BJ18: 0 | BK18: 0 | BL18: 0 | BM18: 0 | BN18: 0 | BO18: 25.62063124 | BP18: 25.62063124 | BQ18: 25.62063124 | BR18: 25.62063124 | BS18: 25.62063124 | BT18: 25.62063124 | BU18: 25.62063124 | BV18: 1.116050273 | BW18: 1.116050273 | BX18: 1.116050273 | BY18: 1.116050273 | BZ18: 1.116050273 | CA18: 1.116050273 | CB18: 25.62063124 | CC18: 25.62063124 | CD18: 25.62063124 | CE18: 1.116050273 | CF18: 1.116050273 | CG18: 1.116050273 | CH18: 0.583532095 | CI18: 0 | CJ18: 0 | CK18: 0 | CL18: 0.70788163 | CM18: 0 | CN18: 0 | CO18: 0 | CP18: 0.8243356943 | CQ18: 319585.8438 | CR18: 0 | CS18: 0 | CT18: 0 | CU18: 0 | CV18: 0 | CW18: 0 | CX18: 0 | CY18: 0 | CZ18: 1.116050273 | DA18: =1-ISBLANK(Data_by_donor_recipient_year[DAC member]) -> 1 | DB18: =IF(Data_by_donor_recipient_year[[#This Row],[Multilateral recipient?]],Mult_choice/100,1)*(Data_by_donor_recipient_year[[#This Row],[Net ODA]]+(CC_choice/100-100%)*Data_by_donor_recipient_year[[#This Row],[Climate mitigation grants]])/Data_by_donor_recipient_year[GNI] -> 6.608553305e-05
A19: 2006 | B19: 189 | C19: North of Sahara, regional/multi-country | D19: 1 | E19: Austria | F19: 0.8299999833 | G19: 0.8299999833 | H19: 1965 | I19: 0 | J19: 0 | K19: 0 | L19: 0 | M19: 0 | N19: 0 | O19: 0 | P19: 0 | Q19: 0 | R19: 0 | S19: 0 | T19: 0 | U19: 0 | V19: 0 | W19: 0 | X19: 0 | Y19: 0 | Z19: 0 | AA19: 0 | AB19: 0 | AC19: 0 | AD19: 0.8299999833 | AE19: 0.8299999833 | AF19: 0.8299999833 | AG19: 0.8299999833 | AH19: 0.8299999833 | AI19: 0.8299999833 | AJ19: 0.8299999833 | AK19: 0.8299999833 | AL19: 0.8299999833 | AM19: 0.8299999833 | AN19: 0.8299999833 | AO19: 0.8299999833 | AP19: 0.8299999833 | AQ19: 0.8299999833 | AR19: 0.8299999833 | AS19: 0.8299999833 | AT19: 0.8299999833 | AU19: 0.8299999833 | AV19: 0 | AW19: 0 | AX19: 0 | AY19: 0 | AZ19: 0 | BA19: 0 | BB19: 0 | BC19: 0 | BD19: 0 | BE19: 0 | BF19: 0 | BG19: 0 | BH19: 0 | BI19: 0 | BJ19: 0 | BK19: 0 | BL19: 0 | BM19: 0 | BN19: 0 | BO19: 1.006871338 | BP19: 1.006871338 | BQ19: 1.006871338 | BR19: 1.006871338 | BS19: 1.006871338 | BT19: 1.006871338 | BU19: 1.006871338 | BV19: 1.006871338 | BW19: 1.006871338 | BX19: 1.006871338 | BY19: 1.006871338 | BZ19: 1.006871338 | CA19: 1.006871338 | CB19: 1.006871338 | CC19: 1.006871338 | CD19: 1.006871338 | CE19: 1.006871338 | CF19: 1.006871338 | CG19: 1.006871338 | CH19: 0 | CI19: 0 | CJ19: 0 | CK19: 0 | CL19: 0 | CM19: 0 | CN19: 0 | CO19: 0 | CP19: 0.8243356943 | CQ19: 319585.8438 | CR19: 0 | CS19: 0 | CT19: 0 | CU19: 0 | CV19: 0 | CW19: 0 | CX19: 0 | CY19: 0 | CZ19: 1.006871338 | DA19: =1-ISBLANK(Data_by_donor_recipient_year[DAC member]) -> 1 | DB19: =IF(Data_by_donor_recipient_year[[#This Row],[Multilateral recipient?]],Mult_choice/100,1)*(Data_by_donor_recipient_year[[#This Row],[Net ODA]]+(CC_choice/100-100%)*Data_by_donor_recipient_year[[#This Row],[Climate mitigation grants]])/Data_by_donor_recipient_year[GNI] -> 2.597111229e-06
A20: 2006 | B20: 218 | C20: South Africa | D20: 1 | E20: Austria | F20: 0.7799999714 | G20: 0.7799999714 | H20: 1965 | I20: 0 | J20: 0 | K20: 0 | L20: 0 | M20: 0 | N20: 0 | O20: 0 | P20: 0 | Q20: 0 | R20: 0 | S20: 0 | T20: 0 | U20: 0 | V20: 0 | W20: 0 | X20: 0 | Y20: 0 | Z20: 0 | AA20: 0 | AB20: 0 | AC20: 0 | AD20: 0.7799999714 | AE20: 0.7799999714 | AF20: 0.7799999714 | AG20: 0.7799999714 | AH20: 0.7799999714 | AI20: 0.7799999714 | AJ20: 0.7799999714 | AK20: 0.7799999714 | AL20: 0.7799999714 | AM20: 0.7799999714 | AN20: 0.7799999714 | AO20: 0.7799999714 | AP20: 0.7799999714 | AQ20: 0.7799999714 | AR20: 0.7799999714 | AS20: 0.7799999714 | AT20: 0.7799999714 | AU20: 0.7799999714 | AV20: 0 | AW20: 0 | AX20: 0 | AY20: 0 | AZ20: 0 | BA20: 0 | BB20: 0 | BC20: 0 | BD20: 0 | BE20: 0 | BF20: 0 | BG20: 0 | BH20: 0 | BI20: 0 | BJ20: 0 | BK20: 0 | BL20: 0 | BM20: 0 | BN20: 0 | BO20: 0.9462164222 | BP20: 0.9462164222 | BQ20: 0.9462164222 | BR20: 0.9462164222 | BS20: 0.9462164222 | BT20: 0.9462164222 | BU20: 0.9462164222 | BV20: 0.9462164222 | BW20: 0.9462164222 | BX20: 0.9462164222 | BY20: 0.9462164222 | BZ20: 0.9462164222 | CA20: 0.9462164222 | CB20: 0.9462164222 | CC20: 0.9462164222 | CD20: 0.9462164222 | CE20: 0.9462164222 | CF20: 0.9462164222 | CG20: 0.9462164222 | CH20: 0 | CI20: 0 | CJ20: 0 | CK20: 0 | CL20: 0 | CM20: 0 | CN20: 0 | CO20: 0 | CP20: 0.8243356943 | CQ20: 319585.8438 | CR20: 0 | CS20: 0 | CT20: 0 | CU20: 0 | CV20: 0 | CW20: 0 | CX20: 0 | CY20: 0 | CZ20: 0.9462164222 | DA20: =1-ISBLANK(Data_by_donor_recipient_year[DAC member]) -> 1 | DB20: =IF(Data_by_donor_recipient_year[[#This Row],[Multilateral recipient?]],Mult_choice/100,1)*(Data_by_donor_recipient_year[[#This Row],[Net ODA]]+(CC_choice/100-100%)*Data_by_donor_recipient_year[[#This Row],[Climate mitigation grants]])/Data_by_donor_recipient_year[GNI] -> 2.440658705e-06
A21: 2006 | B21: 225 | C21: Angola | D21: 1 | E21: Austria | F21: 0.02999999933 | G21: 0.02999999933 | H21: 1965 | I21: 0 | J21: 0 | K21: 0 | L21: 0 | M21: 0 | N21: 0 | O21: 0 | P21: 0 | Q21: 0 | R21: 0 | S21: 0 | T21: 0 | U21: 0 | V21: 0 | W21: 0 | X21: 0 | Y21: 0 | Z21: 0 | AA21: 0 | AB21: 0 | AC21: 0 | AD21: 0.02999999933 | AE21: 0.02999999933 | AF21: 0.02999999933 | AG21: 0.02999999933 | AH21: 0.02999999933 | AI21: 0.02999999933 | AJ21: 0.02999999933 | AK21: 0.02999999933 | AL21: 0.02999999933 | AM21: 0.02999999933 | AN21: 0.02999999933 | AO21: 0.02999999933 | AP21: 0.02999999933 | AQ21: 0.02999999933 | AR21: 0.02999999933 | AS21: 0.02999999933 | AT21: 0.02999999933 | AU21: 0.02999999933 | AV21: 0 | AW21: 0 | AX21: 0 | AY21: 0 | AZ21: 0 | BA21: 0 | BB21: 0 | BC21: 0 | BD21: 0 | BE21: 0 | BF21: 0 | BG21: 0 | BH21: 0 | BI21: 0 | BJ21: 0 | BK21: 0 | BL21: 0 | BM21: 0 | BN21: 0 | BO21: 0.03639293984 | BP21: 0.03639293984 | BQ21: 0.03639293984 | BR21: 0.03639293984 | BS21: 0.03639293984 | BT21: 0.03639293984 | BU21: 0.03639293984 | BV21: 0.03639293984 | BW21: 0.03639293984 | BX21: 0.03639293984 | BY21: 0.03639293984 | BZ21: 0.03639293984 | CA21: 0.03639293984 | CB21: 0.03639293984 | CC21: 0.03639293984 | CD21: 0.03639293984 | CE21: 0.03639293984 | CF21: 0.03639293984 | CG21: 0.03639293984 | CH21: 0.02008284256 | CI21: 0 | CJ21: 0 | CK21: 0 | CL21: 0.02436245658 | CM21: 0 | CN21: 0 | CO21: 0 | CP21: 0.8243356943 | CQ21: 319585.8438 | CR21: 1 | CS21: 0 | CT21: 0 | CU21: 0 | CV21: 0 | CW21: 0 | CX21: 0 | CY21: 0 | CZ21: 0.03639293984 | DA21: =1-ISBLANK(Data_by_donor_recipient_year[DAC member]) -> 1 | DB21: =IF(Data_by_donor_recipient_year[[#This Row],[Multilateral recipient?]],Mult_choice/100,1)*(Data_by_donor_recipient_year[[#This Row],[Net ODA]]+(CC_choice/100-100%)*Data_by_donor_recipient_year[[#This Row],[Climate mitigation grants]])/Data_by_donor_recipient_year[GNI] -> 9.387148998e-08
A22: 2006 | B22: 228 | C22: Burundi | D22: 1 | E22: Austria | F22: 0.4799999893 | G22: 0.4799999893 | H22: 1965 | I22: 0 | J22: 0 | K22: 0 | L22: 0 | M22: 0 | N22: 0 | O22: 0 | P22: 0 | Q22: 0 | R22: 0 | S22: 0 | T22: 0 | U22: 0 | V22: 0 | W22: 0 | X22: 0 | Y22: 0 | Z22: 0 | AA22: 0 | AB22: 0 | AC22: 0 | AD22: 0.4799999893 | AE22: 0.4799999893 | AF22: 0.4799999893 | AG22: 0.4799999893 | AH22: 0.4799999893 | AI22: 0.4799999893 | AJ22: 0.4799999893 | AK22: 0.4799999893 | AL22: 0.4799999893 | AM22: 0.4799999893 | AN22: 0.4799999893 | AO22: 0.4799999893 | AP22: 0.4799999893 | AQ22: 0.4799999893 | AR22: 0.4799999893 | AS22: 0.4799999893 | AT22: 0.4799999893 | AU22: 0.4799999893 | AV22: 0 | AW22: 0 | AX22: 0 | AY22: 0 | AZ22: 0 | BA22: 0 | BB22: 0 | BC22: 0 | BD22: 0 | BE22: 0 | BF22: 0 | BG22: 0 | BH22: 0 | BI22: 0 | BJ22: 0 | BK22: 0 | BL22: 0 | BM22: 0 | BN22: 0 | BO22: 0.5822870374 | BP22: 0.5822870374 | BQ22: 0.5822870374 | BR22: 0.5822870374 | BS22: 0.5822870374 | BT22: 0.5822870374 | BU22: 0.5822870374 | BV22: 0.5822870374 | BW22: 0.5822870374 | BX22: 0.5822870374 | BY22: 0.5822870374 | BZ22: 0.5822870374 | CA22: 0.5822870374 | CB22: 0.5822870374 | CC22: 0.5822870374 | CD22: 0.5822870374 | CE22: 0.5822870374 | CF22: 0.5822870374 | CG22: 0.5822870374 | CH22: 0.03012426198 | CI22: 0 | CJ22: 0 | CK22: 0 | CL22: 0.03654368261 | CM22: 0 | CN22: 0 | CO22: 0 | CP22: 0.8243356943 | CQ22: 319585.8438 | CR22: 1 | CS22: 0 | CT22: 0 | CU22: 0 | CV22: 0 | CW22: 0 | CX22: 0 | CY22: 0 | CZ22: 0.5822870374 | DA22: =1-ISBLANK(Data_by_donor_recipient_year[DAC member]) -> 1 | DB22: =IF(Data_by_donor_recipient_year[[#This Row],[Multilateral recipient?]],Mult_choice/100,1)*(Data_by_donor_recipient_year[[#This Row],[Net ODA]]+(CC_choice/100-100%)*Data_by_donor_recipient_year[[#This Row],[Climate mitigation grants]])/Data_by_donor_recipient_year[GNI] -> 1.50194384e-06
A23: 2006 | B23: 229 | C23: Cameroon | D23: 1 | E23: Austria | F23: 443.4700012 | G23: 0.3900146484 | H23: 1965 | I23: 0 | J23: 0 | K23: 0 | L23: 0 | M23: 0 | N23: 0 | O23: 0 | P23: 0 | Q23: 0 | R23: 0 | S23: 0 | T23: 0 | U23: 0 | V23: 0 | W23: 0 | X23: 0 | Y23: 0 | Z23: 0 | AA23: 0 | AB23: 0 | AC23: 0 | AD23: 443.4700012 | AE23: 443.4700012 | AF23: 443.4700012 | AG23: 443.4700012 | AH23: 443.4700012 | AI23: 443.4700012 | AJ23: 0.3900146484 | AK23: 0.3900146484 | AL23: 0.3900146484 | AM23: 0.3900146484 | AN23: 0.3900146484 | AO23: 0.3900146484 | AP23: 443.4700012 | AQ23: 443.4700012 | AR23: 443.4700012 | AS23: 0.3900146484 | AT23: 0.3900146484 | AU23: 0.3900146484 | AV23: 0 | AW23: 0 | AX23: 0 | AY23: 0 | AZ23: 0 | BA23: 0 | BB23: 0 | BC23: 0 | BD23: 0 | BE23: 0 | BF23: 0 | BG23: 0 | BH23: 0 | BI23: 0 | BJ23: 0 | BK23: 0 | BL23: 0 | BM23: 0 | BN23: 0 | BO23: 537.9725812 | BP23: 537.9725812 | BQ23: 537.9725812 | BR23: 537.9725812 | BS23: 537.9725812 | BT23: 537.9725812 | BU23: 537.9725812 | BV23: 0.4731259985 | BW23: 0.4731259985 | BX23: 0.4731259985 | BY23: 0.4731259985 | BZ23: 0.4731259985 | CA23: 0.4731259985 | CB23: 537.9725812 | CC23: 537.9725812 | CD23: 537.9725812 | CE23: 0.4731259985 | CF23: 0.4731259985 | CG23: 0.4731259985 | CH23: 0.2794401944 | CI23: 0 | CJ23: 0 | CK23: 0 | CL23: 0.338988347 | CM23: 0 | CN23: 0 | CO23: 0 | CP23: 0.8243356943 | CQ23: 319585.8438 | CR23: 1 | CS23: 0 | CT23: 0 | CU23: 0 | CV23: 0 | CW23: 0 | CX23: 0 | CY23: 0 | CZ23: 0.4731259985 | DA23: =1-ISBLANK(Data_by_donor_recipient_year[DAC member]) -> 1 | DB23: =IF(Data_by_donor_recipient_year[[#This Row],[Multilateral recipient?]],Mult_choice/100,1)*(Data_by_donor_recipient_year[[#This Row],[Net ODA]]+(CC_choice/100-100%)*Data_by_donor_recipient_year[[#This Row],[Climate mitigation grants]])/Data_by_donor_recipient_year[GNI] -> 0.00138763969
A24: 2006 | B24: 230 | C24: Cape Verde | D24: 1 | E24: Austria | F24: 3.049999952 | G24: 3.049999952 | H24: 1965 | I24: 0 | J24: 0 | K24: 0 | L24: 0 | M24: 0 | N24: 0 | O24: 0 | P24: 0 | Q24: 0 | R24: 0 | S24: 0 | T24: 0 | U24: 0 | V24: 0 | W24: 0 | X24: 0 | Y24: 0 | Z24: 0 | AA24: 0 | AB24: 0 | AC24: 0 | AD24: 3.049999952 | AE24: 3.049999952 | AF24: 3.049999952 | AG24: 3.049999952 | AH24: 3.049999952 | AI24: 3.049999952 | AJ24: 3.049999952 | AK24: 3.049999952 | AL24: 3.049999952 | AM24: 3.049999952 | AN24: 3.049999952 | AO24: 3.049999952 | AP24: 3.049999952 | AQ24: 3.049999952 | AR24: 3.049999952 | AS24: 3.049999952 | AT24: 3.049999952 | AU24: 3.049999952 | AV24: 0 | AW24: 0 | AX24: 0 | AY24: 0 | AZ24: 0 | BA24: 0 | BB24: 0 | BC24: 0 | BD24: 0 | BE24: 0 | BF24: 0 | BG24: 0 | BH24: 0 | BI24: 0 | BJ24: 0 | BK24: 0 | BL24: 0 | BM24: 0 | BN24: 0 | BO24: 3.699948908 | BP24: 3.699948908 | BQ24: 3.699948908 | BR24: 3.699948908 | BS24: 3.699948908 | BT24: 3.699948908 | BU24: 3.699948908 | BV24: 3.699948908 | BW24: 3.699948908 | BX24: 3.699948908 | BY24: 3.699948908 | BZ24: 3.699948908 | CA24: 3.699948908 | CB24: 3.699948908 | CC24: 3.699948908 | CD24: 3.699948908 | CE24: 3.699948908 | CF24: 3.699948908 | CG24: 3.699948908 | CH24: 0.02008284256 | CI24: 0 | CJ24: 0 | CK24: 0 | CL24: 0.02436245658 | CM24: 0 | CN24: 0 | CO24: 0 | CP24: 0.8243356943 | CQ24: 319585.8438 | CR24: 0 | CS24: 1.129659891 | CT24: 1.370388179 | CU24: 0 | CV24: 0 | CW24: 0 | CX24: 0 | CY24: 0 | CZ24: 3.699948908 | DA24: =1-ISBLANK(Data_by_donor_recipient_year[DAC member]) -> 1 | DB24: =IF(Data_by_donor_recipient_year[[#This Row],[Multilateral recipient?]],Mult_choice/100,1)*(Data_by_donor_recipient_year[[#This Row],[Net ODA]]+(CC_choice/100-100%)*Data_by_donor_recipient_year[[#This Row],[Climate mitigation grants]])/Data_by_donor_recipient_year[GNI] -> 9.543601545e-06
A25: 2006 | B25: 231 | C25: Central African Rep. | D25: 1 | E25: Austria | F25: 0.150000006 | G25: 0 | H25: 1965 | I25: 0 | J25: 0 | K25: 0 | L25: 0 | M25: 0 | N25: 0 | O25: 0 | P25: 0 | Q25: 0 | R25: 0 | S25: 0 | T25: 0 | U25: 0 | V25: 0 | W25: 0 | X25: 0 | Y25: 0 | Z25: 0 | AA25: 0 | AB25: 0 | AC25: 0 | AD25: 0.150000006 | AE25: 0.150000006 | AF25: 0.150000006 | AG25: 0.150000006 | AH25: 0.150000006 | AI25: 0.150000006 | AJ25: 0 | AK25: 0 | AL25: 0 | AM25: 0 | AN25: 0 | AO25: 0 | AP25: 0.150000006 | AQ25: 0.150000006 | AR25: 0.150000006 | AS25: 0 | AT25: 0 | AU25: 0 | AV25: 0 | AW25: 0 | AX25: 0 | AY25: 0 | AZ25: 0 | BA25: 0 | BB25: 0 | BC25: 0 | BD25: 0 | BE25: 0 | BF25: 0 | BG25: 0 | BH25: 0 | BI25: 0 | BJ25: 0 | BK25: 0 | BL25: 0 | BM25: 0 | BN25: 0 | BO25: 0.1819647105 | BP25: 0.1819647105 | BQ25: 0.1819647105 | BR25: 0.1819647105 | BS25: 0.1819647105 | BT25: 0.1819647105 | BU25: 0.1819647105 | BV25: 0 | BW25: 0 | BX25: 0 | BY25: 0 | BZ25: 0 | CA25: 0 | CB25: 0.1819647105 | CC25: 0.1819647105 | CD25: 0.1819647105 | CE25: 0 | CF25: 0 | CG25: 0 | CH25: 0 | CI25: 0 | CJ25: 0 | CK25: 0 | CL25: 0 | CM25: 0 | CN25: 0 | CO25: 0 | CP25: 0.8243356943 | CQ25: 319585.8438 | CR25: 1 | CS25: 0 | CT25: 0 | CU25: 0 | CV25: 0 | CW25: 0 | CX25: 0 | CY25: 0 | CZ25: 0 | DA25: =1-ISBLANK(Data_by_donor_recipient_year[DAC member]) -> 1 | DB25: =IF(Data_by_donor_recipient_year[[#This Row],[Multilateral recipient?]],Mult_choice/100,1)*(Data_by_donor_recipient_year[[#This Row],[Net ODA]]+(CC_choice/100-100%)*Data_by_donor_recipient_year[[#This Row],[Climate mitigation grants]])/Data_by_donor_recipient_year[GNI] -> 4.69357479e-07
A26: 2006 | B26: 234 | C26: Congo, Rep. | D26: 1 | E26: Austria | F26: 0.05000000075 | G26: 0.05000000075 | H26: 1965 | I26: 0 | J26: 0 | K26: 0 | L26: 0 | M26: 0 | N26: 0 | O26: 0 | P26: 0 | Q26: 0 | R26: 0 | S26: 0 | T26: 0 | U26: 0 | V26: 0 | W26: 0 | X26: 0 | Y26: 0 | Z26: 0 | AA26: 0 | AB26: 0 | AC26: 0 | AD26: 0.05000000075 | AE26: 0.05000000075 | AF26: 0.05000000075 | AG26: 0.05000000075 | AH26: 0.05000000075 | AI26: 0.05000000075 | AJ26: 0.05000000075 | AK26: 0.05000000075 | AL26: 0.05000000075 | AM26: 0.05000000075 | AN26: 0.05000000075 | AO26: 0.05000000075 | AP26: 0.05000000075 | AQ26: 0.05000000075 | AR26: 0.05000000075 | AS26: 0.05000000075 | AT26: 0.05000000075 | AU26: 0.05000000075 | AV26: 0 | AW26: 0 | AX26: 0 | AY26: 0 | AZ26: 0 | BA26: 0 | BB26: 0 | BC26: 0 | BD26: 0 | BE26: 0 | BF26: 0 | BG26: 0 | BH26: 0 | BI26: 0 | BJ26: 0 | BK26: 0 | BL26: 0 | BM26: 0 | BN26: 0 | BO26: 0.06065490199 | BP26: 0.06065490199 | BQ26: 0.06065490199 | BR26: 0.06065490199 | BS26: 0.06065490199 | BT26: 0.06065490199 | BU26: 0.06065490199 | BV26: 0.06065490199 | BW26: 0.06065490199 | BX26: 0.06065490199 | BY26: 0.06065490199 | BZ26: 0.06065490199 | CA26: 0.06065490199 | CB26: 0.06065490199 | CC26: 0.06065490199 | CD26: 0.06065490199 | CE26: 0.06065490199 | CF26: 0.06065490199 | CG26: 0.06065490199 | CH26: 0.02465168759 | CI26: 0 | CJ26: 0 | CK26: 0 | CL26: 0.02990491345 | CM26: 0 | CN26: 0 | CO26: 0 | CP26: 0.8243356943 | CQ26: 319585.8438 | CR26: 1 | CS26: 0 | CT26: 0 | CU26: 0 | CV26: 0 | CW26: 0 | CX26: 0 | CY26: 0 | CZ26: 0.06065490199 | DA26: =1-ISBLANK(Data_by_donor_recipient_year[DAC member]) -> 1 | DB26: =IF(Data_by_donor_recipient_year[[#This Row],[Multilateral recipient?]],Mult_choice/100,1)*(Data_by_donor_recipient_year[[#This Row],[Net ODA]]+(CC_choice/100-100%)*Data_by_donor_recipient_year[[#This Row],[Climate mitigation grants]])/Data_by_donor_recipient_year[GNI] -> 1.564524891e-07
A27: 2006 | B27: 235 | C27: Congo, Dem. Rep. (Zaire) | D27: 1 | E27: Austria | F27: 4.409999847 | G27: 0.5499999523 | H27: 1965 | I27: 0 | J27: 0 | K27: 0 | L27: 0 | M27: 0 | N27: 0 | O27: 0 | P27: 0 | Q27: 0 | R27: 0 | S27: 0 | T27: 0 | U27: 0 | V27: 0 | W27: 0 | X27: 0 | Y27: 0 | Z27: 0 | AA27: 0 | AB27: 0 | AC27: 0 | AD27: 4.409999847 | AE27: 4.409999847 | AF27: 4.409999847 | AG27: 4.409999847 | AH27: 4.409999847 | AI27: 4.409999847 | AJ27: 0.5499999523 | AK27: 0.5499999523 | AL27: 0.5499999523 | AM27: 0.5499999523 | AN27: 0.5499999523 | AO27: 0.5499999523 | AP27: 4.409999847 | AQ27: 4.409999847 | AR27: 4.409999847 | AS27: 0.5499999523 | AT27: 0.5499999523 | AU27: 0.5499999523 | AV27: 0 | AW27: 0 | AX27: 0 | AY27: 0 | AZ27: 0 | BA27: 0 | BB27: 0 | BC27: 0 | BD27: 0 | BE27: 0 | BF27: 0 | BG27: 0 | BH27: 0 | BI27: 0 | BJ27: 0 | BK27: 0 | BL27: 0 | BM27: 0 | BN27: 0 | BO27: 5.349762091 | BP27: 5.349762091 | BQ27: 5.349762091 | BR27: 5.349762091 | BS27: 5.349762091 | BT27: 5.349762091 | BU27: 5.349762091 | BV27: 0.6672038541 | BW27: 0.6672038541 | BX27: 0.6672038541 | BY27: 0.6672038541 | BZ27: 0.6672038541 | CA27: 0.6672038541 | CB27: 5.349762091 | CC27: 5.349762091 | CD27: 5.349762091 | CE27: 0.6672038541 | CF27: 0.6672038541 | CG27: 0.6672038541 | CH27: 0.1506464183 | CI27: 0 | CJ27: 0 | CK27: 0 | CL27: 0.1827488721 | CM27: 0 | CN27: 0 | CO27: 0 | CP27: 0.8243356943 | CQ27: 319585.8438 | CR27: 1 | CS27: 0 | CT27: 0 | CU27: 0 | CV27: 0 | CW27: 0 | CX27: 0 | CY27: 0 | CZ27: 0.6672038541 | DA27: =1-ISBLANK(Data_by_donor_recipient_year[DAC member]) -> 1 | DB27: =IF(Data_by_donor_recipient_year[[#This Row],[Multilateral recipient?]],Mult_choice/100,1)*(Data_by_donor_recipient_year[[#This Row],[Net ODA]]+(CC_choice/100-100%)*Data_by_donor_recipient_year[[#This Row],[Climate mitigation grants]])/Data_by_donor_recipient_year[GNI] -> 1.379910886e-05
A28: 2006 | B28: 236 | C28: Benin | D28: 1 | E28: Austria | F28: 0.01999999955 | G28: 0.01999999955 | H28: 1965 | I28: 0 | J28: 0 | K28: 0 | L28: 0 | M28: 0 | N28: 0 | O28: 0 | P28: 0 | Q28: 0 | R28: 0 | S28: 0 | T28: 0 | U28: 0 | V28: 0 | W28: 0 | X28: 0 | Y28: 0 | Z28: 0 | AA28: 0 | AB28: 0 | AC28: 0 | AD28: 0.01999999955 | AE28: 0.01999999955 | AF28: 0.01999999955 | AG28: 0.01999999955 | AH28: 0.01999999955 | AI28: 0.01999999955 | AJ28: 0.01999999955 | AK28: 0.01999999955 | AL28: 0.01999999955 | AM28: 0.01999999955 | AN28: 0.01999999955 | AO28: 0.01999999955 | AP28: 0.01999999955 | AQ28: 0.01999999955 | AR28: 0.01999999955 | AS28: 0.01999999955 | AT28: 0.01999999955 | AU28: 0.01999999955 | AV28: 0 | AW28: 0 | AX28: 0 | AY28: 0 | AZ28: 0 | BA28: 0 | BB28: 0 | BC28: 0 | BD28: 0 | BE28: 0 | BF28: 0 | BG28: 0 | BH28: 0 | BI28: 0 | BJ28: 0 | BK28: 0 | BL28: 0 | BM28: 0 | BN28: 0 | BO28: 0.02426195989 | BP28: 0.02426195989 | BQ28: 0.02426195989 | BR28: 0.02426195989 | BS28: 0.02426195989 | BT28: 0.02426195989 | BU28: 0.02426195989 | BV28: 0.02426195989 | BW28: 0.02426195989 | BX28: 0.02426195989 | BY28: 0.02426195989 | BZ28: 0.02426195989 | CA28: 0.02426195989 | CB28: 0.02426195989 | CC28: 0.02426195989 | CD28: 0.02426195989 | CE28: 0.02426195989 | CF28: 0.02426195989 | CG28: 0.02426195989 | CH28: 0 | CI28: 0 | CJ28: 0 | CK28: 0 | CL28: 0 | CM28: 0 | CN28: 0 | CO28: 0 | CP28: 0.8243356943 | CQ28: 319585.8438 | CR28: 1 | CS28: 0 | CT28: 0 | CU28: 0 | CV28: 0 | CW28: 0 | CX28: 0 | CY28: 0 | CZ28: 0.02426195989 | DA28: =1-ISBLANK(Data_by_donor_recipient_year[DAC member]) -> 1 | DB28: =IF(Data_by_donor_recipient_year[[#This Row],[Multilateral recipient?]],Mult_choice/100,1)*(Data_by_donor_recipient_year[[#This Row],[Net ODA]]+(CC_choice/100-100%)*Data_by_donor_recipient_year[[#This Row],[Climate mitigation grants]])/Data_by_donor_recipient_year[GNI] -> 6.258099332e-08
A29: 2006 | B29: 238 | C29: Ethiopia | D29: 1 | E29: Austria | F29: 17.59000015 | G29: 8.880000114 | H29: 1965 | I29: 0 | J29: 0 | K29: 0 | L29: 0 | M29: 0 | N29: 0 | O29: 0 | P29: 0 | Q29: 0 | R29: 0 | S29: 0 | T29: 0 | U29: 0 | V29: 0 | W29: 0 | X29: 0 | Y29: 0 | Z29: 0 | AA29: 0 | AB29: 0 | AC29: 0 | AD29: 17.59000015 | AE29: 17.59000015 | AF29: 17.59000015 | AG29: 17.59000015 | AH29: 17.59000015 | AI29: 17.59000015 | AJ29: 8.880000114 | AK29: 8.880000114 | AL29: 8.880000114 | AM29: 8.880000114 | AN29: 8.880000114 | AO29: 8.880000114 | AP29: 17.59000015 | AQ29: 17.59000015 | AR29: 17.59000015 | AS29: 8.880000114 | AT29: 8.880000114 | AU29: 8.880000114 | AV29: 0 | AW29: 0 | AX29: 0 | AY29: 0 | AZ29: 0 | BA29: 0 | BB29: 0 | BC29: 0 | BD29: 0 | BE29: 0 | BF29: 0 | BG29: 0 | BH29: 0 | BI29: 0 | BJ29: 0 | BK29: 0 | BL29: 0 | BM29: 0 | BN29: 0 | BO29: 21.33839439 | BP29: 21.33839439 | BQ29: 21.33839439 | BR29: 21.33839439 | BS29: 21.33839439 | BT29: 21.33839439 | BU29: 21.33839439 | BV29: 10.77231057 | BW29: 10.77231057 | BX29: 10.77231057 | BY29: 10.77231057 | BZ29: 10.77231057 | CA29: 10.77231057 | CB29: 21.33839439 | CC29: 21.33839439 | CD29: 21.33839439 | CE29: 10.77231057 | CF29: 10.77231057 | CG29: 10.77231057 | CH29: 0.3715953231 | CI29: 0 | CJ29: 0 | CK29: 0 | CL29: 0.4507815513 | CM29: 0 | CN29: 0 | CO29: 0 | CP29: 0.8243356943 | CQ29: 319585.8438 | CR29: 1 | CS29: 0.04501066729 | CT29: 0.05460235145 | CU29: 0 | CV29: 0 | CW29: 0 | CX29: 0 | CY29: 0 | CZ29: 10.77231057 | DA29: =1-ISBLANK(Data_by_donor_recipient_year[DAC member]) -> 1 | DB29: =IF(Data_by_donor_recipient_year[[#This Row],[Multilateral recipient?]],Mult_choice/100,1)*(Data_by_donor_recipient_year[[#This Row],[Net ODA]]+(CC_choice/100-100%)*Data_by_donor_recipient_year[[#This Row],[Climate mitigation grants]])/Data_by_donor_recipient_year[GNI] -> 5.503998533e-05
A30: 2006 | B30: 240 | C30: Gambia | D30: 1 | E30: Austria | F30: -0.6700000167 | G30: -0.6942045546 | H30: 1965 | I30: 0 | J30: 0.6800000072 | K30: 0.7042045543 | L30: 0 | M30: 0 | N30: 0 | O30: 0 | P30: 0 | Q30: 0 | R30: 0.6800000072 | S30: 0.6800000072 | T30: 0.6800000072 | U30: 0.4939448782 | V30: 0.3293370125 | W30: 0.4939448782 | X30: 0.7042045543 | Y30: 0.7042045543 | Z30: 0.7042045543 | AA30: 0.5115268076 | AB30: 0.3410597378 | AC30: 0.5115268076 | AD30: -0.6700000167 | AE30: -0.6700000167 | AF30: -0.6700000167 | AG30: -0.4839448878 | AH30: -0.3193370221 | AI30: -0.4839448878 | AJ30: -0.6942045546 | AK30: -0.6942045546 | AL30: -0.6942045546 | AM30: -0.5015268078 | AN30: -0.331059738 | AO30: -0.5015268078 | AP30: 0.009999990463 | AQ30: 0.009999990463 | AR30: 0.009999990463 | AS30: 0.009999999776 | AT30: 0.009999999776 | AU30: 0.009999999776 | AV30: 0 | AW30: 0 | AX30: 0 | AY30: 0 | AZ30: 0 | BA30: 0 | BB30: 0 | BC30: 0.8249066634 | BD30: 0.8249066634 | BE30: 0.8249066634 | BF30: 0.5992035546 | BG30: 0.3995180784 | BH30: 0.5992035546 | BI30: 0.8542691518 | BJ30: 0.8542691518 | BK30: 0.8542691518 | BL30: 0.6205321584 | BM30: 0.4137388932 | BN30: 0.6205321584 | BO30: -0.8127756948 | BP30: -0.8127756948 | BQ30: -0.8127756948 | BR30: -0.8127756948 | BS30: -0.587072586 | BT30: -0.3873871098 | BU30: -0.587072586 | BV30: -0.8421381718 | BW30: -0.8421381718 | BX30: -0.8421381718 | BY30: -0.6084011784 | BZ30: -0.4016079133 | CA30: -0.6084011784 | CB30: 0.01213096865 | CC30: 0.01213096865 | CD30: 0.01213096865 | CE30: 0.01213097995 | CF30: 0.01213097995 | CG30: 0.01213097995 | CH30: 0 | CI30: 0 | CJ30: 0 | CK30: 0 | CL30: 0 | CM30: 0 | CN30: 0 | CO30: 0 | CP30: 0.8243356943 | CQ30: 319585.8438 | CR30: 1 | CS30: 0 | CT30: 0 | CU30: 0 | CV30: 0 | CW30: 0 | CX30: 0.8249066634 | CY30: 0.8542691518 | CZ30: -0.8421381718 | DA30: =1-ISBLANK(Data_by_donor_recipient_year[DAC member]) -> 1 | DB30: =IF(Data_by_donor_recipient_year[[#This Row],[Multilateral recipient?]],Mult_choice/100,1)*(Data_by_donor_recipient_year[[#This Row],[Net ODA]]+(CC_choice/100-100%)*Data_by_donor_recipient_year[[#This Row],[Climate mitigation grants]])/Data_by_donor_recipient_year[GNI] -> -2.096463375e-06
A31: 2006 | B31: 241 | C31: Ghana | D31: 1 | E31: Austria | F31: 0.09000000358 | G31: 0.09000000358 | H31: 1965 | I31: 0 | J31: 0 | K31: 0 | L31: 0 | M31: 0 | N31: 0 | O31: 0 | P31: 0 | Q31: 0 | R31: 0 | S31: 0 | T31: 0 | U31: 0 | V31: 0 | W31: 0 | X31: 0 | Y31: 0 | Z31: 0 | AA31: 0 | AB31: 0 | AC31: 0 | AD31: 0.09000000358 | AE31: 0.09000000358 | AF31: 0.09000000358 | AG31: 0.09000000358 | AH31: 0.09000000358 | AI31: 0.09000000358 | AJ31: 0.09000000358 | AK31: 0.09000000358 | AL31: 0.09000000358 | AM31: 0.09000000358 | AN31: 0.09000000358 | AO31: 0.09000000358 | AP31: 0.09000000358 | AQ31: 0.09000000358 | AR31: 0.09000000358 | AS31: 0.09000000358 | AT31: 0.09000000358 | AU31: 0.09000000358 | AV31: 0 | AW31: 0 | AX31: 0 | AY31: 0 | AZ31: 0 | BA31: 0 | BB31: 0 | BC31: 0 | BD31: 0 | BE31: 0 | BF31: 0 | BG31: 0 | BH31: 0 | BI31: 0 | BJ31: 0 | BK31: 0 | BL31: 0 | BM31: 0 | BN31: 0 | BO31: 0.1091788263 | BP31: 0.1091788263 | BQ31: 0.1091788263 | BR31: 0.1091788263 | BS31: 0.1091788263 | BT31: 0.1091788263 | BU31: 0.1091788263 | BV31: 0.1091788263 | BW31: 0.1091788263 | BX31: 0.1091788263 | BY31: 0.1091788263 | BZ31: 0.1091788263 | CA31: 0.1091788263 | CB31: 0.1091788263 | CC31: 0.1091788263 | CD31: 0.1091788263 | CE31: 0.1091788263 | CF31: 0.1091788263 | CG31: 0.1091788263 | CH31: 0.05753734335 | CI31: 0 | CJ31: 0 | CK31: 0 | CL31: 0.0697984374 | CM31: 0 | CN31: 0 | CO31: 0 | CP31: 0.8243356943 | CQ31: 319585.8438 | CR31: 1 | CS31: 0 | CT31: 0 | CU31: 0 | CV31: 0 | CW31: 0 | CX31: 0 | CY31: 0 | CZ31: 0.1091788263 | DA31: =1-ISBLANK(Data_by_donor_recipient_year[DAC member]) -> 1 | DB31: =IF(Data_by_donor_recipient_year[[#This Row],[Multilateral recipient?]],Mult_choice/100,1)*(Data_by_donor_recipient_year[[#This Row],[Net ODA]]+(CC_choice/100-100%)*Data_by_donor_recipient_year[[#This Row],[Climate mitigation grants]])/Data_by_donor_recipient_year[GNI] -> 2.816144874e-07
A32: 2006 | B32: 243 | C32: Guinea | D32: 1 | E32: Austria | F32: 0.5 | G32: 0.05000001192 | H32: 1965 | I32: 0 | J32: 0 | K32: 0 | L32: 0 | M32: 0 | N32: 0 | O32: 0 | P32: 0 | Q32: 0 | R32: 0 | S32: 0 | T32: 0 | U32: 0 | V32: 0 | W32: 0 | X32: 0 | Y32: 0 | Z32: 0 | AA32: 0 | AB32: 0 | AC32: 0 | AD32: 0.5 | AE32: 0.5 | AF32: 0.5 | AG32: 0.5 | AH32: 0.5 | AI32: 0.5 | AJ32: 0.05000001192 | AK32: 0.05000001192 | AL32: 0.05000001192 | AM32: 0.05000001192 | AN32: 0.05000001192 | AO32: 0.05000001192 | AP32: 0.5 | AQ32: 0.5 | AR32: 0.5 | AS32: 0.05000001192 | AT32: 0.05000001192 | AU32: 0.05000001192 | AV32: 0 | AW32: 0 | AX32: 0 | AY32: 0 | AZ32: 0 | BA32: 0 | BB32: 0 | BC32: 0 | BD32: 0 | BE32: 0 | BF32: 0 | BG32: 0 | BH32: 0 | BI32: 0 | BJ32: 0 | BK32: 0 | BL32: 0 | BM32: 0 | BN32: 0 | BO32: 0.6065490109 | BP32: 0.6065490109 | BQ32: 0.6065490109 | BR32: 0.6065490109 | BS32: 0.6065490109 | BT32: 0.6065490109 | BU32: 0.6065490109 | BV32: 0.06065491555 | BW32: 0.06065491555 | BX32: 0.06065491555 | BY32: 0.06065491555 | BZ32: 0.06065491555 | CA32: 0.06065491555 | CB32: 0.6065490109 | CC32: 0.6065490109 | CD32: 0.6065490109 | CE32: 0.06065491555 | CF32: 0.06065491555 | CG32: 0.06065491555 | CH32: 0 | CI32: 0 | CJ32: 0 | CK32: 0 | CL32: 0 | CM32: 0 | CN32: 0 | CO32: 0 | CP32: 0.8243356943 | CQ32: 319585.8438 | CR32: 1 | CS32: 0 | CT32: 0 | CU32: 0 | CV32: 0 | CW32: 0 | CX32: 0 | CY32: 0 | CZ32: 0.06065491555 | DA32: =1-ISBLANK(Data_by_donor_recipient_year[DAC member]) -> 1 | DB32: =IF(Data_by_donor_recipient_year[[#This Row],[Multilateral recipient?]],Mult_choice/100,1)*(Data_by_donor_recipient_year[[#This Row],[Net ODA]]+(CC_choice/100-100%)*Data_by_donor_recipient_year[[#This Row],[Climate mitigation grants]])/Data_by_donor_recipient_year[GNI] -> 1.564524868e-06
A33: 2006 | B33: 244 | C33: Guinea-Bissau | D33: 1 | E33: Austria | F33: 0.01999999955 | G33: 0.01999999955 | H33: 1965 | I33: 0 | J33: 0 | K33: 0 | L33: 0 | M33: 0 | N33: 0 | O33: 0 | P33: 0 | Q33: 0 | R33: 0 | S33: 0 | T33: 0 | U33: 0 | V33: 0 | W33: 0 | X33: 0 | Y33: 0 | Z33: 0 | AA33: 0 | AB33: 0 | AC33: 0 | AD33: 0.01999999955 | AE33: 0.01999999955 | AF33: 0.01999999955 | AG33: 0.01999999955 | AH33: 0.01999999955 | AI33: 0.01999999955 | AJ33: 0.01999999955 | AK33: 0.01999999955 | AL33: 0.01999999955 | AM33: 0.01999999955 | AN33: 0.01999999955 | AO33: 0.01999999955 | AP33: 0.01999999955 | AQ33: 0.01999999955 | AR33: 0.01999999955 | AS33: 0.01999999955 | AT33: 0.01999999955 | AU33: 0.01999999955 | AV33: 0 | AW33: 0 | AX33: 0 | AY33: 0 | AZ33: 0 | BA33: 0 | BB33: 0 | BC33: 0 | BD33: 0 | BE33: 0 | BF33: 0 | BG33: 0 | BH33: 0 | BI33: 0 | BJ33: 0 | BK33: 0 | BL33: 0 | BM33: 0 | BN33: 0 | BO33: 0.02426195989 | BP33: 0.02426195989 | BQ33: 0.02426195989 | BR33: 0.02426195989 | BS33: 0.02426195989 | BT33: 0.02426195989 | BU33: 0.02426195989 | BV33: 0.02426195989 | BW33: 0.02426195989 | BX33: 0.02426195989 | BY33: 0.02426195989 | BZ33: 0.02426195989 | CA33: 0.02426195989 | CB33: 0.02426195989 | CC33: 0.02426195989 | CD33: 0.02426195989 | CE33: 0.02426195989 | CF33: 0.02426195989 | CG33: 0.02426195989 | CH33: 0 | CI33: 0 | CJ33: 0 | CK33: 0 | CL33: 0 | CM33: 0 | CN33: 0 | CO33: 0 | CP33: 0.8243356943 | CQ33: 319585.8438 | CR33: 1 | CS33: 0 | CT33: 0 | CU33: 0 | CV33: 0 | CW33: 0 | CX33: 0 | CY33: 0 | CZ33: 0.02426195989 | DA33: =1-ISBLANK(Data_by_donor_recipient_year[DAC member]) -> 1 | DB33: =IF(Data_by_donor_recipient_year[[#This Row],[Multilateral recipient?]],Mult_choice/100,1)*(Data_by_donor_recipient_year[[#This Row],[Net ODA]]+(CC_choice/100-100%)*Data_by_donor_recipient_year[[#This Row],[Climate mitigation grants]])/Data_by_donor_recipient_year[GNI] -> 6.258099332e-08
A34: 2006 | B34: 247 | C34: Cote d'Ivoire | D34: 1 | E34: Austria | F34: 3.609999895 | G34: 0.04999995232 | H34: 1965 | I34: 0 | J34: 0 | K34: 0 | L34: 0 | M34: 0 | N34: 0 | O34: 0 | P34: 0 | Q34: 0 | R34: 0 | S34: 0 | T34: 0 | U34: 0 | V34: 0 | W34: 0 | X34: 0 | Y34: 0 | Z34: 0 | AA34: 0 | AB34: 0 | AC34: 0 | AD34: 3.609999895 | AE34: 3.609999895 | AF34: 3.609999895 | AG34: 3.609999895 | AH34: 3.609999895 | AI34: 3.609999895 | AJ34: 0.04999995232 | AK34: 0.04999995232 | AL34: 0.04999995232 | AM34: 0.04999995232 | AN34: 0.04999995232 | AO34: 0.04999995232 | AP34: 3.609999895 | AQ34: 3.609999895 | AR34: 3.609999895 | AS34: 0.04999995232 | AT34: 0.04999995232 | AU34: 0.04999995232 | AV34: 0 | AW34: 0 | AX34: 0 | AY34: 0 | AZ34: 0 | BA34: 0 | BB34: 0 | BC34: 0 | BD34: 0 | BE34: 0 | BF34: 0 | BG34: 0 | BH34: 0 | BI34: 0 | BJ34: 0 | BK34: 0 | BL34: 0 | BM34: 0 | BN34: 0 | BO34: 4.379283731 | BP34: 4.379283731 | BQ34: 4.379283731 | BR34: 4.379283731 | BS34: 4.379283731 | BT34: 4.379283731 | BU34: 4.379283731 | BV34: 0.06065484324 | BW34: 0.06065484324 | BX34: 0.06065484324 | BY34: 0.06065484324 | BZ34: 0.06065484324 | CA34: 0.06065484324 | CB34: 4.379283731 | CC34: 4.379283731 | CD34: 4.379283731 | CE34: 0.06065484324 | CF34: 0.06065484324 | CG34: 0.06065484324 | CH34: 0.04109451547 | CI34: 0 | CJ34: 0 | CK34: 0 | CL34: 0.04985167542 | CM34: 0 | CN34: 0 | CO34: 0 | CP34: 0.8243356943 | CQ34: 319585.8438 | CR34: 1 | CS34: 0 | CT34: 0 | CU34: 0 | CV34: 0 | CW34: 0 | CX34: 0 | CY34: 0 | CZ34: 0.06065484324 | DA34: =1-ISBLANK(Data_by_donor_recipient_year[DAC member]) -> 1 | DB34: =IF(Data_by_donor_recipient_year[[#This Row],[Multilateral recipient?]],Mult_choice/100,1)*(Data_by_donor_recipient_year[[#This Row],[Net ODA]]+(CC_choice/100-100%)*Data_by_donor_recipient_year[[#This Row],[Climate mitigation grants]])/Data_by_donor_recipient_year[GNI] -> 1.129586922e-05
A35: 2006 | B35: 248 | C35: Kenya | D35: 1 | E35: Austria | F35: 2.74000001 | G35: 2.74000001 | H35: 1965 | I35: 0 | J35: 0 | K35: 0 | L35: 0 | M35: 0 | N35: 0 | O35: 0 | P35: 0 | Q35: 0 | R35: 0 | S35: 0 | T35: 0 | U35: 0 | V35: 0 | W35: 0 | X35: 0 | Y35: 0 | Z35: 0 | AA35: 0 | AB35: 0 | AC35: 0 | AD35: 2.74000001 | AE35: 2.74000001 | AF35: 2.74000001 | AG35: 2.74000001 | AH35: 2.74000001 | AI35: 2.74000001 | AJ35: 2.74000001 | AK35: 2.74000001 | AL35: 2.74000001 | AM35: 2.74000001 | AN35: 2.74000001 | AO35: 2.74000001 | AP35: 2.74000001 | AQ35: 2.74000001 | AR35: 2.74000001 | AS35: 2.74000001 | AT35: 2.74000001 | AU35: 2.74000001 | AV35: 0 | AW35: 0 | AX35: 0 | AY35: 0 | AZ35: 0 | BA35: 0 | BB35: 0 | BC35: 0 | BD35: 0 | BE35: 0 | BF35: 0 | BG35: 0 | BH35: 0 | BI35: 0 | BJ35: 0 | BK35: 0 | BL35: 0 | BM35: 0 | BN35: 0 | BO35: 3.323888591 | BP35: 3.323888591 | BQ35: 3.323888591 | BR35: 3.323888591 | BS35: 3.323888591 | BT35: 3.323888591 | BU35: 3.323888591 | BV35: 3.323888591 | BW35: 3.323888591 | BX35: 3.323888591 | BY35: 3.323888591 | BZ35: 3.323888591 | CA35: 3.323888591 | CB35: 3.323888591 | CC35: 3.323888591 | CD35: 3.323888591 | CE35: 3.323888591 | CF35: 3.323888591 | CG35: 3.323888591 | CH35: 0.1232835427 | CI35: 0 | CJ35: 0 | CK35: 0 | CL35: 0.1495550218 | CM35: 0 | CN35: 0 | CO35: 0 | CP35: 0.8243356943 | CQ35: 319585.8438 | CR35: 1 | CS35: 0 | CT35: 0 | CU35: 0 | CV35: 0 | CW35: 0 | CX35: 0 | CY35: 0 | CZ35: 3.323888591 | DA35: =1-ISBLANK(Data_by_donor_recipient_year[DAC member]) -> 1 | DB35: =IF(Data_by_donor_recipient_year[[#This Row],[Multilateral recipient?]],Mult_choice/100,1)*(Data_by_donor_recipient_year[[#This Row],[Net ODA]]+(CC_choice/100-100%)*Data_by_donor_recipient_year[[#This Row],[Climate mitigation grants]])/Data_by_donor_recipient_year[GNI] -> 8.573596306e-06
A36: 2006 | B36: 252 | C36: Madagascar | D36: 1 | E36: Austria | F36: 0.09000000358 | G36: 0.09000000358 | H36: 1965 | I36: 0 | J36: 0 | K36: 0 | L36: 0 | M36: 0 | N36: 0 | O36: 0 | P36: 0 | Q36: 0 | R36: 0 | S36: 0 | T36: 0 | U36: 0 | V36: 0 | W36: 0 | X36: 0 | Y36: 0 | Z36: 0 | AA36: 0 | AB36: 0 | AC36: 0 | AD36: 0.09000000358 | AE36: 0.09000000358 | AF36: 0.09000000358 | AG36: 0.09000000358 | AH36: 0.09000000358 | AI36: 0.09000000358 | AJ36: 0.09000000358 | AK36: 0.09000000358 | AL36: 0.09000000358 | AM36: 0.09000000358 | AN36: 0.09000000358 | AO36: 0.09000000358 | AP36: 0.09000000358 | AQ36: 0.09000000358 | AR36: 0.09000000358 | AS36: 0.09000000358 | AT36: 0.09000000358 | AU36: 0.09000000358 | AV36: 0 | AW36: 0 | AX36: 0 | AY36: 0 | AZ36: 0 | BA36: 0 | BB36: 0 | BC36: 0 | BD36: 0 | BE36: 0 | BF36: 0 | BG36: 0 | BH36: 0 | BI36: 0 | BJ36: 0 | BK36: 0 | BL36: 0 | BM36: 0 | BN36: 0 | BO36: 0.1091788263 | BP36: 0.1091788263 | BQ36: 0.1091788263 | BR36: 0.1091788263 | BS36: 0.1091788263 | BT36: 0.1091788263 | BU36: 0.1091788263 | BV36: 0.1091788263 | BW36: 0.1091788263 | BX36: 0.1091788263 | BY36: 0.1091788263 | BZ36: 0.1091788263 | CA36: 0.1091788263 | CB36: 0.1091788263 | CC36: 0.1091788263 | CD36: 0.1091788263 | CE36: 0.1091788263 | CF36: 0.1091788263 | CG36: 0.1091788263 | CH36: 0.04017823562 | CI36: 0 | CJ36: 0 | CK36: 0 | CL36: 0.04874013815 | CM36: 0 | CN36: 0 | CO36: 0 | CP36: 0.8243356943 | CQ36: 319585.8438 | CR36: 1 | CS36: 0 | CT36: 0 | CU36: 0 | CV36: 0 | CW36: 0 | CX36: 0 | CY36: 0 | CZ36: 0.1091788263 | DA36: =1-ISBLANK(Data_by_donor_recipient_year[DAC member]) -> 1 | DB36: =IF(Data_by_donor_recipient_year[[#This Row],[Multilateral recipient?]],Mult_choice/100,1)*(Data_by_donor_recipient_year[[#This Row],[Net ODA]]+(CC_choice/100-100%)*Data_by_donor_recipient_year[[#This Row],[Climate mitigation grants]])/Data_by_donor_recipient_year[GNI] -> 2.816144874e-07
A37: 2006 | B37: 253 | C37: Malawi | D37: 1 | E37: Austria | F37: 2.730000019 | G37: -1.616749848 | H37: 1965 | I37: 0 | J37: 1.25999999 | K37: 1.916750039 | L37: 0 | M37: 0 | N37: 0 | O37: 0 | P37: 0 | Q37: 0 | R37: 1.25999999 | S37: 1.25999999 | T37: 1.25999999 | U37: 0.9152507872 | V37: 0.6102421005 | W37: 0.9152507872 | X37: 1.916750039 | Y37: 1.916750039 | Z37: 1.916750039 | AA37: 1.392307139 | AB37: 0.9283187134 | AC37: 1.392307139 | AD37: 2.730000019 | AE37: 2.730000019 | AF37: 2.730000019 | AG37: 3.074749222 | AH37: 3.379757909 | AI37: 3.074749222 | AJ37: -1.616749848 | AK37: -1.616749848 | AL37: -1.616749848 | AM37: -1.092306949 | AN37: -0.6283185226 | AO37: -1.092306949 | AP37: 3.99000001 | AQ37: 3.99000001 | AR37: 3.99000001 | AS37: 0.3000001907 | AT37: 0.3000001907 | AU37: 0.3000001907 | AV37: 0 | AW37: 0 | AX37: 0 | AY37: 0 | AZ37: 0 | BA37: 0 | BB37: 0 | BC37: 1.528503496 | BD37: 1.528503496 | BE37: 1.528503496 | BF37: 1.110288919 | BG37: 0.7402834848 | BH37: 1.110288919 | BI37: 2.325205681 | BJ37: 2.325205681 | BK37: 2.325205681 | BL37: 1.689005036 | BM37: 1.126141595 | BN37: 1.689005036 | BO37: 3.311757622 | BP37: 3.311757622 | BQ37: 3.311757622 | BR37: 3.311757622 | BS37: 3.729972199 | BT37: 4.099977633 | BU37: 3.729972199 | BV37: -1.961276043 | BW37: -1.961276043 | BX37: -1.961276043 | BY37: -1.325075398 | BZ37: -0.7622119568 | CA37: -1.325075398 | CB37: 4.840261118 | CC37: 4.840261118 | CD37: 4.840261118 | CE37: 0.3639296379 | CF37: 0.3639296379 | CG37: 0.3639296379 | CH37: 0 | CI37: 0 | CJ37: 0 | CK37: 0 | CL37: 0 | CM37: 0 | CN37: 0 | CO37: 0 | CP37: 0.8243356943 | CQ37: 319585.8438 | CR37: 1 | CS37: 0 | CT37: 0 | CU37: 0 | CV37: 0 | CW37: 0 | CX37: 1.528503496 | CY37: 2.325205681 | CZ37: -1.961276043 | DA37: =1-ISBLANK(Data_by_donor_recipient_year[DAC member]) -> 1 | DB37: =IF(Data_by_donor_recipient_year[[#This Row],[Multilateral recipient?]],Mult_choice/100,1)*(Data_by_donor_recipient_year[[#This Row],[Net ODA]]+(CC_choice/100-100%)*Data_by_donor_recipient_year[[#This Row],[Climate mitigation grants]])/Data_by_donor_recipient_year[GNI] -> 8.542305839e-06
A38: 2006 | B38: 255 | C38: Mali | D38: 1 | E38: Austria | F38: 0.009999999776 | G38: 0.009999999776 | H38: 1965 | I38: 0 | J38: 0 | K38: 0 | L38: 0 | M38: 0 | N38: 0 | O38: 0 | P38: 0 | Q38: 0 | R38: 0 | S38: 0 | T38: 0 | U38: 0 | V38: 0 | W38: 0 | X38: 0 | Y38: 0 | Z38: 0 | AA38: 0 | AB38: 0 | AC38: 0 | AD38: 0.009999999776 | AE38: 0.009999999776 | AF38: 0.009999999776 | AG38: 0.009999999776 | AH38: 0.009999999776 | AI38: 0.009999999776 | AJ38: 0.009999999776 | AK38: 0.009999999776 | AL38: 0.009999999776 | AM38: 0.009999999776 | AN38: 0.009999999776 | AO38: 0.009999999776 | AP38: 0.009999999776 | AQ38: 0.009999999776 | AR38: 0.009999999776 | AS38: 0.009999999776 | AT38: 0.009999999776 | AU38: 0.009999999776 | AV38: 0 | AW38: 0 | AX38: 0 | AY38: 0 | AZ38: 0 | BA38: 0 | BB38: 0 | BC38: 0 | BD38: 0 | BE38: 0 | BF38: 0 | BG38: 0 | BH38: 0 | BI38: 0 | BJ38: 0 | BK38: 0 | BL38: 0 | BM38: 0 | BN38: 0 | BO38: 0.01213097995 | BP38: 0.01213097995 | BQ38: 0.01213097995 | BR38: 0.01213097995 | BS38: 0.01213097995 | BT38: 0.01213097995 | BU38: 0.01213097995 | BV38: 0.01213097995 | BW38: 0.01213097995 | BX38: 0.01213097995 | BY38: 0.01213097995 | BZ38: 0.01213097995 | CA38: 0.01213097995 | CB38: 0.01213097995 | CC38: 0.01213097995 | CD38: 0.01213097995 | CE38: 0.01213097995 | CF38: 0.01213097995 | CG38: 0.01213097995 | CH38: 0 | CI38: 0 | CJ38: 0 | CK38: 0 | CL38: 0 | CM38: 0 | CN38: 0 | CO38: 0 | CP38: 0.8243356943 | CQ38: 319585.8438 | CR38: 1 | CS38: 0 | CT38: 0 | CU38: 0 | CV38: 0 | CW38: 0 | CX38: 0 | CY38: 0 | CZ38: 0.01213097995 | DA38: =1-ISBLANK(Data_by_donor_recipient_year[DAC member]) -> 1 | DB38: =IF(Data_by_donor_recipient_year[[#This Row],[Multilateral recipient?]],Mult_choice/100,1)*(Data_by_donor_recipient_year[[#This Row],[Net ODA]]+(CC_choice/100-100%)*Data_by_donor_recipient_year[[#This Row],[Climate mitigation grants]])/Data_by_donor_recipient_year[GNI] -> 3.129049666e-08
A39: 2006 | B39: 256 | C39: Mauritania | D39: 1 | E39: Austria | F39: 0.009999999776 | G39: 0.009999999776 | H39: 1965 | I39: 0 | J39: 0 | K39: 0 | L39: 0 | M39: 0 | N39: 0 | O39: 0 | P39: 0 | Q39: 0 | R39: 0 | S39: 0 | T39: 0 | U39: 0 | V39: 0 | W39: 0 | X39: 0 | Y39: 0 | Z39: 0 | AA39: 0 | AB39: 0 | AC39: 0 | AD39: 0.009999999776 | AE39: 0.009999999776 | AF39: 0.009999999776 | AG39: 0.009999999776 | AH39: 0.009999999776 | AI39: 0.009999999776 | AJ39: 0.009999999776 | AK39: 0.009999999776 | AL39: 0.009999999776 | AM39: 0.009999999776 | AN39: 0.009999999776 | AO39: 0.009999999776 | AP39: 0.009999999776 | AQ39: 0.009999999776 | AR39: 0.009999999776 | AS39: 0.009999999776 | AT39: 0.009999999776 | AU39: 0.009999999776 | AV39: 0 | AW39: 0 | AX39: 0 | AY39: 0 | AZ39: 0 | BA39: 0 | BB39: 0 | BC39: 0 | BD39: 0 | BE39: 0 | BF39: 0 | BG39: 0 | BH39: 0 | BI39: 0 | BJ39: 0 | BK39: 0 | BL39: 0 | BM39: 0 | BN39: 0 | BO39: 0.01213097995 | BP39: 0.01213097995 | BQ39: 0.01213097995 | BR39: 0.01213097995 | BS39: 0.01213097995 | BT39: 0.01213097995 | BU39: 0.01213097995 | BV39: 0.01213097995 | BW39: 0.01213097995 | BX39: 0.01213097995 | BY39: 0.01213097995 | BZ39: 0.01213097995 | CA39: 0.01213097995 | CB39: 0.01213097995 | CC39: 0.01213097995 | CD39: 0.01213097995 | CE39: 0.01213097995 | CF39: 0.01213097995 | CG39: 0.01213097995 | CH39: 0 | CI39: 0 | CJ39: 0 | CK39: 0 | CL39: 0 | CM39: 0 | CN39: 0 | CO39: 0 | CP39: 0.8243356943 | CQ39: 319585.8438 | CR39: 1 | CS39: 0 | CT39: 0 | CU39: 0 | CV39: 0 | CW39: 0 | CX39: 0 | CY39: 0 | CZ39: 0.01213097995 | DA39: =1-ISBLANK(Data_by_donor_recipient_year[DAC member]) -> 1 | DB39: =IF(Data_by_donor_recipient_year[[#This Row],[Multilateral recipient?]],Mult_choice/100,1)*(Data_by_donor_recipient_year[[#This Row],[Net ODA]]+(CC_choice/100-100%)*Data_by_donor_recipient_year[[#This Row],[Climate mitigation grants]])/Data_by_donor_recipient_year[GNI] -> 3.129049666e-08
A40: 2006 | B40: 257 | C40: Mauritius | D40: 1 | E40: Austria | F40: 0.01999999955 | G40: 0.01999999955 | H40: 1965 | I40: 0 | J40: 0 | K40: 0 | L40: 0 | M40: 0 | N40: 0 | O40: 0 | P40: 0 | Q40: 0 | R40: 0 | S40: 0 | T40: 0 | U40: 0 | V40: 0 | W40: 0 | X40: 0 | Y40: 0 | Z40: 0 | AA40: 0 | AB40: 0 | AC40: 0 | AD40: 0.01999999955 | AE40: 0.01999999955 | AF40: 0.01999999955 | AG40: 0.01999999955 | AH40: 0.01999999955 | AI40: 0.01999999955 | AJ40: 0.01999999955 | AK40: 0.01999999955 | AL40: 0.01999999955 | AM40: 0.01999999955 | AN40: 0.01999999955 | AO40: 0.01999999955 | AP40: 0.01999999955 | AQ40: 0.01999999955 | AR40: 0.01999999955 | AS40: 0.01999999955 | AT40: 0.01999999955 | AU40: 0.01999999955 | AV40: 0 | AW40: 0 | AX40: 0 | AY40: 0 | AZ40: 0 | BA40: 0 | BB40: 0 | BC40: 0 | BD40: 0 | BE40: 0 | BF40: 0 | BG40: 0 | BH40: 0 | BI40: 0 | BJ40: 0 | BK40: 0 | BL40: 0 | BM40: 0 | BN40: 0 | BO40: 0.02426195989 | BP40: 0.02426195989 | BQ40: 0.02426195989 | BR40: 0.02426195989 | BS40: 0.02426195989 | BT40: 0.02426195989 | BU40: 0.02426195989 | BV40: 0.02426195989 | BW40: 0.02426195989 | BX40: 0.02426195989 | BY40: 0.02426195989 | BZ40: 0.02426195989 | CA40: 0.02426195989 | CB40: 0.02426195989 | CC40: 0.02426195989 | CD40: 0.02426195989 | CE40: 0.02426195989 | CF40: 0.02426195989 | CG40: 0.02426195989 | CH40: 0.01644282602 | CI40: 0 | CJ40: 0 | CK40: 0 | CL40: 0.01994675971 | CM40: 0 | CN40: 0 | CO40: 0 | CP40: 0.8243356943 | CQ40: 319585.8438 | CR40: 0 | CS40: 0 | CT40: 0 | CU40: 0 | CV40: 0 | CW40: 0 | CX40: 0 | CY40: 0 | CZ40: 0.02426195989 | DA40: =1-ISBLANK(Data_by_donor_recipient_year[DAC member]) -> 1 | DB40: =IF(Data_by_donor_recipient_year[[#This Row],[Multilateral recipient?]],Mult_choice/100,1)*(Data_by_donor_recipient_year[[#This Row],[Net ODA]]+(CC_choice/100-100%)*Data_by_donor_recipient_year[[#This Row],[Climate mitigation grants]])/Data_by_donor_recipient_year[GNI] -> 6.258099332e-08
A41: 2006 | B41: 259 | C41: Mozambique | D41: 1 | E41: Austria | F41: 6.949999809 | G41: 6.949999809 | H41: 1965 | I41: 0 | J41: 0 | K41: 0 | L41: 0 | M41: 0 | N41: 0 | O41: 0 | P41: 0 | Q41: 0 | R41: 0 | S41: 0 | T41: 0 | U41: 0 | V41: 0 | W41: 0 | X41: 0 | Y41: 0 | Z41: 0 | AA41: 0 | AB41: 0 | AC41: 0 | AD41: 6.949999809 | AE41: 6.949999809 | AF41: 6.949999809 | AG41: 6.949999809 | AH41: 6.949999809 | AI41: 6.949999809 | AJ41: 6.949999809 | AK41: 6.949999809 | AL41: 6.949999809 | AM41: 6.949999809 | AN41: 6.949999809 | AO41: 6.949999809 | AP41: 6.949999809 | AQ41: 6.949999809 | AR41: 6.949999809 | AS41: 6.949999809 | AT41: 6.949999809 | AU41: 6.949999809 | AV41: 0 | AW41: 0 | AX41: 0 | AY41: 0 | AZ41: 0 | BA41: 0 | BB41: 0 | BC41: 0 | BD41: 0 | BE41: 0 | BF41: 0 | BG41: 0 | BH41: 0 | BI41: 0 | BJ41: 0 | BK41: 0 | BL41: 0 | BM41: 0 | BN41: 0 | BO41: 8.43103102 | BP41: 8.43103102 | BQ41: 8.43103102 | BR41: 8.43103102 | BS41: 8.43103102 | BT41: 8.43103102 | BU41: 8.43103102 | BV41: 8.43103102 | BW41: 8.43103102 | BX41: 8.43103102 | BY41: 8.43103102 | BZ41: 8.43103102 | CA41: 8.43103102 | CB41: 8.43103102 | CC41: 8.43103102 | CD41: 8.43103102 | CE41: 8.43103102 | CF41: 8.43103102 | CG41: 8.43103102 | CH41: 0 | CI41: 0 | CJ41: 0 | CK41: 0 | CL41: 0 | CM41: 0 | CN41: 0 | CO41: 0 | CP41: 0.8243356943 | CQ41: 319585.8438 | CR41: 1 | CS41: 0 | CT41: 0 | CU41: 0 | CV41: 0 | CW41: 0 | CX41: 0 | CY41: 0 | CZ41: 8.43103102 | DA41: =1-ISBLANK(Data_by_donor_recipient_year[DAC member]) -> 1 | DB41: =IF(Data_by_donor_recipient_year[[#This Row],[Multilateral recipient?]],Mult_choice/100,1)*(Data_by_donor_recipient_year[[#This Row],[Net ODA]]+(CC_choice/100-100%)*Data_by_donor_recipient_year[[#This Row],[Climate mitigation grants]])/Data_by_donor_recipient_year[GNI] -> 2.174689507e-05
A42: 2006 | B42: 260 | C42: Niger | D42: 1 | E42: Austria | F42: 0.4099999964 | G42: 0.4099999964 | H42: 1965 | I42: 0 | J42: 0 | K42: 0 | L42: 0 | M42: 0 | N42: 0 | O42: 0 | P42: 0 | Q42: 0 | R42: 0 | S42: 0 | T42: 0 | U42: 0 | V42: 0 | W42: 0 | X42: 0 | Y42: 0 | Z42: 0 | AA42: 0 | AB42: 0 | AC42: 0 | AD42: 0.4099999964 | AE42: 0.4099999964 | AF42: 0.4099999964 | AG42: 0.4099999964 | AH42: 0.4099999964 | AI42: 0.4099999964 | AJ42: 0.4099999964 | AK42: 0.4099999964 | AL42: 0.4099999964 | AM42: 0.4099999964 | AN42: 0.4099999964 | AO42: 0.4099999964 | AP42: 0.4099999964 | AQ42: 0.4099999964 | AR42: 0.4099999964 | AS42: 0.4099999964 | AT42: 0.4099999964 | AU42: 0.4099999964 | AV42: 0 | AW42: 0 | AX42: 0 | AY42: 0 | AZ42: 0 | BA42: 0 | BB42: 0 | BC42: 0 | BD42: 0 | BE42: 0 | BF42: 0 | BG42: 0 | BH42: 0 | BI42: 0 | BJ42: 0 | BK42: 0 | BL42: 0 | BM42: 0 | BN42: 0 | BO42: 0.4973701846 | BP42: 0.4973701846 | BQ42: 0.4973701846 | BR42: 0.4973701846 | BS42: 0.4973701846 | BT42: 0.4973701846 | BU42: 0.4973701846 | BV42: 0.4973701846 | BW42: 0.4973701846 | BX42: 0.4973701846 | BY42: 0.4973701846 | BZ42: 0.4973701846 | CA42: 0.4973701846 | CB42: 0.4973701846 | CC42: 0.4973701846 | CD42: 0.4973701846 | CE42: 0.4973701846 | CF42: 0.4973701846 | CG42: 0.4973701846 | CH42: 0.02008284256 | CI42: 0 | CJ42: 0 | CK42: 0 | CL42: 0.02436245658 | CM42: 0 | CN42: 0 | CO42: 0 | CP42: 0.8243356943 | CQ42: 319585.8438 | CR42: 1 | CS42: 0 | CT42: 0 | CU42: 0 | CV42: 0 | CW42: 0 | CX42: 0 | CY42: 0 | CZ42: 0.4973701846 | DA42: =1-ISBLANK(Data_by_donor_recipient_year[DAC member]) -> 1 | DB42: =IF(Data_by_donor_recipient_year[[#This Row],[Multilateral recipient?]],Mult_choice/100,1)*(Data_by_donor_recipient_year[[#This Row],[Net ODA]]+(CC_choice/100-100%)*Data_by_donor_recipient_year[[#This Row],[Climate mitigation grants]])/Data_by_donor_recipient_year[GNI] -> 1.282910381e-06
A43: 2006 | B43: 261 | C43: Nigeria | D43: 1 | E43: Austria | F43: 0.6000000238 | G43: 0.6000000238 | H43: 1965 | I43: 0 | J43: 0 | K43: 0 | L43: 0 | M43: 0 | N43: 0 | O43: 0 | P43: 0 | Q43: 0 | R43: 0 | S43: 0 | T43: 0 | U43: 0 | V43: 0 | W43: 0 | X43: 0 | Y43: 0 | Z43: 0 | AA43: 0 | AB43: 0 | AC43: 0 | AD43: 0.6000000238 | AE43: 0.6000000238 | AF43: 0.6000000238 | AG43: 0.6000000238 | AH43: 0.6000000238 | AI43: 0.6000000238 | AJ43: 0.6000000238 | AK43: 0.6000000238 | AL43: 0.6000000238 | AM43: 0.6000000238 | AN43: 0.6000000238 | AO43: 0.6000000238 | AP43: 0.6000000238 | AQ43: 0.6000000238 | AR43: 0.6000000238 | AS43: 0.6000000238 | AT43: 0.6000000238 | AU43: 0.6000000238 | AV43: 0 | AW43: 0 | AX43: 0 | AY43: 0 | AZ43: 0 | BA43: 0 | BB43: 0 | BC43: 0 | BD43: 0 | BE43: 0 | BF43: 0 | BG43: 0 | BH43: 0 | BI43: 0 | BJ43: 0 | BK43: 0 | BL43: 0 | BM43: 0 | BN43: 0 | BO43: 0.727858842 | BP43: 0.727858842 | BQ43: 0.727858842 | BR43: 0.727858842 | BS43: 0.727858842 | BT43: 0.727858842 | BU43: 0.727858842 | BV43: 0.727858842 | BW43: 0.727858842 | BX43: 0.727858842 | BY43: 0.727858842 | BZ43: 0.727858842 | CA43: 0.727858842 | CB43: 0.727858842 | CC43: 0.727858842 | CD43: 0.727858842 | CE43: 0.727858842 | CF43: 0.727858842 | CG43: 0.727858842 | CH43: 0.4602485299 | CI43: 0 | CJ43: 0.01255177613 | CK43: 0 | CL43: 0.5583265811 | CM43: 0 | CN43: 0.0152265348 | CO43: 0 | CP43: 0.8243356943 | CQ43: 319585.8438 | CR43: 1 | CS43: 0 | CT43: 0 | CU43: 0 | CV43: 0 | CW43: 0 | CX43: 0 | CY43: 0 | CZ43: 0.727858842 | DA43: =1-ISBLANK(Data_by_donor_recipient_year[DAC member]) -> 1 | DB43: =IF(Data_by_donor_recipient_year[[#This Row],[Multilateral recipient?]],Mult_choice/100,1)*(Data_by_donor_recipient_year[[#This Row],[Net ODA]]+(CC_choice/100-100%)*Data_by_donor_recipient_year[[#This Row],[Climate mitigation grants]])/Data_by_donor_recipient_year[GNI] -> 1.877429916e-06
A44: 2006 | B44: 265 | C44: Zimbabwe | D44: 1 | E44: Austria | F44: 1.110000014 | G44: 1.110000014 | H44: 1965 | I44: 0 | J44: 0 | K44: 0 | L44: 0 | M44: 0 | N44: 0 | O44: 0 | P44: 0 | Q44: 0 | R44: 0 | S44: 0 | T44: 0 | U44: 0 | V44: 0 | W44: 0 | X44: 0 | Y44: 0 | Z44: 0 | AA44: 0 | AB44: 0 | AC44: 0 | AD44: 1.110000014 | AE44: 1.110000014 | AF44: 1.110000014 | AG44: 1.110000014 | AH44: 1.110000014 | AI44: 1.110000014 | AJ44: 1.110000014 | AK44: 1.110000014 | AL44: 1.110000014 | AM44: 1.110000014 | AN44: 1.110000014 | AO44: 1.110000014 | AP44: 1.110000014 | AQ44: 1.110000014 | AR44: 1.110000014 | AS44: 1.110000014 | AT44: 1.110000014 | AU44: 1.110000014 | AV44: 0 | AW44: 0 | AX44: 0 | AY44: 0 | AZ44: 0 | BA44: 0 | BB44: 0 | BC44: 0 | BD44: 0 | BE44: 0 | BF44: 0 | BG44: 0 | BH44: 0 | BI44: 0 | BJ44: 0 | BK44: 0 | BL44: 0 | BM44: 0 | BN44: 0 | BO44: 1.346538821 | BP44: 1.346538821 | BQ44: 1.346538821 | BR44: 1.346538821 | BS44: 1.346538821 | BT44: 1.346538821 | BU44: 1.346538821 | BV44: 1.346538821 | BW44: 1.346538821 | BX44: 1.346538821 | BY44: 1.346538821 | BZ44: 1.346538821 | CA44: 1.346538821 | CB44: 1.346538821 | CC44: 1.346538821 | CD44: 1.346538821 | CE44: 1.346538821 | CF44: 1.346538821 | CG44: 1.346538821 | CH44: 0 | CI44: 0 | CJ44: 0 | CK44: 0 | CL44: 0 | CM44: 0 | CN44: 0 | CO44: 0 | CP44: 0.8243356943 | CQ44: 319585.8438 | CR44: 1 | CS44: 0.2432785183 | CT44: 0.2951206893 | CU44: 0 | CV44: 0 | CW44: 0 | CX44: 0 | CY44: 0 | CZ44: 1.346538821 | DA44: =1-ISBLANK(Data_by_donor_recipient_year[DAC member]) -> 1 | DB44: =IF(Data_by_donor_recipient_year[[#This Row],[Multilateral recipient?]],Mult_choice/100,1)*(Data_by_donor_recipient_year[[#This Row],[Net ODA]]+(CC_choice/100-100%)*Data_by_donor_recipient_year[[#This Row],[Climate mitigation grants]])/Data_by_donor_recipient_year[GNI] -> 3.473245252e-06
A45: 2006 | B45: 266 | C45: Rwanda | D45: 1 | E45: Austria | F45: 0.4199999869 | G45: 0.4151590777 | H45: 1965 | I45: 0 | J45: 0 | K45: 0.004840909138 | L45: 0 | M45: 0 | N45: 0 | O45: 0 | P45: 0 | Q45: 0 | R45: 0 | S45: 0 | T45: 0 | U45: 0 | V45: 0 | W45: 0 | X45: 0.004840909138 | Y45: 0.004840909138 | Z45: 0.004840909138 | AA45: 0.003516385661 | AB45: 0.002344544907 | AC45: 0.003516385661 | AD45: 0.4199999869 | AE45: 0.4199999869 | AF45: 0.4199999869 | AG45: 0.4199999869 | AH45: 0.4199999869 | AI45: 0.4199999869 | AJ45: 0.4151590777 | AK45: 0.4151590777 | AL45: 0.4151590777 | AM45: 0.4164836012 | AN45: 0.417655442 | AO45: 0.4164836012 | AP45: 0.4199999869 | AQ45: 0.4199999869 | AR45: 0.4199999869 | AS45: 0.4199999869 | AT45: 0.4199999869 | AU45: 0.4199999869 | AV45: 0 | AW45: 0 | AX45: 0 | AY45: 0 | AZ45: 0 | BA45: 0 | BB45: 0 | BC45: 0 | BD45: 0 | BE45: 0 | BF45: 0 | BG45: 0 | BH45: 0 | BI45: 0.005872497298 | BJ45: 0.005872497298 | BK45: 0.005872497298 | BL45: 0.004265720489 | BM45: 0.002844162788 | BN45: 0.004265720489 | BO45: 0.5095011532 | BP45: 0.5095011532 | BQ45: 0.5095011532 | BR45: 0.5095011532 | BS45: 0.5095011532 | BT45: 0.5095011532 | BU45: 0.5095011532 | BV45: 0.5036286559 | BW45: 0.5036286559 | BX45: 0.5036286559 | BY45: 0.5052354327 | BZ45: 0.5066569904 | CA45: 0.5052354327 | CB45: 0.5095011532 | CC45: 0.5095011532 | CD45: 0.5095011532 | CE45: 0.5095011532 | CF45: 0.5095011532 | CG45: 0.5095011532 | CH45: 0.09038534015 | CI45: 0 | CJ45: 0 | CK45: 0 | CL45: 0.1096462773 | CM45: 0 | CN45: 0 | CO45: 0 | CP45: 0.8243356943 | CQ45: 319585.8438 | CR45: 1 | CS45: 0 | CT45: 0 | CU45: 0 | CV45: 0 | CW45: 0 | CX45: 0 | CY45: 0.005872497298 | CZ45: 0.5036286559 | DA45: =1-ISBLANK(Data_by_donor_recipient_year[DAC member]) -> 1 | DB45: =IF(Data_by_donor_recipient_year[[#This Row],[Multilateral recipient?]],Mult_choice/100,1)*(Data_by_donor_recipient_year[[#This Row],[Net ODA]]+(CC_choice/100-100%)*Data_by_donor_recipient_year[[#This Row],[Climate mitigation grants]])/Data_by_donor_recipient_year[GNI] -> 1.314200848e-06
A46: 2006 | B46: 268 | C46: Sao Tome & Principe | D46: 1 | E46: Austria | F46: 0.009999999776 | G46: 0.009999999776 | H46: 1965 | I46: 0 | J46: 0 | K46: 0 | L46: 0 | M46: 0 | N46: 0 | O46: 0 | P46: 0 | Q46: 0 | R46: 0 | S46: 0 | T46: 0 | U46: 0 | V46: 0 | W46: 0 | X46: 0 | Y46: 0 | Z46: 0 | AA46: 0 | AB46: 0 | AC46: 0 | AD46: 0.009999999776 | AE46: 0.009999999776 | AF46: 0.009999999776 | AG46: 0.009999999776 | AH46: 0.009999999776 | AI46: 0.009999999776 | AJ46: 0.009999999776 | AK46: 0.009999999776 | AL46: 0.009999999776 | AM46: 0.009999999776 | AN46: 0.009999999776 | AO46: 0.009999999776 | AP46: 0.009999999776 | AQ46: 0.009999999776 | AR46: 0.009999999776 | AS46: 0.009999999776 | AT46: 0.009999999776 | AU46: 0.009999999776 | AV46: 0 | AW46: 0 | AX46: 0 | AY46: 0 | AZ46: 0 | BA46: 0 | BB46: 0 | BC46: 0 | BD46: 0 | BE46: 0 | BF46: 0 | BG46: 0 | BH46: 0 | BI46: 0 | BJ46: 0 | BK46: 0 | BL46: 0 | BM46: 0 | BN46: 0 | BO46: 0.01213097995 | BP46: 0.01213097995 | BQ46: 0.01213097995 | BR46: 0.01213097995 | BS46: 0.01213097995 | BT46: 0.01213097995 | BU46: 0.01213097995 | BV46: 0.01213097995 | BW46: 0.01213097995 | BX46: 0.01213097995 | BY46: 0.01213097995 | BZ46: 0.01213097995 | CA46: 0.01213097995 | CB46: 0.01213097995 | CC46: 0.01213097995 | CD46: 0.01213097995 | CE46: 0.01213097995 | CF46: 0.01213097995 | CG46: 0.01213097995 | CH46: 0 | CI46: 0 | CJ46: 0 | CK46: 0 | CL46: 0 | CM46: 0 | CN46: 0 | CO46: 0 | CP46: 0.8243356943 | CQ46: 319585.8438 | CR46: 1 | CS46: 0 | CT46: 0 | CU46: 0 | CV46: 0 | CW46: 0 | CX46: 0 | CY46: 0 | CZ46: 0.01213097995 | DA46: =1-ISBLANK(Data_by_donor_recipient_year[DAC member]) -> 1 | DB46: =IF(Data_by_donor_recipient_year[[#This Row],[Multilateral recipient?]],Mult_choice/100,1)*(Data_by_donor_recipient_year[[#This Row],[Net ODA]]+(CC_choice/100-100%)*Data_by_donor_recipient_year[[#This Row],[Climate mitigation grants]])/Data_by_donor_recipient_year[GNI] -> 3.129049666e-08
A47: 2006 | B47: 269 | C47: Senegal | D47: 1 | E47: Austria | F47: 3.769999981 | G47: 3.769999981 | H47: 1965 | I47: 0 | J47: 0 | K47: 0 | L47: 0 | M47: 0 | N47: 0 | O47: 0 | P47: 0 | Q47: 0 | R47: 0 | S47: 0 | T47: 0 | U47: 0 | V47: 0 | W47: 0 | X47: 0 | Y47: 0 | Z47: 0 | AA47: 0 | AB47: 0 | AC47: 0 | AD47: 3.769999981 | AE47: 3.769999981 | AF47: 3.769999981 | AG47: 3.769999981 | AH47: 3.769999981 | AI47: 3.769999981 | AJ47: 3.769999981 | AK47: 3.769999981 | AL47: 3.769999981 | AM47: 3.769999981 | AN47: 3.769999981 | AO47: 3.769999981 | AP47: 3.769999981 | AQ47: 3.769999981 | AR47: 3.769999981 | AS47: 3.769999981 | AT47: 3.769999981 | AU47: 3.769999981 | AV47: 0 | AW47: 0 | AX47: 0 | AY47: 0 | AZ47: 0 | BA47: 0 | BB47: 0 | BC47: 0 | BD47: 0 | BE47: 0 | BF47: 0 | BG47: 0 | BH47: 0 | BI47: 0 | BJ47: 0 | BK47: 0 | BL47: 0 | BM47: 0 | BN47: 0 | BO47: 4.573379519 | BP47: 4.573379519 | BQ47: 4.573379519 | BR47: 4.573379519 | BS47: 4.573379519 | BT47: 4.573379519 | BU47: 4.573379519 | BV47: 4.573379519 | BW47: 4.573379519 | BX47: 4.573379519 | BY47: 4.573379519 | BZ47: 4.573379519 | CA47: 4.573379519 | CB47: 4.573379519 | CC47: 4.573379519 | CD47: 4.573379519 | CE47: 4.573379519 | CF47: 4.573379519 | CG47: 4.573379519 | CH47: 0.04109451547 | CI47: 0 | CJ47: 0 | CK47: 0 | CL47: 0.04985167542 | CM47: 0 | CN47: 0 | CO47: 0 | CP47: 0.8243356943 | CQ47: 319585.8438 | CR47: 1 | CS47: 0.1380695403 | CT47: 0.1674918862 | CU47: 0 | CV47: 0 | CW47: 0 | CX47: 0 | CY47: 0 | CZ47: 4.573379519 | DA47: =1-ISBLANK(Data_by_donor_recipient_year[DAC member]) -> 1 | DB47: =IF(Data_by_donor_recipient_year[[#This Row],[Multilateral recipient?]],Mult_choice/100,1)*(Data_by_donor_recipient_year[[#This Row],[Net ODA]]+(CC_choice/100-100%)*Data_by_donor_recipient_year[[#This Row],[Climate mitigation grants]])/Data_by_donor_recipient_year[GNI] -> 1.179651744e-05
A48: 2006 | B48: 271 | C48: Eritrea | D48: 1 | E48: Austria | F48: 0.3600000143 | G48: 0.3600000143 | H48: 1965 | I48: 0 | J48: 0 | K48: 0 | L48: 0 | M48: 0 | N48: 0 | O48: 0 | P48: 0 | Q48: 0 | R48: 0 | S48: 0 | T48: 0 | U48: 0 | V48: 0 | W48: 0 | X48: 0 | Y48: 0 | Z48: 0 | AA48: 0 | AB48: 0 | AC48: 0 | AD48: 0.3600000143 | AE48: 0.3600000143 | AF48: 0.3600000143 | AG48: 0.3600000143 | AH48: 0.3600000143 | AI48: 0.3600000143 | AJ48: 0.3600000143 | AK48: 0.3600000143 | AL48: 0.3600000143 | AM48: 0.3600000143 | AN48: 0.3600000143 | AO48: 0.3600000143 | AP48: 0.3600000143 | AQ48: 0.3600000143 | AR48: 0.3600000143 | AS48: 0.3600000143 | AT48: 0.3600000143 | AU48: 0.3600000143 | AV48: 0 | AW48: 0 | AX48: 0 | AY48: 0 | AZ48: 0 | BA48: 0 | BB48: 0 | BC48: 0 | BD48: 0 | BE48: 0 | BF48: 0 | BG48: 0 | BH48: 0 | BI48: 0 | BJ48: 0 | BK48: 0 | BL48: 0 | BM48: 0 | BN48: 0 | BO48: 0.4367153052 | BP48: 0.4367153052 | BQ48: 0.4367153052 | BR48: 0.4367153052 | BS48: 0.4367153052 | BT48: 0.4367153052 | BU48: 0.4367153052 | BV48: 0.4367153052 | BW48: 0.4367153052 | BX48: 0.4367153052 | BY48: 0.4367153052 | BZ48: 0.4367153052 | CA48: 0.4367153052 | CB48: 0.4367153052 | CC48: 0.4367153052 | CD48: 0.4367153052 | CE48: 0.4367153052 | CF48: 0.4367153052 | CG48: 0.4367153052 | CH48: 0 | CI48: 0 | CJ48: 0 | CK48: 0 | CL48: 0 | CM48: 0 | CN48: 0 | CO48: 0 | CP48: 0.8243356943 | CQ48: 319585.8438 | CR48: 1 | CS48: 0 | CT48: 0 | CU48: 0 | CV48: 0 | CW48: 0 | CX48: 0 | CY48: 0 | CZ48: 0.4367153052 | DA48: =1-ISBLANK(Data_by_donor_recipient_year[DAC member]) -> 1 | DB48: =IF(Data_by_donor_recipient_year[[#This Row],[Multilateral recipient?]],Mult_choice/100,1)*(Data_by_donor_recipient_year[[#This Row],[Net ODA]]+(CC_choice/100-100%)*Data_by_donor_recipient_year[[#This Row],[Climate mitigation grants]])/Data_by_donor_recipient_year[GNI] -> 1.12645795e-06
A49: 2006 | B49: 272 | C49: Sierra Leone | D49: 1 | E49: Austria | F49: 0.05999999866 | G49: 0.03999999911 | H49: 1965 | I49: 0 | J49: 0 | K49: 0 | L49: 0 | M49: 0 | N49: 0 | O49: 0 | P49: 0 | Q49: 0 | R49: 0 | S49: 0 | T49: 0 | U49: 0 | V49: 0 | W49: 0 | X49: 0 | Y49: 0 | Z49: 0 | AA49: 0 | AB49: 0 | AC49: 0 | AD49: 0.05999999866 | AE49: 0.05999999866 | AF49: 0.05999999866 | AG49: 0.05999999866 | AH49: 0.05999999866 | AI49: 0.05999999866 | AJ49: 0.03999999911 | AK49: 0.03999999911 | AL49: 0.03999999911 | AM49: 0.03999999911 | AN49: 0.03999999911 | AO49: 0.03999999911 | AP49: 0.05999999866 | AQ49: 0.05999999866 | AR49: 0.05999999866 | AS49: 0.03999999911 | AT49: 0.03999999911 | AU49: 0.03999999911 | AV49: 0 | AW49: 0 | AX49: 0 | AY49: 0 | AZ49: 0 | BA49: 0 | BB49: 0 | BC49: 0 | BD49: 0 | BE49: 0 | BF49: 0 | BG49: 0 | BH49: 0 | BI49: 0 | BJ49: 0 | BK49: 0 | BL49: 0 | BM49: 0 | BN49: 0 | BO49: 0.07278587968 | BP49: 0.07278587968 | BQ49: 0.07278587968 | BR49: 0.07278587968 | BS49: 0.07278587968 | BT49: 0.07278587968 | BU49: 0.07278587968 | BV49: 0.04852391978 | BW49: 0.04852391978 | BX49: 0.04852391978 | BY49: 0.04852391978 | BZ49: 0.04852391978 | CA49: 0.04852391978 | CB49: 0.07278587968 | CC49: 0.07278587968 | CD49: 0.07278587968 | CE49: 0.04852391978 | CF49: 0.04852391978 | CG49: 0.04852391978 | CH49: 0 | CI49: 0 | CJ49: 0 | CK49: 0 | CL49: 0 | CM49: 0 | CN49: 0 | CO49: 0 | CP49: 0.8243356943 | CQ49: 319585.8438 | CR49: 1 | CS49: 0 | CT49: 0 | CU49: 0 | CV49: 0 | CW49: 0 | CX49: 0 | CY49: 0 | CZ49: 0.04852391978 | DA49: =1-ISBLANK(Data_by_donor_recipient_year[DAC member]) -> 1 | DB49: =IF(Data_by_donor_recipient_year[[#This Row],[Multilateral recipient?]],Mult_choice/100,1)*(Data_by_donor_recipient_year[[#This Row],[Net ODA]]+(CC_choice/100-100%)*Data_by_donor_recipient_year[[#This Row],[Climate mitigation grants]])/Data_by_donor_recipient_year[GNI] -> 1.8774298e-07
A50: 2006 | B50: 273 | C50: Somalia | D50: 1 | E50: Austria | F50: 0.01999999955 | G50: 0.01999999955 | H50: 1965 | I50: 0 | J50: 0 | K50: 0 | L50: 0 | M50: 0 | N50: 0 | O50: 0 | P50: 0 | Q50: 0 | R50: 0 | S50: 0 | T50: 0 | U50: 0 | V50: 0 | W50: 0 | X50: 0 | Y50: 0 | Z50: 0 | AA50: 0 | AB50: 0 | AC50: 0 | AD50: 0.01999999955 | AE50: 0.01999999955 | AF50: 0.01999999955 | AG50: 0.01999999955 | AH50: 0.01999999955 | AI50: 0.01999999955 | AJ50: 0.01999999955 | AK50: 0.01999999955 | AL50: 0.01999999955 | AM50: 0.01999999955 | AN50: 0.01999999955 | AO50: 0.01999999955 | AP50: 0.01999999955 | AQ50: 0.01999999955 | AR50: 0.01999999955 | AS50: 0.01999999955 | AT50: 0.01999999955 | AU50: 0.01999999955 | AV50: 0 | AW50: 0 | AX50: 0 | AY50: 0 | AZ50: 0 | BA50: 0 | BB50: 0 | BC50: 0 | BD50: 0 | BE50: 0 | BF50: 0 | BG50: 0 | BH50: 0 | BI50: 0 | BJ50: 0 | BK50: 0 | BL50: 0 | BM50: 0 | BN50: 0 | BO50: 0.02426195989 | BP50: 0.02426195989 | BQ50: 0.02426195989 | BR50: 0.02426195989 | BS50: 0.02426195989 | BT50: 0.02426195989 | BU50: 0.02426195989 | BV50: 0.02426195989 | BW50: 0.02426195989 | BX50: 0.02426195989 | BY50: 0.02426195989 | BZ50: 0.02426195989 | CA50: 0.02426195989 | CB50: 0.02426195989 | CC50: 0.02426195989 | CD50: 0.02426195989 | CE50: 0.02426195989 | CF50: 0.02426195989 | CG50: 0.02426195989 | CH50: 0.02008284256 | CI50: 0 | CJ50: 0 | CK50: 0 | CL50: 0.02436245658 | CM50: 0 | CN50: 0 | CO50: 0 | CP50: 0.8243356943 | CQ50: 319585.8438 | CR50: 0 | CS50: 0 | CT50: 0 | CU50: 0 | CV50: 0 | CW50: 0 | CX50: 0 | CY50: 0 | CZ50: 0.02426195989 | DA50: =1-ISBLANK(Data_by_donor_recipient_year[DAC member]) -> 1 | DB50: =IF(Data_by_donor_recipient_year[[#This Row],[Multilateral recipient?]],Mult_choice/100,1)*(Data_by_donor_recipient_year[[#This Row],[Net ODA]]+(CC_choice/100-100%)*Data_by_donor_recipient_year[[#This Row],[Climate mitigation grants]])/Data_by_donor_recipient_year[GNI] -> 6.258099332e-08
A51: 2006 | B51: 275 | C51: Namibia | D51: 1 | E51: Austria | F51: 0.349999994 | G51: 0.349999994 | H51: 1965 | I51: 0 | J51: 0 | K51: 0 | L51: 0 | M51: 0 | N51: 0 | O51: 0 | P51: 0 | Q51: 0 | R51: 0 | S51: 0 | T51: 0 | U51: 0 | V51: 0 | W51: 0 | X51: 0 | Y51: 0 | Z51: 0 | AA51: 0 | AB51: 0 | AC51: 0 | AD51: 0.349999994 | AE51: 0.349999994 | AF51: 0.349999994 | AG51: 0.349999994 | AH51: 0.349999994 | AI51: 0.349999994 | AJ51: 0.349999994 | AK51: 0.349999994 | AL51: 0.349999994 | AM51: 0.349999994 | AN51: 0.349999994 | AO51: 0.349999994 | AP51: 0.349999994 | AQ51: 0.349999994 | AR51: 0.349999994 | AS51: 0.349999994 | AT51: 0.349999994 | AU51: 0.349999994 | AV51: 0 | AW51: 0 | AX51: 0 | AY51: 0 | AZ51: 0 | BA51: 0 | BB51: 0 | BC51: 0 | BD51: 0 | BE51: 0 | BF51: 0 | BG51: 0 | BH51: 0 | BI51: 0 | BJ51: 0 | BK51: 0 | BL51: 0 | BM51: 0 | BN51: 0 | BO51: 0.4245843004 | BP51: 0.4245843004 | BQ51: 0.4245843004 | BR51: 0.4245843004 | BS51: 0.4245843004 | BT51: 0.4245843004 | BU51: 0.4245843004 | BV51: 0.4245843004 | BW51: 0.4245843004 | BX51: 0.4245843004 | BY51: 0.4245843004 | BZ51: 0.4245843004 | CA51: 0.4245843004 | CB51: 0.4245843004 | CC51: 0.4245843004 | CD51: 0.4245843004 | CE51: 0.4245843004 | CF51: 0.4245843004 | CG51: 0.4245843004 | CH51: 0 | CI51: 0 | CJ51: 0 | CK51: 0 | CL51: 0 | CM51: 0 | CN51: 0 | CO51: 0 | CP51: 0.8243356943 | CQ51: 319585.8438 | CR51: 0 | CS51: 0 | CT51: 0 | CU51: 0 | CV51: 0 | CW51: 0 | CX51: 0 | CY51: 0 | CZ51: 0.4245843004 | DA51: =1-ISBLANK(Data_by_donor_recipient_year[DAC member]) -> 1 | DB51: =IF(Data_by_donor_recipient_year[[#This Row],[Multilateral recipient?]],Mult_choice/100,1)*(Data_by_donor_recipient_year[[#This Row],[Net ODA]]+(CC_choice/100-100%)*Data_by_donor_recipient_year[[#This Row],[Climate mitigation grants]])/Data_by_donor_recipient_year[GNI] -> 1.095167389e-06
A52: 2006 | B52: 278 | C52: Sudan | D52: 1 | E52: Austria | F52: 1.120000005 | G52: 1.120000005 | H52: 1965 | I52: 0 | J52: 0 | K52: 0 | L52: 0 | M52: 0 | N52: 0 | O52: 0 | P52: 0 | Q52: 0 | R52: 0 | S52: 0 | T52: 0 | U52: 0 | V52: 0 | W52: 0 | X52: 0 | Y52: 0 | Z52: 0 | AA52: 0 | AB52: 0 | AC52: 0 | AD52: 1.120000005 | AE52: 1.120000005 | AF52: 1.120000005 | AG52: 1.120000005 | AH52: 1.120000005 | AI52: 1.120000005 | AJ52: 1.120000005 | AK52: 1.120000005 | AL52: 1.120000005 | AM52: 1.120000005 | AN52: 1.120000005 | AO52: 1.120000005 | AP52: 1.120000005 | AQ52: 1.120000005 | AR52: 1.120000005 | AS52: 1.120000005 | AT52: 1.120000005 | AU52: 1.120000005 | AV52: 0 | AW52: 0 | AX52: 0 | AY52: 0 | AZ52: 0 | BA52: 0 | BB52: 0 | BC52: 0 | BD52: 0 | BE52: 0 | BF52: 0 | BG52: 0 | BH52: 0 | BI52: 0 | BJ52: 0 | BK52: 0 | BL52: 0 | BM52: 0 | BN52: 0 | BO52: 1.35866979 | BP52: 1.35866979 | BQ52: 1.35866979 | BR52: 1.35866979 | BS52: 1.35866979 | BT52: 1.35866979 | BU52: 1.35866979 | BV52: 1.35866979 | BW52: 1.35866979 | BX52: 1.35866979 | BY52: 1.35866979 | BZ52: 1.35866979 | CA52: 1.35866979 | CB52: 1.35866979 | CC52: 1.35866979 | CD52: 1.35866979 | CE52: 1.35866979 | CF52: 1.35866979 | CG52: 1.35866979 | CH52: 0.1205221564 | CI52: 0 | CJ52: 0 | CK52: 0 | CL52: 0.1462051895 | CM52: 0 | CN52: 0 | CO52: 0 | CP52: 0.8243356943 | CQ52: 319585.8438 | CR52: 1 | CS52: 0 | CT52: 0 | CU52: 0 | CV52: 0 | CW52: 0 | CX52: 0 | CY52: 0 | CZ52: 1.35866979 | DA52: =1-ISBLANK(Data_by_donor_recipient_year[DAC member]) -> 1 | DB52: =IF(Data_by_donor_recipient_year[[#This Row],[Multilateral recipient?]],Mult_choice/100,1)*(Data_by_donor_recipient_year[[#This Row],[Net ODA]]+(CC_choice/100-100%)*Data_by_donor_recipient_year[[#This Row],[Climate mitigation grants]])/Data_by_donor_recipient_year[GNI] -> 3.504535719e-06
A53: 2006 | B53: 282 | C53: Tanzania | D53: 1 | E53: Austria | F53: 1.700000048 | G53: 1.700000048 | H53: 1965 | I53: 0 | J53: 0 | K53: 0 | L53: 0 | M53: 0 | N53: 0 | O53: 0 | P53: 0 | Q53: 0 | R53: 0 | S53: 0 | T53: 0 | U53: 0 | V53: 0 | W53: 0 | X53: 0 | Y53: 0 | Z53: 0 | AA53: 0 | AB53: 0 | AC53: 0 | AD53: 1.700000048 | AE53: 1.700000048 | AF53: 1.700000048 | AG53: 1.700000048 | AH53: 1.700000048 | AI53: 1.700000048 | AJ53: 1.700000048 | AK53: 1.700000048 | AL53: 1.700000048 | AM53: 1.700000048 | AN53: 1.700000048 | AO53: 1.700000048 | AP53: 1.700000048 | AQ53: 1.700000048 | AR53: 1.700000048 | AS53: 1.700000048 | AT53: 1.700000048 | AU53: 1.700000048 | AV53: 0 | AW53: 0 | AX53: 0 | AY53: 0 | AZ53: 0 | BA53: 0 | BB53: 0 | BC53: 0 | BD53: 0 | BE53: 0 | BF53: 0 | BG53: 0 | BH53: 0 | BI53: 0 | BJ53: 0 | BK53: 0 | BL53: 0 | BM53: 0 | BN53: 0 | BO53: 2.062266695 | BP53: 2.062266695 | BQ53: 2.062266695 | BR53: 2.062266695 | BS53: 2.062266695 | BT53: 2.062266695 | BU53: 2.062266695 | BV53: 2.062266695 | BW53: 2.062266695 | BX53: 2.062266695 | BY53: 2.062266695 | BZ53: 2.062266695 | CA53: 2.062266695 | CB53: 2.062266695 | CC53: 2.062266695 | CD53: 2.062266695 | CE53: 2.062266695 | CF53: 2.062266695 | CG53: 2.062266695 | CH53: 0.04017823562 | CI53: 0 | CJ53: 0 | CK53: 0 | CL53: 0.04874013815 | CM53: 0 | CN53: 0 | CO53: 0 | CP53: 0.8243356943 | CQ53: 319585.8438 | CR53: 1 | CS53: 0.01255177613 | CT53: 0.0152265348 | CU53: 0 | CV53: 0 | CW53: 0 | CX53: 0 | CY53: 0 | CZ53: 2.062266695 | DA53: =1-ISBLANK(Data_by_donor_recipient_year[DAC member]) -> 1 | DB53: =IF(Data_by_donor_recipient_year[[#This Row],[Multilateral recipient?]],Mult_choice/100,1)*(Data_by_donor_recipient_year[[#This Row],[Net ODA]]+(CC_choice/100-100%)*Data_by_donor_recipient_year[[#This Row],[Climate mitigation grants]])/Data_by_donor_recipient_year[GNI] -> 5.3193847e-06
A54: 2006 | B54: 283 | C54: Togo | D54: 1 | E54: Austria | F54: 0.6600000262 | G54: 0.1500000358 | H54: 1965 | I54: 0 | J54: 0 | K54: 0 | L54: 0 | M54: 0 | N54: 0 | O54: 0 | P54: 0 | Q54: 0 | R54: 0 | S54: 0 | T54: 0 | U54: 0 | V54: 0 | W54: 0 | X54: 0 | Y54: 0 | Z54: 0 | AA54: 0 | AB54: 0 | AC54: 0 | AD54: 0.6600000262 | AE54: 0.6600000262 | AF54: 0.6600000262 | AG54: 0.6600000262 | AH54: 0.6600000262 | AI54: 0.6600000262 | AJ54: 0.1500000358 | AK54: 0.1500000358 | AL54: 0.1500000358 | AM54: 0.1500000358 | AN54: 0.1500000358 | AO54: 0.1500000358 | AP54: 0.6600000262 | AQ54: 0.6600000262 | AR54: 0.6600000262 | AS54: 0.1500000358 | AT54: 0.1500000358 | AU54: 0.1500000358 | AV54: 0 | AW54: 0 | AX54: 0 | AY54: 0 | AZ54: 0 | BA54: 0 | BB54: 0 | BC54: 0 | BD54: 0 | BE54: 0 | BF54: 0 | BG54: 0 | BH54: 0 | BI54: 0 | BJ54: 0 | BK54: 0 | BL54: 0 | BM54: 0 | BN54: 0 | BO54: 0.8006447261 | BP54: 0.8006447261 | BQ54: 0.8006447261 | BR54: 0.8006447261 | BS54: 0.8006447261 | BT54: 0.8006447261 | BU54: 0.8006447261 | BV54: 0.1819647466 | BW54: 0.1819647466 | BX54: 0.1819647466 | BY54: 0.1819647466 | BZ54: 0.1819647466 | CA54: 0.1819647466 | CB54: 0.8006447261 | CC54: 0.8006447261 | CD54: 0.8006447261 | CE54: 0.1819647466 | CF54: 0.1819647466 | CG54: 0.1819647466 | CH54: 0.110468179 | CI54: 0 | CJ54: 0 | CK54: 0 | CL54: 0.1340087294 | CM54: 0 | CN54: 0 | CO54: 0 | CP54: 0.8243356943 | CQ54: 319585.8438 | CR54: 1 | CS54: 0 | CT54: 0 | CU54: 0 | CV54: 0 | CW54: 0 | CX54: 0 | CY54: 0 | CZ54: 0.1819647466 | DA54: =1-ISBLANK(Data_by_donor_recipient_year[DAC member]) -> 1 | DB54: =IF(Data_by_donor_recipient_year[[#This Row],[Multilateral recipient?]],Mult_choice/100,1)*(Data_by_donor_recipient_year[[#This Row],[Net ODA]]+(CC_choice/100-100%)*Data_by_donor_recipient_year[[#This Row],[Climate mitigation grants]])/Data_by_donor_recipient_year[GNI] -> 2.065172908e-06
A55: 2006 | B55: 285 | C55: Uganda | D55: 1 | E55: Austria | F55: 10.30000019 | G55: 10.27579505 | H55: 1965 | I55: 0 | J55: 1.179999948 | K55: 1.204204495 | L55: 0 | M55: 0 | N55: 0 | O55: 0 | P55: 0 | Q55: 0 | R55: 1.179999948 | S55: 1.179999948 | T55: 1.179999948 | U55: 0.8571395945 | V55: 0.5714965492 | W55: 0.8571395945 | X55: 1.204204495 | Y55: 1.204204495 | Z55: 1.204204495 | AA55: 0.8747215239 | AB55: 0.5832192744 | AC55: 0.8747215239 | AD55: 10.30000019 | AE55: 10.30000019 | AF55: 10.30000019 | AG55: 10.62286054 | AH55: 10.90850359 | AI55: 10.62286054 | AJ55: 10.27579505 | AK55: 10.27579505 | AL55: 10.27579505 | AM55: 10.60527802 | AN55: 10.89678027 | AO55: 10.60527802 | AP55: 11.48000014 | AQ55: 11.48000014 | AR55: 11.48000014 | AS55: 11.47999954 | AT55: 11.47999954 | AU55: 11.47999954 | AV55: 0 | AW55: 0 | AX55: 0 | AY55: 0 | AZ55: 0 | BA55: 0 | BB55: 0 | BC55: 1.431455602 | BD55: 1.431455602 | BE55: 1.431455602 | BF55: 1.039794346 | BG55: 0.6932813332 | BH55: 1.039794346 | BI55: 1.46081809 | BJ55: 1.46081809 | BK55: 1.46081809 | BL55: 1.06112295 | BM55: 0.7075021481 | BN55: 1.06112295 | BO55: 12.49490986 | BP55: 12.49490986 | BQ55: 12.49490986 | BR55: 12.49490986 | BS55: 12.88657111 | BT55: 13.23308412 | BU55: 12.88657111 | BV55: 12.46554664 | BW55: 12.46554664 | BX55: 12.46554664 | BY55: 12.86524178 | BZ55: 13.21886259 | CA55: 12.86524178 | CB55: 13.92636546 | CC55: 13.92636546 | CD55: 13.92636546 | CE55: 13.92636473 | CF55: 13.92636473 | CG55: 13.92636473 | CH55: 0.1205221564 | CI55: 0 | CJ55: 0 | CK55: 0 | CL55: 0.1462051895 | CM55: 0 | CN55: 0 | CO55: 0 | CP55: 0.8243356943 | CQ55: 319585.8438 | CR55: 1 | CS55: 1.679427631 | CT55: 2.037310337 | CU55: 0 | CV55: 0 | CW55: 0 | CX55: 1.431455602 | CY55: 1.46081809 | CZ55: 12.46554664 | DA55: =1-ISBLANK(Data_by_donor_recipient_year[DAC member]) -> 1 | DB55: =IF(Data_by_donor_recipient_year[[#This Row],[Multilateral recipient?]],Mult_choice/100,1)*(Data_by_donor_recipient_year[[#This Row],[Net ODA]]+(CC_choice/100-100%)*Data_by_donor_recipient_year[[#This Row],[Climate mitigation grants]])/Data_by_donor_recipient_year[GNI] -> 3.222921288e-05
A56: 2006 | B56: 287 | C56: Burkina Faso | D56: 1 | E56: Austria | F56: 5.449999809 | G56: 5.449999809 | H56: 1965 | I56: 0 | J56: 0 | K56: 0 | L56: 0 | M56: 0 | N56: 0 | O56: 0 | P56: 0 | Q56: 0 | R56: 0 | S56: 0 | T56: 0 | U56: 0 | V56: 0 | W56: 0 | X56: 0 | Y56: 0 | Z56: 0 | AA56: 0 | AB56: 0 | AC56: 0 | AD56: 5.449999809 | AE56: 5.449999809 | AF56: 5.449999809 | AG56: 5.449999809 | AH56: 5.449999809 | AI56: 5.449999809 | AJ56: 5.449999809 | AK56: 5.449999809 | AL56: 5.449999809 | AM56: 5.449999809 | AN56: 5.449999809 | AO56: 5.449999809 | AP56: 5.449999809 | AQ56: 5.449999809 | AR56: 5.449999809 | AS56: 5.449999809 | AT56: 5.449999809 | AU56: 5.449999809 | AV56: 0 | AW56: 0 | AX56: 0 | AY56: 0 | AZ56: 0 | BA56: 0 | BB56: 0 | BC56: 0 | BD56: 0 | BE56: 0 | BF56: 0 | BG56: 0 | BH56: 0 | BI56: 0 | BJ56: 0 | BK56: 0 | BL56: 0 | BM56: 0 | BN56: 0 | BO56: 6.611383987 | BP56: 6.611383987 | BQ56: 6.611383987 | BR56: 6.611383987 | BS56: 6.611383987 | BT56: 6.611383987 | BU56: 6.611383987 | BV56: 6.611383987 | BW56: 6.611383987 | BX56: 6.611383987 | BY56: 6.611383987 | BZ56: 6.611383987 | CA56: 6.611383987 | CB56: 6.611383987 | CC56: 6.611383987 | CD56: 6.611383987 | CE56: 6.611383987 | CF56: 6.611383987 | CG56: 6.611383987 | CH56: 0.07030250132 | CI56: 0 | CJ56: 0 | CK56: 0 | CL56: 0.08528382527 | CM56: 0 | CN56: 0 | CO56: 0 | CP56: 0.8243356943 | CQ56: 319585.8438 | CR56: 1 | CS56: 0.8667377904 | CT56: 1.051437899 | CU56: 0 | CV56: 0 | CW56: 0 | CX56: 0 | CY56: 0 | CZ56: 6.611383987 | DA56: =1-ISBLANK(Data_by_donor_recipient_year[DAC member]) -> 1 | DB56: =IF(Data_by_donor_recipient_year[[#This Row],[Multilateral recipient?]],Mult_choice/100,1)*(Data_by_donor_recipient_year[[#This Row],[Net ODA]]+(CC_choice/100-100%)*Data_by_donor_recipient_year[[#This Row],[Climate mitigation grants]])/Data_by_donor_recipient_year[GNI] -> 1.705332046e-05
A57: 2006 | B57: 288 | C57: Zambia | D57: 1 | E57: Austria | F57: 8.430000305 | G57: 0.06000041962 | H57: 1965 | I57: 0 | J57: 0 | K57: 0 | L57: 0 | M57: 0 | N57: 0 | O57: 0 | P57: 0 | Q57: 0 | R57: 0 | S57: 0 | T57: 0 | U57: 0 | V57: 0 | W57: 0 | X57: 0 | Y57: 0 | Z57: 0 | AA57: 0 | AB57: 0 | AC57: 0 | AD57: 8.430000305 | AE57: 8.430000305 | AF57: 8.430000305 | AG57: 8.430000305 | AH57: 8.430000305 | AI57: 8.430000305 | AJ57: 0.06000041962 | AK57: 0.06000041962 | AL57: 0.06000041962 | AM57: 0.06000041962 | AN57: 0.06000041962 | AO57: 0.06000041962 | AP57: 8.430000305 | AQ57: 8.430000305 | AR57: 8.430000305 | AS57: 0.06000041962 | AT57: 0.06000041962 | AU57: 0.06000041962 | AV57: 0 | AW57: 0 | AX57: 0 | AY57: 0 | AZ57: 0 | BA57: 0 | BB57: 0 | BC57: 0 | BD57: 0 | BE57: 0 | BF57: 0 | BG57: 0 | BH57: 0 | BI57: 0 | BJ57: 0 | BK57: 0 | BL57: 0 | BM57: 0 | BN57: 0 | BO57: 10.22641669 | BP57: 10.22641669 | BQ57: 10.22641669 | BR57: 10.22641669 | BS57: 10.22641669 | BT57: 10.22641669 | BU57: 10.22641669 | BV57: 0.07278639034 | BW57: 0.07278639034 | BX57: 0.07278639034 | BY57: 0.07278639034 | BZ57: 0.07278639034 | CA57: 0.07278639034 | CB57: 10.22641669 | CC57: 10.22641669 | CD57: 10.22641669 | CE57: 0.07278639034 | CF57: 0.07278639034 | CG57: 0.07278639034 | CH57: 0 | CI57: 0 | CJ57: 0 | CK57: 0 | CL57: 0 | CM57: 0 | CN57: 0 | CO57: 0 | CP57: 0.8243356943 | CQ57: 319585.8438 | CR57: 1 | CS57: 0 | CT57: 0 | CU57: 0 | CV57: 0 | CW57: 0 | CX57: 0 | CY57: 0 | CZ57: 0.07278639034 | DA57: =1-ISBLANK(Data_by_donor_recipient_year[DAC member]) -> 1 | DB57: =IF(Data_by_donor_recipient_year[[#This Row],[Multilateral recipient?]],Mult_choice/100,1)*(Data_by_donor_recipient_year[[#This Row],[Net ODA]]+(CC_choice/100-100%)*Data_by_donor_recipient_year[[#This Row],[Climate mitigation grants]])/Data_by_donor_recipient_year[GNI] -> 2.637789023e-05
A58: 2006 | B58: 289 | C58: South of Sahara, regional/multi-country | D58: 1 | E58: Austria | F58: 5.650000095 | G58: 5.650000095 | H58: 1965 | I58: 0 | J58: 0 | K58: 0 | L58: 0 | M58: 0 | N58: 0 | O58: 0 | P58: 0 | Q58: 0 | R58: 0 | S58: 0 | T58: 0 | U58: 0 | V58: 0 | W58: 0 | X58: 0 | Y58: 0 | Z58: 0 | AA58: 0 | AB58: 0 | AC58: 0 | AD58: 5.650000095 | AE58: 5.650000095 | AF58: 5.650000095 | AG58: 5.650000095 | AH58: 5.650000095 | AI58: 5.650000095 | AJ58: 5.650000095 | AK58: 5.650000095 | AL58: 5.650000095 | AM58: 5.650000095 | AN58: 5.650000095 | AO58: 5.650000095 | AP58: 5.650000095 | AQ58: 5.650000095 | AR58: 5.650000095 | AS58: 5.650000095 | AT58: 5.650000095 | AU58: 5.650000095 | AV58: 0 | AW58: 0 | AX58: 0 | AY58: 0 | AZ58: 0 | BA58: 0 | BB58: 0 | BC58: 0 | BD58: 0 | BE58: 0 | BF58: 0 | BG58: 0 | BH58: 0 | BI58: 0 | BJ58: 0 | BK58: 0 | BL58: 0 | BM58: 0 | BN58: 0 | BO58: 6.854003938 | BP58: 6.854003938 | BQ58: 6.854003938 | BR58: 6.854003938 | BS58: 6.854003938 | BT58: 6.854003938 | BU58: 6.854003938 | BV58: 6.854003938 | BW58: 6.854003938 | BX58: 6.854003938 | BY58: 6.854003938 | BZ58: 6.854003938 | CA58: 6.854003938 | CB58: 6.854003938 | CC58: 6.854003938 | CD58: 6.854003938 | CE58: 6.854003938 | CF58: 6.854003938 | CG58: 6.854003938 | CH58: 0 | CI58: 0 | CJ58: 0 | CK58: 0 | CL58: 0 | CM58: 0 | CN58: 0 | CO58: 0 | CP58: 0.8243356943 | CQ58: 319585.8438 | CR58: 0 | CS58: 2.715576721 | CT58: 3.294260748 | CU58: 0 | CV58: 0 | CW58: 0 | CX58: 0 | CY58: 0 | CZ58: 6.854003938 | DA58: =1-ISBLANK(Data_by_donor_recipient_year[DAC member]) -> 1 | DB58: =IF(Data_by_donor_recipient_year[[#This Row],[Multilateral recipient?]],Mult_choice/100,1)*(Data_by_donor_recipient_year[[#This Row],[Net ODA]]+(CC_choice/100-100%)*Data_by_donor_recipient_year[[#This Row],[Climate mitigation grants]])/Data_by_donor_recipient_year[GNI] -> 1.767913131e-05
A59: 2006 | B59: 298 | C59: Africa, regional/multi-country | D59: 1 | E59: Austria | F59: 1.799999952 | G59: 1.799999952 | H59: 1965 | I59: 0 | J59: 0 | K59: 0 | L59: 0 | M59: 0 | N59: 0 | O59: 0 | P59: 0 | Q59: 0 | R59: 0 | S59: 0 | T59: 0 | U59: 0 | V59: 0 | W59: 0 | X59: 0 | Y59: 0 | Z59: 0 | AA59: 0 | AB59: 0 | AC59: 0 | AD59: 1.799999952 | AE59: 1.799999952 | AF59: 1.799999952 | AG59: 1.799999952 | AH59: 1.799999952 | AI59: 1.799999952 | AJ59: 1.799999952 | AK59: 1.799999952 | AL59: 1.799999952 | AM59: 1.799999952 | AN59: 1.799999952 | AO59: 1.799999952 | AP59: 1.799999952 | AQ59: 1.799999952 | AR59: 1.799999952 | AS59: 1.799999952 | AT59: 1.799999952 | AU59: 1.799999952 | AV59: 0 | AW59: 0 | AX59: 0 | AY59: 0 | AZ59: 0 | BA59: 0 | BB59: 0 | BC59: 0 | BD59: 0 | BE59: 0 | BF59: 0 | BG59: 0 | BH59: 0 | BI59: 0 | BJ59: 0 | BK59: 0 | BL59: 0 | BM59: 0 | BN59: 0 | BO59: 2.183576381 | BP59: 2.183576381 | BQ59: 2.183576381 | BR59: 2.183576381 | BS59: 2.183576381 | BT59: 2.183576381 | BU59: 2.183576381 | BV59: 2.183576381 | BW59: 2.183576381 | BX59: 2.183576381 | BY59: 2.183576381 | BZ59: 2.183576381 | CA59: 2.183576381 | CB59: 2.183576381 | CC59: 2.183576381 | CD59: 2.183576381 | CE59: 2.183576381 | CF59: 2.183576381 | CG59: 2.183576381 | CH59: 0 | CI59: 0 | CJ59: 0 | CK59: 0 | CL59: 0 | CM59: 0 | CN59: 0 | CO59: 0 | CP59: 0.8243356943 | CQ59: 319585.8438 | CR59: 0 | CS59: 0 | CT59: 0 | CU59: 0 | CV59: 0 | CW59: 0 | CX59: 0 | CY59: 0 | CZ59: 2.183576381 | DA59: =1-ISBLANK(Data_by_donor_recipient_year[DAC member]) -> 1 | DB59: =IF(Data_by_donor_recipient_year[[#This Row],[Multilateral recipient?]],Mult_choice/100,1)*(Data_by_donor_recipient_year[[#This Row],[Net ODA]]+(CC_choice/100-100%)*Data_by_donor_recipient_year[[#This Row],[Climate mitigation grants]])/Data_by_donor_recipient_year[GNI] -> 5.632289376e-06
A60: 2006 | B60: 336 | C60: Costa Rica | D60: 1 | E60: Austria | F60: 0.02999999933 | G60: 0.02999999933 | H60: 1965 | I60: 0 | J60: 0 | K60: 0 | L60: 0 | M60: 0 | N60: 0 | O60: 0 | P60: 0 | Q60: 0 | R60: 0 | S60: 0 | T60: 0 | U60: 0 | V60: 0 | W60: 0 | X60: 0 | Y60: 0 | Z60: 0 | AA60: 0 | AB60: 0 | AC60: 0 | AD60: 0.02999999933 | AE60: 0.02999999933 | AF60: 0.02999999933 | AG60: 0.02999999933 | AH60: 0.02999999933 | AI60: 0.02999999933 | AJ60: 0.02999999933 | AK60: 0.02999999933 | AL60: 0.02999999933 | AM60: 0.02999999933 | AN60: 0.02999999933 | AO60: 0.02999999933 | AP60: 0.02999999933 | AQ60: 0.02999999933 | AR60: 0.02999999933 | AS60: 0.02999999933 | AT60: 0.02999999933 | AU60: 0.02999999933 | AV60: 0 | AW60: 0 | AX60: 0 | AY60: 0 | AZ60: 0 | BA60: 0 | BB60: 0 | BC60: 0 | BD60: 0 | BE60: 0 | BF60: 0 | BG60: 0 | BH60: 0 | BI60: 0 | BJ60: 0 | BK60: 0 | BL60: 0 | BM60: 0 | BN60: 0 | BO60: 0.03639293984 | BP60: 0.03639293984 | BQ60: 0.03639293984 | BR60: 0.03639293984 | BS60: 0.03639293984 | BT60: 0.03639293984 | BU60: 0.03639293984 | BV60: 0.03639293984 | BW60: 0.03639293984 | BX60: 0.03639293984 | BY60: 0.03639293984 | BZ60: 0.03639293984 | CA60: 0.03639293984 | CB60: 0.03639293984 | CC60: 0.03639293984 | CD60: 0.03639293984 | CE60: 0.03639293984 | CF60: 0.03639293984 | CG60: 0.03639293984 | CH60: 0 | CI60: 0 | CJ60: 0 | CK60: 0 | CL60: 0 | CM60: 0 | CN60: 0 | CO60: 0 | CP60: 0.8243356943 | CQ60: 319585.8438 | CR60: 0 | CS60: 0 | CT60: 0 | CU60: 0 | CV60: 0 | CW60: 0 | CX60: 0 | CY60: 0 | CZ60: 0.03639293984 | DA60: =1-ISBLANK(Data_by_donor_recipient_year[DAC member]) -> 1 | DB60: =IF(Data_by_donor_recipient_year[[#This Row],[Multilateral recipient?]],Mult_choice/100,1)*(Data_by_donor_recipient_year[[#This Row],[Net ODA]]+(CC_choice/100-100%)*Data_by_donor_recipient_year[[#This Row],[Climate mitigation grants]])/Data_by_donor_recipient_year[GNI] -> 9.387148998e-08
A61: 2006 | B61: 338 | C61: Cuba | D61: 1 | E61: Austria | F61: 0.07999999821 | G61: 0.07999999821 | H61: 1965 | I61: 0 | J61: 0 | K61: 0 | L61: 0 | M61: 0 | N61: 0 | O61: 0 | P61: 0 | Q61: 0 | R61: 0 | S61: 0 | T61: 0 | U61: 0 | V61: 0 | W61: 0 | X61: 0 | Y61: 0 | Z61: 0 | AA61: 0 | AB61: 0 | AC61: 0 | AD61: 0.07999999821 | AE61: 0.07999999821 | AF61: 0.07999999821 | AG61: 0.07999999821 | AH61: 0.07999999821 | AI61: 0.07999999821 | AJ61: 0.07999999821 | AK61: 0.07999999821 | AL61: 0.07999999821 | AM61: 0.07999999821 | AN61: 0.07999999821 | AO61: 0.07999999821 | AP61: 0.07999999821 | AQ61: 0.07999999821 | AR61: 0.07999999821 | AS61: 0.07999999821 | AT61: 0.07999999821 | AU61: 0.07999999821 | AV61: 0 | AW61: 0 | AX61: 0 | AY61: 0 | AZ61: 0 | BA61: 0 | BB61: 0 | BC61: 0 | BD61: 0 | BE61: 0 | BF61: 0 | BG61: 0 | BH61: 0 | BI61: 0 | BJ61: 0 | BK61: 0 | BL61: 0 | BM61: 0 | BN61: 0 | BO61: 0.09704783957 | BP61: 0.09704783957 | BQ61: 0.09704783957 | BR61: 0.09704783957 | BS61: 0.09704783957 | BT61: 0.09704783957 | BU61: 0.09704783957 | BV61: 0.09704783957 | BW61: 0.09704783957 | BX61: 0.09704783957 | BY61: 0.09704783957 | BZ61: 0.09704783957 | CA61: 0.09704783957 | CB61: 0.09704783957 | CC61: 0.09704783957 | CD61: 0.09704783957 | CE61: 0.09704783957 | CF61: 0.09704783957 | CG61: 0.09704783957 | CH61: 0.04109451547 | CI61: 0 | CJ61: 0 | CK61: 0 | CL61: 0.04985167542 | CM61: 0 | CN61: 0 | CO61: 0 | CP61: 0.8243356943 | CQ61: 319585.8438 | CR61: 0 | CS61: 0.01506213099 | CT61: 0.0182718413 | CU61: 0 | CV61: 0 | CW61: 0 | CX61: 0 | CY61: 0 | CZ61: 0.09704783957 | DA61: =1-ISBLANK(Data_by_donor_recipient_year[DAC member]) -> 1 | DB61: =IF(Data_by_donor_recipient_year[[#This Row],[Multilateral recipient?]],Mult_choice/100,1)*(Data_by_donor_recipient_year[[#This Row],[Net ODA]]+(CC_choice/100-100%)*Data_by_donor_recipient_year[[#This Row],[Climate mitigation grants]])/Data_by_donor_recipient_year[GNI] -> 2.503239733e-07
A62: 2006 | B62: 342 | C62: El Salvador | D62: 1 | E62: Austria | F62: 1.389999986 | G62: 1.389999986 | H62: 1965 | I62: 0 | J62: 0 | K62: 0 | L62: 0 | M62: 0 | N62: 0 | O62: 0 | P62: 0 | Q62: 0 | R62: 0 | S62: 0 | T62: 0 | U62: 0 | V62: 0 | W62: 0 | X62: 0 | Y62: 0 | Z62: 0 | AA62: 0 | AB62: 0 | AC62: 0 | AD62: 1.389999986 | AE62: 1.389999986 | AF62: 1.389999986 | AG62: 1.389999986 | AH62: 1.389999986 | AI62: 1.389999986 | AJ62: 1.389999986 | AK62: 1.389999986 | AL62: 1.389999986 | AM62: 1.389999986 | AN62: 1.389999986 | AO62: 1.389999986 | AP62: 1.389999986 | AQ62: 1.389999986 | AR62: 1.389999986 | AS62: 1.389999986 | AT62: 1.389999986 | AU62: 1.389999986 | AV62: 0 | AW62: 0 | AX62: 0 | AY62: 0 | AZ62: 0 | BA62: 0 | BB62: 0 | BC62: 0 | BD62: 0 | BE62: 0 | BF62: 0 | BG62: 0 | BH62: 0 | BI62: 0 | BJ62: 0 | BK62: 0 | BL62: 0 | BM62: 0 | BN62: 0 | BO62: 1.686206233 | BP62: 1.686206233 | BQ62: 1.686206233 | BR62: 1.686206233 | BS62: 1.686206233 | BT62: 1.686206233 | BU62: 1.686206233 | BV62: 1.686206233 | BW62: 1.686206233 | BX62: 1.686206233 | BY62: 1.686206233 | BZ62: 1.686206233 | CA62: 1.686206233 | CB62: 1.686206233 | CC62: 1.686206233 | CD62: 1.686206233 | CE62: 1.686206233 | CF62: 1.686206233 | CG62: 1.686206233 | CH62: 0 | CI62: 0 | CJ62: 0 | CK62: 0 | CL62: 0 | CM62: 0 | CN62: 0 | CO62: 0 | CP62: 0.8243356943 | CQ62: 319585.8438 | CR62: 0 | CS62: 0.263587296 | CT62: 0.3197572273 | CU62: 0 | CV62: 0 | CW62: 0 | CX62: 0 | CY62: 0 | CZ62: 1.686206233 | DA62: =1-ISBLANK(Data_by_donor_recipient_year[DAC member]) -> 1 | DB62: =IF(Data_by_donor_recipient_year[[#This Row],[Multilateral recipient?]],Mult_choice/100,1)*(Data_by_donor_recipient_year[[#This Row],[Net ODA]]+(CC_choice/100-100%)*Data_by_donor_recipient_year[[#This Row],[Climate mitigation grants]])/Data_by_donor_recipient_year[GNI] -> 4.349379088e-06
A63: 2006 | B63: 347 | C63: Guatemala | D63: 1 | E63: Austria | F63: 7 | G63: 7 | H63: 1965 | I63: 0 | J63: 0 | K63: 0 | L63: 0 | M63: 0 | N63: 0 | O63: 0 | P63: 0 | Q63: 0 | R63: 0 | S63: 0 | T63: 0 | U63: 0 | V63: 0 | W63: 0 | X63: 0 | Y63: 0 | Z63: 0 | AA63: 0 | AB63: 0 | AC63: 0 | AD63: 7 | AE63: 7 | AF63: 7 | AG63: 7 | AH63: 7 | AI63: 7 | AJ63: 7 | AK63: 7 | AL63: 7 | AM63: 7 | AN63: 7 | AO63: 7 | AP63: 7 | AQ63: 7 | AR63: 7 | AS63: 7 | AT63: 7 | AU63: 7 | AV63: 0 | AW63: 0 | AX63: 0 | AY63: 0 | AZ63: 0 | BA63: 0 | BB63: 0 | BC63: 0 | BD63: 0 | BE63: 0 | BF63: 0 | BG63: 0 | BH63: 0 | BI63: 0 | BJ63: 0 | BK63: 0 | BL63: 0 | BM63: 0 | BN63: 0 | BO63: 8.491686152 | BP63: 8.491686152 | BQ63: 8.491686152 | BR63: 8.491686152 | BS63: 8.491686152 | BT63: 8.491686152 | BU63: 8.491686152 | BV63: 8.491686152 | BW63: 8.491686152 | BX63: 8.491686152 | BY63: 8.491686152 | BZ63: 8.491686152 | CA63: 8.491686152 | CB63: 8.491686152 | CC63: 8.491686152 | CD63: 8.491686152 | CE63: 8.491686152 | CF63: 8.491686152 | CG63: 8.491686152 | CH63: 0.287661612 | CI63: 0 | CJ63: 0 | CK63: 0 | CL63: 0.3489617325 | CM63: 0 | CN63: 0 | CO63: 0 | CP63: 0.8243356943 | CQ63: 319585.8438 | CR63: 0 | CS63: 0 | CT63: 0 | CU63: 0 | CV63: 0 | CW63: 0 | CX63: 0 | CY63: 0 | CZ63: 8.491686152 | DA63: =1-ISBLANK(Data_by_donor_recipient_year[DAC member]) -> 1 | DB63: =IF(Data_by_donor_recipient_year[[#This Row],[Multilateral recipient?]],Mult_choice/100,1)*(Data_by_donor_recipient_year[[#This Row],[Net ODA]]+(CC_choice/100-100%)*Data_by_donor_recipient_year[[#This Row],[Climate mitigation grants]])/Data_by_donor_recipient_year[GNI] -> 2.190334815e-05
A64: 2006 | B64: 351 | C64: Honduras | D64: 1 | E64: Austria | F64: 0.01999999955 | G64: 0.01999999955 | H64: 1965 | I64: 0 | J64: 0 | K64: 0 | L64: 0 | M64: 0 | N64: 0 | O64: 0 | P64: 0 | Q64: 0 | R64: 0 | S64: 0 | T64: 0 | U64: 0 | V64: 0 | W64: 0 | X64: 0 | Y64: 0 | Z64: 0 | AA64: 0 | AB64: 0 | AC64: 0 | AD64: 0.01999999955 | AE64: 0.01999999955 | AF64: 0.01999999955 | AG64: 0.01999999955 | AH64: 0.01999999955 | AI64: 0.01999999955 | AJ64: 0.01999999955 | AK64: 0.01999999955 | AL64: 0.01999999955 | AM64: 0.01999999955 | AN64: 0.01999999955 | AO64: 0.01999999955 | AP64: 0.01999999955 | AQ64: 0.01999999955 | AR64: 0.01999999955 | AS64: 0.01999999955 | AT64: 0.01999999955 | AU64: 0.01999999955 | AV64: 0 | AW64: 0 | AX64: 0 | AY64: 0 | AZ64: 0 | BA64: 0 | BB64: 0 | BC64: 0 | BD64: 0 | BE64: 0 | BF64: 0 | BG64: 0 | BH64: 0 | BI64: 0 | BJ64: 0 | BK64: 0 | BL64: 0 | BM64: 0 | BN64: 0 | BO64: 0.02426195989 | BP64: 0.02426195989 | BQ64: 0.02426195989 | BR64: 0.02426195989 | BS64: 0.02426195989 | BT64: 0.02426195989 | BU64: 0.02426195989 | BV64: 0.02426195989 | BW64: 0.02426195989 | BX64: 0.02426195989 | BY64: 0.02426195989 | BZ64: 0.02426195989 | CA64: 0.02426195989 | CB64: 0.02426195989 | CC64: 0.02426195989 | CD64: 0.02426195989 | CE64: 0.02426195989 | CF64: 0.02426195989 | CG64: 0.02426195989 | CH64: 0.01644282602 | CI64: 0 | CJ64: 0 | CK64: 0 | CL64: 0.01994675971 | CM64: 0 | CN64: 0 | CO64: 0 | CP64: 0.8243356943 | CQ64: 319585.8438 | CR64: 0 | CS64: 0 | CT64: 0 | CU64: 0 | CV64: 0 | CW64: 0 | CX64: 0 | CY64: 0 | CZ64: 0.02426195989 | DA64: =1-ISBLANK(Data_by_donor_recipient_year[DAC member]) -> 1 | DB64: =IF(Data_by_donor_recipient_year[[#This Row],[Multilateral recipient?]],Mult_choice/100,1)*(Data_by_donor_recipient_year[[#This Row],[Net ODA]]+(CC_choice/100-100%)*Data_by_donor_recipient_year[[#This Row],[Climate mitigation grants]])/Data_by_donor_recipient_year[GNI] -> 6.258099332e-08
A65: 2006 | B65: 352 | C65: Belize | D65: 1 | E65: Austria | F65: 0.009999999776 | G65: 0.009999999776 | H65: 1965 | I65: 0 | J65: 0 | K65: 0 | L65: 0 | M65: 0 | N65: 0 | O65: 0 | P65: 0 | Q65: 0 | R65: 0 | S65: 0 | T65: 0 | U65: 0 | V65: 0 | W65: 0 | X65: 0 | Y65: 0 | Z65: 0 | AA65: 0 | AB65: 0 | AC65: 0 | AD65: 0.009999999776 | AE65: 0.009999999776 | AF65: 0.009999999776 | AG65: 0.009999999776 | AH65: 0.009999999776 | AI65: 0.009999999776 | AJ65: 0.009999999776 | AK65: 0.009999999776 | AL65: 0.009999999776 | AM65: 0.009999999776 | AN65: 0.009999999776 | AO65: 0.009999999776 | AP65: 0.009999999776 | AQ65: 0.009999999776 | AR65: 0.009999999776 | AS65: 0.009999999776 | AT65: 0.009999999776 | AU65: 0.009999999776 | AV65: 0 | AW65: 0 | AX65: 0 | AY65: 0 | AZ65: 0 | BA65: 0 | BB65: 0 | BC65: 0 | BD65: 0 | BE65: 0 | BF65: 0 | BG65: 0 | BH65: 0 | BI65: 0 | BJ65: 0 | BK65: 0 | BL65: 0 | BM65: 0 | BN65: 0 | BO65: 0.01213097995 | BP65: 0.01213097995 | BQ65: 0.01213097995 | BR65: 0.01213097995 | BS65: 0.01213097995 | BT65: 0.01213097995 | BU65: 0.01213097995 | BV65: 0.01213097995 | BW65: 0.01213097995 | BX65: 0.01213097995 | BY65: 0.01213097995 | BZ65: 0.01213097995 | CA65: 0.01213097995 | CB65: 0.01213097995 | CC65: 0.01213097995 | CD65: 0.01213097995 | CE65: 0.01213097995 | CF65: 0.01213097995 | CG65: 0.01213097995 | CH65: 0 | CI65: 0 | CJ65: 0 | CK65: 0 | CL65: 0 | CM65: 0 | CN65: 0 | CO65: 0 | CP65: 0.8243356943 | CQ65: 319585.8438 | CR65: 0 | CS65: 0 | CT65: 0 | CU65: 0 | CV65: 0 | CW65: 0 | CX65: 0 | CY65: 0 | CZ65: 0.01213097995 | DA65: =1-ISBLANK(Data_by_donor_recipient_year[DAC member]) -> 1 | DB65: =IF(Data_by_donor_recipient_year[[#This Row],[Multilateral recipient?]],Mult_choice/100,1)*(Data_by_donor_recipient_year[[#This Row],[Net ODA]]+(CC_choice/100-100%)*Data_by_donor_recipient_year[[#This Row],[Climate mitigation grants]])/Data_by_donor_recipient_year[GNI] -> 3.129049666e-08
A66: 2006 | B66: 354 | C66: Jamaica | D66: 1 | E66: Austria | F66: 0.009999999776 | G66: 0.009999999776 | H66: 1965 | I66: 0 | J66: 0 | K66: 0 | L66: 0 | M66: 0 | N66: 0 | O66: 0 | P66: 0 | Q66: 0 | R66: 0 | S66: 0 | T66: 0 | U66: 0 | V66: 0 | W66: 0 | X66: 0 | Y66: 0 | Z66: 0 | AA66: 0 | AB66: 0 | AC66: 0 | AD66: 0.009999999776 | AE66: 0.009999999776 | AF66: 0.009999999776 | AG66: 0.009999999776 | AH66: 0.009999999776 | AI66: 0.009999999776 | AJ66: 0.009999999776 | AK66: 0.009999999776 | AL66: 0.009999999776 | AM66: 0.009999999776 | AN66: 0.009999999776 | AO66: 0.009999999776 | AP66: 0.009999999776 | AQ66: 0.009999999776 | AR66: 0.009999999776 | AS66: 0.009999999776 | AT66: 0.009999999776 | AU66: 0.009999999776 | AV66: 0 | AW66: 0 | AX66: 0 | AY66: 0 | AZ66: 0 | BA66: 0 | BB66: 0 | BC66: 0 | BD66: 0 | BE66: 0 | BF66: 0 | BG66: 0 | BH66: 0 | BI66: 0 | BJ66: 0 | BK66: 0 | BL66: 0 | BM66: 0 | BN66: 0 | BO66: 0.01213097995 | BP66: 0.01213097995 | BQ66: 0.01213097995 | BR66: 0.01213097995 | BS66: 0.01213097995 | BT66: 0.01213097995 | BU66: 0.01213097995 | BV66: 0.01213097995 | BW66: 0.01213097995 | BX66: 0.01213097995 | BY66: 0.01213097995 | BZ66: 0.01213097995 | CA66: 0.01213097995 | CB66: 0.01213097995 | CC66: 0.01213097995 | CD66: 0.01213097995 | CE66: 0.01213097995 | CF66: 0.01213097995 | CG66: 0.01213097995 | CH66: 0 | CI66: 0 | CJ66: 0 | CK66: 0 | CL66: 0 | CM66: 0 | CN66: 0 | CO66: 0 | CP66: 0.8243356943 | CQ66: 319585.8438 | CR66: 0 | CS66: 0 | CT66: 0 | CU66: 0 | CV66: 0 | CW66: 0 | CX66: 0 | CY66: 0 | CZ66: 0.01213097995 | DA66: =1-ISBLANK(Data_by_donor_recipient_year[DAC member]) -> 1 | DB66: =IF(Data_by_donor_recipient_year[[#This Row],[Multilateral recipient?]],Mult_choice/100,1)*(Data_by_donor_recipient_year[[#This Row],[Net ODA]]+(CC_choice/100-100%)*Data_by_donor_recipient_year[[#This Row],[Climate mitigation grants]])/Data_by_donor_recipient_year[GNI] -> 3.129049666e-08
A67: 2006 | B67: 358 | C67: Mexico | D67: 1 | E67: Austria | F67: 0.2700000107 | G67: 0.2700000107 | H67: 1965 | I67: 0 | J67: 0 | K67: 0 | L67: 0 | M67: 0 | N67: 0 | O67: 0 | P67: 0 | Q67: 0 | R67: 0 | S67: 0 | T67: 0 | U67: 0 | V67: 0 | W67: 0 | X67: 0 | Y67: 0 | Z67: 0 | AA67: 0 | AB67: 0 | AC67: 0 | AD67: 0.2700000107 | AE67: 0.2700000107 | AF67: 0.2700000107 | AG67: 0.2700000107 | AH67: 0.2700000107 | AI67: 0.2700000107 | AJ67: 0.2700000107 | AK67: 0.2700000107 | AL67: 0.2700000107 | AM67: 0.2700000107 | AN67: 0.2700000107 | AO67: 0.2700000107 | AP67: 0.2700000107 | AQ67: 0.2700000107 | AR67: 0.2700000107 | AS67: 0.2700000107 | AT67: 0.2700000107 | AU67: 0.2700000107 | AV67: 0 | AW67: 0 | AX67: 0 | AY67: 0 | AZ67: 0 | BA67: 0 | BB67: 0 | BC67: 0 | BD67: 0 | BE67: 0 | BF67: 0 | BG67: 0 | BH67: 0 | BI67: 0 | BJ67: 0 | BK67: 0 | BL67: 0 | BM67: 0 | BN67: 0 | BO67: 0.3275364789 | BP67: 0.3275364789 | BQ67: 0.3275364789 | BR67: 0.3275364789 | BS67: 0.3275364789 | BT67: 0.3275364789 | BU67: 0.3275364789 | BV67: 0.3275364789 | BW67: 0.3275364789 | BX67: 0.3275364789 | BY67: 0.3275364789 | BZ67: 0.3275364789 | CA67: 0.3275364789 | CB67: 0.3275364789 | CC67: 0.3275364789 | CD67: 0.3275364789 | CE67: 0.3275364789 | CF67: 0.3275364789 | CG67: 0.3275364789 | CH67: 0.230124265 | CI67: 0 | CJ67: 0 | CK67: 0 | CL67: 0.2791632906 | CM67: 0 | CN67: 0 | CO67: 0 | CP67: 0.8243356943 | CQ67: 319585.8438 | CR67: 0 | CS67: 0 | CT67: 0 | CU67: 0 | CV67: 0 | CW67: 0 | CX67: 0 | CY67: 0 | CZ67: 0.3275364789 | DA67: =1-ISBLANK(Data_by_donor_recipient_year[DAC member]) -> 1 | DB67: =IF(Data_by_donor_recipient_year[[#This Row],[Multilateral recipient?]],Mult_choice/100,1)*(Data_by_donor_recipient_year[[#This Row],[Net ODA]]+(CC_choice/100-100%)*Data_by_donor_recipient_year[[#This Row],[Climate mitigation grants]])/Data_by_donor_recipient_year[GNI] -> 8.448434623e-07
A68: 2006 | B68: 364 | C68: Nicaragua | D68: 1 | E68: Austria | F68: 8.359999657 | G68: 8.359999657 | H68: 1965 | I68: 0 | J68: 0 | K68: 0 | L68: 0 | M68: 0 | N68: 0 | O68: 0 | P68: 0 | Q68: 0 | R68: 0 | S68: 0 | T68: 0 | U68: 0 | V68: 0 | W68: 0 | X68: 0 | Y68: 0 | Z68: 0 | AA68: 0 | AB68: 0 | AC68: 0 | AD68: 8.359999657 | AE68: 8.359999657 | AF68: 8.359999657 | AG68: 8.359999657 | AH68: 8.359999657 | AI68: 8.359999657 | AJ68: 8.359999657 | AK68: 8.359999657 | AL68: 8.359999657 | AM68: 8.359999657 | AN68: 8.359999657 | AO68: 8.359999657 | AP68: 8.359999657 | AQ68: 8.359999657 | AR68: 8.359999657 | AS68: 8.359999657 | AT68: 8.359999657 | AU68: 8.359999657 | AV68: 0 | AW68: 0 | AX68: 0 | AY68: 0 | AZ68: 0 | BA68: 0 | BB68: 0 | BC68: 0 | BD68: 0 | BE68: 0 | BF68: 0 | BG68: 0 | BH68: 0 | BI68: 0 | BJ68: 0 | BK68: 0 | BL68: 0 | BM68: 0 | BN68: 0 | BO68: 10.14149905 | BP68: 10.14149905 | BQ68: 10.14149905 | BR68: 10.14149905 | BS68: 10.14149905 | BT68: 10.14149905 | BU68: 10.14149905 | BV68: 10.14149905 | BW68: 10.14149905 | BX68: 10.14149905 | BY68: 10.14149905 | BZ68: 10.14149905 | CA68: 10.14149905 | CB68: 10.14149905 | CC68: 10.14149905 | CD68: 10.14149905 | CE68: 10.14149905 | CF68: 10.14149905 | CG68: 10.14149905 | CH68: 0.03287310153 | CI68: 0 | CJ68: 0.01255177613 | CK68: 0 | CL68: 0.03987829444 | CM68: 0 | CN68: 0.0152265348 | CO68: 0 | CP68: 0.8243356943 | CQ68: 319585.8438 | CR68: 0 | CS68: 1.551161059 | CT68: 1.881710412 | CU68: 0 | CV68: 0 | CW68: 0 | CX68: 0 | CY68: 0 | CZ68: 10.14149905 | DA68: =1-ISBLANK(Data_by_donor_recipient_year[DAC member]) -> 1 | DB68: =IF(Data_by_donor_recipient_year[[#This Row],[Multilateral recipient?]],Mult_choice/100,1)*(Data_by_donor_recipient_year[[#This Row],[Net ODA]]+(CC_choice/100-100%)*Data_by_donor_recipient_year[[#This Row],[Climate mitigation grants]])/Data_by_donor_recipient_year[GNI] -> 2.615885472e-05
A69: 2006 | B69: 366 | C69: Panama | D69: 1 | E69: Austria | F69: 0.009999999776 | G69: 0.009999999776 | H69: 1965 | I69: 0 | J69: 0 | K69: 0 | L69: 0 | M69: 0 | N69: 0 | O69: 0 | P69: 0 | Q69: 0 | R69: 0 | S69: 0 | T69: 0 | U69: 0 | V69: 0 | W69: 0 | X69: 0 | Y69: 0 | Z69: 0 | AA69: 0 | AB69: 0 | AC69: 0 | AD69: 0.009999999776 | AE69: 0.009999999776 | AF69: 0.009999999776 | AG69: 0.009999999776 | AH69: 0.009999999776 | AI69: 0.009999999776 | AJ69: 0.009999999776 | AK69: 0.009999999776 | AL69: 0.009999999776 | AM69: 0.009999999776 | AN69: 0.009999999776 | AO69: 0.009999999776 | AP69: 0.009999999776 | AQ69: 0.009999999776 | AR69: 0.009999999776 | AS69: 0.009999999776 | AT69: 0.009999999776 | AU69: 0.009999999776 | AV69: 0 | AW69: 0 | AX69: 0 | AY69: 0 | AZ69: 0 | BA69: 0 | BB69: 0 | BC69: 0 | BD69: 0 | BE69: 0 | BF69: 0 | BG69: 0 | BH69: 0 | BI69: 0 | BJ69: 0 | BK69: 0 | BL69: 0 | BM69: 0 | BN69: 0 | BO69: 0.01213097995 | BP69: 0.01213097995 | BQ69: 0.01213097995 | BR69: 0.01213097995 | BS69: 0.01213097995 | BT69: 0.01213097995 | BU69: 0.01213097995 | BV69: 0.01213097995 | BW69: 0.01213097995 | BX69: 0.01213097995 | BY69: 0.01213097995 | BZ69: 0.01213097995 | CA69: 0.01213097995 | CB69: 0.01213097995 | CC69: 0.01213097995 | CD69: 0.01213097995 | CE69: 0.01213097995 | CF69: 0.01213097995 | CG69: 0.01213097995 | CH69: 0 | CI69: 0 | CJ69: 0 | CK69: 0 | CL69: 0 | CM69: 0 | CN69: 0 | CO69: 0 | CP69: 0.8243356943 | CQ69: 319585.8438 | CR69: 0 | CS69: 0 | CT69: 0 | CU69: 0 | CV69: 0 | CW69: 0 | CX69: 0 | CY69: 0 | CZ69: 0.01213097995 | DA69: =1-ISBLANK(Data_by_donor_recipient_year[DAC member]) -> 1 | DB69: =IF(Data_by_donor_recipient_year[[#This Row],[Multilateral recipient?]],Mult_choice/100,1)*(Data_by_donor_recipient_year[[#This Row],[Net ODA]]+(CC_choice/100-100%)*Data_by_donor_recipient_year[[#This Row],[Climate mitigation grants]])/Data_by_donor_recipient_year[GNI] -> 3.129049666e-08
A70: 2006 | B70: 389 | C70: N.& C. America, regional/multi-country | D70: 1 | E70: Austria | F70: 1.879999995 | G70: 1.879999995 | H70: 1965 | I70: 0 | J70: 0 | K70: 0 | L70: 0 | M70: 0 | N70: 0 | O70: 0 | P70: 0 | Q70: 0 | R70: 0 | S70: 0 | T70: 0 | U70: 0 | V70: 0 | W70: 0 | X70: 0 | Y70: 0 | Z70: 0 | AA70: 0 | AB70: 0 | AC70: 0 | AD70: 1.879999995 | AE70: 1.879999995 | AF70: 1.879999995 | AG70: 1.879999995 | AH70: 1.879999995 | AI70: 1.879999995 | AJ70: 1.879999995 | AK70: 1.879999995 | AL70: 1.879999995 | AM70: 1.879999995 | AN70: 1.879999995 | AO70: 1.879999995 | AP70: 1.879999995 | AQ70: 1.879999995 | AR70: 1.879999995 | AS70: 1.879999995 | AT70: 1.879999995 | AU70: 1.879999995 | AV70: 0 | AW70: 0 | AX70: 0 | AY70: 0 | AZ70: 0 | BA70: 0 | BB70: 0 | BC70: 0 | BD70: 0 | BE70: 0 | BF70: 0 | BG70: 0 | BH70: 0 | BI70: 0 | BJ70: 0 | BK70: 0 | BL70: 0 | BM70: 0 | BN70: 0 | BO70: 2.280624275 | BP70: 2.280624275 | BQ70: 2.280624275 | BR70: 2.280624275 | BS70: 2.280624275 | BT70: 2.280624275 | BU70: 2.280624275 | BV70: 2.280624275 | BW70: 2.280624275 | BX70: 2.280624275 | BY70: 2.280624275 | BZ70: 2.280624275 | CA70: 2.280624275 | CB70: 2.280624275 | CC70: 2.280624275 | CD70: 2.280624275 | CE70: 2.280624275 | CF70: 2.280624275 | CG70: 2.280624275 | CH70: 0 | CI70: 0 | CJ70: 0 | CK70: 0 | CL70: 0 | CM70: 0 | CN70: 0 | CO70: 0 | CP70: 0.8243356943 | CQ70: 319585.8438 | CR70: 0 | CS70: 0 | CT70: 0 | CU70: 0 | CV70: 0 | CW70: 0 | CX70: 0 | CY70: 0 | CZ70: 2.280624275 | DA70: =1-ISBLANK(Data_by_donor_recipient_year[DAC member]) -> 1 | DB70: =IF(Data_by_donor_recipient_year[[#This Row],[Multilateral recipient?]],Mult_choice/100,1)*(Data_by_donor_recipient_year[[#This Row],[Net ODA]]+(CC_choice/100-100%)*Data_by_donor_recipient_year[[#This Row],[Climate mitigation grants]])/Data_by_donor_recipient_year[GNI] -> 5.882613489e-06
A71: 2006 | B71: 425 | C71: Argentina | D71: 1 | E71: Austria | F71: 0.1000000015 | G71: 0.1000000015 | H71: 1965 | I71: 0 | J71: 0 | K71: 0 | L71: 0 | M71: 0 | N71: 0 | O71: 0 | P71: 0 | Q71: 0 | R71: 0 | S71: 0 | T71: 0 | U71: 0 | V71: 0 | W71: 0 | X71: 0 | Y71: 0 | Z71: 0 | AA71: 0 | AB71: 0 | AC71: 0 | AD71: 0.1000000015 | AE71: 0.1000000015 | AF71: 0.1000000015 | AG71: 0.1000000015 | AH71: 0.1000000015 | AI71: 0.1000000015 | AJ71: 0.1000000015 | AK71: 0.1000000015 | AL71: 0.1000000015 | AM71: 0.1000000015 | AN71: 0.1000000015 | AO71: 0.1000000015 | AP71: 0.1000000015 | AQ71: 0.1000000015 | AR71: 0.1000000015 | AS71: 0.1000000015 | AT71: 0.1000000015 | AU71: 0.1000000015 | AV71: 0 | AW71: 0 | AX71: 0 | AY71: 0 | AZ71: 0 | BA71: 0 | BB71: 0 | BC71: 0 | BD71: 0 | BE71: 0 | BF71: 0 | BG71: 0 | BH71: 0 | BI71: 0 | BJ71: 0 | BK71: 0 | BL71: 0 | BM71: 0 | BN71: 0 | BO71: 0.121309804 | BP71: 0.121309804 | BQ71: 0.121309804 | BR71: 0.121309804 | BS71: 0.121309804 | BT71: 0.121309804 | BU71: 0.121309804 | BV71: 0.121309804 | BW71: 0.121309804 | BX71: 0.121309804 | BY71: 0.121309804 | BZ71: 0.121309804 | CA71: 0.121309804 | CB71: 0.121309804 | CC71: 0.121309804 | CD71: 0.121309804 | CE71: 0.121309804 | CF71: 0.121309804 | CG71: 0.121309804 | CH71: 0.08218903095 | CI71: 0 | CJ71: 0 | CK71: 0 | CL71: 0.09970335085 | CM71: 0 | CN71: 0 | CO71: 0 | CP71: 0.8243356943 | CQ71: 319585.8438 | CR71: 0 | CS71: 0 | CT71: 0 | CU71: 0 | CV71: 0 | CW71: 0 | CX71: 0 | CY71: 0 | CZ71: 0.121309804 | DA71: =1-ISBLANK(Data_by_donor_recipient_year[DAC member]) -> 1 | DB71: =IF(Data_by_donor_recipient_year[[#This Row],[Multilateral recipient?]],Mult_choice/100,1)*(Data_by_donor_recipient_year[[#This Row],[Net ODA]]+(CC_choice/100-100%)*Data_by_donor_recipient_year[[#This Row],[Climate mitigation grants]])/Data_by_donor_recipient_year[GNI] -> 3.129049783e-07
A72: 2006 | B72: 428 | C72: Bolivia | D72: 1 | E72: Austria | F72: 0.1899999976 | G72: 0.1899999976 | H72: 1965 | I72: 0 | J72: 0 | K72: 0 | L72: 0 | M72: 0 | N72: 0 | O72: 0 | P72: 0 | Q72: 0 | R72: 0 | S72: 0 | T72: 0 | U72: 0 | V72: 0 | W72: 0 | X72: 0 | Y72: 0 | Z72: 0 | AA72: 0 | AB72: 0 | AC72: 0 | AD72: 0.1899999976 | AE72: 0.1899999976 | AF72: 0.1899999976 | AG72: 0.1899999976 | AH72: 0.1899999976 | AI72: 0.1899999976 | AJ72: 0.1899999976 | AK72: 0.1899999976 | AL72: 0.1899999976 | AM72: 0.1899999976 | AN72: 0.1899999976 | AO72: 0.1899999976 | AP72: 0.1899999976 | AQ72: 0.1899999976 | AR72: 0.1899999976 | AS72: 0.1899999976 | AT72: 0.1899999976 | AU72: 0.1899999976 | AV72: 0 | AW72: 0 | AX72: 0 | AY72: 0 | AZ72: 0 | BA72: 0 | BB72: 0 | BC72: 0 | BD72: 0 | BE72: 0 | BF72: 0 | BG72: 0 | BH72: 0 | BI72: 0 | BJ72: 0 | BK72: 0 | BL72: 0 | BM72: 0 | BN72: 0 | BO72: 0.2304886212 | BP72: 0.2304886212 | BQ72: 0.2304886212 | BR72: 0.2304886212 | BS72: 0.2304886212 | BT72: 0.2304886212 | BU72: 0.2304886212 | BV72: 0.2304886212 | BW72: 0.2304886212 | BX72: 0.2304886212 | BY72: 0.2304886212 | BZ72: 0.2304886212 | CA72: 0.2304886212 | CB72: 0.2304886212 | CC72: 0.2304886212 | CD72: 0.2304886212 | CE72: 0.2304886212 | CF72: 0.2304886212 | CG72: 0.2304886212 | CH72: 0.09041044116 | CI72: 0 | CJ72: 0 | CK72: 0 | CL72: 0.1096767273 | CM72: 0 | CN72: 0 | CO72: 0 | CP72: 0.8243356943 | CQ72: 319585.8438 | CR72: 1 | CS72: 0.003765532747 | CT72: 0.004567960326 | CU72: 0 | CV72: 0 | CW72: 0 | CX72: 0 | CY72: 0 | CZ72: 0.2304886212 | DA72: =1-ISBLANK(Data_by_donor_recipient_year[DAC member]) -> 1 | DB72: =IF(Data_by_donor_recipient_year[[#This Row],[Multilateral recipient?]],Mult_choice/100,1)*(Data_by_donor_recipient_year[[#This Row],[Net ODA]]+(CC_choice/100-100%)*Data_by_donor_recipient_year[[#This Row],[Climate mitigation grants]])/Data_by_donor_recipient_year[GNI] -> 5.945194424e-07
A73: 2006 | B73: 431 | C73: Brazil | D73: 1 | E73: Austria | F73: 2.769999981 | G73: 2.769999981 | H73: 1965 | I73: 0 | J73: 0 | K73: 0 | L73: 0 | M73: 0 | N73: 0 | O73: 0 | P73: 0 | Q73: 0 | R73: 0 | S73: 0 | T73: 0 | U73: 0 | V73: 0 | W73: 0 | X73: 0 | Y73: 0 | Z73: 0 | AA73: 0 | AB73: 0 | AC73: 0 | AD73: 2.769999981 | AE73: 2.769999981 | AF73: 2.769999981 | AG73: 2.769999981 | AH73: 2.769999981 | AI73: 2.769999981 | AJ73: 2.769999981 | AK73: 2.769999981 | AL73: 2.769999981 | AM73: 2.769999981 | AN73: 2.769999981 | AO73: 2.769999981 | AP73: 2.769999981 | AQ73: 2.769999981 | AR73: 2.769999981 | AS73: 2.769999981 | AT73: 2.769999981 | AU73: 2.769999981 | AV73: 0 | AW73: 0 | AX73: 0 | AY73: 0 | AZ73: 0 | BA73: 0 | BB73: 0 | BC73: 0 | BD73: 0 | BE73: 0 | BF73: 0 | BG73: 0 | BH73: 0 | BI73: 0 | BJ73: 0 | BK73: 0 | BL73: 0 | BM73: 0 | BN73: 0 | BO73: 3.360281497 | BP73: 3.360281497 | BQ73: 3.360281497 | BR73: 3.360281497 | BS73: 3.360281497 | BT73: 3.360281497 | BU73: 3.360281497 | BV73: 3.360281497 | BW73: 3.360281497 | BX73: 3.360281497 | BY73: 3.360281497 | BZ73: 3.360281497 | CA73: 3.360281497 | CB73: 3.360281497 | CC73: 3.360281497 | CD73: 3.360281497 | CE73: 3.360281497 | CF73: 3.360281497 | CG73: 3.360281497 | CH73: 0.3780595064 | CI73: 0 | CJ73: 0 | CK73: 0 | CL73: 0.4586232393 | CM73: 0 | CN73: 0 | CO73: 0 | CP73: 0.8243356943 | CQ73: 319585.8438 | CR73: 0 | CS73: 0.4974896517 | CT73: 0.6035037123 | CU73: 0 | CV73: 0 | CW73: 0 | CX73: 0 | CY73: 0 | CZ73: 3.360281497 | DA73: =1-ISBLANK(Data_by_donor_recipient_year[DAC member]) -> 1 | DB73: =IF(Data_by_donor_recipient_year[[#This Row],[Multilateral recipient?]],Mult_choice/100,1)*(Data_by_donor_recipient_year[[#This Row],[Net ODA]]+(CC_choice/100-100%)*Data_by_donor_recipient_year[[#This Row],[Climate mitigation grants]])/Data_by_donor_recipient_year[GNI] -> 8.667467709e-06
A74: 2006 | B74: 434 | C74: Chile | D74: 1 | E74: Austria | F74: 0.07999999821 | G74: 0.07999999821 | H74: 1965 | I74: 0 | J74: 0 | K74: 0 | L74: 0 | M74: 0 | N74: 0 | O74: 0 | P74: 0 | Q74: 0 | R74: 0 | S74: 0 | T74: 0 | U74: 0 | V74: 0 | W74: 0 | X74: 0 | Y74: 0 | Z74: 0 | AA74: 0 | AB74: 0 | AC74: 0 | AD74: 0.07999999821 | AE74: 0.07999999821 | AF74: 0.07999999821 | AG74: 0.07999999821 | AH74: 0.07999999821 | AI74: 0.07999999821 | AJ74: 0.07999999821 | AK74: 0.07999999821 | AL74: 0.07999999821 | AM74: 0.07999999821 | AN74: 0.07999999821 | AO74: 0.07999999821 | AP74: 0.07999999821 | AQ74: 0.07999999821 | AR74: 0.07999999821 | AS74: 0.07999999821 | AT74: 0.07999999821 | AU74: 0.07999999821 | AV74: 0 | AW74: 0 | AX74: 0 | AY74: 0 | AZ74: 0 | BA74: 0 | BB74: 0 | BC74: 0 | BD74: 0 | BE74: 0 | BF74: 0 | BG74: 0 | BH74: 0 | BI74: 0 | BJ74: 0 | BK74: 0 | BL74: 0 | BM74: 0 | BN74: 0 | BO74: 0.09704783957 | BP74: 0.09704783957 | BQ74: 0.09704783957 | BR74: 0.09704783957 | BS74: 0.09704783957 | BT74: 0.09704783957 | BU74: 0.09704783957 | BV74: 0.09704783957 | BW74: 0.09704783957 | BX74: 0.09704783957 | BY74: 0.09704783957 | BZ74: 0.09704783957 | CA74: 0.09704783957 | CB74: 0.09704783957 | CC74: 0.09704783957 | CD74: 0.09704783957 | CE74: 0.09704783957 | CF74: 0.09704783957 | CG74: 0.09704783957 | CH74: 0.07396761328 | CI74: 0 | CJ74: 0 | CK74: 0 | CL74: 0.08972996534 | CM74: 0 | CN74: 0 | CO74: 0 | CP74: 0.8243356943 | CQ74: 319585.8438 | CR74: 0 | CS74: 0 | CT74: 0 | CU74: 0 | CV74: 0 | CW74: 0 | CX74: 0 | CY74: 0 | CZ74: 0.09704783957 | DA74: =1-ISBLANK(Data_by_donor_recipient_year[DAC member]) -> 1 | DB74: =IF(Data_by_donor_recipient_year[[#This Row],[Multilateral recipient?]],Mult_choice/100,1)*(Data_by_donor_recipient_year[[#This Row],[Net ODA]]+(CC_choice/100-100%)*Data_by_donor_recipient_year[[#This Row],[Climate mitigation grants]])/Data_by_donor_recipient_year[GNI] -> 2.503239733e-07
A75: 2006 | B75: 437 | C75: Colombia | D75: 1 | E75: Austria | F75: 0.9200000167 | G75: 0.9200000167 | H75: 1965 | I75: 0 | J75: 0 | K75: 0 | L75: 0 | M75: 0 | N75: 0 | O75: 0 | P75: 0 | Q75: 0 | R75: 0 | S75: 0 | T75: 0 | U75: 0 | V75: 0 | W75: 0 | X75: 0 | Y75: 0 | Z75: 0 | AA75: 0 | AB75: 0 | AC75: 0 | AD75: 0.9200000167 | AE75: 0.9200000167 | AF75: 0.9200000167 | AG75: 0.9200000167 | AH75: 0.9200000167 | AI75: 0.9200000167 | AJ75: 0.9200000167 | AK75: 0.9200000167 | AL75: 0.9200000167 | AM75: 0.9200000167 | AN75: 0.9200000167 | AO75: 0.9200000167 | AP75: 0.9200000167 | AQ75: 0.9200000167 | AR75: 0.9200000167 | AS75: 0.9200000167 | AT75: 0.9200000167 | AU75: 0.9200000167 | AV75: 0 | AW75: 0 | AX75: 0 | AY75: 0 | AZ75: 0 | BA75: 0 | BB75: 0 | BC75: 0 | BD75: 0 | BE75: 0 | BF75: 0 | BG75: 0 | BH75: 0 | BI75: 0 | BJ75: 0 | BK75: 0 | BL75: 0 | BM75: 0 | BN75: 0 | BO75: 1.1160502 | BP75: 1.1160502 | BQ75: 1.1160502 | BR75: 1.1160502 | BS75: 1.1160502 | BT75: 1.1160502 | BU75: 1.1160502 | BV75: 1.1160502 | BW75: 1.1160502 | BX75: 1.1160502 | BY75: 1.1160502 | BZ75: 1.1160502 | CA75: 1.1160502 | CB75: 1.1160502 | CC75: 1.1160502 | CD75: 1.1160502 | CE75: 1.1160502 | CF75: 1.1160502 | CG75: 1.1160502 | CH75: 0.4191540182 | CI75: 0 | CJ75: 0 | CK75: 0 | CL75: 0.5084749102 | CM75: 0 | CN75: 0 | CO75: 0 | CP75: 0.8243356943 | CQ75: 319585.8438 | CR75: 0 | CS75: 0.3137944043 | CT75: 0.380663371 | CU75: 0 | CV75: 0 | CW75: 0 | CX75: 0 | CY75: 0 | CZ75: 1.1160502 | DA75: =1-ISBLANK(Data_by_donor_recipient_year[DAC member]) -> 1 | DB75: =IF(Data_by_donor_recipient_year[[#This Row],[Multilateral recipient?]],Mult_choice/100,1)*(Data_by_donor_recipient_year[[#This Row],[Net ODA]]+(CC_choice/100-100%)*Data_by_donor_recipient_year[[#This Row],[Climate mitigation grants]])/Data_by_donor_recipient_year[GNI] -> 2.878725809e-06
A76: 2006 | B76: 440 | C76: Ecuador | D76: 1 | E76: Austria | F76: 0.200000003 | G76: 0.200000003 | H76: 1965 | I76: 0 | J76: 0 | K76: 0 | L76: 0 | M76: 0 | N76: 0 | O76: 0 | P76: 0 | Q76: 0 | R76: 0 | S76: 0 | T76: 0 | U76: 0 | V76: 0 | W76: 0 | X76: 0 | Y76: 0 | Z76: 0 | AA76: 0 | AB76: 0 | AC76: 0 | AD76: 0.200000003 | AE76: 0.200000003 | AF76: 0.200000003 | AG76: 0.200000003 | AH76: 0.200000003 | AI76: 0.200000003 | AJ76: 0.200000003 | AK76: 0.200000003 | AL76: 0.200000003 | AM76: 0.200000003 | AN76: 0.200000003 | AO76: 0.200000003 | AP76: 0.200000003 | AQ76: 0.200000003 | AR76: 0.200000003 | AS76: 0.200000003 | AT76: 0.200000003 | AU76: 0.200000003 | AV76: 0 | AW76: 0 | AX76: 0 | AY76: 0 | AZ76: 0 | BA76: 0 | BB76: 0 | BC76: 0 | BD76: 0 | BE76: 0 | BF76: 0 | BG76: 0 | BH76: 0 | BI76: 0 | BJ76: 0 | BK76: 0 | BL76: 0 | BM76: 0 | BN76: 0 | BO76: 0.242619608 | BP76: 0.242619608 | BQ76: 0.242619608 | BR76: 0.242619608 | BS76: 0.242619608 | BT76: 0.242619608 | BU76: 0.242619608 | BV76: 0.242619608 | BW76: 0.242619608 | BX76: 0.242619608 | BY76: 0.242619608 | BZ76: 0.242619608 | CA76: 0.242619608 | CB76: 0.242619608 | CC76: 0.242619608 | CD76: 0.242619608 | CE76: 0.242619608 | CF76: 0.242619608 | CG76: 0.242619608 | CH76: 0.1479352266 | CI76: 0 | CJ76: 0 | CK76: 0 | CL76: 0.1794599307 | CM76: 0 | CN76: 0 | CO76: 0 | CP76: 0.8243356943 | CQ76: 319585.8438 | CR76: 0 | CS76: 0 | CT76: 0 | CU76: 0 | CV76: 0 | CW76: 0 | CX76: 0 | CY76: 0 | CZ76: 0.242619608 | DA76: =1-ISBLANK(Data_by_donor_recipient_year[DAC member]) -> 1 | DB76: =IF(Data_by_donor_recipient_year[[#This Row],[Multilateral recipient?]],Mult_choice/100,1)*(Data_by_donor_recipient_year[[#This Row],[Net ODA]]+(CC_choice/100-100%)*Data_by_donor_recipient_year[[#This Row],[Climate mitigation grants]])/Data_by_donor_recipient_year[GNI] -> 6.258099565e-07
A77: 2006 | B77: 451 | C77: Paraguay | D77: 1 | E77: Austria | F77: 0.02999999933 | G77: 0.02999999933 | H77: 1965 | I77: 0 | J77: 0 | K77: 0 | L77: 0 | M77: 0 | N77: 0 | O77: 0 | P77: 0 | Q77: 0 | R77: 0 | S77: 0 | T77: 0 | U77: 0 | V77: 0 | W77: 0 | X77: 0 | Y77: 0 | Z77: 0 | AA77: 0 | AB77: 0 | AC77: 0 | AD77: 0.02999999933 | AE77: 0.02999999933 | AF77: 0.02999999933 | AG77: 0.02999999933 | AH77: 0.02999999933 | AI77: 0.02999999933 | AJ77: 0.02999999933 | AK77: 0.02999999933 | AL77: 0.02999999933 | AM77: 0.02999999933 | AN77: 0.02999999933 | AO77: 0.02999999933 | AP77: 0.02999999933 | AQ77: 0.02999999933 | AR77: 0.02999999933 | AS77: 0.02999999933 | AT77: 0.02999999933 | AU77: 0.02999999933 | AV77: 0 | AW77: 0 | AX77: 0 | AY77: 0 | AZ77: 0 | BA77: 0 | BB77: 0 | BC77: 0 | BD77: 0 | BE77: 0 | BF77: 0 | BG77: 0 | BH77: 0 | BI77: 0 | BJ77: 0 | BK77: 0 | BL77: 0 | BM77: 0 | BN77: 0 | BO77: 0.03639293984 | BP77: 0.03639293984 | BQ77: 0.03639293984 | BR77: 0.03639293984 | BS77: 0.03639293984 | BT77: 0.03639293984 | BU77: 0.03639293984 | BV77: 0.03639293984 | BW77: 0.03639293984 | BX77: 0.03639293984 | BY77: 0.03639293984 | BZ77: 0.03639293984 | CA77: 0.03639293984 | CB77: 0.03639293984 | CC77: 0.03639293984 | CD77: 0.03639293984 | CE77: 0.03639293984 | CF77: 0.03639293984 | CG77: 0.03639293984 | CH77: 0.02465168759 | CI77: 0 | CJ77: 0 | CK77: 0 | CL77: 0.02990491345 | CM77: 0 | CN77: 0 | CO77: 0 | CP77: 0.8243356943 | CQ77: 319585.8438 | CR77: 0 | CS77: 0 | CT77: 0 | CU77: 0 | CV77: 0 | CW77: 0 | CX77: 0 | CY77: 0 | CZ77: 0.03639293984 | DA77: =1-ISBLANK(Data_by_donor_recipient_year[DAC member]) -> 1 | DB77: =IF(Data_by_donor_recipient_year[[#This Row],[Multilateral recipient?]],Mult_choice/100,1)*(Data_by_donor_recipient_year[[#This Row],[Net ODA]]+(CC_choice/100-100%)*Data_by_donor_recipient_year[[#This Row],[Climate mitigation grants]])/Data_by_donor_recipient_year[GNI] -> 9.387148998e-08
A78: 2006 | B78: 454 | C78: Peru | D78: 1 | E78: Austria | F78: 0.5799999833 | G78: 0.5799999833 | H78: 1965 | I78: 0 | J78: 0 | K78: 0 | L78: 0 | M78: 0 | N78: 0 | O78: 0 | P78: 0 | Q78: 0 | R78: 0 | S78: 0 | T78: 0 | U78: 0 | V78: 0 | W78: 0 | X78: 0 | Y78: 0 | Z78: 0 | AA78: 0 | AB78: 0 | AC78: 0 | AD78: 0.5799999833 | AE78: 0.5799999833 | AF78: 0.5799999833 | AG78: 0.5799999833 | AH78: 0.5799999833 | AI78: 0.5799999833 | AJ78: 0.5799999833 | AK78: 0.5799999833 | AL78: 0.5799999833 | AM78: 0.5799999833 | AN78: 0.5799999833 | AO78: 0.5799999833 | AP78: 0.5799999833 | AQ78: 0.5799999833 | AR78: 0.5799999833 | AS78: 0.5799999833 | AT78: 0.5799999833 | AU78: 0.5799999833 | AV78: 0 | AW78: 0 | AX78: 0 | AY78: 0 | AZ78: 0 | BA78: 0 | BB78: 0 | BC78: 0 | BD78: 0 | BE78: 0 | BF78: 0 | BG78: 0 | BH78: 0 | BI78: 0 | BJ78: 0 | BK78: 0 | BL78: 0 | BM78: 0 | BN78: 0 | BO78: 0.7035968323 | BP78: 0.7035968323 | BQ78: 0.7035968323 | BR78: 0.7035968323 | BS78: 0.7035968323 | BT78: 0.7035968323 | BU78: 0.7035968323 | BV78: 0.7035968323 | BW78: 0.7035968323 | BX78: 0.7035968323 | BY78: 0.7035968323 | BZ78: 0.7035968323 | CA78: 0.7035968323 | CB78: 0.7035968323 | CC78: 0.7035968323 | CD78: 0.7035968323 | CE78: 0.7035968323 | CF78: 0.7035968323 | CG78: 0.7035968323 | CH78: 0.4109451473 | CI78: 0 | CJ78: 0 | CK78: 0 | CL78: 0.4985167452 | CM78: 0 | CN78: 0 | CO78: 0 | CP78: 0.8243356943 | CQ78: 319585.8438 | CR78: 0 | CS78: 0 | CT78: 0 | CU78: 0 | CV78: 0 | CW78: 0 | CX78: 0 | CY78: 0 | CZ78: 0.7035968323 | DA78: =1-ISBLANK(Data_by_donor_recipient_year[DAC member]) -> 1 | DB78: =IF(Data_by_donor_recipient_year[[#This Row],[Multilateral recipient?]],Mult_choice/100,1)*(Data_by_donor_recipient_year[[#This Row],[Net ODA]]+(CC_choice/100-100%)*Data_by_donor_recipient_year[[#This Row],[Climate mitigation grants]])/Data_by_donor_recipient_year[GNI] -> 1.814848795e-06
A79: 2006 | B79: 463 | C79: Venezuela | D79: 1 | E79: Austria | F79: 0.1299999952 | G79: 0.1299999952 | H79: 1965 | I79: 0 | J79: 0 | K79: 0 | L79: 0 | M79: 0 | N79: 0 | O79: 0 | P79: 0 | Q79: 0 | R79: 0 | S79: 0 | T79: 0 | U79: 0 | V79: 0 | W79: 0 | X79: 0 | Y79: 0 | Z79: 0 | AA79: 0 | AB79: 0 | AC79: 0 | AD79: 0.1299999952 | AE79: 0.1299999952 | AF79: 0.1299999952 | AG79: 0.1299999952 | AH79: 0.1299999952 | AI79: 0.1299999952 | AJ79: 0.1299999952 | AK79: 0.1299999952 | AL79: 0.1299999952 | AM79: 0.1299999952 | AN79: 0.1299999952 | AO79: 0.1299999952 | AP79: 0.1299999952 | AQ79: 0.1299999952 | AR79: 0.1299999952 | AS79: 0.1299999952 | AT79: 0.1299999952 | AU79: 0.1299999952 | AV79: 0 | AW79: 0 | AX79: 0 | AY79: 0 | AZ79: 0 | BA79: 0 | BB79: 0 | BC79: 0 | BD79: 0 | BE79: 0 | BF79: 0 | BG79: 0 | BH79: 0 | BI79: 0 | BJ79: 0 | BK79: 0 | BL79: 0 | BM79: 0 | BN79: 0 | BO79: 0.157702737 | BP79: 0.157702737 | BQ79: 0.157702737 | BR79: 0.157702737 | BS79: 0.157702737 | BT79: 0.157702737 | BU79: 0.157702737 | BV79: 0.157702737 | BW79: 0.157702737 | BX79: 0.157702737 | BY79: 0.157702737 | BZ79: 0.157702737 | CA79: 0.157702737 | CB79: 0.157702737 | CC79: 0.157702737 | CD79: 0.157702737 | CE79: 0.157702737 | CF79: 0.157702737 | CG79: 0.157702737 | CH79: 0.09863185883 | CI79: 0 | CJ79: 0 | CK79: 0 | CL79: 0.1196501128 | CM79: 0 | CN79: 0 | CO79: 0 | CP79: 0.8243356943 | CQ79: 319585.8438 | CR79: 0 | CS79: 0 | CT79: 0 | CU79: 0 | CV79: 0 | CW79: 0 | CX79: 0 | CY79: 0 | CZ79: 0.157702737 | DA79: =1-ISBLANK(Data_by_donor_recipient_year[DAC member]) -> 1 | DB79: =IF(Data_by_donor_recipient_year[[#This Row],[Multilateral recipient?]],Mult_choice/100,1)*(Data_by_donor_recipient_year[[#This Row],[Net ODA]]+(CC_choice/100-100%)*Data_by_donor_recipient_year[[#This Row],[Climate mitigation grants]])/Data_by_donor_recipient_year[GNI] -> 4.067764508e-07
A80: 2006 | B80: 498 | C80: America, regional/multi-country | D80: 1 | E80: Austria | F80: 0.02999999933 | G80: 0.02999999933 | H80: 1965 | I80: 0 | J80: 0 | K80: 0 | L80: 0 | M80: 0 | N80: 0 | O80: 0 | P80: 0 | Q80: 0 | R80: 0 | S80: 0 | T80: 0 | U80: 0 | V80: 0 | W80: 0 | X80: 0 | Y80: 0 | Z80: 0 | AA80: 0 | AB80: 0 | AC80: 0 | AD80: 0.02999999933 | AE80: 0.02999999933 | AF80: 0.02999999933 | AG80: 0.02999999933 | AH80: 0.02999999933 | AI80: 0.02999999933 | AJ80: 0.02999999933 | AK80: 0.02999999933 | AL80: 0.02999999933 | AM80: 0.02999999933 | AN80: 0.02999999933 | AO80: 0.02999999933 | AP80: 0.02999999933 | AQ80: 0.02999999933 | AR80: 0.02999999933 | AS80: 0.02999999933 | AT80: 0.02999999933 | AU80: 0.02999999933 | AV80: 0 | AW80: 0 | AX80: 0 | AY80: 0 | AZ80: 0 | BA80: 0 | BB80: 0 | BC80: 0 | BD80: 0 | BE80: 0 | BF80: 0 | BG80: 0 | BH80: 0 | BI80: 0 | BJ80: 0 | BK80: 0 | BL80: 0 | BM80: 0 | BN80: 0 | BO80: 0.03639293984 | BP80: 0.03639293984 | BQ80: 0.03639293984 | BR80: 0.03639293984 | BS80: 0.03639293984 | BT80: 0.03639293984 | BU80: 0.03639293984 | BV80: 0.03639293984 | BW80: 0.03639293984 | BX80: 0.03639293984 | BY80: 0.03639293984 | BZ80: 0.03639293984 | CA80: 0.03639293984 | CB80: 0.03639293984 | CC80: 0.03639293984 | CD80: 0.03639293984 | CE80: 0.03639293984 | CF80: 0.03639293984 | CG80: 0.03639293984 | CH80: 0 | CI80: 0 | CJ80: 0 | CK80: 0 | CL80: 0 | CM80: 0 | CN80: 0 | CO80: 0 | CP80: 0.8243356943 | CQ80: 319585.8438 | CR80: 0 | CS80: 0 | CT80: 0 | CU80: 0 | CV80: 0 | CW80: 0 | CX80: 0 | CY80: 0 | CZ80: 0.03639293984 | DA80: =1-ISBLANK(Data_by_donor_recipient_year[DAC member]) -> 1 | DB80: =IF(Data_by_donor_recipient_year[[#This Row],[Multilateral recipient?]],Mult_choice/100,1)*(Data_by_donor_recipient_year[[#This Row],[Net ODA]]+(CC_choice/100-100%)*Data_by_donor_recipient_year[[#This Row],[Climate mitigation grants]])/Data_by_donor_recipient_year[GNI] -> 9.387148998e-08
A81: 2006 | B81: 540 | C81: Iran | D81: 1 | E81: Austria | F81: 3.400000095 | G81: 3.400000095 | H81: 1965 | I81: 0 | J81: 0 | K81: 0 | L81: 0 | M81: 0 | N81: 0 | O81: 0 | P81: 0 | Q81: 0 | R81: 0 | S81: 0 | T81: 0 | U81: 0 | V81: 0 | W81: 0 | X81: 0 | Y81: 0 | Z81: 0 | AA81: 0 | AB81: 0 | AC81: 0 | AD81: 3.400000095 | AE81: 3.400000095 | AF81: 3.400000095 | AG81: 3.400000095 | AH81: 3.400000095 | AI81: 3.400000095 | AJ81: 3.400000095 | AK81: 3.400000095 | AL81: 3.400000095 | AM81: 3.400000095 | AN81: 3.400000095 | AO81: 3.400000095 | AP81: 3.400000095 | AQ81: 3.400000095 | AR81: 3.400000095 | AS81: 3.400000095 | AT81: 3.400000095 | AU81: 3.400000095 | AV81: 0 | AW81: 0 | AX81: 0 | AY81: 0 | AZ81: 0 | BA81: 0 | BB81: 0 | BC81: 0 | BD81: 0 | BE81: 0 | BF81: 0 | BG81: 0 | BH81: 0 | BI81: 0 | BJ81: 0 | BK81: 0 | BL81: 0 | BM81: 0 | BN81: 0 | BO81: 4.12453339 | BP81: 4.12453339 | BQ81: 4.12453339 | BR81: 4.12453339 | BS81: 4.12453339 | BT81: 4.12453339 | BU81: 4.12453339 | BV81: 4.12453339 | BW81: 4.12453339 | BX81: 4.12453339 | BY81: 4.12453339 | BZ81: 4.12453339 | CA81: 4.12453339 | CB81: 4.12453339 | CC81: 4.12453339 | CD81: 4.12453339 | CE81: 4.12453339 | CF81: 4.12453339 | CG81: 4.12453339 | CH81: 3.139588356 | CI81: 0 | CJ81: 0 | CK81: 0 | CL81: 3.808628424 | CM81: 0 | CN81: 0 | CO81: 0 | CP81: 0.8243356943 | CQ81: 319585.8438 | CR81: 0 | CS81: 0 | CT81: 0 | CU81: 0 | CV81: 0 | CW81: 0 | CX81: 0 | CY81: 0 | CZ81: 4.12453339 | DA81: =1-ISBLANK(Data_by_donor_recipient_year[DAC member]) -> 1 | DB81: =IF(Data_by_donor_recipient_year[[#This Row],[Multilateral recipient?]],Mult_choice/100,1)*(Data_by_donor_recipient_year[[#This Row],[Net ODA]]+(CC_choice/100-100%)*Data_by_donor_recipient_year[[#This Row],[Climate mitigation grants]])/Data_by_donor_recipient_year[GNI] -> 1.06387694e-05
A82: 2006 | B82: 543 | C82: Iraq | D82: 1 | E82: Austria | F82: 231.9299927 | G82: 0.1899871826 | H82: 1965 | I82: 0 | J82: 0 | K82: 0 | L82: 0 | M82: 0 | N82: 0 | O82: 0 | P82: 0 | Q82: 0 | R82: 0 | S82: 0 | T82: 0 | U82: 0 | V82: 0 | W82: 0 | X82: 0 | Y82: 0 | Z82: 0 | AA82: 0 | AB82: 0 | AC82: 0 | AD82: 231.9299927 | AE82: 231.9299927 | AF82: 231.9299927 | AG82: 231.9299927 | AH82: 231.9299927 | AI82: 231.9299927 | AJ82: 0.1899871826 | AK82: 0.1899871826 | AL82: 0.1899871826 | AM82: 0.1899871826 | AN82: 0.1899871826 | AO82: 0.1899871826 | AP82: 231.9299927 | AQ82: 231.9299927 | AR82: 231.9299927 | AS82: 0.1899871826 | AT82: 0.1899871826 | AU82: 0.1899871826 | AV82: 0 | AW82: 0 | AX82: 0 | AY82: 0 | AZ82: 0 | BA82: 0 | BB82: 0 | BC82: 0 | BD82: 0 | BE82: 0 | BF82: 0 | BG82: 0 | BH82: 0 | BI82: 0 | BJ82: 0 | BK82: 0 | BL82: 0 | BM82: 0 | BN82: 0 | BO82: 281.3538153 | BP82: 281.3538153 | BQ82: 281.3538153 | BR82: 281.3538153 | BS82: 281.3538153 | BT82: 281.3538153 | BU82: 281.3538153 | BV82: 0.2304730754 | BW82: 0.2304730754 | BX82: 0.2304730754 | BY82: 0.2304730754 | BZ82: 0.2304730754 | CA82: 0.2304730754 | CB82: 281.3538153 | CC82: 281.3538153 | CD82: 281.3538153 | CE82: 0.2304730754 | CF82: 0.2304730754 | CG82: 0.2304730754 | CH82: 0.1479352266 | CI82: 0 | CJ82: 0 | CK82: 0 | CL82: 0.1794599307 | CM82: 0 | CN82: 0 | CO82: 0 | CP82: 0.8243356943 | CQ82: 319585.8438 | CR82: 0 | CS82: 0 | CT82: 0 | CU82: 0 | CV82: 0 | CW82: 0 | CX82: 0 | CY82: 0 | CZ82: 0.2304730754 | DA82: =1-ISBLANK(Data_by_donor_recipient_year[DAC member]) -> 1 | DB82: =IF(Data_by_donor_recipient_year[[#This Row],[Multilateral recipient?]],Mult_choice/100,1)*(Data_by_donor_recipient_year[[#This Row],[Net ODA]]+(CC_choice/100-100%)*Data_by_donor_recipient_year[[#This Row],[Climate mitigation grants]])/Data_by_donor_recipient_year[GNI] -> 0.0007257204823
A83: 2006 | B83: 549 | C83: Jordan | D83: 1 | E83: Austria | F83: 0.0700000003 | G83: 0.0700000003 | H83: 1965 | I83: 0 | J83: 0 | K83: 0 | L83: 0 | M83: 0 | N83: 0 | O83: 0 | P83: 0 | Q83: 0 | R83: 0 | S83: 0 | T83: 0 | U83: 0 | V83: 0 | W83: 0 | X83: 0 | Y83: 0 | Z83: 0 | AA83: 0 | AB83: 0 | AC83: 0 | AD83: 0.0700000003 | AE83: 0.0700000003 | AF83: 0.0700000003 | AG83: 0.0700000003 | AH83: 0.0700000003 | AI83: 0.0700000003 | AJ83: 0.0700000003 | AK83: 0.0700000003 | AL83: 0.0700000003 | AM83: 0.0700000003 | AN83: 0.0700000003 | AO83: 0.0700000003 | AP83: 0.0700000003 | AQ83: 0.0700000003 | AR83: 0.0700000003 | AS83: 0.0700000003 | AT83: 0.0700000003 | AU83: 0.0700000003 | AV83: 0 | AW83: 0 | AX83: 0 | AY83: 0 | AZ83: 0 | BA83: 0 | BB83: 0 | BC83: 0 | BD83: 0 | BE83: 0 | BF83: 0 | BG83: 0 | BH83: 0 | BI83: 0 | BJ83: 0 | BK83: 0 | BL83: 0 | BM83: 0 | BN83: 0 | BO83: 0.08491686188 | BP83: 0.08491686188 | BQ83: 0.08491686188 | BR83: 0.08491686188 | BS83: 0.08491686188 | BT83: 0.08491686188 | BU83: 0.08491686188 | BV83: 0.08491686188 | BW83: 0.08491686188 | BX83: 0.08491686188 | BY83: 0.08491686188 | BZ83: 0.08491686188 | CA83: 0.08491686188 | CB83: 0.08491686188 | CC83: 0.08491686188 | CD83: 0.08491686188 | CE83: 0.08491686188 | CF83: 0.08491686188 | CG83: 0.08491686188 | CH83: 0.05753734335 | CI83: 0 | CJ83: 0 | CK83: 0 | CL83: 0.0697984374 | CM83: 0 | CN83: 0 | CO83: 0 | CP83: 0.8243356943 | CQ83: 319585.8438 | CR83: 0 | CS83: 0 | CT83: 0 | CU83: 0 | CV83: 0 | CW83: 0 | CX83: 0 | CY83: 0 | CZ83: 0.08491686188 | DA83: =1-ISBLANK(Data_by_donor_recipient_year[DAC member]) -> 1 | DB83: =IF(Data_by_donor_recipient_year[[#This Row],[Multilateral recipient?]],Mult_choice/100,1)*(Data_by_donor_recipient_year[[#This Row],[Net ODA]]+(CC_choice/100-100%)*Data_by_donor_recipient_year[[#This Row],[Climate mitigation grants]])/Data_by_donor_recipient_year[GNI] -> 2.190334824e-07
A84: 2006 | B84: 550 | C84: Palestinian Adm. Areas | D84: 1 | E84: Austria | F84: 6.210000038 | G84: 6.210000038 | H84: 1965 | I84: 0 | J84: 0 | K84: 0 | L84: 0 | M84: 0 | N84: 0 | O84: 0 | P84: 0 | Q84: 0 | R84: 0 | S84: 0 | T84: 0 | U84: 0 | V84: 0 | W84: 0 | X84: 0 | Y84: 0 | Z84: 0 | AA84: 0 | AB84: 0 | AC84: 0 | AD84: 6.210000038 | AE84: 6.210000038 | AF84: 6.210000038 | AG84: 6.210000038 | AH84: 6.210000038 | AI84: 6.210000038 | AJ84: 6.210000038 | AK84: 6.210000038 | AL84: 6.210000038 | AM84: 6.210000038 | AN84: 6.210000038 | AO84: 6.210000038 | AP84: 6.210000038 | AQ84: 6.210000038 | AR84: 6.210000038 | AS84: 6.210000038 | AT84: 6.210000038 | AU84: 6.210000038 | AV84: 0 | AW84: 0 | AX84: 0 | AY84: 0 | AZ84: 0 | BA84: 0 | BB84: 0 | BC84: 0 | BD84: 0 | BE84: 0 | BF84: 0 | BG84: 0 | BH84: 0 | BI84: 0 | BJ84: 0 | BK84: 0 | BL84: 0 | BM84: 0 | BN84: 0 | BO84: 7.533338761 | BP84: 7.533338761 | BQ84: 7.533338761 | BR84: 7.533338761 | BS84: 7.533338761 | BT84: 7.533338761 | BU84: 7.533338761 | BV84: 7.533338761 | BW84: 7.533338761 | BX84: 7.533338761 | BY84: 7.533338761 | BZ84: 7.533338761 | CA84: 7.533338761 | CB84: 7.533338761 | CC84: 7.533338761 | CD84: 7.533338761 | CE84: 7.533338761 | CF84: 7.533338761 | CG84: 7.533338761 | CH84: 0.1890297532 | CI84: 0 | CJ84: 0 | CK84: 0 | CL84: 0.2293116197 | CM84: 0 | CN84: 0 | CO84: 0 | CP84: 0.8243356943 | CQ84: 319585.8438 | CR84: 0 | CS84: 0 | CT84: 0 | CU84: 0 | CV84: 0 | CW84: 0 | CX84: 0 | CY84: 0 | CZ84: 7.533338761 | DA84: =1-ISBLANK(Data_by_donor_recipient_year[DAC member]) -> 1 | DB84: =IF(Data_by_donor_recipient_year[[#This Row],[Multilateral recipient?]],Mult_choice/100,1)*(Data_by_donor_recipient_year[[#This Row],[Net ODA]]+(CC_choice/100-100%)*Data_by_donor_recipient_year[[#This Row],[Climate mitigation grants]])/Data_by_donor_recipient_year[GNI] -> 1.943139898e-05
A85: 2006 | B85: 555 | C85: Lebanon | D85: 1 | E85: Austria | F85: 1.389999986 | G85: 1.389999986 | H85: 1965 | I85: 0 | J85: 0 | K85: 0 | L85: 0 | M85: 0 | N85: 0 | O85: 0 | P85: 0 | Q85: 0 | R85: 0 | S85: 0 | T85: 0 | U85: 0 | V85: 0 | W85: 0 | X85: 0 | Y85: 0 | Z85: 0 | AA85: 0 | AB85: 0 | AC85: 0 | AD85: 1.389999986 | AE85: 1.389999986 | AF85: 1.389999986 | AG85: 1.389999986 | AH85: 1.389999986 | AI85: 1.389999986 | AJ85: 1.389999986 | AK85: 1.389999986 | AL85: 1.389999986 | AM85: 1.389999986 | AN85: 1.389999986 | AO85: 1.389999986 | AP85: 1.389999986 | AQ85: 1.389999986 | AR85: 1.389999986 | AS85: 1.389999986 | AT85: 1.389999986 | AU85: 1.389999986 | AV85: 0 | AW85: 0 | AX85: 0 | AY85: 0 | AZ85: 0 | BA85: 0 | BB85: 0 | BC85: 0 | BD85: 0 | BE85: 0 | BF85: 0 | BG85: 0 | BH85: 0 | BI85: 0 | BJ85: 0 | BK85: 0 | BL85: 0 | BM85: 0 | BN85: 0 | BO85: 1.686206233 | BP85: 1.686206233 | BQ85: 1.686206233 | BR85: 1.686206233 | BS85: 1.686206233 | BT85: 1.686206233 | BU85: 1.686206233 | BV85: 1.686206233 | BW85: 1.686206233 | BX85: 1.686206233 | BY85: 1.686206233 | BZ85: 1.686206233 | CA85: 1.686206233 | CB85: 1.686206233 | CC85: 1.686206233 | CD85: 1.686206233 | CE85: 1.686206233 | CF85: 1.686206233 | CG85: 1.686206233 | CH85: 0.1315049529 | CI85: 0 | CJ85: 0 | CK85: 0 | CL85: 0.1595283982 | CM85: 0 | CN85: 0 | CO85: 0 | CP85: 0.8243356943 | CQ85: 319585.8438 | CR85: 0 | CS85: 0 | CT85: 0 | CU85: 0 | CV85: 0 | CW85: 0 | CX85: 0 | CY85: 0 | CZ85: 1.686206233 | DA85: =1-ISBLANK(Data_by_donor_recipient_year[DAC member]) -> 1 | DB85: =IF(Data_by_donor_recipient_year[[#This Row],[Multilateral recipient?]],Mult_choice/100,1)*(Data_by_donor_recipient_year[[#This Row],[Net ODA]]+(CC_choice/100-100%)*Data_by_donor_recipient_year[[#This Row],[Climate mitigation grants]])/Data_by_donor_recipient_year[GNI] -> 4.349379088e-06
A86: 2006 | B86: 566 | C86: Saudi Arabia | D86: 1 | E86: Austria | F86: 0.02999999933 | G86: 0.02999999933 | H86: 1965 | I86: 0 | J86: 0 | K86: 0 | L86: 0 | M86: 0 | N86: 0 | O86: 0 | P86: 0 | Q86: 0 | R86: 0 | S86: 0 | T86: 0 | U86: 0 | V86: 0 | W86: 0 | X86: 0 | Y86: 0 | Z86: 0 | AA86: 0 | AB86: 0 | AC86: 0 | AD86: 0.02999999933 | AE86: 0.02999999933 | AF86: 0.02999999933 | AG86: 0.02999999933 | AH86: 0.02999999933 | AI86: 0.02999999933 | AJ86: 0.02999999933 | AK86: 0.02999999933 | AL86: 0.02999999933 | AM86: 0.02999999933 | AN86: 0.02999999933 | AO86: 0.02999999933 | AP86: 0.02999999933 | AQ86: 0.02999999933 | AR86: 0.02999999933 | AS86: 0.02999999933 | AT86: 0.02999999933 | AU86: 0.02999999933 | AV86: 0 | AW86: 0 | AX86: 0 | AY86: 0 | AZ86: 0 | BA86: 0 | BB86: 0 | BC86: 0 | BD86: 0 | BE86: 0 | BF86: 0 | BG86: 0 | BH86: 0 | BI86: 0 | BJ86: 0 | BK86: 0 | BL86: 0 | BM86: 0 | BN86: 0 | BO86: 0.03639293984 | BP86: 0.03639293984 | BQ86: 0.03639293984 | BR86: 0.03639293984 | BS86: 0.03639293984 | BT86: 0.03639293984 | BU86: 0.03639293984 | BV86: 0.03639293984 | BW86: 0.03639293984 | BX86: 0.03639293984 | BY86: 0.03639293984 | BZ86: 0.03639293984 | CA86: 0.03639293984 | CB86: 0.03639293984 | CC86: 0.03639293984 | CD86: 0.03639293984 | CE86: 0.03639293984 | CF86: 0.03639293984 | CG86: 0.03639293984 | CH86: 0.03287310153 | CI86: 0 | CJ86: 0 | CK86: 0 | CL86: 0.03987829444 | CM86: 0 | CN86: 0 | CO86: 0 | CP86: 0.8243356943 | CQ86: 319585.8438 | CR86: 0 | CS86: 0 | CT86: 0 | CU86: 0 | CV86: 0 | CW86: 0 | CX86: 0 | CY86: 0 | CZ86: 0.03639293984 | DA86: =1-ISBLANK(Data_by_donor_recipient_year[DAC member]) -> 1 | DB86: =IF(Data_by_donor_recipient_year[[#This Row],[Multilateral recipient?]],Mult_choice/100,1)*(Data_by_donor_recipient_year[[#This Row],[Net ODA]]+(CC_choice/100-100%)*Data_by_donor_recipient_year[[#This Row],[Climate mitigation grants]])/Data_by_donor_recipient_year[GNI] -> 9.387148998e-08
A87: 2006 | B87: 573 | C87: Syria | D87: 1 | E87: Austria | F87: 0.2800000012 | G87: 0.2800000012 | H87: 1965 | I87: 0 | J87: 0 | K87: 0 | L87: 0 | M87: 0 | N87: 0 | O87: 0 | P87: 0 | Q87: 0 | R87: 0 | S87: 0 | T87: 0 | U87: 0 | V87: 0 | W87: 0 | X87: 0 | Y87: 0 | Z87: 0 | AA87: 0 | AB87: 0 | AC87: 0 | AD87: 0.2800000012 | AE87: 0.2800000012 | AF87: 0.2800000012 | AG87: 0.2800000012 | AH87: 0.2800000012 | AI87: 0.2800000012 | AJ87: 0.2800000012 | AK87: 0.2800000012 | AL87: 0.2800000012 | AM87: 0.2800000012 | AN87: 0.2800000012 | AO87: 0.2800000012 | AP87: 0.2800000012 | AQ87: 0.2800000012 | AR87: 0.2800000012 | AS87: 0.2800000012 | AT87: 0.2800000012 | AU87: 0.2800000012 | AV87: 0 | AW87: 0 | AX87: 0 | AY87: 0 | AZ87: 0 | BA87: 0 | BB87: 0 | BC87: 0 | BD87: 0 | BE87: 0 | BF87: 0 | BG87: 0 | BH87: 0 | BI87: 0 | BJ87: 0 | BK87: 0 | BL87: 0 | BM87: 0 | BN87: 0 | BO87: 0.3396674475 | BP87: 0.3396674475 | BQ87: 0.3396674475 | BR87: 0.3396674475 | BS87: 0.3396674475 | BT87: 0.3396674475 | BU87: 0.3396674475 | BV87: 0.3396674475 | BW87: 0.3396674475 | BX87: 0.3396674475 | BY87: 0.3396674475 | BZ87: 0.3396674475 | CA87: 0.3396674475 | CB87: 0.3396674475 | CC87: 0.3396674475 | CD87: 0.3396674475 | CE87: 0.3396674475 | CF87: 0.3396674475 | CG87: 0.3396674475 | CH87: 0.2054725736 | CI87: 0 | CJ87: 0 | CK87: 0 | CL87: 0.2492583726 | CM87: 0 | CN87: 0 | CO87: 0 | CP87: 0.8243356943 | CQ87: 319585.8438 | CR87: 0 | CS87: 0 | CT87: 0 | CU87: 0 | CV87: 0 | CW87: 0 | CX87: 0 | CY87: 0 | CZ87: 0.3396674475 | DA87: =1-ISBLANK(Data_by_donor_recipient_year[DAC member]) -> 1 | DB87: =IF(Data_by_donor_recipient_year[[#This Row],[Multilateral recipient?]],Mult_choice/100,1)*(Data_by_donor_recipient_year[[#This Row],[Net ODA]]+(CC_choice/100-100%)*Data_by_donor_recipient_year[[#This Row],[Climate mitigation grants]])/Data_by_donor_recipient_year[GNI] -> 8.761339298e-07
A88: 2006 | B88: 580 | C88: Yemen | D88: 1 | E88: Austria | F88: 0.03999999911 | G88: 0.03999999911 | H88: 1965 | I88: 0 | J88: 0 | K88: 0 | L88: 0 | M88: 0 | N88: 0 | O88: 0 | P88: 0 | Q88: 0 | R88: 0 | S88: 0 | T88: 0 | U88: 0 | V88: 0 | W88: 0 | X88: 0 | Y88: 0 | Z88: 0 | AA88: 0 | AB88: 0 | AC88: 0 | AD88: 0.03999999911 | AE88: 0.03999999911 | AF88: 0.03999999911 | AG88: 0.03999999911 | AH88: 0.03999999911 | AI88: 0.03999999911 | AJ88: 0.03999999911 | AK88: 0.03999999911 | AL88: 0.03999999911 | AM88: 0.03999999911 | AN88: 0.03999999911 | AO88: 0.03999999911 | AP88: 0.03999999911 | AQ88: 0.03999999911 | AR88: 0.03999999911 | AS88: 0.03999999911 | AT88: 0.03999999911 | AU88: 0.03999999911 | AV88: 0 | AW88: 0 | AX88: 0 | AY88: 0 | AZ88: 0 | BA88: 0 | BB88: 0 | BC88: 0 | BD88: 0 | BE88: 0 | BF88: 0 | BG88: 0 | BH88: 0 | BI88: 0 | BJ88: 0 | BK88: 0 | BL88: 0 | BM88: 0 | BN88: 0 | BO88: 0.04852391978 | BP88: 0.04852391978 | BQ88: 0.04852391978 | BR88: 0.04852391978 | BS88: 0.04852391978 | BT88: 0.04852391978 | BU88: 0.04852391978 | BV88: 0.04852391978 | BW88: 0.04852391978 | BX88: 0.04852391978 | BY88: 0.04852391978 | BZ88: 0.04852391978 | CA88: 0.04852391978 | CB88: 0.04852391978 | CC88: 0.04852391978 | CD88: 0.04852391978 | CE88: 0.04852391978 | CF88: 0.04852391978 | CG88: 0.04852391978 | CH88: 0.02008284256 | CI88: 0 | CJ88: 0 | CK88: 0 | CL88: 0.02436245658 | CM88: 0 | CN88: 0 | CO88: 0 | CP88: 0.8243356943 | CQ88: 319585.8438 | CR88: 1 | CS88: 0 | CT88: 0 | CU88: 0 | CV88: 0 | CW88: 0 | CX88: 0 | CY88: 0 | CZ88: 0.04852391978 | DA88: =1-ISBLANK(Data_by_donor_recipient_year[DAC member]) -> 1 | DB88: =IF(Data_by_donor_recipient_year[[#This Row],[Multilateral recipient?]],Mult_choice/100,1)*(Data_by_donor_recipient_year[[#This Row],[Net ODA]]+(CC_choice/100-100%)*Data_by_donor_recipient_year[[#This Row],[Climate mitigation grants]])/Data_by_donor_recipient_year[GNI] -> 1.251619866e-07
A89: 2006 | B89: 610 | C89: Armenia | D89: 1 | E89: Austria | F89: 0.3600000143 | G89: 0.3600000143 | H89: 1965 | I89: 0 | J89: 0 | K89: 0 | L89: 0 | M89: 0 | N89: 0 | O89: 0 | P89: 0 | Q89: 0 | R89: 0 | S89: 0 | T89: 0 | U89: 0 | V89: 0 | W89: 0 | X89: 0 | Y89: 0 | Z89: 0 | AA89: 0 | AB89: 0 | AC89: 0 | AD89: 0.3600000143 | AE89: 0.3600000143 | AF89: 0.3600000143 | AG89: 0.3600000143 | AH89: 0.3600000143 | AI89: 0.3600000143 | AJ89: 0.3600000143 | AK89: 0.3600000143 | AL89: 0.3600000143 | AM89: 0.3600000143 | AN89: 0.3600000143 | AO89: 0.3600000143 | AP89: 0.3600000143 | AQ89: 0.3600000143 | AR89: 0.3600000143 | AS89: 0.3600000143 | AT89: 0.3600000143 | AU89: 0.3600000143 | AV89: 0 | AW89: 0 | AX89: 0 | AY89: 0 | AZ89: 0 | BA89: 0 | BB89: 0 | BC89: 0 | BD89: 0 | BE89: 0 | BF89: 0 | BG89: 0 | BH89: 0 | BI89: 0 | BJ89: 0 | BK89: 0 | BL89: 0 | BM89: 0 | BN89: 0 | BO89: 0.4367153052 | BP89: 0.4367153052 | BQ89: 0.4367153052 | BR89: 0.4367153052 | BS89: 0.4367153052 | BT89: 0.4367153052 | BU89: 0.4367153052 | BV89: 0.4367153052 | BW89: 0.4367153052 | BX89: 0.4367153052 | BY89: 0.4367153052 | BZ89: 0.4367153052 | CA89: 0.4367153052 | CB89: 0.4367153052 | CC89: 0.4367153052 | CD89: 0.4367153052 | CE89: 0.4367153052 | CF89: 0.4367153052 | CG89: 0.4367153052 | CH89: 0.1561566442 | CI89: 0 | CJ89: 0 | CK89: 0 | CL89: 0.1894333162 | CM89: 0 | CN89: 0 | CO89: 0 | CP89: 0.8243356943 | CQ89: 319585.8438 | CR89: 0 | CS89: 0 | CT89: 0 | CU89: 0 | CV89: 0 | CW89: 0 | CX89: 0 | CY89: 0 | CZ89: 0.4367153052 | DA89: =1-ISBLANK(Data_by_donor_recipient_year[DAC member]) -> 1 | DB89: =IF(Data_by_donor_recipient_year[[#This Row],[Multilateral recipient?]],Mult_choice/100,1)*(Data_by_donor_recipient_year[[#This Row],[Net ODA]]+(CC_choice/100-100%)*Data_by_donor_recipient_year[[#This Row],[Climate mitigation grants]])/Data_by_donor_recipient_year[GNI] -> 1.12645795e-06
A90: 2006 | B90: 611 | C90: Azerbaijan | D90: 1 | E90: Austria | F90: 0.3700000048 | G90: 0.3700000048 | H90: 1965 | I90: 0 | J90: 0 | K90: 0 | L90: 0 | M90: 0 | N90: 0 | O90: 0 | P90: 0 | Q90: 0 | R90: 0 | S90: 0 | T90: 0 | U90: 0 | V90: 0 | W90: 0 | X90: 0 | Y90: 0 | Z90: 0 | AA90: 0 | AB90: 0 | AC90: 0 | AD90: 0.3700000048 | AE90: 0.3700000048 | AF90: 0.3700000048 | AG90: 0.3700000048 | AH90: 0.3700000048 | AI90: 0.3700000048 | AJ90: 0.3700000048 | AK90: 0.3700000048 | AL90: 0.3700000048 | AM90: 0.3700000048 | AN90: 0.3700000048 | AO90: 0.3700000048 | AP90: 0.3700000048 | AQ90: 0.3700000048 | AR90: 0.3700000048 | AS90: 0.3700000048 | AT90: 0.3700000048 | AU90: 0.3700000048 | AV90: 0 | AW90: 0 | AX90: 0 | AY90: 0 | AZ90: 0 | BA90: 0 | BB90: 0 | BC90: 0 | BD90: 0 | BE90: 0 | BF90: 0 | BG90: 0 | BH90: 0 | BI90: 0 | BJ90: 0 | BK90: 0 | BL90: 0 | BM90: 0 | BN90: 0 | BO90: 0.4488462738 | BP90: 0.4488462738 | BQ90: 0.4488462738 | BR90: 0.4488462738 | BS90: 0.4488462738 | BT90: 0.4488462738 | BU90: 0.4488462738 | BV90: 0.4488462738 | BW90: 0.4488462738 | BX90: 0.4488462738 | BY90: 0.4488462738 | BZ90: 0.4488462738 | CA90: 0.4488462738 | CB90: 0.4488462738 | CC90: 0.4488462738 | CD90: 0.4488462738 | CE90: 0.4488462738 | CF90: 0.4488462738 | CG90: 0.4488462738 | CH90: 0.2383456826 | CI90: 0 | CJ90: 0 | CK90: 0 | CL90: 0.2891366761 | CM90: 0 | CN90: 0 | CO90: 0 | CP90: 0.8243356943 | CQ90: 319585.8438 | CR90: 0 | CS90: 0 | CT90: 0 | CU90: 0 | CV90: 0 | CW90: 0 | CX90: 0 | CY90: 0 | CZ90: 0.4488462738 | DA90: =1-ISBLANK(Data_by_donor_recipient_year[DAC member]) -> 1 | DB90: =IF(Data_by_donor_recipient_year[[#This Row],[Multilateral recipient?]],Mult_choice/100,1)*(Data_by_donor_recipient_year[[#This Row],[Net ODA]]+(CC_choice/100-100%)*Data_by_donor_recipient_year[[#This Row],[Climate mitigation grants]])/Data_by_donor_recipient_year[GNI] -> 1.157748417e-06
A91: 2006 | B91: 612 | C91: Georgia | D91: 1 | E91: Austria | F91: 0.8600000143 | G91: 0.8600000143 | H91: 1965 | I91: 0 | J91: 0 | K91: 0 | L91: 0 | M91: 0 | N91: 0 | O91: 0 | P91: 0 | Q91: 0 | R91: 0 | S91: 0 | T91: 0 | U91: 0 | V91: 0 | W91: 0 | X91: 0 | Y91: 0 | Z91: 0 | AA91: 0 | AB91: 0 | AC91: 0 | AD91: 0.8600000143 | AE91: 0.8600000143 | AF91: 0.8600000143 | AG91: 0.8600000143 | AH91: 0.8600000143 | AI91: 0.8600000143 | AJ91: 0.8600000143 | AK91: 0.8600000143 | AL91: 0.8600000143 | AM91: 0.8600000143 | AN91: 0.8600000143 | AO91: 0.8600000143 | AP91: 0.8600000143 | AQ91: 0.8600000143 | AR91: 0.8600000143 | AS91: 0.8600000143 | AT91: 0.8600000143 | AU91: 0.8600000143 | AV91: 0 | AW91: 0 | AX91: 0 | AY91: 0 | AZ91: 0 | BA91: 0 | BB91: 0 | BC91: 0 | BD91: 0 | BE91: 0 | BF91: 0 | BG91: 0 | BH91: 0 | BI91: 0 | BJ91: 0 | BK91: 0 | BL91: 0 | BM91: 0 | BN91: 0 | BO91: 1.043264316 | BP91: 1.043264316 | BQ91: 1.043264316 | BR91: 1.043264316 | BS91: 1.043264316 | BT91: 1.043264316 | BU91: 1.043264316 | BV91: 1.043264316 | BW91: 1.043264316 | BX91: 1.043264316 | BY91: 1.043264316 | BZ91: 1.043264316 | CA91: 1.043264316 | CB91: 1.043264316 | CC91: 1.043264316 | CD91: 1.043264316 | CE91: 1.043264316 | CF91: 1.043264316 | CG91: 1.043264316 | CH91: 0.3369649947 | CI91: 0 | CJ91: 0 | CK91: 0 | CL91: 0.4087715684 | CM91: 0 | CN91: 0 | CO91: 0 | CP91: 0.8243356943 | CQ91: 319585.8438 | CR91: 0 | CS91: 0 | CT91: 0 | CU91: 0 | CV91: 0 | CW91: 0 | CX91: 0 | CY91: 0 | CZ91: 1.043264316 | DA91: =1-ISBLANK(Data_by_donor_recipient_year[DAC member]) -> 1 | DB91: =IF(Data_by_donor_recipient_year[[#This Row],[Multilateral recipient?]],Mult_choice/100,1)*(Data_by_donor_recipient_year[[#This Row],[Net ODA]]+(CC_choice/100-100%)*Data_by_donor_recipient_year[[#This Row],[Climate mitigation grants]])/Data_by_donor_recipient_year[GNI] -> 2.690982818e-06
A92: 2006 | B92: 613 | C92: Kazakstan | D92: 1 | E92: Austria | F92: 0.1599999964 | G92: 0.1599999964 | H92: 1965 | I92: 0 | J92: 0 | K92: 0 | L92: 0 | M92: 0 | N92: 0 | O92: 0 | P92: 0 | Q92: 0 | R92: 0 | S92: 0 | T92: 0 | U92: 0 | V92: 0 | W92: 0 | X92: 0 | Y92: 0 | Z92: 0 | AA92: 0 | AB92: 0 | AC92: 0 | AD92: 0.1599999964 | AE92: 0.1599999964 | AF92: 0.1599999964 | AG92: 0.1599999964 | AH92: 0.1599999964 | AI92: 0.1599999964 | AJ92: 0.1599999964 | AK92: 0.1599999964 | AL92: 0.1599999964 | AM92: 0.1599999964 | AN92: 0.1599999964 | AO92: 0.1599999964 | AP92: 0.1599999964 | AQ92: 0.1599999964 | AR92: 0.1599999964 | AS92: 0.1599999964 | AT92: 0.1599999964 | AU92: 0.1599999964 | AV92: 0 | AW92: 0 | AX92: 0 | AY92: 0 | AZ92: 0 | BA92: 0 | BB92: 0 | BC92: 0 | BD92: 0 | BE92: 0 | BF92: 0 | BG92: 0 | BH92: 0 | BI92: 0 | BJ92: 0 | BK92: 0 | BL92: 0 | BM92: 0 | BN92: 0 | BO92: 0.1940956791 | BP92: 0.1940956791 | BQ92: 0.1940956791 | BR92: 0.1940956791 | BS92: 0.1940956791 | BT92: 0.1940956791 | BU92: 0.1940956791 | BV92: 0.1940956791 | BW92: 0.1940956791 | BX92: 0.1940956791 | BY92: 0.1940956791 | BZ92: 0.1940956791 | CA92: 0.1940956791 | CB92: 0.1940956791 | CC92: 0.1940956791 | CD92: 0.1940956791 | CE92: 0.1940956791 | CF92: 0.1940956791 | CG92: 0.1940956791 | CH92: 0.1397138238 | CI92: 0 | CJ92: 0 | CK92: 0 | CL92: 0.1694865633 | CM92: 0 | CN92: 0 | CO92: 0 | CP92: 0.8243356943 | CQ92: 319585.8438 | CR92: 0 | CS92: 0 | CT92: 0 | CU92: 0 | CV92: 0 | CW92: 0 | CX92: 0 | CY92: 0 | CZ92: 0.1940956791 | DA92: =1-ISBLANK(Data_by_donor_recipient_year[DAC member]) -> 1 | DB92: =IF(Data_by_donor_recipient_year[[#This Row],[Multilateral recipient?]],Mult_choice/100,1)*(Data_by_donor_recipient_year[[#This Row],[Net ODA]]+(CC_choice/100-100%)*Data_by_donor_recipient_year[[#This Row],[Climate mitigation grants]])/Data_by_donor_recipient_year[GNI] -> 5.006479466e-07
A93: 2006 | B93: 614 | C93: Kyrgyz Republic | D93: 1 | E93: Austria | F93: 0.2199999988 | G93: 0.2199999988 | H93: 1965 | I93: 0 | J93: 0 | K93: 0 | L93: 0 | M93: 0 | N93: 0 | O93: 0 | P93: 0 | Q93: 0 | R93: 0 | S93: 0 | T93: 0 | U93: 0 | V93: 0 | W93: 0 | X93: 0 | Y93: 0 | Z93: 0 | AA93: 0 | AB93: 0 | AC93: 0 | AD93: 0.2199999988 | AE93: 0.2199999988 | AF93: 0.2199999988 | AG93: 0.2199999988 | AH93: 0.2199999988 | AI93: 0.2199999988 | AJ93: 0.2199999988 | AK93: 0.2199999988 | AL93: 0.2199999988 | AM93: 0.2199999988 | AN93: 0.2199999988 | AO93: 0.2199999988 | AP93: 0.2199999988 | AQ93: 0.2199999988 | AR93: 0.2199999988 | AS93: 0.2199999988 | AT93: 0.2199999988 | AU93: 0.2199999988 | AV93: 0 | AW93: 0 | AX93: 0 | AY93: 0 | AZ93: 0 | BA93: 0 | BB93: 0 | BC93: 0 | BD93: 0 | BE93: 0 | BF93: 0 | BG93: 0 | BH93: 0 | BI93: 0 | BJ93: 0 | BK93: 0 | BL93: 0 | BM93: 0 | BN93: 0 | BO93: 0.2668815633 | BP93: 0.2668815633 | BQ93: 0.2668815633 | BR93: 0.2668815633 | BS93: 0.2668815633 | BT93: 0.2668815633 | BU93: 0.2668815633 | BV93: 0.2668815633 | BW93: 0.2668815633 | BX93: 0.2668815633 | BY93: 0.2668815633 | BZ93: 0.2668815633 | CA93: 0.2668815633 | CB93: 0.2668815633 | CC93: 0.2668815633 | CD93: 0.2668815633 | CE93: 0.2668815633 | CF93: 0.2668815633 | CG93: 0.2668815633 | CH93: 0.1643780619 | CI93: 0 | CJ93: 0 | CK93: 0 | CL93: 0.1994067017 | CM93: 0 | CN93: 0 | CO93: 0 | CP93: 0.8243356943 | CQ93: 319585.8438 | CR93: 0 | CS93: 0 | CT93: 0 | CU93: 0 | CV93: 0 | CW93: 0 | CX93: 0 | CY93: 0 | CZ93: 0.2668815633 | DA93: =1-ISBLANK(Data_by_donor_recipient_year[DAC member]) -> 1 | DB93: =IF(Data_by_donor_recipient_year[[#This Row],[Multilateral recipient?]],Mult_choice/100,1)*(Data_by_donor_recipient_year[[#This Row],[Net ODA]]+(CC_choice/100-100%)*Data_by_donor_recipient_year[[#This Row],[Climate mitigation grants]])/Data_by_donor_recipient_year[GNI] -> 6.883909382e-07
A94: 2006 | B94: 615 | C94: Tajikistan | D94: 1 | E94: Austria | F94: 0.02999999933 | G94: 0.02999999933 | H94: 1965 | I94: 0 | J94: 0 | K94: 0 | L94: 0 | M94: 0 | N94: 0 | O94: 0 | P94: 0 | Q94: 0 | R94: 0 | S94: 0 | T94: 0 | U94: 0 | V94: 0 | W94: 0 | X94: 0 | Y94: 0 | Z94: 0 | AA94: 0 | AB94: 0 | AC94: 0 | AD94: 0.02999999933 | AE94: 0.02999999933 | AF94: 0.02999999933 | AG94: 0.02999999933 | AH94: 0.02999999933 | AI94: 0.02999999933 | AJ94: 0.02999999933 | AK94: 0.02999999933 | AL94: 0.02999999933 | AM94: 0.02999999933 | AN94: 0.02999999933 | AO94: 0.02999999933 | AP94: 0.02999999933 | AQ94: 0.02999999933 | AR94: 0.02999999933 | AS94: 0.02999999933 | AT94: 0.02999999933 | AU94: 0.02999999933 | AV94: 0 | AW94: 0 | AX94: 0 | AY94: 0 | AZ94: 0 | BA94: 0 | BB94: 0 | BC94: 0 | BD94: 0 | BE94: 0 | BF94: 0 | BG94: 0 | BH94: 0 | BI94: 0 | BJ94: 0 | BK94: 0 | BL94: 0 | BM94: 0 | BN94: 0 | BO94: 0.03639293984 | BP94: 0.03639293984 | BQ94: 0.03639293984 | BR94: 0.03639293984 | BS94: 0.03639293984 | BT94: 0.03639293984 | BU94: 0.03639293984 | BV94: 0.03639293984 | BW94: 0.03639293984 | BX94: 0.03639293984 | BY94: 0.03639293984 | BZ94: 0.03639293984 | CA94: 0.03639293984 | CB94: 0.03639293984 | CC94: 0.03639293984 | CD94: 0.03639293984 | CE94: 0.03639293984 | CF94: 0.03639293984 | CG94: 0.03639293984 | CH94: 0 | CI94: 0 | CJ94: 0 | CK94: 0 | CL94: 0 | CM94: 0 | CN94: 0 | CO94: 0 | CP94: 0.8243356943 | CQ94: 319585.8438 | CR94: 0 | CS94: 0 | CT94: 0 | CU94: 0 | CV94: 0 | CW94: 0 | CX94: 0 | CY94: 0 | CZ94: 0.03639293984 | DA94: =1-ISBLANK(Data_by_donor_recipient_year[DAC member]) -> 1 | DB94: =IF(Data_by_donor_recipient_year[[#This Row],[Multilateral recipient?]],Mult_choice/100,1)*(Data_by_donor_recipient_year[[#This Row],[Net ODA]]+(CC_choice/100-100%)*Data_by_donor_recipient_year[[#This Row],[Climate mitigation grants]])/Data_by_donor_recipient_year[GNI] -> 9.387148998e-08
A95: 2006 | B95: 616 | C95: Turkmenistan | D95: 1 | E95: Austria | F95: 0.009999999776 | G95: 0.009999999776 | H95: 1965 | I95: 0 | J95: 0 | K95: 0 | L95: 0 | M95: 0 | N95: 0 | O95: 0 | P95: 0 | Q95: 0 | R95: 0 | S95: 0 | T95: 0 | U95: 0 | V95: 0 | W95: 0 | X95: 0 | Y95: 0 | Z95: 0 | AA95: 0 | AB95: 0 | AC95: 0 | AD95: 0.009999999776 | AE95: 0.009999999776 | AF95: 0.009999999776 | AG95: 0.009999999776 | AH95: 0.009999999776 | AI95: 0.009999999776 | AJ95: 0.009999999776 | AK95: 0.009999999776 | AL95: 0.009999999776 | AM95: 0.009999999776 | AN95: 0.009999999776 | AO95: 0.009999999776 | AP95: 0.009999999776 | AQ95: 0.009999999776 | AR95: 0.009999999776 | AS95: 0.009999999776 | AT95: 0.009999999776 | AU95: 0.009999999776 | AV95: 0 | AW95: 0 | AX95: 0 | AY95: 0 | AZ95: 0 | BA95: 0 | BB95: 0 | BC95: 0 | BD95: 0 | BE95: 0 | BF95: 0 | BG95: 0 | BH95: 0 | BI95: 0 | BJ95: 0 | BK95: 0 | BL95: 0 | BM95: 0 | BN95: 0 | BO95: 0.01213097995 | BP95: 0.01213097995 | BQ95: 0.01213097995 | BR95: 0.01213097995 | BS95: 0.01213097995 | BT95: 0.01213097995 | BU95: 0.01213097995 | BV95: 0.01213097995 | BW95: 0.01213097995 | BX95: 0.01213097995 | BY95: 0.01213097995 | BZ95: 0.01213097995 | CA95: 0.01213097995 | CB95: 0.01213097995 | CC95: 0.01213097995 | CD95: 0.01213097995 | CE95: 0.01213097995 | CF95: 0.01213097995 | CG95: 0.01213097995 | CH95: 0 | CI95: 0 | CJ95: 0 | CK95: 0 | CL95: 0 | CM95: 0 | CN95: 0 | CO95: 0 | CP95: 0.8243356943 | CQ95: 319585.8438 | CR95: 0 | CS95: 0 | CT95: 0 | CU95: 0 | CV95: 0 | CW95: 0 | CX95: 0 | CY95: 0 | CZ95: 0.01213097995 | DA95: =1-ISBLANK(Data_by_donor_recipient_year[DAC member]) -> 1 | DB95: =IF(Data_by_donor_recipient_year[[#This Row],[Multilateral recipient?]],Mult_choice/100,1)*(Data_by_donor_recipient_year[[#This Row],[Net ODA]]+(CC_choice/100-100%)*Data_by_donor_recipient_year[[#This Row],[Climate mitigation grants]])/Data_by_donor_recipient_year[GNI] -> 3.129049666e-08
A96: 2006 | B96: 617 | C96: Uzbekistan | D96: 1 | E96: Austria | F96: 0.400000006 | G96: 0.400000006 | H96: 1965 | I96: 0 | J96: 0 | K96: 0 | L96: 0 | M96: 0 | N96: 0 | O96: 0 | P96: 0 | Q96: 0 | R96: 0 | S96: 0 | T96: 0 | U96: 0 | V96: 0 | W96: 0 | X96: 0 | Y96: 0 | Z96: 0 | AA96: 0 | AB96: 0 | AC96: 0 | AD96: 0.400000006 | AE96: 0.400000006 | AF96: 0.400000006 | AG96: 0.400000006 | AH96: 0.400000006 | AI96: 0.400000006 | AJ96: 0.400000006 | AK96: 0.400000006 | AL96: 0.400000006 | AM96: 0.400000006 | AN96: 0.400000006 | AO96: 0.400000006 | AP96: 0.400000006 | AQ96: 0.400000006 | AR96: 0.400000006 | AS96: 0.400000006 | AT96: 0.400000006 | AU96: 0.400000006 | AV96: 0 | AW96: 0 | AX96: 0 | AY96: 0 | AZ96: 0 | BA96: 0 | BB96: 0 | BC96: 0 | BD96: 0 | BE96: 0 | BF96: 0 | BG96: 0 | BH96: 0 | BI96: 0 | BJ96: 0 | BK96: 0 | BL96: 0 | BM96: 0 | BN96: 0 | BO96: 0.4852392159 | BP96: 0.4852392159 | BQ96: 0.4852392159 | BR96: 0.4852392159 | BS96: 0.4852392159 | BT96: 0.4852392159 | BU96: 0.4852392159 | BV96: 0.4852392159 | BW96: 0.4852392159 | BX96: 0.4852392159 | BY96: 0.4852392159 | BZ96: 0.4852392159 | CA96: 0.4852392159 | CB96: 0.4852392159 | CC96: 0.4852392159 | CD96: 0.4852392159 | CE96: 0.4852392159 | CF96: 0.4852392159 | CG96: 0.4852392159 | CH96: 0.1479352266 | CI96: 0 | CJ96: 0 | CK96: 0 | CL96: 0.1794599307 | CM96: 0 | CN96: 0 | CO96: 0 | CP96: 0.8243356943 | CQ96: 319585.8438 | CR96: 0 | CS96: 0 | CT96: 0 | CU96: 0 | CV96: 0 | CW96: 0 | CX96: 0 | CY96: 0 | CZ96: 0.4852392159 | DA96: =1-ISBLANK(Data_by_donor_recipient_year[DAC member]) -> 1 | DB96: =IF(Data_by_donor_recipient_year[[#This Row],[Multilateral recipient?]],Mult_choice/100,1)*(Data_by_donor_recipient_year[[#This Row],[Net ODA]]+(CC_choice/100-100%)*Data_by_donor_recipient_year[[#This Row],[Climate mitigation grants]])/Data_by_donor_recipient_year[GNI] -> 1.251619913e-06
A97: 2006 | B97: 619 | C97: Central Asia, regional/multi-country | D97: 1 | E97: Austria | F97: 0.6100000143 | G97: 0.6100000143 | H97: 1965 | I97: 0 | J97: 0 | K97: 0 | L97: 0 | M97: 0 | N97: 0 | O97: 0 | P97: 0 | Q97: 0 | R97: 0 | S97: 0 | T97: 0 | U97: 0 | V97: 0 | W97: 0 | X97: 0 | Y97: 0 | Z97: 0 | AA97: 0 | AB97: 0 | AC97: 0 | AD97: 0.6100000143 | AE97: 0.6100000143 | AF97: 0.6100000143 | AG97: 0.6100000143 | AH97: 0.6100000143 | AI97: 0.6100000143 | AJ97: 0.6100000143 | AK97: 0.6100000143 | AL97: 0.6100000143 | AM97: 0.6100000143 | AN97: 0.6100000143 | AO97: 0.6100000143 | AP97: 0.6100000143 | AQ97: 0.6100000143 | AR97: 0.6100000143 | AS97: 0.6100000143 | AT97: 0.6100000143 | AU97: 0.6100000143 | AV97: 0 | AW97: 0 | AX97: 0 | AY97: 0 | AZ97: 0 | BA97: 0 | BB97: 0 | BC97: 0 | BD97: 0 | BE97: 0 | BF97: 0 | BG97: 0 | BH97: 0 | BI97: 0 | BJ97: 0 | BK97: 0 | BL97: 0 | BM97: 0 | BN97: 0 | BO97: 0.7399898106 | BP97: 0.7399898106 | BQ97: 0.7399898106 | BR97: 0.7399898106 | BS97: 0.7399898106 | BT97: 0.7399898106 | BU97: 0.7399898106 | BV97: 0.7399898106 | BW97: 0.7399898106 | BX97: 0.7399898106 | BY97: 0.7399898106 | BZ97: 0.7399898106 | CA97: 0.7399898106 | CB97: 0.7399898106 | CC97: 0.7399898106 | CD97: 0.7399898106 | CE97: 0.7399898106 | CF97: 0.7399898106 | CG97: 0.7399898106 | CH97: 0 | CI97: 0 | CJ97: 0 | CK97: 0 | CL97: 0 | CM97: 0 | CN97: 0 | CO97: 0 | CP97: 0.8243356943 | CQ97: 319585.8438 | CR97: 0 | CS97: 0 | CT97: 0 | CU97: 0 | CV97: 0 | CW97: 0 | CX97: 0 | CY97: 0 | CZ97: 0.7399898106 | DA97: =1-ISBLANK(Data_by_donor_recipient_year[DAC member]) -> 1 | DB97: =IF(Data_by_donor_recipient_year[[#This Row],[Multilateral recipient?]],Mult_choice/100,1)*(Data_by_donor_recipient_year[[#This Row],[Net ODA]]+(CC_choice/100-100%)*Data_by_donor_recipient_year[[#This Row],[Climate mitigation grants]])/Data_by_donor_recipient_year[GNI] -> 1.908720384e-06
A98: 2006 | B98: 625 | C98: Afghanistan | D98: 1 | E98: Austria | F98: 1.24000001 | G98: 1.24000001 | H98: 1965 | I98: 0 | J98: 0 | K98: 0 | L98: 0 | M98: 0 | N98: 0 | O98: 0 | P98: 0 | Q98: 0 | R98: 0 | S98: 0 | T98: 0 | U98: 0 | V98: 0 | W98: 0 | X98: 0 | Y98: 0 | Z98: 0 | AA98: 0 | AB98: 0 | AC98: 0 | AD98: 1.24000001 | AE98: 1.24000001 | AF98: 1.24000001 | AG98: 1.24000001 | AH98: 1.24000001 | AI98: 1.24000001 | AJ98: 1.24000001 | AK98: 1.24000001 | AL98: 1.24000001 | AM98: 1.24000001 | AN98: 1.24000001 | AO98: 1.24000001 | AP98: 1.24000001 | AQ98: 1.24000001 | AR98: 1.24000001 | AS98: 1.24000001 | AT98: 1.24000001 | AU98: 1.24000001 | AV98: 0 | AW98: 0 | AX98: 0 | AY98: 0 | AZ98: 0 | BA98: 0 | BB98: 0 | BC98: 0 | BD98: 0 | BE98: 0 | BF98: 0 | BG98: 0 | BH98: 0 | BI98: 0 | BJ98: 0 | BK98: 0 | BL98: 0 | BM98: 0 | BN98: 0 | BO98: 1.504241558 | BP98: 1.504241558 | BQ98: 1.504241558 | BR98: 1.504241558 | BS98: 1.504241558 | BT98: 1.504241558 | BU98: 1.504241558 | BV98: 1.504241558 | BW98: 1.504241558 | BX98: 1.504241558 | BY98: 1.504241558 | BZ98: 1.504241558 | CA98: 1.504241558 | CB98: 1.504241558 | CC98: 1.504241558 | CD98: 1.504241558 | CE98: 1.504241558 | CF98: 1.504241558 | CG98: 1.504241558 | CH98: 0.1004267633 | CI98: 0 | CJ98: 0 | CK98: 0 | CL98: 0.1218275079 | CM98: 0 | CN98: 0 | CO98: 0 | CP98: 0.8243356943 | CQ98: 319585.8438 | CR98: 1 | CS98: 0 | CT98: 0 | CU98: 0 | CV98: 0 | CW98: 0 | CX98: 0 | CY98: 0 | CZ98: 1.504241558 | DA98: =1-ISBLANK(Data_by_donor_recipient_year[DAC member]) -> 1 | DB98: =IF(Data_by_donor_recipient_year[[#This Row],[Multilateral recipient?]],Mult_choice/100,1)*(Data_by_donor_recipient_year[[#This Row],[Net ODA]]+(CC_choice/100-100%)*Data_by_donor_recipient_year[[#This Row],[Climate mitigation grants]])/Data_by_donor_recipient_year[GNI] -> 3.880021702e-06
A99: 2006 | B99: 630 | C99: Bhutan | D99: 1 | E99: Austria | F99: 0.6000000238 | G99: 0.5899999142 | H99: 1965 | I99: 0 | J99: 1.080000043 | K99: 1.080000043 | L99: 0 | M99: 0 | N99: 0 | O99: 0 | P99: 0 | Q99: 0 | R99: 1.080000043 | S99: 1.080000043 | T99: 1.080000043 | U99: 0.7845007119 | V99: 0.5230646823 | W99: 0.7845007119 | X99: 1.080000043 | Y99: 1.080000043 | Z99: 1.080000043 | AA99: 0.7845007119 | AB99: 0.5230646823 | AC99: 0.7845007119 | AD99: 0.6000000238 | AE99: 0.6000000238 | AF99: 0.6000000238 | AG99: 0.8954993549 | AH99: 1.156935384 | AI99: 0.8954993549 | AJ99: 0.5899999142 | AK99: 0.5899999142 | AL99: 0.5899999142 | AM99: 0.8854992452 | AN99: 1.146935275 | AO99: 0.8854992452 | AP99: 1.680000067 | AQ99: 1.680000067 | AR99: 1.680000067 | AS99: 1.669999957 | AT99: 1.669999957 | AU99: 1.669999957 | AV99: 0 | AW99: 0 | AX99: 0 | AY99: 0 | AZ99: 0 | BA99: 0 | BB99: 0 | BC99: 1.310145916 | BD99: 1.310145916 | BE99: 1.310145916 | BF99: 0.9516762616 | BG99: 0.6345287313 | BH99: 0.9516762616 | BI99: 1.310145916 | BJ99: 1.310145916 | BK99: 1.310145916 | BL99: 0.9516762616 | BM99: 0.6345287313 | BN99: 0.9516762616 | BO99: 0.727858842 | BP99: 0.727858842 | BQ99: 0.727858842 | BR99: 0.727858842 | BS99: 1.086328496 | BT99: 1.403476026 | BU99: 1.086328496 | BV99: 0.7157277287 | BW99: 0.7157277287 | BX99: 0.7157277287 | BY99: 1.074197383 | BZ99: 1.391344913 | CA99: 1.074197383 | CB99: 2.038004757 | CC99: 2.038004757 | CD99: 2.038004757 | CE99: 2.025873644 | CF99: 2.025873644 | CG99: 2.025873644 | CH99: 0.07030250132 | CI99: 0 | CJ99: 0 | CK99: 0 | CL99: 0.08528382527 | CM99: 0 | CN99: 0 | CO99: 0 | CP99: 0.8243356943 | CQ99: 319585.8438 | CR99: 0 | CS99: 0.3652817905 | CT99: 0.4431226174 | CU99: 0 | CV99: 0 | CW99: 0 | CX99: 1.310145916 | CY99: 1.310145916 | CZ99: 0.7157277287 | DA99: =1-ISBLANK(Data_by_donor_recipient_year[DAC member]) -> 1 | DB99: =IF(Data_by_donor_recipient_year[[#This Row],[Multilateral recipient?]],Mult_choice/100,1)*(Data_by_donor_recipient_year[[#This Row],[Net ODA]]+(CC_choice/100-100%)*Data_by_donor_recipient_year[[#This Row],[Climate mitigation grants]])/Data_by_donor_recipient_year[GNI] -> 1.877429916e-06
A100: 2006 | B100: 635 | C100: MYANMAR | D100: 1 | E100: Austria | F100: 0.03999999911 | G100: 0.03999999911 | H100: 1965 | I100: 0 | J100: 0 | K100: 0 | L100: 0 | M100: 0 | N100: 0 | O100: 0 | P100: 0 | Q100: 0 | R100: 0 | S100: 0 | T100: 0 | U100: 0 | V100: 0 | W100: 0 | X100: 0 | Y100: 0 | Z100: 0 | AA100: 0 | AB100: 0 | AC100: 0 | AD100: 0.03999999911 | AE100: 0.03999999911 | AF100: 0.03999999911 | AG100: 0.03999999911 | AH100: 0.03999999911 | AI100: 0.03999999911 | AJ100: 0.03999999911 | AK100: 0.03999999911 | AL100: 0.03999999911 | AM100: 0.03999999911 | AN100: 0.03999999911 | AO100: 0.03999999911 | AP100: 0.03999999911 | AQ100: 0.03999999911 | AR100: 0.03999999911 | AS100: 0.03999999911 | AT100: 0.03999999911 | AU100: 0.03999999911 | AV100: 0 | AW100: 0 | AX100: 0 | AY100: 0 | AZ100: 0 | BA100: 0 | BB100: 0 | BC100: 0 | BD100: 0 | BE100: 0 | BF100: 0 | BG100: 0 | BH100: 0 | BI100: 0 | BJ100: 0 | BK100: 0 | BL100: 0 | BM100: 0 | BN100: 0 | BO100: 0.04852391978 | BP100: 0.04852391978 | BQ100: 0.04852391978 | BR100: 0.04852391978 | BS100: 0.04852391978 | BT100: 0.04852391978 | BU100: 0.04852391978 | BV100: 0.04852391978 | BW100: 0.04852391978 | BX100: 0.04852391978 | BY100: 0.04852391978 | BZ100: 0.04852391978 | CA100: 0.04852391978 | CB100: 0.04852391978 | CC100: 0.04852391978 | CD100: 0.04852391978 | CE100: 0.04852391978 | CF100: 0.04852391978 | CG100: 0.04852391978 | CH100: 0 | CI100: 0 | CJ100: 0 | CK100: 0 | CL100: 0 | CM100: 0 | CN100: 0 | CO100: 0 | CP100: 0.8243356943 | CQ100: 319585.8438 | CR100: 0 | CS100: 0 | CT100: 0 | CU100: 0 | CV100: 0 | CW100: 0 | CX100: 0 | CY100: 0 | CZ100: 0.04852391978 | DA100: =1-ISBLANK(Data_by_donor_recipient_year[DAC member]) -> 1 | DB100: =IF(Data_by_donor_recipient_year[[#This Row],[Multilateral recipient?]],Mult_choice/100,1)*(Data_by_donor_recipient_year[[#This Row],[Net ODA]]+(CC_choice/100-100%)*Data_by_donor_recipient_year[[#This Row],[Climate mitigation grants]])/Data_by_donor_recipient_year[GNI] -> 1.251619866e-07
A101: 2006 | B101: 640 | C101: Sri Lanka | D101: 1 | E101: Austria | F101: 5.71999979 | G101: 5.71999979 | H101: 1965 | I101: 0 | J101: 0 | K101: 0 | L101: 0 | M101: 0 | N101: 0 | O101: 0 | P101: 0 | Q101: 0 | R101: 0 | S101: 0 | T101: 0 | U101: 0 | V101: 0 | W101: 0 | X101: 0 | Y101: 0 | Z101: 0 | AA101: 0 | AB101: 0 | AC101: 0 | AD101: 5.71999979 | AE101: 5.71999979 | AF101: 5.71999979 | AG101: 5.71999979 | AH101: 5.71999979 | AI101: 5.71999979 | AJ101: 5.71999979 | AK101: 5.71999979 | AL101: 5.71999979 | AM101: 5.71999979 | AN101: 5.71999979 | AO101: 5.71999979 | AP101: 5.71999979 | AQ101: 5.71999979 | AR101: 5.71999979 | AS101: 5.71999979 | AT101: 5.71999979 | AU101: 5.71999979 | AV101: 0 | AW101: 0 | AX101: 0 | AY101: 0 | AZ101: 0 | BA101: 0 | BB101: 0 | BC101: 0 | BD101: 0 | BE101: 0 | BF101: 0 | BG101: 0 | BH101: 0 | BI101: 0 | BJ101: 0 | BK101: 0 | BL101: 0 | BM101: 0 | BN101: 0 | BO101: 6.93892043 | BP101: 6.93892043 | BQ101: 6.93892043 | BR101: 6.93892043 | BS101: 6.93892043 | BT101: 6.93892043 | BU101: 6.93892043 | BV101: 6.93892043 | BW101: 6.93892043 | BX101: 6.93892043 | BY101: 6.93892043 | BZ101: 6.93892043 | CA101: 6.93892043 | CB101: 6.93892043 | CC101: 6.93892043 | CD101: 6.93892043 | CE101: 6.93892043 | CF101: 6.93892043 | CG101: 6.93892043 | CH101: 0.08218903095 | CI101: 0 | CJ101: 0 | CK101: 0 | CL101: 0.09970335085 | CM101: 0 | CN101: 0 | CO101: 0 | CP101: 0.8243356943 | CQ101: 319585.8438 | CR101: 0 | CS101: 0 | CT101: 0 | CU101: 0 | CV101: 0 | CW101: 0 | CX101: 0 | CY101: 0 | CZ101: 6.93892043 | DA101: =1-ISBLANK(Data_by_donor_recipient_year[DAC member]) -> 1 | DB101: =IF(Data_by_donor_recipient_year[[#This Row],[Multilateral recipient?]],Mult_choice/100,1)*(Data_by_donor_recipient_year[[#This Row],[Net ODA]]+(CC_choice/100-100%)*Data_by_donor_recipient_year[[#This Row],[Climate mitigation grants]])/Data_by_donor_recipient_year[GNI] -> 1.789816383e-05
A102: 2006 | B102: 645 | C102: India | D102: 1 | E102: Austria | F102: 1.720000029 | G102: 1.720000029 | H102: 1965 | I102: 0 | J102: 0 | K102: 0 | L102: 0 | M102: 0 | N102: 0 | O102: 0 | P102: 0 | Q102: 0 | R102: 0 | S102: 0 | T102: 0 | U102: 0 | V102: 0 | W102: 0 | X102: 0 | Y102: 0 | Z102: 0 | AA102: 0 | AB102: 0 | AC102: 0 | AD102: 1.720000029 | AE102: 1.720000029 | AF102: 1.720000029 | AG102: 1.720000029 | AH102: 1.720000029 | AI102: 1.720000029 | AJ102: 1.720000029 | AK102: 1.720000029 | AL102: 1.720000029 | AM102: 1.720000029 | AN102: 1.720000029 | AO102: 1.720000029 | AP102: 1.720000029 | AQ102: 1.720000029 | AR102: 1.720000029 | AS102: 1.720000029 | AT102: 1.720000029 | AU102: 1.720000029 | AV102: 0 | AW102: 0 | AX102: 0 | AY102: 0 | AZ102: 0 | BA102: 0 | BB102: 0 | BC102: 0 | BD102: 0 | BE102: 0 | BF102: 0 | BG102: 0 | BH102: 0 | BI102: 0 | BJ102: 0 | BK102: 0 | BL102: 0 | BM102: 0 | BN102: 0 | BO102: 2.086528632 | BP102: 2.086528632 | BQ102: 2.086528632 | BR102: 2.086528632 | BS102: 2.086528632 | BT102: 2.086528632 | BU102: 2.086528632 | BV102: 2.086528632 | BW102: 2.086528632 | BX102: 2.086528632 | BY102: 2.086528632 | BZ102: 2.086528632 | CA102: 2.086528632 | CB102: 2.086528632 | CC102: 2.086528632 | CD102: 2.086528632 | CE102: 2.086528632 | CF102: 2.086528632 | CG102: 2.086528632 | CH102: 0.7643529773 | CI102: 0 | CJ102: 0 | CK102: 0 | CL102: 0.9272350846 | CM102: 0 | CN102: 0 | CO102: 0 | CP102: 0.8243356943 | CQ102: 319585.8438 | CR102: 1 | CS102: 0 | CT102: 0 | CU102: 0 | CV102: 0 | CW102: 0 | CX102: 0 | CY102: 0 | CZ102: 2.086528632 | DA102: =1-ISBLANK(Data_by_donor_recipient_year[DAC member]) -> 1 | DB102: =IF(Data_by_donor_recipient_year[[#This Row],[Multilateral recipient?]],Mult_choice/100,1)*(Data_by_donor_recipient_year[[#This Row],[Net ODA]]+(CC_choice/100-100%)*Data_by_donor_recipient_year[[#This Row],[Climate mitigation grants]])/Data_by_donor_recipient_year[GNI] -> 5.381965635e-06
A103: 2006 | B103: 655 | C103: Maldives | D103: 1 | E103: Austria | F103: 0.009999999776 | G103: 0.009999999776 | H103: 1965 | I103: 0 | J103: 0 | K103: 0 | L103: 0 | M103: 0 | N103: 0 | O103: 0 | P103: 0 | Q103: 0 | R103: 0 | S103: 0 | T103: 0 | U103: 0 | V103: 0 | W103: 0 | X103: 0 | Y103: 0 | Z103: 0 | AA103: 0 | AB103: 0 | AC103: 0 | AD103: 0.009999999776 | AE103: 0.009999999776 | AF103: 0.009999999776 | AG103: 0.009999999776 | AH103: 0.009999999776 | AI103: 0.009999999776 | AJ103: 0.009999999776 | AK103: 0.009999999776 | AL103: 0.009999999776 | AM103: 0.009999999776 | AN103: 0.009999999776 | AO103: 0.009999999776 | AP103: 0.009999999776 | AQ103: 0.009999999776 | AR103: 0.009999999776 | AS103: 0.009999999776 | AT103: 0.009999999776 | AU103: 0.009999999776 | AV103: 0 | AW103: 0 | AX103: 0 | AY103: 0 | AZ103: 0 | BA103: 0 | BB103: 0 | BC103: 0 | BD103: 0 | BE103: 0 | BF103: 0 | BG103: 0 | BH103: 0 | BI103: 0 | BJ103: 0 | BK103: 0 | BL103: 0 | BM103: 0 | BN103: 0 | BO103: 0.01213097995 | BP103: 0.01213097995 | BQ103: 0.01213097995 | BR103: 0.01213097995 | BS103: 0.01213097995 | BT103: 0.01213097995 | BU103: 0.01213097995 | BV103: 0.01213097995 | BW103: 0.01213097995 | BX103: 0.01213097995 | BY103: 0.01213097995 | BZ103: 0.01213097995 | CA103: 0.01213097995 | CB103: 0.01213097995 | CC103: 0.01213097995 | CD103: 0.01213097995 | CE103: 0.01213097995 | CF103: 0.01213097995 | CG103: 0.01213097995 | CH103: 0 | CI103: 0 | CJ103: 0 | CK103: 0 | CL103: 0 | CM103: 0 | CN103: 0 | CO103: 0 | CP103: 0.8243356943 | CQ103: 319585.8438 | CR103: 0 | CS103: 0 | CT103: 0 | CU103: 0 | CV103: 0 | CW103: 0 | CX103: 0 | CY103: 0 | CZ103: 0.01213097995 | DA103: =1-ISBLANK(Data_by_donor_recipient_year[DAC member]) -> 1 | DB103: =IF(Data_by_donor_recipient_year[[#This Row],[Multilateral recipient?]],Mult_choice/100,1)*(Data_by_donor_recipient_year[[#This Row],[Net ODA]]+(CC_choice/100-100%)*Data_by_donor_recipient_year[[#This Row],[Climate mitigation grants]])/Data_by_donor_recipient_year[GNI] -> 3.129049666e-08
A104: 2006 | B104: 660 | C104: Nepal | D104: 1 | E104: Austria | F104: 2.069999933 | G104: 2.069999903 | H104: 1965 | I104: 0 | J104: 0.2700000107 | K104: 0.2700000107 | L104: 0 | M104: 0 | N104: 0 | O104: 0 | P104: 0 | Q104: 0 | R104: 0.2700000107 | S104: 0.2700000107 | T104: 0.2700000107 | U104: 0.196125178 | V104: 0.1307661706 | W104: 0.196125178 | X104: 0.2700000107 | Y104: 0.2700000107 | Z104: 0.2700000107 | AA104: 0.196125178 | AB104: 0.1307661706 | AC104: 0.196125178 | AD104: 2.069999933 | AE104: 2.069999933 | AF104: 2.069999933 | AG104: 2.143874766 | AH104: 2.209233773 | AI104: 2.143874766 | AJ104: 2.069999903 | AK104: 2.069999903 | AL104: 2.069999903 | AM104: 2.143874736 | AN104: 2.209233744 | AO104: 2.143874736 | AP104: 2.339999944 | AQ104: 2.339999944 | AR104: 2.339999944 | AS104: 2.339999914 | AT104: 2.339999914 | AU104: 2.339999914 | AV104: 0 | AW104: 0 | AX104: 0 | AY104: 0 | AZ104: 0 | BA104: 0 | BB104: 0 | BC104: 0.3275364789 | BD104: 0.3275364789 | BE104: 0.3275364789 | BF104: 0.2379190654 | BG104: 0.1586321828 | BH104: 0.2379190654 | BI104: 0.3275364789 | BJ104: 0.3275364789 | BK104: 0.3275364789 | BL104: 0.2379190654 | BM104: 0.1586321828 | BN104: 0.2379190654 | BO104: 2.511112824 | BP104: 2.511112824 | BQ104: 2.511112824 | BR104: 2.511112824 | BS104: 2.600730237 | BT104: 2.68001712 | BU104: 2.600730237 | BV104: 2.511112788 | BW104: 2.511112788 | BX104: 2.511112788 | BY104: 2.600730201 | BZ104: 2.680017084 | CA104: 2.600730201 | CB104: 2.838649303 | CC104: 2.838649303 | CD104: 2.838649303 | CE104: 2.838649267 | CF104: 2.838649267 | CG104: 2.838649267 | CH104: 0.3314170837 | CI104: 0 | CJ104: 0 | CK104: 0 | CL104: 0.4020414086 | CM104: 0 | CN104: 0 | CO104: 0 | CP104: 0.8243356943 | CQ104: 319585.8438 | CR104: 1 | CS104: 0 | CT104: 0 | CU104: 0 | CV104: 0 | CW104: 0 | CX104: 0.3275364789 | CY104: 0.3275364789 | CZ104: 2.511112788 | DA104: =1-ISBLANK(Data_by_donor_recipient_year[DAC member]) -> 1 | DB104: =IF(Data_by_donor_recipient_year[[#This Row],[Multilateral recipient?]],Mult_choice/100,1)*(Data_by_donor_recipient_year[[#This Row],[Net ODA]]+(CC_choice/100-100%)*Data_by_donor_recipient_year[[#This Row],[Climate mitigation grants]])/Data_by_donor_recipient_year[GNI] -> 6.477132745e-06
A105: 2006 | B105: 665 | C105: Pakistan | D105: 1 | E105: Austria | F105: 1.789999962 | G105: 1.789999962 | H105: 1965 | I105: 0 | J105: 0 | K105: 0 | L105: 0 | M105: 0 | N105: 0 | O105: 0 | P105: 0 | Q105: 0 | R105: 0 | S105: 0 | T105: 0 | U105: 0 | V105: 0 | W105: 0 | X105: 0 | Y105: 0 | Z105: 0 | AA105: 0 | AB105: 0 | AC105: 0 | AD105: 1.789999962 | AE105: 1.789999962 | AF105: 1.789999962 | AG105: 1.789999962 | AH105: 1.789999962 | AI105: 1.789999962 | AJ105: 1.789999962 | AK105: 1.789999962 | AL105: 1.789999962 | AM105: 1.789999962 | AN105: 1.789999962 | AO105: 1.789999962 | AP105: 1.789999962 | AQ105: 1.789999962 | AR105: 1.789999962 | AS105: 1.789999962 | AT105: 1.789999962 | AU105: 1.789999962 | AV105: 0 | AW105: 0 | AX105: 0 | AY105: 0 | AZ105: 0 | BA105: 0 | BB105: 0 | BC105: 0 | BD105: 0 | BE105: 0 | BF105: 0 | BG105: 0 | BH105: 0 | BI105: 0 | BJ105: 0 | BK105: 0 | BL105: 0 | BM105: 0 | BN105: 0 | BO105: 2.171445413 | BP105: 2.171445413 | BQ105: 2.171445413 | BR105: 2.171445413 | BS105: 2.171445413 | BT105: 2.171445413 | BU105: 2.171445413 | BV105: 2.171445413 | BW105: 2.171445413 | BX105: 2.171445413 | BY105: 2.171445413 | BZ105: 2.171445413 | CA105: 2.171445413 | CB105: 2.171445413 | CC105: 2.171445413 | CD105: 2.171445413 | CE105: 2.171445413 | CF105: 2.171445413 | CG105: 2.171445413 | CH105: 1.117760777 | CI105: 0 | CJ105: 0 | CK105: 0 | CL105: 1.355953388 | CM105: 0 | CN105: 0 | CO105: 0 | CP105: 0.8243356943 | CQ105: 319585.8438 | CR105: 1 | CS105: 0 | CT105: 0 | CU105: 0 | CV105: 0 | CW105: 0 | CX105: 0 | CY105: 0 | CZ105: 2.171445413 | DA105: =1-ISBLANK(Data_by_donor_recipient_year[DAC member]) -> 1 | DB105: =IF(Data_by_donor_recipient_year[[#This Row],[Multilateral recipient?]],Mult_choice/100,1)*(Data_by_donor_recipient_year[[#This Row],[Net ODA]]+(CC_choice/100-100%)*Data_by_donor_recipient_year[[#This Row],[Climate mitigation grants]])/Data_by_donor_recipient_year[GNI] -> 5.600998908e-06
A106: 2006 | B106: 666 | C106: Bangladesh | D106: 1 | E106: Austria | F106: 0.6000000238 | G106: 0.6000000238 | H106: 1965 | I106: 0 | J106: 0 | K106: 0 | L106: 0 | M106: 0 | N106: 0 | O106: 0 | P106: 0 | Q106: 0 | R106: 0 | S106: 0 | T106: 0 | U106: 0 | V106: 0 | W106: 0 | X106: 0 | Y106: 0 | Z106: 0 | AA106: 0 | AB106: 0 | AC106: 0 | AD106: 0.6000000238 | AE106: 0.6000000238 | AF106: 0.6000000238 | AG106: 0.6000000238 | AH106: 0.6000000238 | AI106: 0.6000000238 | AJ106: 0.6000000238 | AK106: 0.6000000238 | AL106: 0.6000000238 | AM106: 0.6000000238 | AN106: 0.6000000238 | AO106: 0.6000000238 | AP106: 0.6000000238 | AQ106: 0.6000000238 | AR106: 0.6000000238 | AS106: 0.6000000238 | AT106: 0.6000000238 | AU106: 0.6000000238 | AV106: 0 | AW106: 0 | AX106: 0 | AY106: 0 | AZ106: 0 | BA106: 0 | BB106: 0 | BC106: 0 | BD106: 0 | BE106: 0 | BF106: 0 | BG106: 0 | BH106: 0 | BI106: 0 | BJ106: 0 | BK106: 0 | BL106: 0 | BM106: 0 | BN106: 0 | BO106: 0.727858842 | BP106: 0.727858842 | BQ106: 0.727858842 | BR106: 0.727858842 | BS106: 0.727858842 | BT106: 0.727858842 | BU106: 0.727858842 | BV106: 0.727858842 | BW106: 0.727858842 | BX106: 0.727858842 | BY106: 0.727858842 | BZ106: 0.727858842 | CA106: 0.727858842 | CB106: 0.727858842 | CC106: 0.727858842 | CD106: 0.727858842 | CE106: 0.727858842 | CF106: 0.727858842 | CG106: 0.727858842 | CH106: 0.4318563938 | CI106: 0 | CJ106: 0 | CK106: 0 | CL106: 0.523884137 | CM106: 0 | CN106: 0 | CO106: 0 | CP106: 0.8243356943 | CQ106: 319585.8438 | CR106: 1 | CS106: 0 | CT106: 0 | CU106: 0 | CV106: 0 | CW106: 0 | CX106: 0 | CY106: 0 | CZ106: 0.727858842 | DA106: =1-ISBLANK(Data_by_donor_recipient_year[DAC member]) -> 1 | DB106: =IF(Data_by_donor_recipient_year[[#This Row],[Multilateral recipient?]],Mult_choice/100,1)*(Data_by_donor_recipient_year[[#This Row],[Net ODA]]+(CC_choice/100-100%)*Data_by_donor_recipient_year[[#This Row],[Climate mitigation grants]])/Data_by_donor_recipient_year[GNI] -> 1.877429916e-06
A107: 2006 | B107: 679 | C107: South Asia, regional./multi-country | D107: 1 | E107: Austria | F107: 0.9200000167 | G107: 0.9200000167 | H107: 1965 | I107: 0 | J107: 0 | K107: 0 | L107: 0 | M107: 0 | N107: 0 | O107: 0 | P107: 0 | Q107: 0 | R107: 0 | S107: 0 | T107: 0 | U107: 0 | V107: 0 | W107: 0 | X107: 0 | Y107: 0 | Z107: 0 | AA107: 0 | AB107: 0 | AC107: 0 | AD107: 0.9200000167 | AE107: 0.9200000167 | AF107: 0.9200000167 | AG107: 0.9200000167 | AH107: 0.9200000167 | AI107: 0.9200000167 | AJ107: 0.9200000167 | AK107: 0.9200000167 | AL107: 0.9200000167 | AM107: 0.9200000167 | AN107: 0.9200000167 | AO107: 0.9200000167 | AP107: 0.9200000167 | AQ107: 0.9200000167 | AR107: 0.9200000167 | AS107: 0.9200000167 | AT107: 0.9200000167 | AU107: 0.9200000167 | AV107: 0 | AW107: 0 | AX107: 0 | AY107: 0 | AZ107: 0 | BA107: 0 | BB107: 0 | BC107: 0 | BD107: 0 | BE107: 0 | BF107: 0 | BG107: 0 | BH107: 0 | BI107: 0 | BJ107: 0 | BK107: 0 | BL107: 0 | BM107: 0 | BN107: 0 | BO107: 1.1160502 | BP107: 1.1160502 | BQ107: 1.1160502 | BR107: 1.1160502 | BS107: 1.1160502 | BT107: 1.1160502 | BU107: 1.1160502 | BV107: 1.1160502 | BW107: 1.1160502 | BX107: 1.1160502 | BY107: 1.1160502 | BZ107: 1.1160502 | CA107: 1.1160502 | CB107: 1.1160502 | CC107: 1.1160502 | CD107: 1.1160502 | CE107: 1.1160502 | CF107: 1.1160502 | CG107: 1.1160502 | CH107: 0 | CI107: 0 | CJ107: 0 | CK107: 0 | CL107: 0 | CM107: 0 | CN107: 0 | CO107: 0 | CP107: 0.8243356943 | CQ107: 319585.8438 | CR107: 0 | CS107: 0.2748838961 | CT107: 0.3334611106 | CU107: 0 | CV107: 0 | CW107: 0 | CX107: 0 | CY107: 0 | CZ107: 1.1160502 | DA107: =1-ISBLANK(Data_by_donor_recipient_year[DAC member]) -> 1 | DB107: =IF(Data_by_donor_recipient_year[[#This Row],[Multilateral recipient?]],Mult_choice/100,1)*(Data_by_donor_recipient_year[[#This Row],[Net ODA]]+(CC_choice/100-100%)*Data_by_donor_recipient_year[[#This Row],[Climate mitigation grants]])/Data_by_donor_recipient_year[GNI] -> 2.878725809e-06
A108: 2006 | B108: 728 | C108: Cambodia | D108: 1 | E108: Austria | F108: 0.01999999955 | G108: 0.01999999955 | H108: 1965 | I108: 0 | J108: 0 | K108: 0 | L108: 0 | M108: 0 | N108: 0 | O108: 0 | P108: 0 | Q108: 0 | R108: 0 | S108: 0 | T108: 0 | U108: 0 | V108: 0 | W108: 0 | X108: 0 | Y108: 0 | Z108: 0 | AA108: 0 | AB108: 0 | AC108: 0 | AD108: 0.01999999955 | AE108: 0.01999999955 | AF108: 0.01999999955 | AG108: 0.01999999955 | AH108: 0.01999999955 | AI108: 0.01999999955 | AJ108: 0.01999999955 | AK108: 0.01999999955 | AL108: 0.01999999955 | AM108: 0.01999999955 | AN108: 0.01999999955 | AO108: 0.01999999955 | AP108: 0.01999999955 | AQ108: 0.01999999955 | AR108: 0.01999999955 | AS108: 0.01999999955 | AT108: 0.01999999955 | AU108: 0.01999999955 | AV108: 0 | AW108: 0 | AX108: 0 | AY108: 0 | AZ108: 0 | BA108: 0 | BB108: 0 | BC108: 0 | BD108: 0 | BE108: 0 | BF108: 0 | BG108: 0 | BH108: 0 | BI108: 0 | BJ108: 0 | BK108: 0 | BL108: 0 | BM108: 0 | BN108: 0 | BO108: 0.02426195989 | BP108: 0.02426195989 | BQ108: 0.02426195989 | BR108: 0.02426195989 | BS108: 0.02426195989 | BT108: 0.02426195989 | BU108: 0.02426195989 | BV108: 0.02426195989 | BW108: 0.02426195989 | BX108: 0.02426195989 | BY108: 0.02426195989 | BZ108: 0.02426195989 | CA108: 0.02426195989 | CB108: 0.02426195989 | CC108: 0.02426195989 | CD108: 0.02426195989 | CE108: 0.02426195989 | CF108: 0.02426195989 | CG108: 0.02426195989 | CH108: 0.02008284256 | CI108: 0 | CJ108: 0 | CK108: 0 | CL108: 0.02436245658 | CM108: 0 | CN108: 0 | CO108: 0 | CP108: 0.8243356943 | CQ108: 319585.8438 | CR108: 1 | CS108: 0 | CT108: 0 | CU108: 0 | CV108: 0 | CW108: 0 | CX108: 0 | CY108: 0 | CZ108: 0.02426195989 | DA108: =1-ISBLANK(Data_by_donor_recipient_year[DAC member]) -> 1 | DB108: =IF(Data_by_donor_recipient_year[[#This Row],[Multilateral recipient?]],Mult_choice/100,1)*(Data_by_donor_recipient_year[[#This Row],[Net ODA]]+(CC_choice/100-100%)*Data_by_donor_recipient_year[[#This Row],[Climate mitigation grants]])/Data_by_donor_recipient_year[GNI] -> 6.258099332e-08
A109: 2006 | B109: 730 | C109: China | D109: 1 | E109: Austria | F109: 10.97000027 | G109: 10.97000027 | H109: 1965 | I109: 0 | J109: 0 | K109: 0 | L109: 0 | M109: 0 | N109: 0 | O109: 0 | P109: 0 | Q109: 0 | R109: 0 | S109: 0 | T109: 0 | U109: 0 | V109: 0 | W109: 0 | X109: 0 | Y109: 0 | Z109: 0 | AA109: 0 | AB109: 0 | AC109: 0 | AD109: 10.97000027 | AE109: 10.97000027 | AF109: 10.97000027 | AG109: 10.97000027 | AH109: 10.97000027 | AI109: 10.97000027 | AJ109: 10.97000027 | AK109: 10.97000027 | AL109: 10.97000027 | AM109: 10.97000027 | AN109: 10.97000027 | AO109: 10.97000027 | AP109: 10.97000027 | AQ109: 10.97000027 | AR109: 10.97000027 | AS109: 10.97000027 | AT109: 10.97000027 | AU109: 10.97000027 | AV109: 0 | AW109: 0 | AX109: 0 | AY109: 0 | AZ109: 0 | BA109: 0 | BB109: 0 | BC109: 0 | BD109: 0 | BE109: 0 | BF109: 0 | BG109: 0 | BH109: 0 | BI109: 0 | BJ109: 0 | BK109: 0 | BL109: 0 | BM109: 0 | BN109: 0 | BO109: 13.30768562 | BP109: 13.30768562 | BQ109: 13.30768562 | BR109: 13.30768562 | BS109: 13.30768562 | BT109: 13.30768562 | BU109: 13.30768562 | BV109: 13.30768562 | BW109: 13.30768562 | BX109: 13.30768562 | BY109: 13.30768562 | BZ109: 13.30768562 | CA109: 13.30768562 | CB109: 13.30768562 | CC109: 13.30768562 | CD109: 13.30768562 | CE109: 13.30768562 | CF109: 13.30768562 | CG109: 13.30768562 | CH109: 6.616141796 | CI109: 0 | CJ109: 0 | CK109: 0 | CL109: 8.026028524 | CM109: 0 | CN109: 0 | CO109: 0 | CP109: 0.8243356943 | CQ109: 319585.8438 | CR109: 0 | CS109: 0.04916530661 | CT109: 0.05964233619 | CU109: 0 | CV109: 0 | CW109: 0 | CX109: 0 | CY109: 0 | CZ109: 13.30768562 | DA109: =1-ISBLANK(Data_by_donor_recipient_year[DAC member]) -> 1 | DB109: =IF(Data_by_donor_recipient_year[[#This Row],[Multilateral recipient?]],Mult_choice/100,1)*(Data_by_donor_recipient_year[[#This Row],[Net ODA]]+(CC_choice/100-100%)*Data_by_donor_recipient_year[[#This Row],[Climate mitigation grants]])/Data_by_donor_recipient_year[GNI] -> 3.432567644e-05
A110: 2006 | B110: 738 | C110: Indonesia | D110: 1 | E110: Austria | F110: 2.640000105 | G110: 2.330000103 | H110: 1965 | I110: 0 | J110: 0 | K110: 0 | L110: 0 | M110: 0 | N110: 0 | O110: 0 | P110: 0 | Q110: 0 | R110: 0 | S110: 0 | T110: 0 | U110: 0 | V110: 0 | W110: 0 | X110: 0 | Y110: 0 | Z110: 0 | AA110: 0 | AB110: 0 | AC110: 0 | AD110: 2.640000105 | AE110: 2.640000105 | AF110: 2.640000105 | AG110: 2.640000105 | AH110: 2.640000105 | AI110: 2.640000105 | AJ110: 2.330000103 | AK110: 2.330000103 | AL110: 2.330000103 | AM110: 2.330000103 | AN110: 2.330000103 | AO110: 2.330000103 | AP110: 2.640000105 | AQ110: 2.640000105 | AR110: 2.640000105 | AS110: 2.330000103 | AT110: 2.330000103 | AU110: 2.330000103 | AV110: 0 | AW110: 0 | AX110: 0 | AY110: 0 | AZ110: 0 | BA110: 0 | BB110: 0 | BC110: 0 | BD110: 0 | BE110: 0 | BF110: 0 | BG110: 0 | BH110: 0 | BI110: 0 | BJ110: 0 | BK110: 0 | BL110: 0 | BM110: 0 | BN110: 0 | BO110: 3.202578905 | BP110: 3.202578905 | BQ110: 3.202578905 | BR110: 3.202578905 | BS110: 3.202578905 | BT110: 3.202578905 | BU110: 3.202578905 | BV110: 2.826518515 | BW110: 2.826518515 | BX110: 2.826518515 | BY110: 2.826518515 | BZ110: 2.826518515 | CA110: 2.826518515 | CB110: 3.202578905 | CC110: 3.202578905 | CD110: 3.202578905 | CE110: 2.826518515 | CF110: 2.826518515 | CG110: 2.826518515 | CH110: 0.2712187767 | CI110: 0 | CJ110: 0 | CK110: 0 | CL110: 0.3290149615 | CM110: 0 | CN110: 0 | CO110: 0 | CP110: 0.8243356943 | CQ110: 319585.8438 | CR110: 0 | CS110: 0.003388979472 | CT110: 0.004111164293 | CU110: 0 | CV110: 0 | CW110: 0 | CX110: 0 | CY110: 0 | CZ110: 2.826518515 | DA110: =1-ISBLANK(Data_by_donor_recipient_year[DAC member]) -> 1 | DB110: =IF(Data_by_donor_recipient_year[[#This Row],[Multilateral recipient?]],Mult_choice/100,1)*(Data_by_donor_recipient_year[[#This Row],[Net ODA]]+(CC_choice/100-100%)*Data_by_donor_recipient_year[[#This Row],[Climate mitigation grants]])/Data_by_donor_recipient_year[GNI] -> 8.260691631e-06
A111: 2006 | B111: 740 | C111: Korea, Dem. Rep. | D111: 1 | E111: Austria | F111: 0.05000000075 | G111: 0.05000000075 | H111: 1965 | I111: 0 | J111: 0 | K111: 0 | L111: 0 | M111: 0 | N111: 0 | O111: 0 | P111: 0 | Q111: 0 | R111: 0 | S111: 0 | T111: 0 | U111: 0 | V111: 0 | W111: 0 | X111: 0 | Y111: 0 | Z111: 0 | AA111: 0 | AB111: 0 | AC111: 0 | AD111: 0.05000000075 | AE111: 0.05000000075 | AF111: 0.05000000075 | AG111: 0.05000000075 | AH111: 0.05000000075 | AI111: 0.05000000075 | AJ111: 0.05000000075 | AK111: 0.05000000075 | AL111: 0.05000000075 | AM111: 0.05000000075 | AN111: 0.05000000075 | AO111: 0.05000000075 | AP111: 0.05000000075 | AQ111: 0.05000000075 | AR111: 0.05000000075 | AS111: 0.05000000075 | AT111: 0.05000000075 | AU111: 0.05000000075 | AV111: 0 | AW111: 0 | AX111: 0 | AY111: 0 | AZ111: 0 | BA111: 0 | BB111: 0 | BC111: 0 | BD111: 0 | BE111: 0 | BF111: 0 | BG111: 0 | BH111: 0 | BI111: 0 | BJ111: 0 | BK111: 0 | BL111: 0 | BM111: 0 | BN111: 0 | BO111: 0.06065490199 | BP111: 0.06065490199 | BQ111: 0.06065490199 | BR111: 0.06065490199 | BS111: 0.06065490199 | BT111: 0.06065490199 | BU111: 0.06065490199 | BV111: 0.06065490199 | BW111: 0.06065490199 | BX111: 0.06065490199 | BY111: 0.06065490199 | BZ111: 0.06065490199 | CA111: 0.06065490199 | CB111: 0.06065490199 | CC111: 0.06065490199 | CD111: 0.06065490199 | CE111: 0.06065490199 | CF111: 0.06065490199 | CG111: 0.06065490199 | CH111: 0.1315049529 | CI111: 0 | CJ111: 0 | CK111: 0 | CL111: 0.1595283982 | CM111: 0 | CN111: 0 | CO111: 0 | CP111: 0.8243356943 | CQ111: 319585.8438 | CR111: 0 | CS111: 0 | CT111: 0 | CU111: 0 | CV111: 0 | CW111: 0 | CX111: 0 | CY111: 0 | CZ111: 0.06065490199 | DA111: =1-ISBLANK(Data_by_donor_recipient_year[DAC member]) -> 1 | DB111: =IF(Data_by_donor_recipient_year[[#This Row],[Multilateral recipient?]],Mult_choice/100,1)*(Data_by_donor_recipient_year[[#This Row],[Net ODA]]+(CC_choice/100-100%)*Data_by_donor_recipient_year[[#This Row],[Climate mitigation grants]])/Data_by_donor_recipient_year[GNI] -> 1.564524891e-07
A112: 2006 | B112: 751 | C112: Malaysia | D112: 1 | E112: Austria | F112: 0.03999999911 | G112: 0.03999999911 | H112: 1965 | I112: 0 | J112: 0 | K112: 0 | L112: 0 | M112: 0 | N112: 0 | O112: 0 | P112: 0 | Q112: 0 | R112: 0 | S112: 0 | T112: 0 | U112: 0 | V112: 0 | W112: 0 | X112: 0 | Y112: 0 | Z112: 0 | AA112: 0 | AB112: 0 | AC112: 0 | AD112: 0.03999999911 | AE112: 0.03999999911 | AF112: 0.03999999911 | AG112: 0.03999999911 | AH112: 0.03999999911 | AI112: 0.03999999911 | AJ112: 0.03999999911 | AK112: 0.03999999911 | AL112: 0.03999999911 | AM112: 0.03999999911 | AN112: 0.03999999911 | AO112: 0.03999999911 | AP112: 0.03999999911 | AQ112: 0.03999999911 | AR112: 0.03999999911 | AS112: 0.03999999911 | AT112: 0.03999999911 | AU112: 0.03999999911 | AV112: 0 | AW112: 0 | AX112: 0 | AY112: 0 | AZ112: 0 | BA112: 0 | BB112: 0 | BC112: 0 | BD112: 0 | BE112: 0 | BF112: 0 | BG112: 0 | BH112: 0 | BI112: 0 | BJ112: 0 | BK112: 0 | BL112: 0 | BM112: 0 | BN112: 0 | BO112: 0.04852391978 | BP112: 0.04852391978 | BQ112: 0.04852391978 | BR112: 0.04852391978 | BS112: 0.04852391978 | BT112: 0.04852391978 | BU112: 0.04852391978 | BV112: 0.04852391978 | BW112: 0.04852391978 | BX112: 0.04852391978 | BY112: 0.04852391978 | BZ112: 0.04852391978 | CA112: 0.04852391978 | CB112: 0.04852391978 | CC112: 0.04852391978 | CD112: 0.04852391978 | CE112: 0.04852391978 | CF112: 0.04852391978 | CG112: 0.04852391978 | CH112: 0.04109451547 | CI112: 0 | CJ112: 0 | CK112: 0 | CL112: 0.04985167542 | CM112: 0 | CN112: 0 | CO112: 0 | CP112: 0.8243356943 | CQ112: 319585.8438 | CR112: 0 | CS112: 0 | CT112: 0 | CU112: 0 | CV112: 0 | CW112: 0 | CX112: 0 | CY112: 0 | CZ112: 0.04852391978 | DA112: =1-ISBLANK(Data_by_donor_recipient_year[DAC member]) -> 1 | DB112: =IF(Data_by_donor_recipient_year[[#This Row],[Multilateral recipient?]],Mult_choice/100,1)*(Data_by_donor_recipient_year[[#This Row],[Net ODA]]+(CC_choice/100-100%)*Data_by_donor_recipient_year[[#This Row],[Climate mitigation grants]])/Data_by_donor_recipient_year[GNI] -> 1.251619866e-07
A113: 2006 | B113: 753 | C113: Mongolia | D113: 1 | E113: Austria | F113: 0.4499999881 | G113: 0.4499999881 | H113: 1965 | I113: 0 | J113: 0 | K113: 0 | L113: 0 | M113: 0 | N113: 0 | O113: 0 | P113: 0 | Q113: 0 | R113: 0 | S113: 0 | T113: 0 | U113: 0 | V113: 0 | W113: 0 | X113: 0 | Y113: 0 | Z113: 0 | AA113: 0 | AB113: 0 | AC113: 0 | AD113: 0.4499999881 | AE113: 0.4499999881 | AF113: 0.4499999881 | AG113: 0.4499999881 | AH113: 0.4499999881 | AI113: 0.4499999881 | AJ113: 0.4499999881 | AK113: 0.4499999881 | AL113: 0.4499999881 | AM113: 0.4499999881 | AN113: 0.4499999881 | AO113: 0.4499999881 | AP113: 0.4499999881 | AQ113: 0.4499999881 | AR113: 0.4499999881 | AS113: 0.4499999881 | AT113: 0.4499999881 | AU113: 0.4499999881 | AV113: 0 | AW113: 0 | AX113: 0 | AY113: 0 | AZ113: 0 | BA113: 0 | BB113: 0 | BC113: 0 | BD113: 0 | BE113: 0 | BF113: 0 | BG113: 0 | BH113: 0 | BI113: 0 | BJ113: 0 | BK113: 0 | BL113: 0 | BM113: 0 | BN113: 0 | BO113: 0.5458940953 | BP113: 0.5458940953 | BQ113: 0.5458940953 | BR113: 0.5458940953 | BS113: 0.5458940953 | BT113: 0.5458940953 | BU113: 0.5458940953 | BV113: 0.5458940953 | BW113: 0.5458940953 | BX113: 0.5458940953 | BY113: 0.5458940953 | BZ113: 0.5458940953 | CA113: 0.5458940953 | CB113: 0.5458940953 | CC113: 0.5458940953 | CD113: 0.5458940953 | CE113: 0.5458940953 | CF113: 0.5458940953 | CG113: 0.5458940953 | CH113: 0.3616292179 | CI113: 0 | CJ113: 0 | CK113: 0 | CL113: 0.4386916888 | CM113: 0 | CN113: 0 | CO113: 0 | CP113: 0.8243356943 | CQ113: 319585.8438 | CR113: 1 | CS113: 0.01681938022 | CT113: 0.02040355688 | CU113: 0 | CV113: 0 | CW113: 0 | CX113: 0 | CY113: 0 | CZ113: 0.5458940953 | DA113: =1-ISBLANK(Data_by_donor_recipient_year[DAC member]) -> 1 | DB113: =IF(Data_by_donor_recipient_year[[#This Row],[Multilateral recipient?]],Mult_choice/100,1)*(Data_by_donor_recipient_year[[#This Row],[Net ODA]]+(CC_choice/100-100%)*Data_by_donor_recipient_year[[#This Row],[Climate mitigation grants]])/Data_by_donor_recipient_year[GNI] -> 1.408072344e-06
A114: 2006 | B114: 755 | C114: Philippines | D114: 1 | E114: Austria | F114: 0.7300000191 | G114: 0.7300000191 | H114: 1965 | I114: 0 | J114: 0 | K114: 0 | L114: 0 | M114: 0 | N114: 0 | O114: 0 | P114: 0 | Q114: 0 | R114: 0 | S114: 0 | T114: 0 | U114: 0 | V114: 0 | W114: 0 | X114: 0 | Y114: 0 | Z114: 0 | AA114: 0 | AB114: 0 | AC114: 0 | AD114: 0.7300000191 | AE114: 0.7300000191 | AF114: 0.7300000191 | AG114: 0.7300000191 | AH114: 0.7300000191 | AI114: 0.7300000191 | AJ114: 0.7300000191 | AK114: 0.7300000191 | AL114: 0.7300000191 | AM114: 0.7300000191 | AN114: 0.7300000191 | AO114: 0.7300000191 | AP114: 0.7300000191 | AQ114: 0.7300000191 | AR114: 0.7300000191 | AS114: 0.7300000191 | AT114: 0.7300000191 | AU114: 0.7300000191 | AV114: 0 | AW114: 0 | AX114: 0 | AY114: 0 | AZ114: 0 | BA114: 0 | BB114: 0 | BC114: 0 | BD114: 0 | BE114: 0 | BF114: 0 | BG114: 0 | BH114: 0 | BI114: 0 | BJ114: 0 | BK114: 0 | BL114: 0 | BM114: 0 | BN114: 0 | BO114: 0.885561579 | BP114: 0.885561579 | BQ114: 0.885561579 | BR114: 0.885561579 | BS114: 0.885561579 | BT114: 0.885561579 | BU114: 0.885561579 | BV114: 0.885561579 | BW114: 0.885561579 | BX114: 0.885561579 | BY114: 0.885561579 | BZ114: 0.885561579 | CA114: 0.885561579 | CB114: 0.885561579 | CC114: 0.885561579 | CD114: 0.885561579 | CE114: 0.885561579 | CF114: 0.885561579 | CG114: 0.885561579 | CH114: 0.197251156 | CI114: 0 | CJ114: 0 | CK114: 0 | CL114: 0.2392849871 | CM114: 0 | CN114: 0 | CO114: 0 | CP114: 0.8243356943 | CQ114: 319585.8438 | CR114: 0 | CS114: 0 | CT114: 0 | CU114: 0 | CV114: 0 | CW114: 0 | CX114: 0 | CY114: 0 | CZ114: 0.885561579 | DA114: =1-ISBLANK(Data_by_donor_recipient_year[DAC member]) -> 1 | DB114: =IF(Data_by_donor_recipient_year[[#This Row],[Multilateral recipient?]],Mult_choice/100,1)*(Data_by_donor_recipient_year[[#This Row],[Net ODA]]+(CC_choice/100-100%)*Data_by_donor_recipient_year[[#This Row],[Climate mitigation grants]])/Data_by_donor_recipient_year[GNI] -> 2.284206367e-06
A115: 2006 | B115: 764 | C115: Thailand | D115: 1 | E115: Austria | F115: 0.9800000191 | G115: 0.9800000191 | H115: 1965 | I115: 0 | J115: 0 | K115: 0 | L115: 0 | M115: 0 | N115: 0 | O115: 0 | P115: 0 | Q115: 0 | R115: 0 | S115: 0 | T115: 0 | U115: 0 | V115: 0 | W115: 0 | X115: 0 | Y115: 0 | Z115: 0 | AA115: 0 | AB115: 0 | AC115: 0 | AD115: 0.9800000191 | AE115: 0.9800000191 | AF115: 0.9800000191 | AG115: 0.9800000191 | AH115: 0.9800000191 | AI115: 0.9800000191 | AJ115: 0.9800000191 | AK115: 0.9800000191 | AL115: 0.9800000191 | AM115: 0.9800000191 | AN115: 0.9800000191 | AO115: 0.9800000191 | AP115: 0.9800000191 | AQ115: 0.9800000191 | AR115: 0.9800000191 | AS115: 0.9800000191 | AT115: 0.9800000191 | AU115: 0.9800000191 | AV115: 0 | AW115: 0 | AX115: 0 | AY115: 0 | AZ115: 0 | BA115: 0 | BB115: 0 | BC115: 0 | BD115: 0 | BE115: 0 | BF115: 0 | BG115: 0 | BH115: 0 | BI115: 0 | BJ115: 0 | BK115: 0 | BL115: 0 | BM115: 0 | BN115: 0 | BO115: 1.188836084 | BP115: 1.188836084 | BQ115: 1.188836084 | BR115: 1.188836084 | BS115: 1.188836084 | BT115: 1.188836084 | BU115: 1.188836084 | BV115: 1.188836084 | BW115: 1.188836084 | BX115: 1.188836084 | BY115: 1.188836084 | BZ115: 1.188836084 | CA115: 1.188836084 | CB115: 1.188836084 | CC115: 1.188836084 | CD115: 1.188836084 | CE115: 1.188836084 | CF115: 1.188836084 | CG115: 1.188836084 | CH115: 0.452039659 | CI115: 0 | CJ115: 0 | CK115: 0 | CL115: 0.5483684161 | CM115: 0 | CN115: 0 | CO115: 0 | CP115: 0.8243356943 | CQ115: 319585.8438 | CR115: 0 | CS115: 0 | CT115: 0 | CU115: 0 | CV115: 0 | CW115: 0 | CX115: 0 | CY115: 0 | CZ115: 1.188836084 | DA115: =1-ISBLANK(Data_by_donor_recipient_year[DAC member]) -> 1 | DB115: =IF(Data_by_donor_recipient_year[[#This Row],[Multilateral recipient?]],Mult_choice/100,1)*(Data_by_donor_recipient_year[[#This Row],[Net ODA]]+(CC_choice/100-100%)*Data_by_donor_recipient_year[[#This Row],[Climate mitigation grants]])/Data_by_donor_recipient_year[GNI] -> 3.066468801e-06
A116: 2006 | B116: 765 | C116: TIMOR-LESTE | D116: 1 | E116: Austria | F116: 0.05999999866 | G116: 0.05999999866 | H116: 1965 | I116: 0 | J116: 0 | K116: 0 | L116: 0 | M116: 0 | N116: 0 | O116: 0 | P116: 0 | Q116: 0 | R116: 0 | S116: 0 | T116: 0 | U116: 0 | V116: 0 | W116: 0 | X116: 0 | Y116: 0 | Z116: 0 | AA116: 0 | AB116: 0 | AC116: 0 | AD116: 0.05999999866 | AE116: 0.05999999866 | AF116: 0.05999999866 | AG116: 0.05999999866 | AH116: 0.05999999866 | AI116: 0.05999999866 | AJ116: 0.05999999866 | AK116: 0.05999999866 | AL116: 0.05999999866 | AM116: 0.05999999866 | AN116: 0.05999999866 | AO116: 0.05999999866 | AP116: 0.05999999866 | AQ116: 0.05999999866 | AR116: 0.05999999866 | AS116: 0.05999999866 | AT116: 0.05999999866 | AU116: 0.05999999866 | AV116: 0 | AW116: 0 | AX116: 0 | AY116: 0 | AZ116: 0 | BA116: 0 | BB116: 0 | BC116: 0 | BD116: 0 | BE116: 0 | BF116: 0 | BG116: 0 | BH116: 0 | BI116: 0 | BJ116: 0 | BK116: 0 | BL116: 0 | BM116: 0 | BN116: 0 | BO116: 0.07278587968 | BP116: 0.07278587968 | BQ116: 0.07278587968 | BR116: 0.07278587968 | BS116: 0.07278587968 | BT116: 0.07278587968 | BU116: 0.07278587968 | BV116: 0.07278587968 | BW116: 0.07278587968 | BX116: 0.07278587968 | BY116: 0.07278587968 | BZ116: 0.07278587968 | CA116: 0.07278587968 | CB116: 0.07278587968 | CC116: 0.07278587968 | CD116: 0.07278587968 | CE116: 0.07278587968 | CF116: 0.07278587968 | CG116: 0.07278587968 | CH116: 0 | CI116: 0 | CJ116: 0 | CK116: 0 | CL116: 0 | CM116: 0 | CN116: 0 | CO116: 0 | CP116: 0.8243356943 | CQ116: 319585.8438 | CR116: 1 | CS116: 0 | CT116: 0 | CU116: 0 | CV116: 0 | CW116: 0 | CX116: 0 | CY116: 0 | CZ116: 0.07278587968 | DA116: =1-ISBLANK(Data_by_donor_recipient_year[DAC member]) -> 1 | DB116: =IF(Data_by_donor_recipient_year[[#This Row],[Multilateral recipient?]],Mult_choice/100,1)*(Data_by_donor_recipient_year[[#This Row],[Net ODA]]+(CC_choice/100-100%)*Data_by_donor_recipient_year[[#This Row],[Climate mitigation grants]])/Data_by_donor_recipient_year[GNI] -> 1.8774298e-07
A117: 2006 | B117: 769 | C117: Viet Nam | D117: 1 | E117: Austria | F117: 2.279999971 | G117: 1.469999969 | H117: 1965 | I117: 0 | J117: 0 | K117: 0 | L117: 0 | M117: 0 | N117: 0 | O117: 0 | P117: 0 | Q117: 0 | R117: 0 | S117: 0 | T117: 0 | U117: 0 | V117: 0 | W117: 0 | X117: 0 | Y117: 0 | Z117: 0 | AA117: 0 | AB117: 0 | AC117: 0 | AD117: 2.279999971 | AE117: 2.279999971 | AF117: 2.279999971 | AG117: 2.279999971 | AH117: 2.279999971 | AI117: 2.279999971 | AJ117: 1.469999969 | AK117: 1.469999969 | AL117: 1.469999969 | AM117: 1.469999969 | AN117: 1.469999969 | AO117: 1.469999969 | AP117: 2.279999971 | AQ117: 2.279999971 | AR117: 2.279999971 | AS117: 1.469999969 | AT117: 1.469999969 | AU117: 1.469999969 | AV117: 0 | AW117: 0 | AX117: 0 | AY117: 0 | AZ117: 0 | BA117: 0 | BB117: 0 | BC117: 0 | BD117: 0 | BE117: 0 | BF117: 0 | BG117: 0 | BH117: 0 | BI117: 0 | BJ117: 0 | BK117: 0 | BL117: 0 | BM117: 0 | BN117: 0 | BO117: 2.765863455 | BP117: 2.765863455 | BQ117: 2.765863455 | BR117: 2.765863455 | BS117: 2.765863455 | BT117: 2.765863455 | BU117: 2.765863455 | BV117: 1.783254054 | BW117: 1.783254054 | BX117: 1.783254054 | BY117: 1.783254054 | BZ117: 1.783254054 | CA117: 1.783254054 | CB117: 2.765863455 | CC117: 2.765863455 | CD117: 2.765863455 | CE117: 1.783254054 | CF117: 1.783254054 | CG117: 1.783254054 | CH117: 0.3945023119 | CI117: 0 | CJ117: 0 | CK117: 0 | CL117: 0.4785699742 | CM117: 0 | CN117: 0 | CO117: 0 | CP117: 0.8243356943 | CQ117: 319585.8438 | CR117: 1 | CS117: 0 | CT117: 0 | CU117: 0 | CV117: 0 | CW117: 0 | CX117: 0 | CY117: 0 | CZ117: 1.783254054 | DA117: =1-ISBLANK(Data_by_donor_recipient_year[DAC member]) -> 1 | DB117: =IF(Data_by_donor_recipient_year[[#This Row],[Multilateral recipient?]],Mult_choice/100,1)*(Data_by_donor_recipient_year[[#This Row],[Net ODA]]+(CC_choice/100-100%)*Data_by_donor_recipient_year[[#This Row],[Climate mitigation grants]])/Data_by_donor_recipient_year[GNI] -> 7.134233308e-06
A118: 2006 | B118: 798 | C118: Asia, regional/multi-country | D118: 1 | E118: Austria | F118: 0.02999999933 | G118: 0.02999999933 | H118: 1965 | I118: 0 | J118: 0 | K118: 0 | L118: 0 | M118: 0 | N118: 0 | O118: 0 | P118: 0 | Q118: 0 | R118: 0 | S118: 0 | T118: 0 | U118: 0 | V118: 0 | W118: 0 | X118: 0 | Y118: 0 | Z118: 0 | AA118: 0 | AB118: 0 | AC118: 0 | AD118: 0.02999999933 | AE118: 0.02999999933 | AF118: 0.02999999933 | AG118: 0.02999999933 | AH118: 0.02999999933 | AI118: 0.02999999933 | AJ118: 0.02999999933 | AK118: 0.02999999933 | AL118: 0.02999999933 | AM118: 0.02999999933 | AN118: 0.02999999933 | AO118: 0.02999999933 | AP118: 0.02999999933 | AQ118: 0.02999999933 | AR118: 0.02999999933 | AS118: 0.02999999933 | AT118: 0.02999999933 | AU118: 0.02999999933 | AV118: 0 | AW118: 0 | AX118: 0 | AY118: 0 | AZ118: 0 | BA118: 0 | BB118: 0 | BC118: 0 | BD118: 0 | BE118: 0 | BF118: 0 | BG118: 0 | BH118: 0 | BI118: 0 | BJ118: 0 | BK118: 0 | BL118: 0 | BM118: 0 | BN118: 0 | BO118: 0.03639293984 | BP118: 0.03639293984 | BQ118: 0.03639293984 | BR118: 0.03639293984 | BS118: 0.03639293984 | BT118: 0.03639293984 | BU118: 0.03639293984 | BV118: 0.03639293984 | BW118: 0.03639293984 | BX118: 0.03639293984 | BY118: 0.03639293984 | BZ118: 0.03639293984 | CA118: 0.03639293984 | CB118: 0.03639293984 | CC118: 0.03639293984 | CD118: 0.03639293984 | CE118: 0.03639293984 | CF118: 0.03639293984 | CG118: 0.03639293984 | CH118: 0 | CI118: 0 | CJ118: 0 | CK118: 0 | CL118: 0 | CM118: 0 | CN118: 0 | CO118: 0 | CP118: 0.8243356943 | CQ118: 319585.8438 | CR118: 0 | CS118: 0 | CT118: 0 | CU118: 0 | CV118: 0 | CW118: 0 | CX118: 0 | CY118: 0 | CZ118: 0.03639293984 | DA118: =1-ISBLANK(Data_by_donor_recipient_year[DAC member]) -> 1 | DB118: =IF(Data_by_donor_recipient_year[[#This Row],[Multilateral recipient?]],Mult_choice/100,1)*(Data_by_donor_recipient_year[[#This Row],[Net ODA]]+(CC_choice/100-100%)*Data_by_donor_recipient_year[[#This Row],[Climate mitigation grants]])/Data_by_donor_recipient_year[GNI] -> 9.387148998e-08
A119: 2006 | B119: 862 | C119: Papua New Guinea | D119: 1 | E119: Austria | F119: 0.8999999762 | G119: 0.8999999762 | H119: 1965 | I119: 0 | J119: 0 | K119: 0 | L119: 0 | M119: 0 | N119: 0 | O119: 0 | P119: 0 | Q119: 0 | R119: 0 | S119: 0 | T119: 0 | U119: 0 | V119: 0 | W119: 0 | X119: 0 | Y119: 0 | Z119: 0 | AA119: 0 | AB119: 0 | AC119: 0 | AD119: 0.8999999762 | AE119: 0.8999999762 | AF119: 0.8999999762 | AG119: 0.8999999762 | AH119: 0.8999999762 | AI119: 0.8999999762 | AJ119: 0.8999999762 | AK119: 0.8999999762 | AL119: 0.8999999762 | AM119: 0.8999999762 | AN119: 0.8999999762 | AO119: 0.8999999762 | AP119: 0.8999999762 | AQ119: 0.8999999762 | AR119: 0.8999999762 | AS119: 0.8999999762 | AT119: 0.8999999762 | AU119: 0.8999999762 | AV119: 0 | AW119: 0 | AX119: 0 | AY119: 0 | AZ119: 0 | BA119: 0 | BB119: 0 | BC119: 0 | BD119: 0 | BE119: 0 | BF119: 0 | BG119: 0 | BH119: 0 | BI119: 0 | BJ119: 0 | BK119: 0 | BL119: 0 | BM119: 0 | BN119: 0 | BO119: 1.091788191 | BP119: 1.091788191 | BQ119: 1.091788191 | BR119: 1.091788191 | BS119: 1.091788191 | BT119: 1.091788191 | BU119: 1.091788191 | BV119: 1.091788191 | BW119: 1.091788191 | BX119: 1.091788191 | BY119: 1.091788191 | BZ119: 1.091788191 | CA119: 1.091788191 | CB119: 1.091788191 | CC119: 1.091788191 | CD119: 1.091788191 | CE119: 1.091788191 | CF119: 1.091788191 | CG119: 1.091788191 | CH119: 0 | CI119: 0 | CJ119: 0 | CK119: 0 | CL119: 0 | CM119: 0 | CN119: 0 | CO119: 0 | CP119: 0.8243356943 | CQ119: 319585.8438 | CR119: 1 | CS119: 0 | CT119: 0 | CU119: 0 | CV119: 0 | CW119: 0 | CX119: 0 | CY119: 0 | CZ119: 1.091788191 | DA119: =1-ISBLANK(Data_by_donor_recipient_year[DAC member]) -> 1 | DB119: =IF(Data_by_donor_recipient_year[[#This Row],[Multilateral recipient?]],Mult_choice/100,1)*(Data_by_donor_recipient_year[[#This Row],[Net ODA]]+(CC_choice/100-100%)*Data_by_donor_recipient_year[[#This Row],[Climate mitigation grants]])/Data_by_donor_recipient_year[GNI] -> 2.816144688e-06
A120: 2006 | B120: 905 | C120: IDA | D120: 1 | E120: Austria | F120: 98.44000244 | G120: 98.44000244 | H120: 1965 | I120: 0 | J120: 0 | K120: 0 | L120: 0 | M120: 0 | N120: 0 | O120: 0 | P120: 0 | Q120: 0 | R120: 0 | S120: 0 | T120: 0 | U120: 0 | V120: 0 | W120: 0 | X120: 0 | Y120: 0 | Z120: 0 | AA120: 0 | AB120: 0 | AC120: 0 | AD120: 98.44000244 | AE120: 98.44000244 | AF120: 98.44000244 | AG120: 98.44000244 | AH120: 98.44000244 | AI120: 98.44000244 | AJ120: 98.44000244 | AK120: 98.44000244 | AL120: 98.44000244 | AM120: 98.44000244 | AN120: 98.44000244 | AO120: 98.44000244 | AP120: 98.44000244 | AQ120: 98.44000244 | AR120: 98.44000244 | AS120: 98.44000244 | AT120: 98.44000244 | AU120: 98.44000244 | AV120: 0 | AW120: 0 | AX120: 0 | AY120: 0 | AZ120: 0 | BA120: 0 | BB120: 0 | BC120: 0 | BD120: 0 | BE120: 0 | BF120: 0 | BG120: 0 | BH120: 0 | BI120: 0 | BJ120: 0 | BK120: 0 | BL120: 0 | BM120: 0 | BN120: 0 | BO120: 119.4173722 | BP120: 119.4173722 | BQ120: 119.4173722 | BR120: 119.4173722 | BS120: 119.4173722 | BT120: 119.4173722 | BU120: 119.4173722 | BV120: 119.4173722 | BW120: 119.4173722 | BX120: 119.4173722 | BY120: 119.4173722 | BZ120: 119.4173722 | CA120: 119.4173722 | CB120: 119.4173722 | CC120: 119.4173722 | CD120: 119.4173722 | CE120: 119.4173722 | CF120: 119.4173722 | CG120: 119.4173722 | CP120: 0.8243356943 | CQ120: 319585.8438 | CR120: 1 | CU120: 1 | CX120: 0 | CY120: 0 | CZ120: 119.4173722 | DA120: =1-ISBLANK(Data_by_donor_recipient_year[DAC member]) -> 1 | DB120: =IF(Data_by_donor_recipient_year[[#This Row],[Multilateral recipient?]],Mult_choice/100,1)*(Data_by_donor_recipient_year[[#This Row],[Net ODA]]+(CC_choice/100-100%)*Data_by_donor_recipient_year[[#This Row],[Climate mitigation grants]])/Data_by_donor_recipient_year[GNI] -> 0.0003080236636
A121: 2006 | B121: 907 | C121: IMF | D121: 1 | E121: Austria | F121: 4.570000172 | G121: 4.570000172 | H121: 1965 | I121: 0 | J121: 0 | K121: 0 | L121: 0 | M121: 0 | N121: 0 | O121: 0 | P121: 0 | Q121: 0 | R121: 0 | S121: 0 | T121: 0 | U121: 0 | V121: 0 | W121: 0 | X121: 0 | Y121: 0 | Z121: 0 | AA121: 0 | AB121: 0 | AC121: 0 | AD121: 4.570000172 | AE121: 4.570000172 | AF121: 4.570000172 | AG121: 4.570000172 | AH121: 4.570000172 | AI121: 4.570000172 | AJ121: 4.570000172 | AK121: 4.570000172 | AL121: 4.570000172 | AM121: 4.570000172 | AN121: 4.570000172 | AO121: 4.570000172 | AP121: 4.570000172 | AQ121: 4.570000172 | AR121: 4.570000172 | AS121: 4.570000172 | AT121: 4.570000172 | AU121: 4.570000172 | AV121: 0 | AW121: 0 | AX121: 0 | AY121: 0 | AZ121: 0 | BA121: 0 | BB121: 0 | BC121: 0 | BD121: 0 | BE121: 0 | BF121: 0 | BG121: 0 | BH121: 0 | BI121: 0 | BJ121: 0 | BK121: 0 | BL121: 0 | BM121: 0 | BN121: 0 | BO121: 5.543858167 | BP121: 5.543858167 | BQ121: 5.543858167 | BR121: 5.543858167 | BS121: 5.543858167 | BT121: 5.543858167 | BU121: 5.543858167 | BV121: 5.543858167 | BW121: 5.543858167 | BX121: 5.543858167 | BY121: 5.543858167 | BZ121: 5.543858167 | CA121: 5.543858167 | CB121: 5.543858167 | CC121: 5.543858167 | CD121: 5.543858167 | CE121: 5.543858167 | CF121: 5.543858167 | CG121: 5.543858167 | CP121: 0.8243356943 | CQ121: 319585.8438 | CR121: 1 | CU121: 1 | CX121: 0 | CY121: 0 | CZ121: 5.543858167 | DA121: =1-ISBLANK(Data_by_donor_recipient_year[DAC member]) -> 1 | DB121: =IF(Data_by_donor_recipient_year[[#This Row],[Multilateral recipient?]],Mult_choice/100,1)*(Data_by_donor_recipient_year[[#This Row],[Net ODA]]+(CC_choice/100-100%)*Data_by_donor_recipient_year[[#This Row],[Climate mitigation grants]])/Data_by_donor_recipient_year[GNI] -> 1.429975783e-05
A122: 2006 | B122: 909 | C122: IDB | D122: 1 | E122: Austria | F122: 0.3000000119 | G122: 0.3000000119 | H122: 1965 | I122: 0 | J122: 0 | K122: 0 | L122: 0 | M122: 0 | N122: 0 | O122: 0 | P122: 0 | Q122: 0 | R122: 0 | S122: 0 | T122: 0 | U122: 0 | V122: 0 | W122: 0 | X122: 0 | Y122: 0 | Z122: 0 | AA122: 0 | AB122: 0 | AC122: 0 | AD122: 0.3000000119 | AE122: 0.3000000119 | AF122: 0.3000000119 | AG122: 0.3000000119 | AH122: 0.3000000119 | AI122: 0.3000000119 | AJ122: 0.3000000119 | AK122: 0.3000000119 | AL122: 0.3000000119 | AM122: 0.3000000119 | AN122: 0.3000000119 | AO122: 0.3000000119 | AP122: 0.3000000119 | AQ122: 0.3000000119 | AR122: 0.3000000119 | AS122: 0.3000000119 | AT122: 0.3000000119 | AU122: 0.3000000119 | AV122: 0 | AW122: 0 | AX122: 0 | AY122: 0 | AZ122: 0 | BA122: 0 | BB122: 0 | BC122: 0 | BD122: 0 | BE122: 0 | BF122: 0 | BG122: 0 | BH122: 0 | BI122: 0 | BJ122: 0 | BK122: 0 | BL122: 0 | BM122: 0 | BN122: 0 | BO122: 0.363929421 | BP122: 0.363929421 | BQ122: 0.363929421 | BR122: 0.363929421 | BS122: 0.363929421 | BT122: 0.363929421 | BU122: 0.363929421 | BV122: 0.363929421 | BW122: 0.363929421 | BX122: 0.363929421 | BY122: 0.363929421 | BZ122: 0.363929421 | CA122: 0.363929421 | CB122: 0.363929421 | CC122: 0.363929421 | CD122: 0.363929421 | CE122: 0.363929421 | CF122: 0.363929421 | CG122: 0.363929421 | CP122: 0.8243356943 | CQ122: 319585.8438 | CR122: 1 | CU122: 1 | CX122: 0 | CY122: 0 | CZ122: 0.363929421 | DA122: =1-ISBLANK(Data_by_donor_recipient_year[DAC member]) -> 1 | DB122: =IF(Data_by_donor_recipient_year[[#This Row],[Multilateral recipient?]],Mult_choice/100,1)*(Data_by_donor_recipient_year[[#This Row],[Net ODA]]+(CC_choice/100-100%)*Data_by_donor_recipient_year[[#This Row],[Climate mitigation grants]])/Data_by_donor_recipient_year[GNI] -> 9.387149581e-07
A123: 2006 | B123: 913 | C123: Af. D B | D123: 1 | E123: Austria | F123: 1.230000019 | G123: 1.230000019 | H123: 1965 | I123: 0 | J123: 0 | K123: 0 | L123: 0 | M123: 0 | N123: 0 | O123: 0 | P123: 0 | Q123: 0 | R123: 0 | S123: 0 | T123: 0 | U123: 0 | V123: 0 | W123: 0 | X123: 0 | Y123: 0 | Z123: 0 | AA123: 0 | AB123: 0 | AC123: 0 | AD123: 1.230000019 | AE123: 1.230000019 | AF123: 1.230000019 | AG123: 1.230000019 | AH123: 1.230000019 | AI123: 1.230000019 | AJ123: 1.230000019 | AK123: 1.230000019 | AL123: 1.230000019 | AM123: 1.230000019 | AN123: 1.230000019 | AO123: 1.230000019 | AP123: 1.230000019 | AQ123: 1.230000019 | AR123: 1.230000019 | AS123: 1.230000019 | AT123: 1.230000019 | AU123: 1.230000019 | AV123: 0 | AW123: 0 | AX123: 0 | AY123: 0 | AZ123: 0 | BA123: 0 | BB123: 0 | BC123: 0 | BD123: 0 | BE123: 0 | BF123: 0 | BG123: 0 | BH123: 0 | BI123: 0 | BJ123: 0 | BK123: 0 | BL123: 0 | BM123: 0 | BN123: 0 | BO123: 1.49211059 | BP123: 1.49211059 | BQ123: 1.49211059 | BR123: 1.49211059 | BS123: 1.49211059 | BT123: 1.49211059 | BU123: 1.49211059 | BV123: 1.49211059 | BW123: 1.49211059 | BX123: 1.49211059 | BY123: 1.49211059 | BZ123: 1.49211059 | CA123: 1.49211059 | CB123: 1.49211059 | CC123: 1.49211059 | CD123: 1.49211059 | CE123: 1.49211059 | CF123: 1.49211059 | CG123: 1.49211059 | CP123: 0.8243356943 | CQ123: 319585.8438 | CR123: 1 | CU123: 1 | CX123: 0 | CY123: 0 | CZ123: 1.49211059 | DA123: =1-ISBLANK(Data_by_donor_recipient_year[DAC member]) -> 1 | DB123: =IF(Data_by_donor_recipient_year[[#This Row],[Multilateral recipient?]],Mult_choice/100,1)*(Data_by_donor_recipient_year[[#This Row],[Net ODA]]+(CC_choice/100-100%)*Data_by_donor_recipient_year[[#This Row],[Climate mitigation grants]])/Data_by_donor_recipient_year[GNI] -> 3.848731235e-06
A124: 2006 | B124: 914 | C124: African Dev. Fund | D124: 1 | E124: Austria | F124: 27 | G124: 27 | H124: 1965 | I124: 0 | J124: 0 | K124: 0 | L124: 0 | M124: 0 | N124: 0 | O124: 0 | P124: 0 | Q124: 0 | R124: 0 | S124: 0 | T124: 0 | U124: 0 | V124: 0 | W124: 0 | X124: 0 | Y124: 0 | Z124: 0 | AA124: 0 | AB124: 0 | AC124: 0 | AD124: 27 | AE124: 27 | AF124: 27 | AG124: 27 | AH124: 27 | AI124: 27 | AJ124: 27 | AK124: 27 | AL124: 27 | AM124: 27 | AN124: 27 | AO124: 27 | AP124: 27 | AQ124: 27 | AR124: 27 | AS124: 27 | AT124: 27 | AU124: 27 | AV124: 0 | AW124: 0 | AX124: 0 | AY124: 0 | AZ124: 0 | BA124: 0 | BB124: 0 | BC124: 0 | BD124: 0 | BE124: 0 | BF124: 0 | BG124: 0 | BH124: 0 | BI124: 0 | BJ124: 0 | BK124: 0 | BL124: 0 | BM124: 0 | BN124: 0 | BO124: 32.75364659 | BP124: 32.75364659 | BQ124: 32.75364659 | BR124: 32.75364659 | BS124: 32.75364659 | BT124: 32.75364659 | BU124: 32.75364659 | BV124: 32.75364659 | BW124: 32.75364659 | BX124: 32.75364659 | BY124: 32.75364659 | BZ124: 32.75364659 | CA124: 32.75364659 | CB124: 32.75364659 | CC124: 32.75364659 | CD124: 32.75364659 | CE124: 32.75364659 | CF124: 32.75364659 | CG124: 32.75364659 | CP124: 0.8243356943 | CQ124: 319585.8438 | CR124: 1 | CU124: 1 | CX124: 0 | CY124: 0 | CZ124: 32.75364659 | DA124: =1-ISBLANK(Data_by_donor_recipient_year[DAC member]) -> 1 | DB124: =IF(Data_by_donor_recipient_year[[#This Row],[Multilateral recipient?]],Mult_choice/100,1)*(Data_by_donor_recipient_year[[#This Row],[Net ODA]]+(CC_choice/100-100%)*Data_by_donor_recipient_year[[#This Row],[Climate mitigation grants]])/Data_by_donor_recipient_year[GNI] -> 8.448434287e-05
A125: 2006 | B125: 916 | C125: As. D B Special Funds | D125: 1 | E125: Austria | F125: 7.170000076 | G125: 7.170000076 | H125: 1965 | I125: 0 | J125: 0 | K125: 0 | L125: 0 | M125: 0 | N125: 0 | O125: 0 | P125: 0 | Q125: 0 | R125: 0 | S125: 0 | T125: 0 | U125: 0 | V125: 0 | W125: 0 | X125: 0 | Y125: 0 | Z125: 0 | AA125: 0 | AB125: 0 | AC125: 0 | AD125: 7.170000076 | AE125: 7.170000076 | AF125: 7.170000076 | AG125: 7.170000076 | AH125: 7.170000076 | AI125: 7.170000076 | AJ125: 7.170000076 | AK125: 7.170000076 | AL125: 7.170000076 | AM125: 7.170000076 | AN125: 7.170000076 | AO125: 7.170000076 | AP125: 7.170000076 | AQ125: 7.170000076 | AR125: 7.170000076 | AS125: 7.170000076 | AT125: 7.170000076 | AU125: 7.170000076 | AV125: 0 | AW125: 0 | AX125: 0 | AY125: 0 | AZ125: 0 | BA125: 0 | BB125: 0 | BC125: 0 | BD125: 0 | BE125: 0 | BF125: 0 | BG125: 0 | BH125: 0 | BI125: 0 | BJ125: 0 | BK125: 0 | BL125: 0 | BM125: 0 | BN125: 0 | BO125: 8.697912908 | BP125: 8.697912908 | BQ125: 8.697912908 | BR125: 8.697912908 | BS125: 8.697912908 | BT125: 8.697912908 | BU125: 8.697912908 | BV125: 8.697912908 | BW125: 8.697912908 | BX125: 8.697912908 | BY125: 8.697912908 | BZ125: 8.697912908 | CA125: 8.697912908 | CB125: 8.697912908 | CC125: 8.697912908 | CD125: 8.697912908 | CE125: 8.697912908 | CF125: 8.697912908 | CG125: 8.697912908 | CP125: 0.8243356943 | CQ125: 319585.8438 | CR125: 1 | CU125: 1 | CX125: 0 | CY125: 0 | CZ125: 8.697912908 | DA125: =1-ISBLANK(Data_by_donor_recipient_year[DAC member]) -> 1 | DB125: =IF(Data_by_donor_recipient_year[[#This Row],[Multilateral recipient?]],Mult_choice/100,1)*(Data_by_donor_recipient_year[[#This Row],[Net ODA]]+(CC_choice/100-100%)*Data_by_donor_recipient_year[[#This Row],[Climate mitigation grants]])/Data_by_donor_recipient_year[GNI] -> 2.243528685e-05
A126: 2006 | B126: 917 | C126: CEC | D126: 1 | E126: Austria | F126: 147.1399994 | G126: 147.1399994 | H126: 1965 | I126: 0 | J126: 0 | K126: 0 | L126: 0 | M126: 0 | N126: 0 | O126: 0 | P126: 0 | Q126: 0 | R126: 0 | S126: 0 | T126: 0 | U126: 0 | V126: 0 | W126: 0 | X126: 0 | Y126: 0 | Z126: 0 | AA126: 0 | AB126: 0 | AC126: 0 | AD126: 147.1399994 | AE126: 147.1399994 | AF126: 147.1399994 | AG126: 147.1399994 | AH126: 147.1399994 | AI126: 147.1399994 | AJ126: 147.1399994 | AK126: 147.1399994 | AL126: 147.1399994 | AM126: 147.1399994 | AN126: 147.1399994 | AO126: 147.1399994 | AP126: 147.1399994 | AQ126: 147.1399994 | AR126: 147.1399994 | AS126: 147.1399994 | AT126: 147.1399994 | AU126: 147.1399994 | AV126: 0 | AW126: 0 | AX126: 0 | AY126: 0 | AZ126: 0 | BA126: 0 | BB126: 0 | BC126: 0 | BD126: 0 | BE126: 0 | BF126: 0 | BG126: 0 | BH126: 0 | BI126: 0 | BJ126: 0 | BK126: 0 | BL126: 0 | BM126: 0 | BN126: 0 | BO126: 178.4952422 | BP126: 178.4952422 | BQ126: 178.4952422 | BR126: 178.4952422 | BS126: 178.4952422 | BT126: 178.4952422 | BU126: 178.4952422 | BV126: 178.4952422 | BW126: 178.4952422 | BX126: 178.4952422 | BY126: 178.4952422 | BZ126: 178.4952422 | CA126: 178.4952422 | CB126: 178.4952422 | CC126: 178.4952422 | CD126: 178.4952422 | CE126: 178.4952422 | CF126: 178.4952422 | CG126: 178.4952422 | CP126: 0.8243356943 | CQ126: 319585.8438 | CR126: 1 | CU126: 1 | CX126: 0 | CY126: 0 | CZ126: 178.4952422 | DA126: =1-ISBLANK(Data_by_donor_recipient_year[DAC member]) -> 1 | DB126: =IF(Data_by_donor_recipient_year[[#This Row],[Multilateral recipient?]],Mult_choice/100,1)*(Data_by_donor_recipient_year[[#This Row],[Net ODA]]+(CC_choice/100-100%)*Data_by_donor_recipient_year[[#This Row],[Climate mitigation grants]])/Data_by_donor_recipient_year[GNI] -> 0.0004604083762
A127: 2006 | B127: 918 | C127: EDF | D127: 1 | E127: Austria | F127: 88.80999756 | G127: 88.80999756 | H127: 1965 | I127: 0 | J127: 0 | K127: 0 | L127: 0 | M127: 0 | N127: 0 | O127: 0 | P127: 0 | Q127: 0 | R127: 0 | S127: 0 | T127: 0 | U127: 0 | V127: 0 | W127: 0 | X127: 0 | Y127: 0 | Z127: 0 | AA127: 0 | AB127: 0 | AC127: 0 | AD127: 88.80999756 | AE127: 88.80999756 | AF127: 88.80999756 | AG127: 88.80999756 | AH127: 88.80999756 | AI127: 88.80999756 | AJ127: 88.80999756 | AK127: 88.80999756 | AL127: 88.80999756 | AM127: 88.80999756 | AN127: 88.80999756 | AO127: 88.80999756 | AP127: 88.80999756 | AQ127: 88.80999756 | AR127: 88.80999756 | AS127: 88.80999756 | AT127: 88.80999756 | AU127: 88.80999756 | AV127: 0 | AW127: 0 | AX127: 0 | AY127: 0 | AZ127: 0 | BA127: 0 | BB127: 0 | BC127: 0 | BD127: 0 | BE127: 0 | BF127: 0 | BG127: 0 | BH127: 0 | BI127: 0 | BJ127: 0 | BK127: 0 | BL127: 0 | BM127: 0 | BN127: 0 | BO127: 107.7352323 | BP127: 107.7352323 | BQ127: 107.7352323 | BR127: 107.7352323 | BS127: 107.7352323 | BT127: 107.7352323 | BU127: 107.7352323 | BV127: 107.7352323 | BW127: 107.7352323 | BX127: 107.7352323 | BY127: 107.7352323 | BZ127: 107.7352323 | CA127: 107.7352323 | CB127: 107.7352323 | CC127: 107.7352323 | CD127: 107.7352323 | CE127: 107.7352323 | CF127: 107.7352323 | CG127: 107.7352323 | CP127: 0.8243356943 | CQ127: 319585.8438 | CR127: 1 | CU127: 1 | CX127: 0 | CY127: 0 | CZ127: 107.7352323 | DA127: =1-ISBLANK(Data_by_donor_recipient_year[DAC member]) -> 1 | DB127: =IF(Data_by_donor_recipient_year[[#This Row],[Multilateral recipient?]],Mult_choice/100,1)*(Data_by_donor_recipient_year[[#This Row],[Net ODA]]+(CC_choice/100-100%)*Data_by_donor_recipient_year[[#This Row],[Climate mitigation grants]])/Data_by_donor_recipient_year[GNI] -> 0.0002778908994
A128: 2006 | B128: 959 | C128: UNDP | D128: 1 | E128: Austria | F128: 7.130000114 | G128: 7.130000114 | H128: 1965 | I128: 0 | J128: 0 | K128: 0 | L128: 0 | M128: 0 | N128: 0 | O128: 0 | P128: 0 | Q128: 0 | R128: 0 | S128: 0 | T128: 0 | U128: 0 | V128: 0 | W128: 0 | X128: 0 | Y128: 0 | Z128: 0 | AA128: 0 | AB128: 0 | AC128: 0 | AD128: 7.130000114 | AE128: 7.130000114 | AF128: 7.130000114 | AG128: 7.130000114 | AH128: 7.130000114 | AI128: 7.130000114 | AJ128: 7.130000114 | AK128: 7.130000114 | AL128: 7.130000114 | AM128: 7.130000114 | AN128: 7.130000114 | AO128: 7.130000114 | AP128: 7.130000114 | AQ128: 7.130000114 | AR128: 7.130000114 | AS128: 7.130000114 | AT128: 7.130000114 | AU128: 7.130000114 | AV128: 0 | AW128: 0 | AX128: 0 | AY128: 0 | AZ128: 0 | BA128: 0 | BB128: 0 | BC128: 0 | BD128: 0 | BE128: 0 | BF128: 0 | BG128: 0 | BH128: 0 | BI128: 0 | BJ128: 0 | BK128: 0 | BL128: 0 | BM128: 0 | BN128: 0 | BO128: 8.649389034 | BP128: 8.649389034 | BQ128: 8.649389034 | BR128: 8.649389034 | BS128: 8.649389034 | BT128: 8.649389034 | BU128: 8.649389034 | BV128: 8.649389034 | BW128: 8.649389034 | BX128: 8.649389034 | BY128: 8.649389034 | BZ128: 8.649389034 | CA128: 8.649389034 | CB128: 8.649389034 | CC128: 8.649389034 | CD128: 8.649389034 | CE128: 8.649389034 | CF128: 8.649389034 | CG128: 8.649389034 | CP128: 0.8243356943 | CQ128: 319585.8438 | CR128: 1 | CU128: 1 | CX128: 0 | CY128: 0 | CZ128: 8.649389034 | DA128: =1-ISBLANK(Data_by_donor_recipient_year[DAC member]) -> 1 | DB128: =IF(Data_by_donor_recipient_year[[#This Row],[Multilateral recipient?]],Mult_choice/100,1)*(Data_by_donor_recipient_year[[#This Row],[Net ODA]]+(CC_choice/100-100%)*Data_by_donor_recipient_year[[#This Row],[Climate mitigation grants]])/Data_by_donor_recipient_year[GNI] -> 2.231012498e-05
A129: 2006 | B129: 963 | C129: UNICEF | D129: 1 | E129: Austria | F129: 1.50999999 | G129: 1.50999999 | H129: 1965 | I129: 0 | J129: 0 | K129: 0 | L129: 0 | M129: 0 | N129: 0 | O129: 0 | P129: 0 | Q129: 0 | R129: 0 | S129: 0 | T129: 0 | U129: 0 | V129: 0 | W129: 0 | X129: 0 | Y129: 0 | Z129: 0 | AA129: 0 | AB129: 0 | AC129: 0 | AD129: 1.50999999 | AE129: 1.50999999 | AF129: 1.50999999 | AG129: 1.50999999 | AH129: 1.50999999 | AI129: 1.50999999 | AJ129: 1.50999999 | AK129: 1.50999999 | AL129: 1.50999999 | AM129: 1.50999999 | AN129: 1.50999999 | AO129: 1.50999999 | AP129: 1.50999999 | AQ129: 1.50999999 | AR129: 1.50999999 | AS129: 1.50999999 | AT129: 1.50999999 | AU129: 1.50999999 | AV129: 0 | AW129: 0 | AX129: 0 | AY129: 0 | AZ129: 0 | BA129: 0 | BB129: 0 | BC129: 0 | BD129: 0 | BE129: 0 | BF129: 0 | BG129: 0 | BH129: 0 | BI129: 0 | BJ129: 0 | BK129: 0 | BL129: 0 | BM129: 0 | BN129: 0 | BO129: 1.831778001 | BP129: 1.831778001 | BQ129: 1.831778001 | BR129: 1.831778001 | BS129: 1.831778001 | BT129: 1.831778001 | BU129: 1.831778001 | BV129: 1.831778001 | BW129: 1.831778001 | BX129: 1.831778001 | BY129: 1.831778001 | BZ129: 1.831778001 | CA129: 1.831778001 | CB129: 1.831778001 | CC129: 1.831778001 | CD129: 1.831778001 | CE129: 1.831778001 | CF129: 1.831778001 | CG129: 1.831778001 | CP129: 0.8243356943 | CQ129: 319585.8438 | CR129: 1 | CU129: 1 | CX129: 0 | CY129: 0 | CZ129: 1.831778001 | DA129: =1-ISBLANK(Data_by_donor_recipient_year[DAC member]) -> 1 | DB129: =IF(Data_by_donor_recipient_year[[#This Row],[Multilateral recipient?]],Mult_choice/100,1)*(Data_by_donor_recipient_year[[#This Row],[Net ODA]]+(CC_choice/100-100%)*Data_by_donor_recipient_year[[#This Row],[Climate mitigation grants]])/Data_by_donor_recipient_year[GNI] -> 4.724865071e-06
A130: 2006 | B130: 964 | C130: UNRWA | D130: 1 | E130: Austria | F130: 0.9300000072 | G130: 0.9300000072 | H130: 1965 | I130: 0 | J130: 0 | K130: 0 | L130: 0 | M130: 0 | N130: 0 | O130: 0 | P130: 0 | Q130: 0 | R130: 0 | S130: 0 | T130: 0 | U130: 0 | V130: 0 | W130: 0 | X130: 0 | Y130: 0 | Z130: 0 | AA130: 0 | AB130: 0 | AC130: 0 | AD130: 0.9300000072 | AE130: 0.9300000072 | AF130: 0.9300000072 | AG130: 0.9300000072 | AH130: 0.9300000072 | AI130: 0.9300000072 | AJ130: 0.9300000072 | AK130: 0.9300000072 | AL130: 0.9300000072 | AM130: 0.9300000072 | AN130: 0.9300000072 | AO130: 0.9300000072 | AP130: 0.9300000072 | AQ130: 0.9300000072 | AR130: 0.9300000072 | AS130: 0.9300000072 | AT130: 0.9300000072 | AU130: 0.9300000072 | AV130: 0 | AW130: 0 | AX130: 0 | AY130: 0 | AZ130: 0 | BA130: 0 | BB130: 0 | BC130: 0 | BD130: 0 | BE130: 0 | BF130: 0 | BG130: 0 | BH130: 0 | BI130: 0 | BJ130: 0 | BK130: 0 | BL130: 0 | BM130: 0 | BN130: 0 | BO130: 1.128181169 | BP130: 1.128181169 | BQ130: 1.128181169 | BR130: 1.128181169 | BS130: 1.128181169 | BT130: 1.128181169 | BU130: 1.128181169 | BV130: 1.128181169 | BW130: 1.128181169 | BX130: 1.128181169 | BY130: 1.128181169 | BZ130: 1.128181169 | CA130: 1.128181169 | CB130: 1.128181169 | CC130: 1.128181169 | CD130: 1.128181169 | CE130: 1.128181169 | CF130: 1.128181169 | CG130: 1.128181169 | CP130: 0.8243356943 | CQ130: 319585.8438 | CR130: 1 | CU130: 1 | CX130: 0 | CY130: 0 | CZ130: 1.128181169 | DA130: =1-ISBLANK(Data_by_donor_recipient_year[DAC member]) -> 1 | DB130: =IF(Data_by_donor_recipient_year[[#This Row],[Multilateral recipient?]],Mult_choice/100,1)*(Data_by_donor_recipient_year[[#This Row],[Net ODA]]+(CC_choice/100-100%)*Data_by_donor_recipient_year[[#This Row],[Climate mitigation grants]])/Data_by_donor_recipient_year[GNI] -> 2.910016277e-06
A131: 2006 | B131: 966 | C131: WFP | D131: 1 | E131: Austria | F131: 1.470000029 | G131: 1.470000029 | H131: 1965 | I131: 0 | J131: 0 | K131: 0 | L131: 0 | M131: 0 | N131: 0 | O131: 0 | P131: 0 | Q131: 0 | R131: 0 | S131: 0 | T131: 0 | U131: 0 | V131: 0 | W131: 0 | X131: 0 | Y131: 0 | Z131: 0 | AA131: 0 | AB131: 0 | AC131: 0 | AD131: 1.470000029 | AE131: 1.470000029 | AF131: 1.470000029 | AG131: 1.470000029 | AH131: 1.470000029 | AI131: 1.470000029 | AJ131: 1.470000029 | AK131: 1.470000029 | AL131: 1.470000029 | AM131: 1.470000029 | AN131: 1.470000029 | AO131: 1.470000029 | AP131: 1.470000029 | AQ131: 1.470000029 | AR131: 1.470000029 | AS131: 1.470000029 | AT131: 1.470000029 | AU131: 1.470000029 | AV131: 0 | AW131: 0 | AX131: 0 | AY131: 0 | AZ131: 0 | BA131: 0 | BB131: 0 | BC131: 0 | BD131: 0 | BE131: 0 | BF131: 0 | BG131: 0 | BH131: 0 | BI131: 0 | BJ131: 0 | BK131: 0 | BL131: 0 | BM131: 0 | BN131: 0 | BO131: 1.783254127 | BP131: 1.783254127 | BQ131: 1.783254127 | BR131: 1.783254127 | BS131: 1.783254127 | BT131: 1.783254127 | BU131: 1.783254127 | BV131: 1.783254127 | BW131: 1.783254127 | BX131: 1.783254127 | BY131: 1.783254127 | BZ131: 1.783254127 | CA131: 1.783254127 | CB131: 1.783254127 | CC131: 1.783254127 | CD131: 1.783254127 | CE131: 1.783254127 | CF131: 1.783254127 | CG131: 1.783254127 | CP131: 0.8243356943 | CQ131: 319585.8438 | CR131: 1 | CU131: 1 | CX131: 0 | CY131: 0 | CZ131: 1.783254127 | DA131: =1-ISBLANK(Data_by_donor_recipient_year[DAC member]) -> 1 | DB131: =IF(Data_by_donor_recipient_year[[#This Row],[Multilateral recipient?]],Mult_choice/100,1)*(Data_by_donor_recipient_year[[#This Row],[Net ODA]]+(CC_choice/100-100%)*Data_by_donor_recipient_year[[#This Row],[Climate mitigation grants]])/Data_by_donor_recipient_year[GNI] -> 4.599703201e-06
A132: 2006 | B132: 967 | C132: UNHCR | D132: 1 | E132: Austria | F132: 0.5600000024 | G132: 0.5600000024 | H132: 1965 | I132: 0 | J132: 0 | K132: 0 | L132: 0 | M132: 0 | N132: 0 | O132: 0 | P132: 0 | Q132: 0 | R132: 0 | S132: 0 | T132: 0 | U132: 0 | V132: 0 | W132: 0 | X132: 0 | Y132: 0 | Z132: 0 | AA132: 0 | AB132: 0 | AC132: 0 | AD132: 0.5600000024 | AE132: 0.5600000024 | AF132: 0.5600000024 | AG132: 0.5600000024 | AH132: 0.5600000024 | AI132: 0.5600000024 | AJ132: 0.5600000024 | AK132: 0.5600000024 | AL132: 0.5600000024 | AM132: 0.5600000024 | AN132: 0.5600000024 | AO132: 0.5600000024 | AP132: 0.5600000024 | AQ132: 0.5600000024 | AR132: 0.5600000024 | AS132: 0.5600000024 | AT132: 0.5600000024 | AU132: 0.5600000024 | AV132: 0 | AW132: 0 | AX132: 0 | AY132: 0 | AZ132: 0 | BA132: 0 | BB132: 0 | BC132: 0 | BD132: 0 | BE132: 0 | BF132: 0 | BG132: 0 | BH132: 0 | BI132: 0 | BJ132: 0 | BK132: 0 | BL132: 0 | BM132: 0 | BN132: 0 | BO132: 0.6793348951 | BP132: 0.6793348951 | BQ132: 0.6793348951 | BR132: 0.6793348951 | BS132: 0.6793348951 | BT132: 0.6793348951 | BU132: 0.6793348951 | BV132: 0.6793348951 | BW132: 0.6793348951 | BX132: 0.6793348951 | BY132: 0.6793348951 | BZ132: 0.6793348951 | CA132: 0.6793348951 | CB132: 0.6793348951 | CC132: 0.6793348951 | CD132: 0.6793348951 | CE132: 0.6793348951 | CF132: 0.6793348951 | CG132: 0.6793348951 | CP132: 0.8243356943 | CQ132: 319585.8438 | CR132: 1 | CU132: 1 | CX132: 0 | CY132: 0 | CZ132: 0.6793348951 | DA132: =1-ISBLANK(Data_by_donor_recipient_year[DAC member]) -> 1 | DB132: =IF(Data_by_donor_recipient_year[[#This Row],[Multilateral recipient?]],Mult_choice/100,1)*(Data_by_donor_recipient_year[[#This Row],[Net ODA]]+(CC_choice/100-100%)*Data_by_donor_recipient_year[[#This Row],[Climate mitigation grants]])/Data_by_donor_recipient_year[GNI] -> 1.75226786e-06
A133: 2006 | B133: 974 | C133: UNFPA | D133: 1 | E133: Austria | F133: 0.8799999952 | G133: 0.8799999952 | H133: 1965 | I133: 0 | J133: 0 | K133: 0 | L133: 0 | M133: 0 | N133: 0 | O133: 0 | P133: 0 | Q133: 0 | R133: 0 | S133: 0 | T133: 0 | U133: 0 | V133: 0 | W133: 0 | X133: 0 | Y133: 0 | Z133: 0 | AA133: 0 | AB133: 0 | AC133: 0 | AD133: 0.8799999952 | AE133: 0.8799999952 | AF133: 0.8799999952 | AG133: 0.8799999952 | AH133: 0.8799999952 | AI133: 0.8799999952 | AJ133: 0.8799999952 | AK133: 0.8799999952 | AL133: 0.8799999952 | AM133: 0.8799999952 | AN133: 0.8799999952 | AO133: 0.8799999952 | AP133: 0.8799999952 | AQ133: 0.8799999952 | AR133: 0.8799999952 | AS133: 0.8799999952 | AT133: 0.8799999952 | AU133: 0.8799999952 | AV133: 0 | AW133: 0 | AX133: 0 | AY133: 0 | AZ133: 0 | BA133: 0 | BB133: 0 | BC133: 0 | BD133: 0 | BE133: 0 | BF133: 0 | BG133: 0 | BH133: 0 | BI133: 0 | BJ133: 0 | BK133: 0 | BL133: 0 | BM133: 0 | BN133: 0 | BO133: 1.067526253 | BP133: 1.067526253 | BQ133: 1.067526253 | BR133: 1.067526253 | BS133: 1.067526253 | BT133: 1.067526253 | BU133: 1.067526253 | BV133: 1.067526253 | BW133: 1.067526253 | BX133: 1.067526253 | BY133: 1.067526253 | BZ133: 1.067526253 | CA133: 1.067526253 | CB133: 1.067526253 | CC133: 1.067526253 | CD133: 1.067526253 | CE133: 1.067526253 | CF133: 1.067526253 | CG133: 1.067526253 | CP133: 0.8243356943 | CQ133: 319585.8438 | CR133: 1 | CU133: 1 | CX133: 0 | CY133: 0 | CZ133: 1.067526253 | DA133: =1-ISBLANK(Data_by_donor_recipient_year[DAC member]) -> 1 | DB133: =IF(Data_by_donor_recipient_year[[#This Row],[Multilateral recipient?]],Mult_choice/100,1)*(Data_by_donor_recipient_year[[#This Row],[Net ODA]]+(CC_choice/100-100%)*Data_by_donor_recipient_year[[#This Row],[Climate mitigation grants]])/Data_by_donor_recipient_year[GNI] -> 2.753563753e-06
A134: 2006 | B134: 975 | C134: Other UN | D134: 1 | E134: Austria | F134: 14.51000023 | G134: 14.51000023 | H134: 1965 | I134: 0 | J134: 0 | K134: 0 | L134: 0 | M134: 0 | N134: 0 | O134: 0 | P134: 0 | Q134: 0 | R134: 0 | S134: 0 | T134: 0 | U134: 0 | V134: 0 | W134: 0 | X134: 0 | Y134: 0 | Z134: 0 | AA134: 0 | AB134: 0 | AC134: 0 | AD134: 14.51000023 | AE134: 14.51000023 | AF134: 14.51000023 | AG134: 14.51000023 | AH134: 14.51000023 | AI134: 14.51000023 | AJ134: 14.51000023 | AK134: 14.51000023 | AL134: 14.51000023 | AM134: 14.51000023 | AN134: 14.51000023 | AO134: 14.51000023 | AP134: 14.51000023 | AQ134: 14.51000023 | AR134: 14.51000023 | AS134: 14.51000023 | AT134: 14.51000023 | AU134: 14.51000023 | AV134: 0 | AW134: 0 | AX134: 0 | AY134: 0 | AZ134: 0 | BA134: 0 | BB134: 0 | BC134: 0 | BD134: 0 | BE134: 0 | BF134: 0 | BG134: 0 | BH134: 0 | BI134: 0 | BJ134: 0 | BK134: 0 | BL134: 0 | BM134: 0 | BN134: 0 | BO134: 17.60205257 | BP134: 17.60205257 | BQ134: 17.60205257 | BR134: 17.60205257 | BS134: 17.60205257 | BT134: 17.60205257 | BU134: 17.60205257 | BV134: 17.60205257 | BW134: 17.60205257 | BX134: 17.60205257 | BY134: 17.60205257 | BZ134: 17.60205257 | CA134: 17.60205257 | CB134: 17.60205257 | CC134: 17.60205257 | CD134: 17.60205257 | CE134: 17.60205257 | CF134: 17.60205257 | CG134: 17.60205257 | CP134: 0.8243356943 | CQ134: 319585.8438 | CR134: 1 | CU134: 1 | CX134: 0 | CY134: 0 | CZ134: 17.60205257 | DA134: =1-ISBLANK(Data_by_donor_recipient_year[DAC member]) -> 1 | DB134: =IF(Data_by_donor_recipient_year[[#This Row],[Multilateral recipient?]],Mult_choice/100,1)*(Data_by_donor_recipient_year[[#This Row],[Net ODA]]+(CC_choice/100-100%)*Data_by_donor_recipient_year[[#This Row],[Climate mitigation grants]])/Data_by_donor_recipient_year[GNI] -> 4.540251238e-05
A135: 2006 | B135: 989 | C135: Multilateral, other | D135: 1 | E135: Austria | F135: 5.150000095 | G135: 5.150000095 | H135: 1965 | I135: 0 | J135: 0 | K135: 0 | L135: 0 | M135: 0 | N135: 0 | O135: 0 | P135: 0 | Q135: 0 | R135: 0 | S135: 0 | T135: 0 | U135: 0 | V135: 0 | W135: 0 | X135: 0 | Y135: 0 | Z135: 0 | AA135: 0 | AB135: 0 | AC135: 0 | AD135: 5.150000095 | AE135: 5.150000095 | AF135: 5.150000095 | AG135: 5.150000095 | AH135: 5.150000095 | AI135: 5.150000095 | AJ135: 5.150000095 | AK135: 5.150000095 | AL135: 5.150000095 | AM135: 5.150000095 | AN135: 5.150000095 | AO135: 5.150000095 | AP135: 5.150000095 | AQ135: 5.150000095 | AR135: 5.150000095 | AS135: 5.150000095 | AT135: 5.150000095 | AU135: 5.150000095 | AV135: 0 | AW135: 0 | AX135: 0 | AY135: 0 | AZ135: 0 | BA135: 0 | BB135: 0 | BC135: 0 | BD135: 0 | BE135: 0 | BF135: 0 | BG135: 0 | BH135: 0 | BI135: 0 | BJ135: 0 | BK135: 0 | BL135: 0 | BM135: 0 | BN135: 0 | BO135: 6.247454928 | BP135: 6.247454928 | BQ135: 6.247454928 | BR135: 6.247454928 | BS135: 6.247454928 | BT135: 6.247454928 | BU135: 6.247454928 | BV135: 6.247454928 | BW135: 6.247454928 | BX135: 6.247454928 | BY135: 6.247454928 | BZ135: 6.247454928 | CA135: 6.247454928 | CB135: 6.247454928 | CC135: 6.247454928 | CD135: 6.247454928 | CE135: 6.247454928 | CF135: 6.247454928 | CG135: 6.247454928 | CP135: 0.8243356943 | CQ135: 319585.8438 | CR135: 1 | CU135: 1 | CX135: 0 | CY135: 0 | CZ135: 6.247454928 | DA135: =1-ISBLANK(Data_by_donor_recipient_year[DAC member]) -> 1 | DB135: =IF(Data_by_donor_recipient_year[[#This Row],[Multilateral recipient?]],Mult_choice/100,1)*(Data_by_donor_recipient_year[[#This Row],[Net ODA]]+(CC_choice/100-100%)*Data_by_donor_recipient_year[[#This Row],[Climate mitigation grants]])/Data_by_donor_recipient_year[GNI] -> 1.611460644e-05
A136: 2006 | B136: 9998 | C136: Part I Unspecified | D136: 1 | E136: Austria | F136: 93.75 | G136: 93.75 | H136: 1965 | I136: 0 | J136: 0 | K136: 0 | L136: 0 | M136: 0 | N136: 0 | O136: 0 | P136: 0 | Q136: 0 | R136: 0 | S136: 0 | T136: 0 | U136: 0 | V136: 0 | W136: 0 | X136: 0 | Y136: 0 | Z136: 0 | AA136: 0 | AB136: 0 | AC136: 0 | AD136: 93.75 | AE136: 93.75 | AF136: 93.75 | AG136: 93.75 | AH136: 93.75 | AI136: 93.75 | AJ136: 93.75 | AK136: 93.75 | AL136: 93.75 | AM136: 93.75 | AN136: 93.75 | AO136: 93.75 | AP136: 93.75 | AQ136: 93.75 | AR136: 93.75 | AS136: 93.75 | AT136: 93.75 | AU136: 93.75 | AV136: 0 | AW136: 0 | AX136: 0 | AY136: 0 | AZ136: 0 | BA136: 0 | BB136: 0 | BC136: 0 | BD136: 0 | BE136: 0 | BF136: 0 | BG136: 0 | BH136: 0 | BI136: 0 | BJ136: 0 | BK136: 0 | BL136: 0 | BM136: 0 | BN136: 0 | BO136: 113.7279395 | BP136: 113.7279395 | BQ136: 113.7279395 | BR136: 113.7279395 | BS136: 113.7279395 | BT136: 113.7279395 | BU136: 113.7279395 | BV136: 113.7279395 | BW136: 113.7279395 | BX136: 113.7279395 | BY136: 113.7279395 | BZ136: 113.7279395 | CA136: 113.7279395 | CB136: 113.7279395 | CC136: 113.7279395 | CD136: 113.7279395 | CE136: 113.7279395 | CF136: 113.7279395 | CG136: 113.7279395 | CP136: 0.8243356943 | CQ136: 319585.8438 | CR136: 0 | CU136: 0 | CX136: 0 | CY136: 0 | CZ136: 113.7279395 | DA136: =1-ISBLANK(Data_by_donor_recipient_year[DAC member]) -> 1 | DB136: =IF(Data_by_donor_recipient_year[[#This Row],[Multilateral recipient?]],Mult_choice/100,1)*(Data_by_donor_recipient_year[[#This Row],[Net ODA]]+(CC_choice/100-100%)*Data_by_donor_recipient_year[[#This Row],[Climate mitigation grants]])/Data_by_donor_recipient_year[GNI] -> 0.0002933484127
A137: 2006 | B137: 55 | C137: Turkey | D137: 2 | E137: Belgium | F137: 9.659999847 | G137: 8.649808045 | H137: 1960 | I137: 0 | J137: 5.690000057 | K137: 6.700192337 | L137: 0 | M137: 0 | N137: 0 | O137: 0 | P137: 0 | Q137: 0 | R137: 5.690000057 | S137: 5.690000057 | T137: 5.690000057 | U137: 3.783532601 | V137: 2.226583452 | W137: 3.337380525 | X137: 6.700192337 | Y137: 6.700192337 | Z137: 6.700192337 | AA137: 4.45525411 | AB137: 2.621887035 | AC137: 3.929893004 | AD137: 9.659999847 | AE137: 9.659999847 | AF137: 9.659999847 | AG137: 11.5664673 | AH137: 13.12341645 | AI137: 12.01261938 | AJ137: 8.649808045 | AK137: 8.649808045 | AL137: 8.649808045 | AM137: 10.89474627 | AN137: 12.72811335 | AO137: 11.42010738 | AP137: 15.3499999 | AQ137: 15.3499999 | AR137: 15.3499999 | AS137: 15.35000038 | AT137: 15.35000038 | AU137: 15.35000038 | AV137: 0 | AW137: 0 | AX137: 0 | AY137: 0 | AZ137: 0 | BA137: 0 | BB137: 0 | BC137: 6.943346284 | BD137: 6.943346284 | BE137: 6.943346284 | BF137: 4.61693792 | BG137: 2.717036869 | BH137: 4.072511148 | BI137: 8.176055377 | BJ137: 8.176055377 | BK137: 8.176055377 | BL137: 5.436620696 | BM137: 3.199414661 | BN137: 4.795537384 | BO137: 11.78782485 | BP137: 11.78782485 | BQ137: 11.78782485 | BR137: 11.78782485 | BS137: 14.11423321 | BT137: 16.01413426 | BU137: 14.65865998 | BV137: 10.55511633 | BW137: 10.55511633 | BX137: 10.55511633 | BY137: 13.29455102 | BZ137: 15.53175705 | CA137: 13.93563433 | CB137: 18.73117113 | CC137: 18.73117113 | CD137: 18.73117113 | CE137: 18.73117171 | CF137: 18.73117171 | CG137: 18.73117171 | CH137: 0 | CI137: 0 | CJ137: 0 | CK137: 0 | CL137: 0 | CM137: 0 | CN137: 0 | CO137: 0 | CP137: 0.8194895983 | CQ137: 395970.875 | CR137: 0 | CS137: 0 | CT137: 0 | CU137: 0 | CV137: 0 | CW137: 0 | CX137: 6.943346284 | CY137: 8.176055377 | CZ137: 10.55511633 | DA137: =1-ISBLANK(Data_by_donor_recipient_year[DAC member]) -> 1 | DB137: =IF(Data_by_donor_recipient_year[[#This Row],[Multilateral recipient?]],Mult_choice/100,1)*(Data_by_donor_recipient_year[[#This Row],[Net ODA]]+(CC_choice/100-100%)*Data_by_donor_recipient_year[[#This Row],[Climate mitigation grants]])/Data_by_donor_recipient_year[GNI] -> 2.439573327e-05
A138: 2006 | B138: 62 | C138: Croatia | D138: 2 | E138: Belgium | F138: 1.74000001 | G138: 1.74000001 | H138: 1960 | I138: 0 | J138: 0 | K138: 0 | L138: 0 | M138: 0 | N138: 0 | O138: 0 | P138: 0 | Q138: 0 | R138: 0 | S138: 0 | T138: 0 | U138: 0 | V138: 0 | W138: 0 | X138: 0 | Y138: 0 | Z138: 0 | AA138: 0 | AB138: 0 | AC138: 0 | AD138: 1.74000001 | AE138: 1.74000001 | AF138: 1.74000001 | AG138: 1.74000001 | AH138: 1.74000001 | AI138: 1.74000001 | AJ138: 1.74000001 | AK138: 1.74000001 | AL138: 1.74000001 | AM138: 1.74000001 | AN138: 1.74000001 | AO138: 1.74000001 | AP138: 1.74000001 | AQ138: 1.74000001 | AR138: 1.74000001 | AS138: 1.74000001 | AT138: 1.74000001 | AU138: 1.74000001 | AV138: 0 | AW138: 0 | AX138: 0 | AY138: 0 | AZ138: 0 | BA138: 0 | BB138: 0 | BC138: 0 | BD138: 0 | BE138: 0 | BF138: 0 | BG138: 0 | BH138: 0 | BI138: 0 | BJ138: 0 | BK138: 0 | BL138: 0 | BM138: 0 | BN138: 0 | BO138: 2.123272843 | BP138: 2.123272843 | BQ138: 2.123272843 | BR138: 2.123272843 | BS138: 2.123272843 | BT138: 2.123272843 | BU138: 2.123272843 | BV138: 2.123272843 | BW138: 2.123272843 | BX138: 2.123272843 | BY138: 2.123272843 | BZ138: 2.123272843 | CA138: 2.123272843 | CB138: 2.123272843 | CC138: 2.123272843 | CD138: 2.123272843 | CE138: 2.123272843 | CF138: 2.123272843 | CG138: 2.123272843 | CH138: 0 | CI138: 0 | CJ138: 0 | CK138: 0 | CL138: 0 | CM138: 0 | CN138: 0 | CO138: 0 | CP138: 0.8194895983 | CQ138: 395970.875 | CR138: 0 | CS138: 0 | CT138: 0 | CU138: 0 | CV138: 0 | CW138: 0 | CX138: 0 | CY138: 0 | CZ138: 2.123272843 | DA138: =1-ISBLANK(Data_by_donor_recipient_year[DAC member]) -> 1 | DB138: =IF(Data_by_donor_recipient_year[[#This Row],[Multilateral recipient?]],Mult_choice/100,1)*(Data_by_donor_recipient_year[[#This Row],[Net ODA]]+(CC_choice/100-100%)*Data_by_donor_recipient_year[[#This Row],[Climate mitigation grants]])/Data_by_donor_recipient_year[GNI] -> 4.394262607e-06
A139: 2006 | B139: 63 | C139: Serbia | D139: 2 | E139: Belgium | F139: 21.61000061 | G139: 0.4099998474 | H139: 1960 | I139: 0 | J139: 0 | K139: 0 | L139: 0 | M139: 0 | N139: 0 | O139: 0 | P139: 0 | Q139: 0 | R139: 0 | S139: 0 | T139: 0 | U139: 0 | V139: 0 | W139: 0 | X139: 0 | Y139: 0 | Z139: 0 | AA139: 0 | AB139: 0 | AC139: 0 | AD139: 21.61000061 | AE139: 21.61000061 | AF139: 21.61000061 | AG139: 21.61000061 | AH139: 21.61000061 | AI139: 21.61000061 | AJ139: 0.4099998474 | AK139: 0.4099998474 | AL139: 0.4099998474 | AM139: 0.4099998474 | AN139: 0.4099998474 | AO139: 0.4099998474 | AP139: 21.61000061 | AQ139: 21.61000061 | AR139: 21.61000061 | AS139: 0.4099998474 | AT139: 0.4099998474 | AU139: 0.4099998474 | AV139: 0 | AW139: 0 | AX139: 0 | AY139: 0 | AZ139: 0 | BA139: 0 | BB139: 0 | BC139: 0 | BD139: 0 | BE139: 0 | BF139: 0 | BG139: 0 | BH139: 0 | BI139: 0 | BJ139: 0 | BK139: 0 | BL139: 0 | BM139: 0 | BN139: 0 | BO139: 26.3700731 | BP139: 26.3700731 | BQ139: 26.3700731 | BR139: 26.3700731 | BS139: 26.3700731 | BT139: 26.3700731 | BU139: 26.3700731 | BV139: 0.5003112282 | BW139: 0.5003112282 | BX139: 0.5003112282 | BY139: 0.5003112282 | BZ139: 0.5003112282 | CA139: 0.5003112282 | CB139: 26.3700731 | CC139: 26.3700731 | CD139: 26.3700731 | CE139: 0.5003112282 | CF139: 0.5003112282 | CG139: 0.5003112282 | CH139: 0 | CI139: 0 | CJ139: 0 | CK139: 0 | CL139: 0 | CM139: 0 | CN139: 0 | CO139: 0 | CP139: 0.8194895983 | CQ139: 395970.875 | CR139: 0 | CS139: 0.0187398009 | CT139: 0.0228676495 | CU139: 0 | CV139: 0 | CW139: 0 | CX139: 0 | CY139: 0 | CZ139: 0.5003112282 | DA139: =1-ISBLANK(Data_by_donor_recipient_year[DAC member]) -> 1 | DB139: =IF(Data_by_donor_recipient_year[[#This Row],[Multilateral recipient?]],Mult_choice/100,1)*(Data_by_donor_recipient_year[[#This Row],[Net ODA]]+(CC_choice/100-100%)*Data_by_donor_recipient_year[[#This Row],[Climate mitigation grants]])/Data_by_donor_recipient_year[GNI] -> 5.457472247e-05
A140: 2006 | B140: 64 | C140: Bosnia-Herzegovina | D140: 2 | E140: Belgium | F140: 0.2800000012 | G140: 0.2800000012 | H140: 1960 | I140: 0 | J140: 0 | K140: 0 | L140: 0 | M140: 0 | N140: 0 | O140: 0 | P140: 0 | Q140: 0 | R140: 0 | S140: 0 | T140: 0 | U140: 0 | V140: 0 | W140: 0 | X140: 0 | Y140: 0 | Z140: 0 | AA140: 0 | AB140: 0 | AC140: 0 | AD140: 0.2800000012 | AE140: 0.2800000012 | AF140: 0.2800000012 | AG140: 0.2800000012 | AH140: 0.2800000012 | AI140: 0.2800000012 | AJ140: 0.2800000012 | AK140: 0.2800000012 | AL140: 0.2800000012 | AM140: 0.2800000012 | AN140: 0.2800000012 | AO140: 0.2800000012 | AP140: 0.2800000012 | AQ140: 0.2800000012 | AR140: 0.2800000012 | AS140: 0.2800000012 | AT140: 0.2800000012 | AU140: 0.2800000012 | AV140: 0 | AW140: 0 | AX140: 0 | AY140: 0 | AZ140: 0 | BA140: 0 | BB140: 0 | BC140: 0 | BD140: 0 | BE140: 0 | BF140: 0 | BG140: 0 | BH140: 0 | BI140: 0 | BJ140: 0 | BK140: 0 | BL140: 0 | BM140: 0 | BN140: 0 | BO140: 0.3416760893 | BP140: 0.3416760893 | BQ140: 0.3416760893 | BR140: 0.3416760893 | BS140: 0.3416760893 | BT140: 0.3416760893 | BU140: 0.3416760893 | BV140: 0.3416760893 | BW140: 0.3416760893 | BX140: 0.3416760893 | BY140: 0.3416760893 | BZ140: 0.3416760893 | CA140: 0.3416760893 | CB140: 0.3416760893 | CC140: 0.3416760893 | CD140: 0.3416760893 | CE140: 0.3416760893 | CF140: 0.3416760893 | CG140: 0.3416760893 | CH140: 0 | CI140: 0 | CJ140: 0 | CK140: 0 | CL140: 0 | CM140: 0 | CN140: 0 | CO140: 0 | CP140: 0.8194895983 | CQ140: 395970.875 | CR140: 0 | CS140: 0 | CT140: 0 | CU140: 0 | CV140: 0 | CW140: 0 | CX140: 0 | CY140: 0 | CZ140: 0.3416760893 | DA140: =1-ISBLANK(Data_by_donor_recipient_year[DAC member]) -> 1 | DB140: =IF(Data_by_donor_recipient_year[[#This Row],[Multilateral recipient?]],Mult_choice/100,1)*(Data_by_donor_recipient_year[[#This Row],[Net ODA]]+(CC_choice/100-100%)*Data_by_donor_recipient_year[[#This Row],[Climate mitigation grants]])/Data_by_donor_recipient_year[GNI] -> 7.071227175e-07
A141: 2006 | B141: 66 | C141: Macedonia, FYROM | D141: 2 | E141: Belgium | F141: 0.1099999994 | G141: 0.1099999994 | H141: 1960 | I141: 0 | J141: 0 | K141: 0 | L141: 0 | M141: 0 | N141: 0 | O141: 0 | P141: 0 | Q141: 0 | R141: 0 | S141: 0 | T141: 0 | U141: 0 | V141: 0 | W141: 0 | X141: 0 | Y141: 0 | Z141: 0 | AA141: 0 | AB141: 0 | AC141: 0 | AD141: 0.1099999994 | AE141: 0.1099999994 | AF141: 0.1099999994 | AG141: 0.1099999994 | AH141: 0.1099999994 | AI141: 0.1099999994 | AJ141: 0.1099999994 | AK141: 0.1099999994 | AL141: 0.1099999994 | AM141: 0.1099999994 | AN141: 0.1099999994 | AO141: 0.1099999994 | AP141: 0.1099999994 | AQ141: 0.1099999994 | AR141: 0.1099999994 | AS141: 0.1099999994 | AT141: 0.1099999994 | AU141: 0.1099999994 | AV141: 0 | AW141: 0 | AX141: 0 | AY141: 0 | AZ141: 0 | BA141: 0 | BB141: 0 | BC141: 0 | BD141: 0 | BE141: 0 | BF141: 0 | BG141: 0 | BH141: 0 | BI141: 0 | BJ141: 0 | BK141: 0 | BL141: 0 | BM141: 0 | BN141: 0 | BO141: 0.1342298909 | BP141: 0.1342298909 | BQ141: 0.1342298909 | BR141: 0.1342298909 | BS141: 0.1342298909 | BT141: 0.1342298909 | BU141: 0.1342298909 | BV141: 0.1342298909 | BW141: 0.1342298909 | BX141: 0.1342298909 | BY141: 0.1342298909 | BZ141: 0.1342298909 | CA141: 0.1342298909 | CB141: 0.1342298909 | CC141: 0.1342298909 | CD141: 0.1342298909 | CE141: 0.1342298909 | CF141: 0.1342298909 | CG141: 0.1342298909 | CH141: 0 | CI141: 0 | CJ141: 0 | CK141: 0 | CL141: 0 | CM141: 0 | CN141: 0 | CO141: 0 | CP141: 0.8194895983 | CQ141: 395970.875 | CR141: 0 | CS141: 0 | CT141: 0 | CU141: 0 | CV141: 0 | CW141: 0 | CX141: 0 | CY141: 0 | CZ141: 0.1342298909 | DA141: =1-ISBLANK(Data_by_donor_recipient_year[DAC member]) -> 1 | DB141: =IF(Data_by_donor_recipient_year[[#This Row],[Multilateral recipient?]],Mult_choice/100,1)*(Data_by_donor_recipient_year[[#This Row],[Net ODA]]+(CC_choice/100-100%)*Data_by_donor_recipient_year[[#This Row],[Climate mitigation grants]])/Data_by_donor_recipient_year[GNI] -> 2.777982078e-07
A142: 2006 | B142: 71 | C142: Albania | D142: 2 | E142: Belgium | F142: 0.05000000075 | G142: 0.05000000075 | H142: 1960 | I142: 0 | J142: 0 | K142: 0 | L142: 0 | M142: 0 | N142: 0 | O142: 0 | P142: 0 | Q142: 0 | R142: 0 | S142: 0 | T142: 0 | U142: 0 | V142: 0 | W142: 0 | X142: 0 | Y142: 0 | Z142: 0 | AA142: 0 | AB142: 0 | AC142: 0 | AD142: 0.05000000075 | AE142: 0.05000000075 | AF142: 0.05000000075 | AG142: 0.05000000075 | AH142: 0.05000000075 | AI142: 0.05000000075 | AJ142: 0.05000000075 | AK142: 0.05000000075 | AL142: 0.05000000075 | AM142: 0.05000000075 | AN142: 0.05000000075 | AO142: 0.05000000075 | AP142: 0.05000000075 | AQ142: 0.05000000075 | AR142: 0.05000000075 | AS142: 0.05000000075 | AT142: 0.05000000075 | AU142: 0.05000000075 | AV142: 0 | AW142: 0 | AX142: 0 | AY142: 0 | AZ142: 0 | BA142: 0 | BB142: 0 | BC142: 0 | BD142: 0 | BE142: 0 | BF142: 0 | BG142: 0 | BH142: 0 | BI142: 0 | BJ142: 0 | BK142: 0 | BL142: 0 | BM142: 0 | BN142: 0 | BO142: 0.06101358803 | BP142: 0.06101358803 | BQ142: 0.06101358803 | BR142: 0.06101358803 | BS142: 0.06101358803 | BT142: 0.06101358803 | BU142: 0.06101358803 | BV142: 0.06101358803 | BW142: 0.06101358803 | BX142: 0.06101358803 | BY142: 0.06101358803 | BZ142: 0.06101358803 | CA142: 0.06101358803 | CB142: 0.06101358803 | CC142: 0.06101358803 | CD142: 0.06101358803 | CE142: 0.06101358803 | CF142: 0.06101358803 | CG142: 0.06101358803 | CH142: 0 | CI142: 0 | CJ142: 0 | CK142: 0 | CL142: 0 | CM142: 0 | CN142: 0 | CO142: 0 | CP142: 0.8194895983 | CQ142: 395970.875 | CR142: 0 | CS142: 0 | CT142: 0 | CU142: 0 | CV142: 0 | CW142: 0 | CX142: 0 | CY142: 0 | CZ142: 0.06101358803 | DA142: =1-ISBLANK(Data_by_donor_recipient_year[DAC member]) -> 1 | DB142: =IF(Data_by_donor_recipient_year[[#This Row],[Multilateral recipient?]],Mult_choice/100,1)*(Data_by_donor_recipient_year[[#This Row],[Net ODA]]+(CC_choice/100-100%)*Data_by_donor_recipient_year[[#This Row],[Climate mitigation grants]])/Data_by_donor_recipient_year[GNI] -> 1.262719152e-07
A143: 2006 | B143: 85 | C143: Ukraine | D143: 2 | E143: Belgium | F143: 1.470000029 | G143: 1.470000029 | H143: 1960 | I143: 0 | J143: 0 | K143: 0 | L143: 0 | M143: 0 | N143: 0 | O143: 0 | P143: 0 | Q143: 0 | R143: 0 | S143: 0 | T143: 0 | U143: 0 | V143: 0 | W143: 0 | X143: 0 | Y143: 0 | Z143: 0 | AA143: 0 | AB143: 0 | AC143: 0 | AD143: 1.470000029 | AE143: 1.470000029 | AF143: 1.470000029 | AG143: 1.470000029 | AH143: 1.470000029 | AI143: 1.470000029 | AJ143: 1.470000029 | AK143: 1.470000029 | AL143: 1.470000029 | AM143: 1.470000029 | AN143: 1.470000029 | AO143: 1.470000029 | AP143: 1.470000029 | AQ143: 1.470000029 | AR143: 1.470000029 | AS143: 1.470000029 | AT143: 1.470000029 | AU143: 1.470000029 | AV143: 0 | AW143: 0 | AX143: 0 | AY143: 0 | AZ143: 0 | BA143: 0 | BB143: 0 | BC143: 0 | BD143: 0 | BE143: 0 | BF143: 0 | BG143: 0 | BH143: 0 | BI143: 0 | BJ143: 0 | BK143: 0 | BL143: 0 | BM143: 0 | BN143: 0 | BO143: 1.793799496 | BP143: 1.793799496 | BQ143: 1.793799496 | BR143: 1.793799496 | BS143: 1.793799496 | BT143: 1.793799496 | BU143: 1.793799496 | BV143: 1.793799496 | BW143: 1.793799496 | BX143: 1.793799496 | BY143: 1.793799496 | BZ143: 1.793799496 | CA143: 1.793799496 | CB143: 1.793799496 | CC143: 1.793799496 | CD143: 1.793799496 | CE143: 1.793799496 | CF143: 1.793799496 | CG143: 1.793799496 | CH143: 0 | CI143: 0 | CJ143: 0 | CK143: 0 | CL143: 0 | CM143: 0 | CN143: 0 | CO143: 0 | CP143: 0.8194895983 | CQ143: 395970.875 | CR143: 0 | CS143: 0.3635872975 | CT143: 0.443675305 | CU143: 0 | CV143: 0 | CW143: 0 | CX143: 0 | CY143: 0 | CZ143: 1.793799496 | DA143: =1-ISBLANK(Data_by_donor_recipient_year[DAC member]) -> 1 | DB143: =IF(Data_by_donor_recipient_year[[#This Row],[Multilateral recipient?]],Mult_choice/100,1)*(Data_by_donor_recipient_year[[#This Row],[Net ODA]]+(CC_choice/100-100%)*Data_by_donor_recipient_year[[#This Row],[Climate mitigation grants]])/Data_by_donor_recipient_year[GNI] -> 3.712394323e-06
A144: 2006 | B144: 86 | C144: Belarus | D144: 2 | E144: Belgium | F144: 0.009999999776 | G144: 0.009999999776 | H144: 1960 | I144: 0 | J144: 0 | K144: 0 | L144: 0 | M144: 0 | N144: 0 | O144: 0 | P144: 0 | Q144: 0 | R144: 0 | S144: 0 | T144: 0 | U144: 0 | V144: 0 | W144: 0 | X144: 0 | Y144: 0 | Z144: 0 | AA144: 0 | AB144: 0 | AC144: 0 | AD144: 0.009999999776 | AE144: 0.009999999776 | AF144: 0.009999999776 | AG144: 0.009999999776 | AH144: 0.009999999776 | AI144: 0.009999999776 | AJ144: 0.009999999776 | AK144: 0.009999999776 | AL144: 0.009999999776 | AM144: 0.009999999776 | AN144: 0.009999999776 | AO144: 0.009999999776 | AP144: 0.009999999776 | AQ144: 0.009999999776 | AR144: 0.009999999776 | AS144: 0.009999999776 | AT144: 0.009999999776 | AU144: 0.009999999776 | AV144: 0 | AW144: 0 | AX144: 0 | AY144: 0 | AZ144: 0 | BA144: 0 | BB144: 0 | BC144: 0 | BD144: 0 | BE144: 0 | BF144: 0 | BG144: 0 | BH144: 0 | BI144: 0 | BJ144: 0 | BK144: 0 | BL144: 0 | BM144: 0 | BN144: 0 | BO144: 0.01220271715 | BP144: 0.01220271715 | BQ144: 0.01220271715 | BR144: 0.01220271715 | BS144: 0.01220271715 | BT144: 0.01220271715 | BU144: 0.01220271715 | BV144: 0.01220271715 | BW144: 0.01220271715 | BX144: 0.01220271715 | BY144: 0.01220271715 | BZ144: 0.01220271715 | CA144: 0.01220271715 | CB144: 0.01220271715 | CC144: 0.01220271715 | CD144: 0.01220271715 | CE144: 0.01220271715 | CF144: 0.01220271715 | CG144: 0.01220271715 | CH144: 0 | CI144: 0 | CJ144: 0 | CK144: 0 | CL144: 0 | CM144: 0 | CN144: 0 | CO144: 0 | CP144: 0.8194895983 | CQ144: 395970.875 | CR144: 0 | CS144: 0 | CT144: 0 | CU144: 0 | CV144: 0 | CW144: 0 | CX144: 0 | CY144: 0 | CZ144: 0.01220271715 | DA144: =1-ISBLANK(Data_by_donor_recipient_year[DAC member]) -> 1 | DB144: =IF(Data_by_donor_recipient_year[[#This Row],[Multilateral recipient?]],Mult_choice/100,1)*(Data_by_donor_recipient_year[[#This Row],[Net ODA]]+(CC_choice/100-100%)*Data_by_donor_recipient_year[[#This Row],[Climate mitigation grants]])/Data_by_donor_recipient_year[GNI] -> 2.52543821e-08
A145: 2006 | B145: 89 | C145: Europe, regional/multi-country | D145: 2 | E145: Belgium | F145: 0.0700000003 | G145: 0.0700000003 | H145: 1960 | I145: 0 | J145: 0 | K145: 0 | L145: 0 | M145: 0 | N145: 0 | O145: 0 | P145: 0 | Q145: 0 | R145: 0 | S145: 0 | T145: 0 | U145: 0 | V145: 0 | W145: 0 | X145: 0 | Y145: 0 | Z145: 0 | AA145: 0 | AB145: 0 | AC145: 0 | AD145: 0.0700000003 | AE145: 0.0700000003 | AF145: 0.0700000003 | AG145: 0.0700000003 | AH145: 0.0700000003 | AI145: 0.0700000003 | AJ145: 0.0700000003 | AK145: 0.0700000003 | AL145: 0.0700000003 | AM145: 0.0700000003 | AN145: 0.0700000003 | AO145: 0.0700000003 | AP145: 0.0700000003 | AQ145: 0.0700000003 | AR145: 0.0700000003 | AS145: 0.0700000003 | AT145: 0.0700000003 | AU145: 0.0700000003 | AV145: 0 | AW145: 0 | AX145: 0 | AY145: 0 | AZ145: 0 | BA145: 0 | BB145: 0 | BC145: 0 | BD145: 0 | BE145: 0 | BF145: 0 | BG145: 0 | BH145: 0 | BI145: 0 | BJ145: 0 | BK145: 0 | BL145: 0 | BM145: 0 | BN145: 0 | BO145: 0.08541902233 | BP145: 0.08541902233 | BQ145: 0.08541902233 | BR145: 0.08541902233 | BS145: 0.08541902233 | BT145: 0.08541902233 | BU145: 0.08541902233 | BV145: 0.08541902233 | BW145: 0.08541902233 | BX145: 0.08541902233 | BY145: 0.08541902233 | BZ145: 0.08541902233 | CA145: 0.08541902233 | CB145: 0.08541902233 | CC145: 0.08541902233 | CD145: 0.08541902233 | CE145: 0.08541902233 | CF145: 0.08541902233 | CG145: 0.08541902233 | CH145: 0 | CI145: 0 | CJ145: 0 | CK145: 0 | CL145: 0 | CM145: 0 | CN145: 0 | CO145: 0 | CP145: 0.8194895983 | CQ145: 395970.875 | CR145: 0 | CS145: 0 | CT145: 0 | CU145: 0 | CV145: 0 | CW145: 0 | CX145: 0 | CY145: 0 | CZ145: 0.08541902233 | DA145: =1-ISBLANK(Data_by_donor_recipient_year[DAC member]) -> 1 | DB145: =IF(Data_by_donor_recipient_year[[#This Row],[Multilateral recipient?]],Mult_choice/100,1)*(Data_by_donor_recipient_year[[#This Row],[Net ODA]]+(CC_choice/100-100%)*Data_by_donor_recipient_year[[#This Row],[Climate mitigation grants]])/Data_by_donor_recipient_year[GNI] -> 1.767806794e-07
A146: 2006 | B146: 93 | C146: Moldova | D146: 2 | E146: Belgium | F146: 0.1099999994 | G146: 0.1099999994 | H146: 1960 | I146: 0 | J146: 0 | K146: 0 | L146: 0 | M146: 0 | N146: 0 | O146: 0 | P146: 0 | Q146: 0 | R146: 0 | S146: 0 | T146: 0 | U146: 0 | V146: 0 | W146: 0 | X146: 0 | Y146: 0 | Z146: 0 | AA146: 0 | AB146: 0 | AC146: 0 | AD146: 0.1099999994 | AE146: 0.1099999994 | AF146: 0.1099999994 | AG146: 0.1099999994 | AH146: 0.1099999994 | AI146: 0.1099999994 | AJ146: 0.1099999994 | AK146: 0.1099999994 | AL146: 0.1099999994 | AM146: 0.1099999994 | AN146: 0.1099999994 | AO146: 0.1099999994 | AP146: 0.1099999994 | AQ146: 0.1099999994 | AR146: 0.1099999994 | AS146: 0.1099999994 | AT146: 0.1099999994 | AU146: 0.1099999994 | AV146: 0 | AW146: 0 | AX146: 0 | AY146: 0 | AZ146: 0 | BA146: 0 | BB146: 0 | BC146: 0 | BD146: 0 | BE146: 0 | BF146: 0 | BG146: 0 | BH146: 0 | BI146: 0 | BJ146: 0 | BK146: 0 | BL146: 0 | BM146: 0 | BN146: 0 | BO146: 0.1342298909 | BP146: 0.1342298909 | BQ146: 0.1342298909 | BR146: 0.1342298909 | BS146: 0.1342298909 | BT146: 0.1342298909 | BU146: 0.1342298909 | BV146: 0.1342298909 | BW146: 0.1342298909 | BX146: 0.1342298909 | BY146: 0.1342298909 | BZ146: 0.1342298909 | CA146: 0.1342298909 | CB146: 0.1342298909 | CC146: 0.1342298909 | CD146: 0.1342298909 | CE146: 0.1342298909 | CF146: 0.1342298909 | CG146: 0.1342298909 | CH146: 0 | CI146: 0 | CJ146: 0 | CK146: 0 | CL146: 0 | CM146: 0 | CN146: 0 | CO146: 0 | CP146: 0.8194895983 | CQ146: 395970.875 | CR146: 1 | CS146: 0.01816242002 | CT146: 0.02216308792 | CU146: 0 | CV146: 0 | CW146: 0 | CX146: 0 | CY146: 0 | CZ146: 0.1342298909 | DA146: =1-ISBLANK(Data_by_donor_recipient_year[DAC member]) -> 1 | DB146: =IF(Data_by_donor_recipient_year[[#This Row],[Multilateral recipient?]],Mult_choice/100,1)*(Data_by_donor_recipient_year[[#This Row],[Net ODA]]+(CC_choice/100-100%)*Data_by_donor_recipient_year[[#This Row],[Climate mitigation grants]])/Data_by_donor_recipient_year[GNI] -> 2.777982078e-07
A147: 2006 | B147: 130 | C147: Algeria | D147: 2 | E147: Belgium | F147: 13.18000031 | G147: 12.18942291 | H147: 1960 | I147: 8.029999733 | J147: 2.829999924 | K147: 3.820576837 | L147: 8.029999733 | M147: 7.500539667 | N147: 8.029999733 | O147: 6.143559595 | P147: 4.321649299 | Q147: 5.419061278 | R147: 2.829999924 | S147: 2.829999924 | T147: 2.829999924 | U147: 1.881792068 | V147: 1.107421957 | W147: 1.659892186 | X147: 3.820576837 | Y147: 3.820576837 | Z147: 3.820576837 | AA147: 2.540470452 | AB147: 1.49504975 | AC147: 2.240899579 | AD147: 13.18000031 | AE147: 12.65054024 | AF147: 13.18000031 | AG147: 12.24176802 | AH147: 11.19422784 | AI147: 11.73916959 | AJ147: 12.18942291 | AK147: 11.65996285 | AL147: 12.18942291 | AM147: 11.58308916 | AN147: 10.80659957 | AO147: 11.15816172 | AP147: 14.12356009 | AQ147: 12.30164979 | AR147: 13.39906177 | AS147: 14.12355961 | AT147: 12.30164932 | AU147: 13.3990613 | AV147: 9.798781766 | AW147: 9.798781766 | AX147: 9.152696609 | AY147: 9.798781766 | AZ147: 7.496812172 | BA147: 5.27358652 | BB147: 6.612727349 | BC147: 3.453368938 | BD147: 3.453368938 | BE147: 3.453368938 | BF147: 2.296297685 | BG147: 1.351355721 | BH147: 2.02551953 | BI147: 4.662141954 | BJ147: 4.662141954 | BK147: 4.662141954 | BL147: 3.100064305 | BM147: 1.824366963 | BN147: 2.734506433 | BO147: 16.08318194 | BP147: 16.08318194 | BQ147: 15.43709678 | BR147: 16.08318194 | BS147: 14.9382836 | BT147: 13.65999991 | BU147: 14.32497693 | BV147: 14.87440834 | BW147: 14.22832318 | BX147: 14.87440834 | BY147: 14.13451639 | BZ147: 13.18698809 | CA147: 13.61598944 | CB147: 17.23458128 | CC147: 15.01135563 | CD147: 16.35049646 | CE147: 17.2345807 | CF147: 15.01135505 | CG147: 16.35049588 | CH147: 0 | CI147: 0 | CJ147: 0 | CK147: 0 | CL147: 0 | CM147: 0 | CN147: 0 | CO147: 0 | CP147: 0.8194895983 | CQ147: 395970.875 | CR147: 0 | CS147: 0.295870468 | CT147: 0.3610423715 | CU147: 0 | CV147: 0 | CW147: 0 | CX147: 3.453368938 | CY147: 4.662141954 | CZ147: 14.87440834 | DA147: =1-ISBLANK(Data_by_donor_recipient_year[DAC member]) -> 1 | DB147: =IF(Data_by_donor_recipient_year[[#This Row],[Multilateral recipient?]],Mult_choice/100,1)*(Data_by_donor_recipient_year[[#This Row],[Net ODA]]+(CC_choice/100-100%)*Data_by_donor_recipient_year[[#This Row],[Climate mitigation grants]])/Data_by_donor_recipient_year[GNI] -> 3.328527712e-05
A148: 2006 | B148: 136 | C148: Morocco | D148: 2 | E148: Belgium | F148: 10.26000023 | G148: 10.12249965 | H148: 1960 | I148: 0 | J148: 1.110000014 | K148: 1.23750001 | L148: 0 | M148: 0 | N148: 0 | O148: 0 | P148: 0 | Q148: 0 | R148: 1.110000014 | S148: 1.110000014 | T148: 1.110000014 | U148: 0.7380880842 | V148: 0.4343598662 | W148: 0.6510531447 | X148: 1.23750001 | Y148: 1.23750001 | Z148: 1.23750001 | AA148: 0.822868468 | AB148: 0.484252551 | AC148: 0.7258362724 | AD148: 10.26000023 | AE148: 10.26000023 | AF148: 10.26000023 | AG148: 10.63191216 | AH148: 10.93564038 | AI148: 10.7189471 | AJ148: 10.12249965 | AK148: 10.12249965 | AL148: 10.12249965 | AM148: 10.53713119 | AN148: 10.87574711 | AO148: 10.63416338 | AP148: 11.37000024 | AQ148: 11.37000024 | AR148: 11.37000024 | AS148: 11.35999966 | AT148: 11.35999966 | AU148: 11.35999966 | AV148: 0 | AW148: 0 | AX148: 0 | AY148: 0 | AZ148: 0 | BA148: 0 | BB148: 0 | BC148: 1.354501652 | BD148: 1.354501652 | BE148: 1.354501652 | BF148: 0.9006680326 | BG148: 0.5300370708 | BH148: 0.7944617553 | BI148: 1.510086293 | BJ148: 1.510086293 | BK148: 1.510086293 | BL148: 1.004123139 | BM148: 0.5909197042 | BN148: 0.8857174929 | BO148: 12.51998836 | BP148: 12.51998836 | BQ148: 12.51998836 | BR148: 12.51998836 | BS148: 12.97382198 | BT148: 13.34445294 | BU148: 13.08002825 | BV148: 12.35220028 | BW148: 12.35220028 | BX148: 12.35220028 | BY148: 12.85816344 | BZ148: 13.27136687 | CA148: 12.97656908 | CB148: 13.87449001 | CC148: 13.87449001 | CD148: 13.87449001 | CE148: 13.86228658 | CF148: 13.86228658 | CG148: 13.86228658 | CH148: 0 | CI148: 0 | CJ148: 0 | CK148: 0 | CL148: 0 | CM148: 0 | CN148: 0 | CO148: 0 | CP148: 0.8194895983 | CQ148: 395970.875 | CR148: 0 | CS148: 1.620509587 | CT148: 1.977462058 | CU148: 0 | CV148: 0 | CW148: 0 | CX148: 1.354501652 | CY148: 1.510086293 | CZ148: 12.35220028 | DA148: =1-ISBLANK(Data_by_donor_recipient_year[DAC member]) -> 1 | DB148: =IF(Data_by_donor_recipient_year[[#This Row],[Multilateral recipient?]],Mult_choice/100,1)*(Data_by_donor_recipient_year[[#This Row],[Net ODA]]+(CC_choice/100-100%)*Data_by_donor_recipient_year[[#This Row],[Climate mitigation grants]])/Data_by_donor_recipient_year[GNI] -> 2.591099719e-05
A149: 2006 | B149: 139 | C149: Tunisia | D149: 2 | E149: Belgium | F149: 9.550000191 | G149: 9.245961846 | H149: 1960 | I149: 7.53000021 | J149: 1.379999995 | K149: 1.684038459 | L149: 7.53000021 | M149: 7.033507739 | N149: 7.53000021 | O149: 5.76102199 | P149: 4.052555568 | Q149: 5.081635607 | R149: 1.379999995 | S149: 1.379999995 | T149: 1.379999995 | U149: 0.9176230086 | V149: 0.5400149599 | W149: 0.8094174099 | X149: 1.684038459 | Y149: 1.684038459 | Z149: 1.684038459 | AA149: 1.119791625 | AB149: 0.6589898291 | AC149: 0.9877464147 | AD149: 9.550000191 | AE149: 9.05350772 | AF149: 9.550000191 | AG149: 8.243398958 | AH149: 6.912540584 | AI149: 7.672218173 | AJ149: 9.245961846 | AK149: 8.749469375 | AL149: 9.245961846 | AM149: 8.04123046 | AN149: 6.793565834 | AO149: 7.493889287 | AP149: 9.161021966 | AQ149: 7.452555544 | AR149: 8.481635583 | AS149: 9.161022085 | AT149: 7.452555663 | AU149: 8.481635702 | AV149: 9.188646477 | AW149: 9.188646477 | AX149: 8.582790744 | AY149: 9.188646477 | AZ149: 7.030012342 | BA149: 4.945219044 | BB149: 6.200976336 | BC149: 1.683974999 | BD149: 1.683974999 | BE149: 1.683974999 | BF149: 1.119749428 | BG149: 0.6589649961 | BH149: 0.9877091931 | BI149: 2.054984545 | BJ149: 2.054984545 | BK149: 2.054984545 | BL149: 1.366450078 | BM149: 0.804146667 | BN149: 1.205319039 | BO149: 11.65359537 | BP149: 11.65359537 | BQ149: 11.04773964 | BR149: 11.65359537 | BS149: 10.05918681 | BT149: 8.435177943 | BU149: 9.362191038 | BV149: 11.28258597 | BW149: 10.67673024 | BX149: 11.28258597 | BY149: 9.812486305 | BZ149: 8.289996418 | CA149: 9.144581338 | CB149: 11.17893624 | CC149: 9.094142939 | CD149: 10.34990023 | CE149: 11.17893638 | CF149: 9.094143085 | CG149: 10.34990038 | CH149: 0 | CI149: 0 | CJ149: 0 | CK149: 0 | CL149: 0 | CM149: 0 | CN149: 0 | CO149: 0 | CP149: 0.8194895983 | CQ149: 395970.875 | CR149: 0 | CS149: 0 | CT149: 0 | CU149: 0 | CV149: 0 | CW149: 0 | CX149: 1.683974999 | CY149: 2.054984545 | CZ149: 11.28258597 | DA149: =1-ISBLANK(Data_by_donor_recipient_year[DAC member]) -> 1 | DB149: =IF(Data_by_donor_recipient_year[[#This Row],[Multilateral recipient?]],Mult_choice/100,1)*(Data_by_donor_recipient_year[[#This Row],[Net ODA]]+(CC_choice/100-100%)*Data_by_donor_recipient_year[[#This Row],[Climate mitigation grants]])/Data_by_donor_recipient_year[GNI] -> 2.411793592e-05
A150: 2006 | B150: 142 | C150: Egypt | D150: 2 | E150: Belgium | F150: -1.330000043 | G150: -1.319999978 | H150: 1960 | I150: 0 | J150: 1.399999976 | K150: 1.399999976 | L150: 0 | M150: 0 | N150: 0 | O150: 0 | P150: 0 | Q150: 0 | R150: 1.399999976 | S150: 1.399999976 | T150: 1.399999976 | U150: 0.9309218802 | V150: 0.5478412563 | W150: 0.8211480858 | X150: 1.399999976 | Y150: 1.399999976 | Z150: 1.399999976 | AA150: 0.9309218802 | AB150: 0.5478412563 | AC150: 0.8211480858 | AD150: -1.330000043 | AE150: -1.330000043 | AF150: -1.330000043 | AG150: -0.8609219469 | AH150: -0.477841323 | AI150: -0.7511481526 | AJ150: -1.319999978 | AK150: -1.319999978 | AL150: -1.319999978 | AM150: -0.850921882 | AN150: -0.4678412581 | AO150: -0.7411480876 | AP150: 0.06999993324 | AQ150: 0.06999993324 | AR150: 0.06999993324 | AS150: 0.07999999821 | AT150: 0.07999999821 | AU150: 0.07999999821 | AV150: 0 | AW150: 0 | AX150: 0 | AY150: 0 | AZ150: 0 | BA150: 0 | BB150: 0 | BC150: 1.70838041 | BD150: 1.70838041 | BE150: 1.70838041 | BF150: 1.135977665 | BG150: 0.6685152044 | BH150: 1.002023805 | BI150: 1.70838041 | BJ150: 1.70838041 | BK150: 1.70838041 | BL150: 1.135977665 | BM150: 0.6685152044 | BN150: 1.002023805 | BO150: -1.62296147 | BP150: -1.62296147 | BQ150: -1.62296147 | BR150: -1.62296147 | BS150: -1.050558724 | BT150: -0.5830962639 | BU150: -0.916604865 | BV150: -1.610758673 | BW150: -1.610758673 | BX150: -1.610758673 | BY150: -1.038355928 | BZ150: -0.5708934672 | CA150: -0.9044020683 | CB150: 0.08541894051 | CC150: 0.08541894051 | CD150: 0.08541894051 | CE150: 0.09762173721 | CF150: 0.09762173721 | CG150: 0.09762173721 | CH150: 0 | CI150: 0 | CJ150: 0 | CK150: 0 | CL150: 0 | CM150: 0 | CN150: 0 | CO150: 0 | CP150: 0.8194895983 | CQ150: 395970.875 | CR150: 0 | CS150: 0 | CT150: 0 | CU150: 0 | CV150: 0 | CW150: 0 | CX150: 1.70838041 | CY150: 1.70838041 | CZ150: -1.610758673 | DA150: =1-ISBLANK(Data_by_donor_recipient_year[DAC member]) -> 1 | DB150: =IF(Data_by_donor_recipient_year[[#This Row],[Multilateral recipient?]],Mult_choice/100,1)*(Data_by_donor_recipient_year[[#This Row],[Net ODA]]+(CC_choice/100-100%)*Data_by_donor_recipient_year[[#This Row],[Climate mitigation grants]])/Data_by_donor_recipient_year[GNI] -> -3.358833002e-06
A151: 2006 | B151: 189 | C151: North of Sahara, regional/multi-country | D151: 2 | E151: Belgium | F151: 0.05999999866 | G151: 0.05999999866 | H151: 1960 | I151: 0 | J151: 0 | K151: 0 | L151: 0 | M151: 0 | N151: 0 | O151: 0 | P151: 0 | Q151: 0 | R151: 0 | S151: 0 | T151: 0 | U151: 0 | V151: 0 | W151: 0 | X151: 0 | Y151: 0 | Z151: 0 | AA151: 0 | AB151: 0 | AC151: 0 | AD151: 0.05999999866 | AE151: 0.05999999866 | AF151: 0.05999999866 | AG151: 0.05999999866 | AH151: 0.05999999866 | AI151: 0.05999999866 | AJ151: 0.05999999866 | AK151: 0.05999999866 | AL151: 0.05999999866 | AM151: 0.05999999866 | AN151: 0.05999999866 | AO151: 0.05999999866 | AP151: 0.05999999866 | AQ151: 0.05999999866 | AR151: 0.05999999866 | AS151: 0.05999999866 | AT151: 0.05999999866 | AU151: 0.05999999866 | AV151: 0 | AW151: 0 | AX151: 0 | AY151: 0 | AZ151: 0 | BA151: 0 | BB151: 0 | BC151: 0 | BD151: 0 | BE151: 0 | BF151: 0 | BG151: 0 | BH151: 0 | BI151: 0 | BJ151: 0 | BK151: 0 | BL151: 0 | BM151: 0 | BN151: 0 | BO151: 0.07321630291 | BP151: 0.07321630291 | BQ151: 0.07321630291 | BR151: 0.07321630291 | BS151: 0.07321630291 | BT151: 0.07321630291 | BU151: 0.07321630291 | BV151: 0.07321630291 | BW151: 0.07321630291 | BX151: 0.07321630291 | BY151: 0.07321630291 | BZ151: 0.07321630291 | CA151: 0.07321630291 | CB151: 0.07321630291 | CC151: 0.07321630291 | CD151: 0.07321630291 | CE151: 0.07321630291 | CF151: 0.07321630291 | CG151: 0.07321630291 | CH151: 0 | CI151: 0 | CJ151: 0 | CK151: 0 | CL151: 0 | CM151: 0 | CN151: 0 | CO151: 0 | CP151: 0.8194895983 | CQ151: 395970.875 | CR151: 0 | CS151: 0 | CT151: 0 | CU151: 0 | CV151: 0 | CW151: 0 | CX151: 0 | CY151: 0 | CZ151: 0.07321630291 | DA151: =1-ISBLANK(Data_by_donor_recipient_year[DAC member]) -> 1 | DB151: =IF(Data_by_donor_recipient_year[[#This Row],[Multilateral recipient?]],Mult_choice/100,1)*(Data_by_donor_recipient_year[[#This Row],[Net ODA]]+(CC_choice/100-100%)*Data_by_donor_recipient_year[[#This Row],[Climate mitigation grants]])/Data_by_donor_recipient_year[GNI] -> 1.515262926e-07
A152: 2006 | B152: 218 | C152: South Africa | D152: 2 | E152: Belgium | F152: 24.77000046 | G152: 24.77000046 | H152: 1960 | I152: 0 | J152: 0 | K152: 0 | L152: 0 | M152: 0 | N152: 0 | O152: 0 | P152: 0 | Q152: 0 | R152: 0 | S152: 0 | T152: 0 | U152: 0 | V152: 0 | W152: 0 | X152: 0 | Y152: 0 | Z152: 0 | AA152: 0 | AB152: 0 | AC152: 0 | AD152: 24.77000046 | AE152: 24.77000046 | AF152: 24.77000046 | AG152: 24.77000046 | AH152: 24.77000046 | AI152: 24.77000046 | AJ152: 24.77000046 | AK152: 24.77000046 | AL152: 24.77000046 | AM152: 24.77000046 | AN152: 24.77000046 | AO152: 24.77000046 | AP152: 24.77000046 | AQ152: 24.77000046 | AR152: 24.77000046 | AS152: 24.77000046 | AT152: 24.77000046 | AU152: 24.77000046 | AV152: 0 | AW152: 0 | AX152: 0 | AY152: 0 | AZ152: 0 | BA152: 0 | BB152: 0 | BC152: 0 | BD152: 0 | BE152: 0 | BF152: 0 | BG152: 0 | BH152: 0 | BI152: 0 | BJ152: 0 | BK152: 0 | BL152: 0 | BM152: 0 | BN152: 0 | BO152: 30.22613162 | BP152: 30.22613162 | BQ152: 30.22613162 | BR152: 30.22613162 | BS152: 30.22613162 | BT152: 30.22613162 | BU152: 30.22613162 | BV152: 30.22613162 | BW152: 30.22613162 | BX152: 30.22613162 | BY152: 30.22613162 | BZ152: 30.22613162 | CA152: 30.22613162 | CB152: 30.22613162 | CC152: 30.22613162 | CD152: 30.22613162 | CE152: 30.22613162 | CF152: 30.22613162 | CG152: 30.22613162 | CH152: 0 | CI152: 0 | CJ152: 0 | CK152: 0 | CL152: 0 | CM152: 0 | CN152: 0 | CO152: 0 | CP152: 0.8194895983 | CQ152: 395970.875 | CR152: 0 | CS152: 0 | CT152: 0 | CU152: 0 | CV152: 0 | CW152: 0 | CX152: 0 | CY152: 0 | CZ152: 30.22613162 | DA152: =1-ISBLANK(Data_by_donor_recipient_year[DAC member]) -> 1 | DB152: =IF(Data_by_donor_recipient_year[[#This Row],[Multilateral recipient?]],Mult_choice/100,1)*(Data_by_donor_recipient_year[[#This Row],[Net ODA]]+(CC_choice/100-100%)*Data_by_donor_recipient_year[[#This Row],[Climate mitigation grants]])/Data_by_donor_recipient_year[GNI] -> 6.255510701e-05
